Workbook

Sheet Condiciones
B3: Fecha de reajuste | C3: 2014-05-04

Sheet Resumen
A1: RESUMEN DEL REAJUSTE TARIFARIO
D2: Factor que motiva reajuste tarifario
A3: =CONCATENATE("Reajuste al ",TEXT(Historico!P5,"dd/mmmm/yyyy")) -> Reajuste al 04/mayo/2014
A4: Actividad | C4: Límite | D4: Límite | E4: Límite | G4: Factor
A5: Regulada | C5: Inferior | D5: Superior | E5: Tarifario +/- | G5: aplicable | M5: Menor al límite - | N5: Mayor al límite + | O5: Actualiza
A6: Generación SEIN | C6: =MIN(Factores!$D$8:$D$10) -> 0 | D6: =MAX(Factores!$D$8:$D$10) -> 0.0001 | E6: 0.05 | G6: =IF(OR(O6,O9,O10),"Ft","Ft-1") -> Ft-1 | M6: =OR(C6<-E6,D6<-E6) -> FALSE | N6: =OR(C6>E6,D6>E6) -> FALSE | O6: =OR(M6,N6) -> FALSE
A7: Generación Aislada | C7: =MIN(Factores!$D$12:$D$21) -> -0.0181 | D7: =MAX(Factores!$D$12:$D$21) -> 0.0005 | E7: 0.015 | G7: =IF(O7,"Ft","Ft-1") -> Ft | M7: TRUE | N7: FALSE | O7: TRUE
A8: Precio a Nivel Generación | C8: =+Factores!D23 -> 0 | E8: 0.01 | G8: =IF(OR(M8,N8),"Ft","Ft-1") -> Ft-1 | M8: FALSE | N8: FALSE | O8: =OR(M8,N8) -> FALSE
A9: Transmisión Principal | C9: =MIN(Factores!$D$28:$D$49) -> -0.0154 | D9: =MAX(Factores!$D$28:$D$49) -> 0.0002 | E9: 0.05 | G9: =IF(OR(O6,O9,O10),"Ft","Ft-1") -> Ft-1 | M9: FALSE | N9: FALSE | O9: FALSE
A10: Transmisión Secundaria | C10: =MIN(Factores!$D$90:$D$106) -> -0.004587155963 | D10: =MAX(Factores!$D$90:$D$106) -> 0.00136425648 | E10: 0.05 | G10: =IF(OR(O6,O9,O10),"Ft","Ft-1") -> Ft-1 | M10: FALSE | N10: FALSE | O10: FALSE
A11: Distribución | C11: =MIN(Factores!$D$113:$D$149) -> -0.001064859632 | D11: =MAX(Factores!$D$113:$D$149) -> 0.0006851326221 | E11: 0.015 | G11: =IF(OR(O8,O9,O10,O11),"Ft","Ft-1") -> Ft-1 | M11: =OR(C11<-E11,D11<-E11) -> FALSE | N11: FALSE | O11: =OR(M11,N11) -> FALSE
A12: Donde: | C12: Ft = Factor calculado en la presente evaluación
C13: Ft-1 = Factor empleado en la última actualización
C14: = Factor ratificado en la evaluación del mes anterior
A15: Variación respecto al mes pasado
A16: Variable | C16: =IF(OR(AND(MONTH(D16)=5,DAY(D16)=4),AND(MONTH(D16)=11,DAY(D16)=4)),DATE(YEAR(D16),MONTH(D16),DAY(D16)-3),IF(OR(AND(MONTH(D16)=5,DAY(D16)=1),AND(MONTH(D16)=11,DAY(D16)=1)),DATE(YEAR(D16),MONTH(D16)-1,DAY(D16)+3),DATE(YEAR(D16),MONTH(D16)-1,DAY(D16)))) -> 2014-05-01 | D16: =+Historico!P5 -> 2014-05-04 | E16: Variación | L16: =MID(Historico!A6,17,100) -> TARIFAS EN BARRA (Res. N° 053, 066, 077, 135-2013-OS/CD, 067-2014-OS/CD)
A17: IPM | B17: =+BBDD!IZ8 -> 260 | C17: =VLOOKUP(C$16,BBDD!$8:$1048576,$B17,FALSE) -> 212.7502269 | D17: =+'ALUMINIO-COBRE-TC-IPM'!G8 -> 212.8755683 | E17: =+D17/C17-1 -> 0.0005891479787
A18: TC (S/./US$) | B18: =1+B17 -> 261 | C18: =VLOOKUP(C$16,BBDD!$8:$1048576,$B18,FALSE) -> 2.809 | D18: =+'ALUMINIO-COBRE-TC-IPM'!F8 -> 2.809 | E18: =+D18/C18-1 -> 0
A19: PGN (US$/MMBtu) | B19: 262 | C19: =VLOOKUP(C$16,BBDD!$8:$1048576,$B19,FALSE) -> 2.7905 | D19: =COMBUSTIBLES!$F$14 -> 2.7861 | E19: =+D19/C19-1 -> -0.001576778355
A20: FOBCB (US$/tn) | B20: 263 | C20: =VLOOKUP(C$16,BBDD!$8:$1048576,$B20,FALSE) -> 93.53 | D20: =+COMBUSTIBLES!E14 -> 93.03 | E20: =+D20/C20-1 -> -0.005345878328
A21: Diesel+ISC (S/./gl) - Callao (SEIN) | B21: 264 | C21: =VLOOKUP(C$16,BBDD!$8:$1048576,$B21,FALSE) -> 10.11 | D21: =COMBUSTIBLES!K6 -> 10.02 | E21: -0.008902077151
A22: Residual+ISC (S/./gl.) - Callao (SEIN) | B22: 265 | C22: =VLOOKUP(C$16,BBDD!$8:$1048576,$B22,FALSE) -> 6.88 | D22: =COMBUSTIBLES!L6 -> 6.83 | E22: -0.00726744186
A23: Diesel+ISC (S/./gl) - Callao (Aislados) | B23: 266 | C23: =VLOOKUP(C$16,BBDD!$8:$1048576,$B23,FALSE) -> 10.49 | D23: =COMBUSTIBLES!K7 -> 10.45 | E23: -0.003813155386
A24: Diesel (S/./gl) - Iquitos (Aislados) | B24: 267 | C24: =VLOOKUP(C$16,BBDD!$8:$1048576,$B24,FALSE) -> 9.79 | D24: =COMBUSTIBLES!K8 -> 9.77 | E24: -0.002042900919
A25: Residual (S/./gl.) - Iquitos (Aislados) | B25: 268 | C25: =VLOOKUP(C$16,BBDD!$8:$1048576,$B25,FALSE) -> 7.68 | D25: =COMBUSTIBLES!L8 -> 7.68 | E25: 0
A26: Diesel+ISC (S/./gl) - Cusco (Aislados) | B26: 269 | C26: =VLOOKUP(C$16,BBDD!$8:$1048576,$B26,FALSE) -> 11.06 | D26: =COMBUSTIBLES!K10 -> 11.04 | E26: -0.001808318264
A27: IPCu (ctv.US$/lb) | B27: 270 | C27: =VLOOKUP(C$16,BBDD!$8:$1048576,$B27,FALSE) -> 325.9875 | D27: =+'ALUMINIO-COBRE-TC-IPM'!E8 -> 322.2266667 | E27: -0.01153674093
A28: IPAl (US$/tn) | B28: 271 | C28: =VLOOKUP(C$16,BBDD!$8:$1048576,$B28,FALSE) -> 1789.466288 | D28: =+'ALUMINIO-COBRE-TC-IPM'!D8 -> 1773.359558 | E28: -0.009000857336
A29: IPM Pre Pago | B29: 272 | C29: =VLOOKUP(C$16,BBDD!$8:$1048576,$B29,FALSE) -> 211.9423434 | D29: ='ALUMINIO-COBRE-TC-IPM'!H8 -> 212.7502269 | E29: 0.003811808
A30: PGN (S/./MMBtu) | B30: 273 | C30: =VLOOKUP(C$16,BBDD!$8:$1048576,$B30,FALSE) -> 7.839 | D30: =+COMBUSTIBLES!I14 -> 7.826 | E30: -0.001658374793
A31: FOBCB (S/./tn) | B31: 274 | C31: =VLOOKUP(C$16,BBDD!$8:$1048576,$B31,FALSE) -> 262.726 | D31: =COMBUSTIBLES!H14 -> 261.321 | E31: -0.005347776771
A32: TA Cobre | B32: 275 | C32: =VLOOKUP(C$16,BBDD!$8:$1048576,$B32,FALSE) -> 0 | D32: =Factores!DC98 -> 0 | E32: =+D32-C32 -> 0
A33: TA Aluminio | B33: 276 | C33: =VLOOKUP(C$16,BBDD!$8:$1048576,$B33,FALSE) -> 0 | D33: =Factores!DC99 -> 0 | E33: 0
A34: TA Prod. Import. - Sector 1 | B34: 277 | C34: =VLOOKUP(C$16,BBDD!$8:$1048576,$B34,FALSE) -> 0 | D34: =+Factores!AU125 -> 0 | E34: 0
A35: TA Prod. Import. - Sector 2 | B35: 278 | C35: =VLOOKUP(C$16,BBDD!$8:$1048576,$B35,FALSE) -> 0 | D35: =+Factores!AU126 -> 0 | E35: 0
A36: TA Prod. Import. - Sector 3 | B36: 279 | C36: =VLOOKUP(C$16,BBDD!$8:$1048576,$B36,FALSE) -> 0 | D36: =+Factores!AU127 -> 0 | E36: 0
A37: TA Prod. Import. - Sector 4 | B37: 280 | C37: =VLOOKUP(C$16,BBDD!$8:$1048576,$B37,FALSE) -> 0 | D37: =+Factores!AU128 -> 0 | E37: 0
A38: TA Prod. Import. - Sector 5 | B38: 281 | C38: =VLOOKUP(C$16,BBDD!$8:$1048576,$B38,FALSE) -> 0 | D38: =+Factores!AU129 -> 0 | E38: 0
A39: TA Prod. Import. - Sector Especial | B39: 282 | C39: =VLOOKUP(C$16,BBDD!$8:$1048576,$B39,FALSE) -> 0 | D39: =+Factores!AU131 -> 0 | E39: 0
A40: TA Prod. Import. - SER 100% Estado Prepago | B40: 283 | C40: =VLOOKUP(C$16,BBDD!$8:$1048576,$B40,FALSE) -> 0 | D40: =+Factores!AU132 -> 0 | E40: 0
A41: TA Prod. Import. - SER 100% Estado Convencional | B41: 284 | C41: =VLOOKUP(C$16,BBDD!$8:$1048576,$B41,FALSE) -> 0 | D41: =+Factores!AU133 -> 0 | E41: 0
A42: TA Prod. Import. - SER 100% Privado Prepago | B42: 285 | C42: =VLOOKUP(C$16,BBDD!$8:$1048576,$B42,FALSE) -> 0 | D42: =+Factores!AU134 -> 0 | E42: 0
A43: TA Prod. Import. - SER 100% Privado Convencional | B43: 286 | C43: =VLOOKUP(C$16,BBDD!$8:$1048576,$B43,FALSE) -> 0 | D43: =+Factores!AU135 -> 0 | E43: 0
A45: Por actividad
A46: Precio en Barra-SEIN (Res. 057-2012-OS/CD)
A47: Variable | C47: =$C$16 -> 2014-05-01 | D47: =$D$16 -> 2014-05-04 | E47: Variación | L47: =CONCATENATE("PEAJES SECUNDARIOS ",MID(Historico!A89,50,100)) -> PEAJES SECUNDARIOS 36, 137 y 160-2013-OS/CD)
A48: IPM | C48: =C17 -> 212.7502269 | D48: =D17 -> 212.8755683 | E48: =+D48/C48-1 -> 0.0005891479787
A49: TC (S/./US$) | C49: =C18 -> 2.809 | D49: =D18 -> 2.809 | E49: 0
A50: PGN (S/./MMBtu) | C50: =C30 -> 7.839 | D50: =D30 -> 7.826 | E50: -0.001658374793
A51: FOBCB (US$/tn) | C51: =C20 -> 93.53 | D51: 93.03 | E51: -0.005345878328
A52: Diesel+ISC (S/./gl) - Callao (SEIN) | C52: 10.11 | D52: 10.02 | E52: -0.008902077151
A53: Residual+ISC (S/./gl.) - Callao (SEIN) | C53: 6.88 | D53: 6.83 | E53: -0.00726744186
A55: Precio en Barra-Aislados (Res. 057-2012-OS/CD) - Addendum 4
A56: Variable | C56: =C16 -> 2014-05-01 | D56: 2014-05-04 | E56: Variación
A57: IPM | C57: 212.7502269 | D57: 212.8755683 | E57: =+D57/C57-1 -> 0.0005891479787
A58: TC (S/./US$) | C58: 2.809 | D58: 2.809 | E58: =+D58/C58-1 -> 0
A59: PGN (S/./MMBtu) | C59: =C30 -> 7.839 | D59: =D30 -> 7.826 | E59: =+D59/C59-1 -> -0.001658374793
A60: FOBCB (US$/tn) | C60: =C20 -> 93.53 | D60: =D20 -> 93.03 | E60: -0.005345878328
A61: Diesel+ISC (S/./gl) - Callao (Aislados) | C61: =C23 -> 10.49 | D61: 10.45 | E61: -0.003813155386
A62: Diesel+ISC (S/./gl) - Iquitos (Aislados) | C62: 9.79 | D62: 9.77 | E62: -0.002042900919
A63: Residual+ISC (S/./gl.) - Iquitos (Aislados) | C63: 7.68 | D63: 7.68 | E63: 0
A64: Diesel+ISC (S/./gl) - Cusco (Aislados) | C64: 11.06 | D64: 11.04 | E64: -0.001808318264
A66: Transmision Principal (Res. 057-2012-OS/CD)
A67: Variable | C67: =C16 -> 2014-05-01 | D67: 2014-05-04 | E67: Variación
A68: IPM | C68: 212.7502269 | D68: 212.8755683 | E68: =+D68/C68-1 -> 0.0005891479787
A69: TC (S/./US$) | C69: 2.809 | D69: 2.809 | E69: =+D69/C69-1 -> 0
A70: IPCu (ctv.US$/lb) | C70: =C27 -> 325.9875 | D70: =D27 -> 322.2266667 | E70: =+D70/C70-1 -> -0.01153674093
A71: IPAl (US$/tn) | C71: =C28 -> 1789.466288 | D71: =D28 -> 1773.359558 | E71: =+D71/C71-1 -> -0.009000857336
A73: Transmision Secundaria (Res. 184-2009-OS/CD)
A74: Variable | C74: =C16 -> 2014-05-01 | D74: 2014-05-04 | E74: Variación
A75: IPM | C75: 212.7502269 | D75: 212.8755683 | E75: =+D75/C75-1 -> 0.0005891479787
A76: TC (S/./US$) | C76: 2.809 | D76: 2.809 | E76: =+D76/C76-1 -> 0
A77: IPCu (ctv.US$/lb) | C77: =C27 -> 325.9875 | D77: =D27 -> 322.2266667 | E77: =+D77/C77-1 -> -0.01153674093
A78: IPAl (US$/tn) | C78: =C28 -> 1789.466288 | D78: =D28 -> 1773.359558 | E78: =+D78/C78-1 -> -0.009000857336
A80: Distribución (Res. 181-2009-OS/CD) | L80: =CONCATENATE("VAD Y CARGOS FIJOS", MID(Historico!A111,39,100)) -> VAD Y CARGOS FIJOS (Res. N° 203-2013-OS/CD)
A81: Variable | C81: =C16 -> 2014-05-01 | D81: =D16 -> 2014-05-04 | E81: Variación
A82: IPM | C82: =+C75 -> 212.7502269 | D82: 212.8755683 | E82: =+D82/C82-1 -> 0.0005891479787
A83: IPM Pre Pago | C83: =C29 -> 211.9423434 | D83: =D29 -> 212.7502269 | E83: =E29 -> 0.003811808
A84: TC (S/./US$) | C84: =+C76 -> 2.809 | D84: 2.809 | E84: =+D84/C84-1 -> 0
A85: IPCu (ctv.US$/lb) | C85: =C27 -> 325.9875 | D85: 322.2266667 | E85: =+D85/C85-1 -> -0.01153674093
A86: IPAl (US$/tn) | C86: =C28 -> 1789.466288 | D86: 1773.359558 | E86: =+D86/C86-1 -> -0.009000857336
A87: TA Cobre | C87: =C32 -> 0 | D87: 0 | E87: =+D87-C87 -> 0
A88: TA Aluminio | C88: =C33 -> 0 | D88: 0 | E88: 0
A90: Tasa Arancelaria - Productos Importados (TABBT) (Res. 181-2009-OS/CD)
A91: Variable | C91: =C16 -> 2014-05-01 | D91: =D16 -> 2014-05-04 | E91: Diferencia
A92: TA Prod. Import. - Sector 1 | C92: =C34 -> 0 | D92: 0 | E92: =+D34-C34 -> 0
A93: TA Prod. Import. - Sector 2 | C93: =C35 -> 0 | D93: 0 | E93: 0 | L93: =CONCATENATE("PRECIOS A NIVEL DE GENERACIÓN",MID(Historico!A23,7,100)) -> PRECIOS A NIVEL DE GENERACIÓN (Res. 085-2014-OS/CD)
A94: TA Prod. Import. - Sector 3 | C94: =C36 -> 0 | D94: 0 | E94: 0
A95: TA Prod. Import. - Sector 4 | C95: =C37 -> 0 | D95: 0 | E95: 0
A96: TA Prod. Import. - Sector 5 | C96: =C38 -> 0 | D96: 0 | E96: 0
A97: TA Prod. Import. - Sector Especial | C97: =C39 -> 0 | D97: 0 | E97: 0
A98: TA Prod. Import. - SER 100% Estado Prepago | C98: =C40 -> 0 | D98: 0 | E98: 0
A99: TA Prod. Import. - SER 100% Estado Convencional | C99: =C41 -> 0 | D99: 0 | E99: 0
A100: TA Prod. Import. - SER 100% Privado Prepago | C100: =C42 -> 0 | D100: 0 | E100: 0
A101: TA Prod. Import. - SER 100% Privado Convencional | C101: =C43 -> 0 | D101: 0 | E101: 0
A103: IMPACTO DEL PRECIO DE LOS COMBUSTIBLES
A104: Variación respecto al último ajuste
D106: =C16 -> 2014-05-01 | G106: =+Historico!P5 -> 2014-05-04
D107: Precio + ISC | G107: Precio + ISC | K107: Var. %
A108: Sistema | C108: Punto de venta | D108: Diesel (S/./gl) | E108: Residual (S/./gl) | G108: Diesel (S/./gl) | I108: Residual (S/./gl) | K108: Diesel (S/./gl) | L108: Residual (S/./gl)
A109: SEIN | C109: Lima (Callao) | D109: =C21 -> 10.11 | E109: =C22 -> 6.88 | G109: =D21 -> 10.02 | I109: =D22 -> 6.83 | K109: =+G109/D109-1 -> -0.008902077151 | L109: =+I109/E109-1 -> -0.00726744186
A110: Electronorte | C110: Callao | D110: =C23 -> 10.49 | G110: =D23 -> 10.45 | K110: =+G110/D110-1 -> -0.003813155386
A111: Electro Oriente | C111: Iquitos | D111: =C24 -> 9.79 | E111: =C25 -> 7.68 | G111: =D24 -> 9.77 | I111: =D25 -> 7.68 | K111: =+G111/D111-1 -> -0.002042900919 | L111: =+I111/E111-1 -> 0
A112: Hidrandina, Seal | C112: Callao | D112: =C23 -> 10.49 | G112: =D23 -> 10.45 | K112: =+G112/D112-1 -> -0.003813155386
A113: Electro Sur Este | C113: Cusco | D113: =C26 -> 11.06 | G113: =D26 -> 11.04 | K113: =+G113/D113-1 -> -0.001808318264
A115: CALENDARIZACIÓN DE LOS PLIEGOS TARIFARIOS
A116: Indicadores disponibles al segundo día calendario de cada mes
A117: Conformidad de factores y pliegos se da como máximo el segundo día calendario de cada mes
A118: Sin perjuicio de la entrada en vigencia (dos días calendario más) pues ello no requiere atención pública.
A120: =MID(Historico!A6,17,100) -> TARIFAS EN BARRA (Res. N° 053, 066, 077, 135-2013-OS/CD, 067-2014-OS/CD) | L120: =CONCATENATE("VAD Y CARGOS FIJOS", MID(Historico!A111,38,100)) -> VAD Y CARGOS FIJOSS (Res. N° 203-2013-OS/CD)
L137: =CONCATENATE("VAD Y CARGOS FIJOS", MID(Historico!A111,38,100)) -> VAD Y CARGOS FIJOSS (Res. N° 203-2013-OS/CD)

Sheet Factores
A1: Factores de Actualización Tarifaria | O1: Ponderadores de los Factores de Actualización establecidos por Resolución | Z1: Índices Componentes de los Factores de Actualización | AK1: Variables actualizadas | BS1: Variables fijadas en la Resolución
A2: =+CONCATENATE("Reajuste al ",TEXT(Historico!P5,"dd/mmmm/yyyy")) -> Reajuste al 04/mayo/2014
B4: Ft-1 | C4: Ft | F4: Aplicable
A5: Descripción | B5: =+Historico!O5 -> 2014-05-01 | C5: =+Historico!P5 -> 2014-05-04 | D5: Variación (%) | F5: =+Historico!P5 -> 2014-05-04 | AK5: Generación (V.actuales) | BS5: Generación (V.Resolución) | CZ5: Indicadores Macroeconómicos de la Generación
A6: =Historico!A6 -> A. GENERACIÓN - TARIFAS EN BARRA (Res. N° 053, 066, 077, 135-2013-OS/CD, 067-2014-OS/CD) | B6: =+Historico!O6 ->  | F6: =IF(IF(Resumen!$G$6="Ft-1",B6,C6)=0,"",IF(Resumen!$G$6="Ft-1",B6,C6)) ->  | O6: Generación (Pondedadores) | S6: FTC | T6: FPM | Z6: Generación (Componentes) | AD6: FTC | AE6: FPM | AO6: TC | AP6: IPM | BW6: TCo | BX6: IPMo | DA6: Fuente | DB6: IPM | DC6: TC (S/./US$) | DD6: PGN (S/./MMBtu) | DE6: FOBCB (US$/tn)
A7: =Historico!A7 -> 1. POTENCIA (FAPPM) | B7: =+Historico!O7 ->  | F7: =IF(IF(Resumen!$G$6="Ft-1",B7,C7)=0,"",IF(Resumen!$G$6="Ft-1",B7,C7)) ->  | S7: a | T7: b | AD7: a | AE7: b | AO7: a | AP7: b | BW7: a | BX7: b | CZ7: Valores Base | DA7: Resolucion Base | DB7: 212.7502269 | DC7: 2.809 | DD7: 7.8261 | DE7: 93.53
A8: =Historico!A8 -> Sistema Eléctrico Interconectado Nacional (SEIN) | B8: =+Historico!O8 -> 1 | C8: =+ROUND(S8*AD8+T8*AE8,4) -> 1.0001 | D8: =+C8/B8-1 -> 0.0001 | F8: =IF(AND(DAY(F5)=1,MONTH(F5)=5),C8,IF(IF(Resumen!$G$6="Ft-1",B8,C8)=0,"",IF(Resumen!$G$6="Ft-1",B8,C8))) -> 1 | G8: =+IF(F8=B8,1,0) -> 1 | O8: SEIN (Potencia) | S8: 0.7745 | T8: 0.2255 | U8: FD2SEIN | V8: FR6SEIN | W8: FPGN | X8: FCB | Z8: SEIN (Potencia) | AD8: =AO8/BW8 -> 1 | AE8: =AP8/BX8 -> 1.000589148 | AF8: FD2 | AG8: FR6 | AH8: FPGN | AI8: FCB | AK8: SEIN (Potencia) | AO8: =DC8 -> 2.809 | AP8: =DB8 -> 212.8755683 | AQ8: FD2 | AR8: FR6 | AS8: FPGN | AT8: FCB | BS8: SEIN (Potencia) | BW8: =DC7 -> 2.809 | BX8: =DB7 -> 212.7502269 | BY8: FD2 | BZ8: FR6 | CA8: FPGN | CB8: FCB | CZ8: Valores Actuales | DA8: Indicador actualizado | DB8: =+'ALUMINIO-COBRE-TC-IPM'!G8 -> 212.8755683 | DC8: =+'ALUMINIO-COBRE-TC-IPM'!F8 -> 2.809 | DD8: =+COMBUSTIBLES!I14 -> 7.826 | DE8: =+COMBUSTIBLES!E14 -> 93.03
A9: =Historico!A9 -> 2. ENERGÍA (FAPEM) | B9: =+Historico!O9 ->  | F9: =IF(IF(Resumen!$G$6="Ft-1",B9,C9)=0,"",IF(Resumen!$G$6="Ft-1",B9,C9)) ->  | G9: =+IF(F9=B9,1,0) -> 1 | S9: d | T9: s | U9: e | V9: f | W9: g | X9: cb | AD9: d | AE9: s | AF9: e | AG9: f | AH9: g | AI9: cb | AO9: d | AP9: s | AQ9: e | AR9: f | AS9: g | AT9: cb | BW9: d | BX9: s | BY9: e | BZ9: f | CA9: g | CB9: cb
A10: =Historico!A10 -> Sistema Eléctrico Interconectado Nacional (SEIN) | B10: =+Historico!O10 -> 1 | C10: =ROUND(S10*AD10+T10*AE10+U10*AF10+V10*AG10+W10*AH10+X10*AI10,4) -> 1 | D10: =+C10/B10-1 -> 0 | F10: =IF(AND(DAY(F5)=1,MONTH(F5)=5),C8,IF(IF(Resumen!$G$6="Ft-1",B10,C10)=0,"",IF(Resumen!$G$6="Ft-1",B10,C10))) -> 1 | G10: 1 | O10: SEIN (Energía) | S10: 0.111 | T10: 0 | U10: 0 | V10: 0 | W10: 0.889 | X10: 0 | Z10: SEIN (Energía) | AD10: =AO10/BW10 -> 1 | AE10: 0 | AF10: =AQ10/BY10 -> 0.9399624765 | AG10: =AR10/BZ10 -> 0.9743223966 | AH10: =AS10/CA10 -> 0.9999872222 | AI10: =AT10/CB10 -> 0.9946541217 | AK10: SEIN (Energía) | AO10: =DC8 -> 2.809 | AP10: 0 | AQ10: =(DF20+DH20) -> 10.02 | AR10: 6.83 | AS10: =DD8 -> 7.826 | AT10: =(DE8*DC8) -> 261.32127 | BS10: SEIN (Energía) | BW10: =DC7 -> 2.809 | BX10: 0 | BY10: =(DB12+DD12) -> 10.66 | BZ10: =(DC12+DE12) -> 7.01 | CA10: =DD7 -> 7.8261 | CB10: =(DE7*DC7) -> 262.72577 | CZ10: Valores Base de combustibles
A11: =Historico!A11 -> Sistemas Aislados | F11: =IF(IF(Resumen!$G$6="Ft-1",B11,C11)=0,"",IF(Resumen!$G$6="Ft-1",B11,C11)) ->  | G11: 1 | O11: SISTEMAS AISLADOS | Z11: SISTEMAS AISLADOS | AK11: SISTEMAS AISLADOS | BS11: SISTEMAS AISLADOS | CZ11: Sistema | DA11: Punto de venta | DB11: D2 (S/./gl) | DC11: R6 (S/./gl) | DD11: ISC_D2(S/./Galón) | DE11: ISC_R6 (S/./Galón)
A12: =Historico!A12 -> Adinelsa | B12: =+Historico!O12 -> 1 | C12: =ROUND(S12*AD12+T12*AE12+U12*AF12+V12*AG12+W12*AH12+X12*AI12,4) -> 1.0005 | D12: 0.0005 | F12: =IF(AND(DAY($F$5)=1,MONTH($F$5)=5),$C$8,IF(IF(Resumen!$G$7="Ft-1",B12,C12)=0,"",IF(Resumen!$G$7="Ft-1",B12,C12))) -> 1.0005 | G12: 0 | O12: Adinelsa | R12: G3 | S12: 0.1374 | T12: 0.8626 | U12: 0 | V12: 0 | W12: 0 | X12: 0 | Z12: Adinelsa | AC12: G3 | AD12: =AO12/BW12 -> 1 | AE12: =AP12/BX12 -> 1.000589148 | AF12: 0 | AG12: 0 | AH12: 0 | AI12: 0 | AK12: Adinelsa | AN12: G3 | AO12: =DC8 -> 2.809 | AP12: =DB8 -> 212.8755683 | AQ12: 0 | AR12: 0 | AS12: 0 | AT12: 0 | BS12: Adinelsa | BV12: G3 | BW12: =DC7 -> 2.809 | BX12: =DB7 -> 212.7502269 | BY12: 0 | BZ12: 0 | CA12: 0 | CB12: 0 | CZ12: SEIN | DA12: Lima (Callao) | DB12: 9.65 | DC12: 6.62 | DD12: 1.01 | DE12: 0.39
A13: =Historico!A13 -> Chavimochic | B13: =+Historico!O13 -> 1 | C13: 1.0005 | D13: 0.0005 | F13: =IF(AND(DAY($F$5)=1,MONTH($F$5)=5),$C$8,IF(IF(Resumen!$G$7="Ft-1",B13,C13)=0,"",IF(Resumen!$G$7="Ft-1",B13,C13))) -> 1.0005 | G13: 0 | O13: Chavimochic | R13: G3 | S13: 0.1374 | T13: 0.8626 | U13: 0 | V13: 0 | W13: 0 | X13: 0 | Z13: Chavimochic | AC13: G3 | AD13: 1 | AE13: 1.000589148 | AF13: 0 | AG13: 0 | AH13: 0 | AI13: 0 | AK13: Chavimochic | AN13: G3 | AO13: =DC8 -> 2.809 | AP13: =DB8 -> 212.8755683 | AQ13: 0 | AR13: 0 | AS13: 0 | AT13: 0 | BS13: Chavimochic | BV13: G3 | BW13: =DC7 -> 2.809 | BX13: =DB7 -> 212.7502269 | BY13: 0 | BZ13: 0 | CA13: 0 | CB13: 0 | CZ13: G1 - Electronorte | DA13: Callao | DB13: 9.54 | DD13: 1.2
A14: =Historico!A14 -> Edelnor | B14: =+Historico!O14 -> 1 | C14: 1.0005 | D14: =+C14/B14-1 -> 0.0005 | F14: =IF(AND(DAY($F$5)=1,MONTH($F$5)=5),$C$8,IF(IF(Resumen!$G$7="Ft-1",B14,C14)=0,"",IF(Resumen!$G$7="Ft-1",B14,C14))) -> 1.0005 | G14: 0 | O14: Edelnor | R14: G3 | S14: 0.1374 | T14: 0.8626 | U14: 0 | V14: 0 | W14: 0 | X14: 0 | Z14: Edelnor | AC14: G3 | AD14: 1 | AE14: 1.000589148 | AF14: 0 | AG14: 0 | AH14: 0 | AI14: 0 | AK14: Edelnor | AN14: G3 | AO14: =DC8 -> 2.809 | AP14: =DB8 -> 212.8755683 | AQ14: 0 | AR14: 0 | AS14: 0 | AT14: 0 | BS14: Edelnor | BV14: G3 | BW14: =DC7 -> 2.809 | BX14: =DB7 -> 212.7502269 | BY14: 0 | BZ14: 0 | CA14: 0 | CB14: 0 | CZ14: G2 - Electro Oriente | DA14: Iquitos | DB14: 9.79 | DC14: 7.68 | DD14: 0 | DE14: 0
A15: =Historico!A15 -> Eilhicha | B15: =+Historico!O15 -> 1 | C15: 1.0005 | D15: 0.0005 | F15: =IF(AND(DAY($F$5)=1,MONTH($F$5)=5),$C$8,IF(IF(Resumen!$G$7="Ft-1",B15,C15)=0,"",IF(Resumen!$G$7="Ft-1",B15,C15))) -> 1.0005 | G15: 0 | O15: Eilhicha | R15: G3 | S15: 0.1374 | T15: 0.8626 | U15: 0 | V15: 0 | W15: 0 | X15: 0 | Z15: Eilhicha | AC15: G3 | AD15: 1 | AE15: 1.000589148 | AF15: 0 | AG15: 0 | AH15: 0 | AI15: 0 | AK15: Eilhicha | AN15: G3 | AO15: =DC8 -> 2.809 | AP15: =DB8 -> 212.8755683 | AQ15: 0 | AR15: 0 | AS15: 0 | AT15: 0 | BS15: Eilhicha | BV15: G3 | BW15: =DC7 -> 2.809 | BX15: =DB7 -> 212.7502269 | BY15: 0 | BZ15: 0 | CA15: 0 | CB15: 0 | CZ15: G3 - Hidrandina, Seal | DA15: Callao | DB15: 9.54 | DD15: 1.2
A16: =Historico!A16 -> Electro Oriente | B16: =+Historico!O16 -> 1 | C16: =ROUND(S16*AD16+T16*AE16+U16*AF16+V16*AG16+W16*AH16+X16*AI16,4) -> 0.9999 | D16: =+C16/B16-1 -> -0.0001 | F16: =IF(AND(DAY($F$5)=1,MONTH($F$5)=5),$C$8,IF(IF(Resumen!$G$7="Ft-1",B16,C16)=0,"",IF(Resumen!$G$7="Ft-1",B16,C16))) -> 0.9999 | G16: 0 | O16: Electro Oriente | R16: G2 | S16: 0.1113 | T16: 0.1274 | U16: 0.0854 | V16: 0.6759 | W16: 0 | X16: 0 | Z16: Electro Oriente | AC16: G2 | AD16: 1 | AE16: =AP16/BX16 -> 1.000589148 | AF16: =AQ16/BY16 -> 0.9979570991 | AG16: =AR16/BZ16 -> 1 | AH16: 0 | AI16: 0 | AK16: Electro Oriente | AN16: G2 | AO16: =DC8 -> 2.809 | AP16: =DB8 -> 212.8755683 | AQ16: =(DF22+DH22) -> 9.77 | AR16: =(DG22+DI22) -> 7.68 | AS16: 0 | AT16: 0 | BS16: Electro Oriente | BV16: G2 | BW16: =DC7 -> 2.809 | BX16: =DB7 -> 212.7502269 | BY16: =(DB14+DD14) -> 9.79 | BZ16: =(DC14+DE14) -> 7.68 | CA16: 0 | CB16: 0 | CZ16: G4 - Electro Sur Este | DA16: Cusco | DB16: 10.05 | DD16: 1.01
A17: =Historico!A17 -> Electro Sur Este | B17: =+Historico!O17 -> 1 | C17: 0.9984 | D17: -0.0016 | F17: =IF(AND(DAY($F$5)=1,MONTH($F$5)=5),$C$8,IF(IF(Resumen!$G$7="Ft-1",B17,C17)=0,"",IF(Resumen!$G$7="Ft-1",B17,C17))) -> 0.9984 | G17: 0 | O17: Electro Sur Este | R17: G4 | S17: 0.01 | T17: 0.0724 | U17: 0.9176 | V17: 0 | W17: 0 | X17: 0 | Z17: Electro Sur Este | AC17: G4 | AD17: 1 | AE17: =AP17/BX17 -> 1.000589148 | AF17: =AQ17/BY17 -> 0.9981916817 | AG17: 0 | AH17: 0 | AI17: 0 | AK17: Electro Sur Este | AN17: G4 | AO17: =DC8 -> 2.809 | AP17: =DB8 -> 212.8755683 | AQ17: =(DF24+DH24) -> 11.04 | AR17: 0 | AS17: 0 | AT17: 0 | BS17: Electro Sur Este | BV17: G4 | BW17: =DC7 -> 2.809 | BX17: =DB7 -> 212.7502269 | BY17: =(DB16+DD16) -> 11.06 | BZ17: 0 | CA17: 0 | CB17: 0
A18: =Historico!A18 -> Electro Ucayali | B18: =+Historico!O18 -> 1 | C18: 1.0005 | D18: 0.0005 | F18: =IF(AND(DAY($F$5)=1,MONTH($F$5)=5),$C$8,IF(IF(Resumen!$G$7="Ft-1",B18,C18)=0,"",IF(Resumen!$G$7="Ft-1",B18,C18))) -> 1.0005 | G18: 0 | O18: Electro Ucayali | R18: G3 | S18: 0.1374 | T18: 0.8626 | U18: 0 | V18: 0 | W18: 0 | X18: 0 | Z18: Electro Ucayali | AC18: G3 | AD18: 1 | AE18: 1.000589148 | AF18: 0 | AG18: 0 | AH18: 0 | AI18: 0 | AK18: Electro Ucayali | AN18: G3 | AO18: =DC8 -> 2.809 | AP18: =DB8 -> 212.8755683 | AQ18: 0 | AR18: 0 | AS18: 0 | AT18: 0 | BS18: Electro Ucayali | BV18: G3 | BW18: =DC7 -> 2.809 | BX18: =DB7 -> 212.7502269 | BY18: 0 | BZ18: 0 | CA18: 0 | CB18: 0 | CZ18: Valores Actuales de Combustibles | DB18: PPVn - Lista Petroperú | DD18: Precios de referencia OSINERGMIN | DF18: Los Menores | DH18: ISC
A19: =Historico!A19 -> Electronorte | B19: =+Historico!O19 -> 1 | C19: =ROUND(S19*AD19+T19*AE19+U19*AF19+V19*AG19+W19*AH19+X19*AI19,4) -> 0.992 | D19: =+C19/B19-1 -> -0.008 | F19: =IF(AND(DAY($F$5)=1,MONTH($F$5)=5),$C$8,IF(IF(Resumen!$G$7="Ft-1",B19,C19)=0,"",IF(Resumen!$G$7="Ft-1",B19,C19))) -> 0.992 | G19: 0 | O19: Electronorte | R19: G1 | S19: 0.0978 | T19: 0.5917 | U19: 0.3105 | V19: 0 | W19: 0 | X19: 0 | Z19: Electronorte | AC19: G1 | AD19: =AO19/BW20 -> 1 | AE19: 1.000589148 | AF19: =AQ19/BY20 -> 0.9729981378 | AG19: 0 | AH19: 0 | AI19: 0 | AK19: Electronorte | AN19: G1 | AO19: =DC8 -> 2.809 | AP19: =DB8 -> 212.8755683 | AQ19: =(DF21+DH21) -> 10.45 | AR19: 0 | AS19: 0 | AT19: 0 | BS19: Electrocentro | BV19: G3 | BW19: =DC7 -> 2.809 | BX19: =DB7 -> 212.7502269 | BY19: 0 | BZ19: 0 | CA19: 0 | CB19: 0 | CZ19: Sistema | DA19: Punto de venta | DB19: D2 (S/./gl) | DC19: R6 (S/./gl) | DD19: D2 (S/./gl) | DE19: R6 (S/./gl) | DF19: D2 (S/./gl) | DG19: R6 (S/./gl) | DH19: ISC_D2 (S/./Galón) | DI19: ISC_R6 (S/./Galón)
A20: =Historico!A20 -> Hidrandina | B20: =+Historico!O20 -> 1 | C20: =ROUND(S20*AD20+T20*AE20+U20*AF20+V20*AG20+W20*AH20+X20*AI20,4) -> 0.9819 | D20: =+C20/B20-1 -> -0.0181 | F20: =IF(AND(DAY($F$5)=1,MONTH($F$5)=5),$C$8,IF(IF(Resumen!$G$7="Ft-1",B20,C20)=0,"",IF(Resumen!$G$7="Ft-1",B20,C20))) -> 0.9819 | G20: 0 | O20: Hidrandina | R20: G3 | S20: 0.0509 | T20: 0.2719 | U20: 0.6772 | V20: 0 | W20: 0 | X20: 0 | Z20: Hidrandina | AC20: G3 | AD20: 1 | AE20: 1.000589148 | AF20: =AQ20/BY21 -> 0.9729981378 | AG20: 0 | AH20: 0 | AI20: 0 | AK20: Hidrandina | AN20: G3 | AO20: =DC8 -> 2.809 | AP20: =DB8 -> 212.8755683 | AQ20: =(DF23+DH23) -> 10.45 | AR20: 0 | AS20: 0 | AT20: 0 | BS20: Electronorte | BV20: G1 | BW20: =DC7 -> 2.809 | BX20: =DB7 -> 212.7502269 | BY20: =(DB13+DD13) -> 10.74 | BZ20: 0 | CA20: 0 | CB20: 0 | CZ20: SEIN | DA20: Lima (Callao) | DB20: =+COMBUSTIBLES!C6 -> 9.5 | DC20: =+COMBUSTIBLES!D6 -> 6.72 | DD20: =+COMBUSTIBLES!E6 -> 9.01 | DE20: =+COMBUSTIBLES!F6 -> 6.44 | DF20: =+COMBUSTIBLES!G6 -> 9.01 | DG20: =+COMBUSTIBLES!H6 -> 6.44 | DH20: =+COMBUSTIBLES!I6 -> 1.01 | DI20: =+COMBUSTIBLES!J6 -> 0.39
A21: =Historico!A21 -> Seal | B21: =+Historico!O21 -> 1 | C21: =ROUND(S21*AD21+T21*AE21+U21*AF21+V21*AG21+W21*AH21+X21*AI21,4) -> 0.9849 | D21: =+C21/B21-1 -> -0.0151 | F21: =IF(AND(DAY($F$5)=1,MONTH($F$5)=5),$C$8,IF(IF(Resumen!$G$7="Ft-1",B21,C21)=0,"",IF(Resumen!$G$7="Ft-1",B21,C21))) -> 0.9849 | G21: 0 | O21: Seal | R21: G3 | S21: 0.0649 | T21: 0.3671 | U21: 0.568 | V21: 0 | W21: 0 | X21: 0 | Z21: Seal | AC21: G3 | AD21: 1 | AE21: 1.000589148 | AF21: 0.9729981378 | AG21: 0 | AH21: 0 | AI21: 0 | AK21: Seal | AN21: G3 | AO21: =DC8 -> 2.809 | AP21: =DB8 -> 212.8755683 | AQ21: =(DF23+DH23) -> 10.45 | AR21: 0 | AS21: 0 | AT21: 0 | BS21: Hidrandina | BV21: G3 | BW21: =DC7 -> 2.809 | BX21: =DB7 -> 212.7502269 | BY21: =(DB15+DD15) -> 10.74 | BZ21: 0 | CA21: 0 | CB21: 0 | CZ21: G1 - Electronorte | DA21: Callao | DB21: =+COMBUSTIBLES!C7 -> 9.25 | DF21: =+COMBUSTIBLES!G7 -> 9.25 | DH21: =+COMBUSTIBLES!I7 -> 1.2
F22: =IF(AND(DAY($F$5)=1,MONTH($F$5)=5),$C$8,IF(IF(Resumen!$G$7="Ft-1",B22,C22)=0,"",IF(Resumen!$G$7="Ft-1",B22,C22))) ->  | G22: 1 | BS22: Seal | BV22: G3 | BW22: =DC7 -> 2.809 | BX22: =DB7 -> 212.7502269 | BY22: =(DB15+DD15) -> 10.74 | BZ22: 0 | CA22: 0 | CB22: 0 | CZ22: G2 - Electro Oriente | DA22: Iquitos | DB22: =+COMBUSTIBLES!C8 -> 9.77 | DC22: =+COMBUSTIBLES!D8 -> 7.68 | DF22: =+COMBUSTIBLES!G8 -> 9.77 | DG22: =+COMBUSTIBLES!H8 -> 7.68
A23: =Historico!A23 -> FA_PNG (Res. 085-2014-OS/CD) | B23: =+Historico!O23 -> 1 | C23: 1 | D23: =IF(OR(MONTH(C5)=2,MONTH(C5)=5,MONTH(C5)=8,MONTH(C5)=11),C23/1-1,C23/B23-1) -> 0 | F23: =IF(AND(OR(MONTH(C5)=2,MONTH(C5)=5,MONTH(C5)=8,MONTH(C5)=11),Resumen!$G$8="Ft-1"),1,IF(Resumen!$G$8="Ft-1",B23,C23)) -> 1 | G23: 1 | CZ23: G3 - Hidrandina, Seal | DA23: Callao | DB23: =+COMBUSTIBLES!C9 -> 9.25 | DF23: =+COMBUSTIBLES!G9 -> 9.25 | DH23: =+COMBUSTIBLES!I9 -> 1.2
A24: =Historico!A24 -> FIGV (Res.182-2009-OS/CD) | B24: =+Historico!O24 -> 1.18 | C24: =B24 -> 1.18 | D24: =+C24/B24-1 -> 0 | F24: =C24 -> 1.18 | G24: 1 | CZ24: G4 - Electro Sur Este | DA24: Cusco | DB24: =+COMBUSTIBLES!C10 -> 10.03 | DF24: =+COMBUSTIBLES!G10 -> 10.03 | DH24: =+COMBUSTIBLES!I10 -> 1.01
A25: =Historico!A25 ->  | F25: =IF(AND(DAY(F5)=1,MONTH(F5)=5),C8,IF(IF(Resumen!$G$7="Ft-1",B25,C25)=0,"",IF(Resumen!$G$7="Ft-1",B25,C25))) ->  | G25: 1
A26: =Historico!A26 -> B.1. TRANSMISIÓN PRINCIPAL - PEAJES (Res. 053, 066, 077, 135, 160-2013-OS/CD, 067-2014-OS/CD) | B26: =+Historico!O26 ->  | F26: =IF(AND(DAY($F$5)=1,MONTH($F$5)=5),$C$8,IF(IF(Resumen!$G$9="Ft-1",B26,C26)=0,"",IF(Resumen!$G$9="Ft-1",B26,C26))) ->  | G26: 1 | O26: T.Principal (Ponderadores) | S26: FTCtp | T26: FPMtp | U26: FPALtp | V26: FPCUtp | Z26: T.Principal (Componentes) | AD26: FTCtp | AE26: FPMtp | AF26: FPALtp | AG26: FPCUtp | AK26: T.Principal (V.actuales) | AO26: FTCtp | AP26: FPMtp | AQ26: FPALtp | AR26: FPCUtp | BS26: T.Principal (V.Resolución) | BW26: FTCtp | BX26: FPMtp | BY26: FPALtp | BZ26: FPCUtp | CZ26: Indicadores Macroeconómicos de la Transmision Principal (Parte 2)
A27: Sistema Principal de Transmisión | F27: =IF(AND(DAY($F$5)=1,MONTH($F$5)=5),$C$8,IF(IF(Resumen!$G$9="Ft-1",B27,C27)=0,"",IF(Resumen!$G$9="Ft-1",B27,C27))) ->  | G27: 1 | S27: l | T27: m | U27: n | V27: o | AD27: l | AE27: m | AF27: n | AG27: o | AH27: p | AO27: l | AP27: m | AQ27: n | AR27: o | BW27: l | BX27: m | BY27: n | BZ27: o | CA27: p | DA27: Fuente | DB27: IPM | DC27: TC (S/./US$) | DD27: Pcu (ctv. US$/lb) | DE27: Pal
A28: =Historico!A28 -> SPT de REP | B28: =+Historico!O28 -> 1 | C28: =IF(N28="*",0,ROUND(S28*AD28+T28*AE28+U28*AF28+V28*AG28+AH28,4)) -> 1 | D28: =IF(ISERR(C28/B28-1),0,C28/B28-1) -> 0 | F28: =IF(N28="**",C28,IF(AND(DAY($F$5)=1,MONTH($F$5)=5),$C$8,IF(IF(Resumen!$G$9="Ft-1",B28,C28)=0,0,IF(Resumen!$G$9="Ft-1",B28,C28)))) -> 1 | G28: 1 | O28: SPT de REP | S28: 1 | T28: 0 | U28: 0 | V28: 0 | Z28: SPT de REP | AD28: =AO28/BW28 -> 1 | AE28: 0 | AF28: 0 | AG28: 0 | AH28: 0 | AK28: SPT de REP | AO28: =DC29 -> 2.809 | AP28: 0 | AQ28: 0 | AR28: 0 | BS28: SPT de REP | BW28: =DC28 -> 2.809 | BX28: 0 | BY28: 0 | BZ28: 0 | CA28: 0 | CZ28: Valores Base | DA28: Resolucion Base | DB28: 212.7502269 | DC28: 2.809 | DD28: 359.328 | DE28: 2010.418
A29: =Historico!A29 -> SPT de San Gabán | B29: =+Historico!O29 -> 1 | C29: 1.0002 | D29: 0.0002 | F29: =IF(N29="**",C29,IF(AND(DAY($F$5)=1,MONTH($F$5)=5),$C$8,IF(IF(Resumen!$G$9="Ft-1",B29,C29)=0,0,IF(Resumen!$G$9="Ft-1",B29,C29)))) -> 1 | G29: 1 | O29: SPT de San Gabán | S29: 0.4773 | T29: 0.5213 | U29: 0 | V29: 0.0014 | Z29: SPT de San Gabán | AD29: =AO29/BW29 -> 1 | AE29: 1.000589148 | AF29: 0 | AG29: =AR29/BZ29 -> 0.8967480037 | AH29: 0 | AK29: SPT de San Gabán | AO29: =DC29 -> 2.809 | AP29: =DB29 -> 212.8755683 | AQ29: 0 | AR29: =DD29 -> 322.2266667 | BS29: SPT de San Gabán | BW29: =DC28 -> 2.809 | BX29: =DB28 -> 212.7502269 | BY29: 0 | BZ29: =DD28 -> 359.328 | CA29: 0 | CZ29: Valores Actuales | DA29: Indicador actualizado | DB29: =+'ALUMINIO-COBRE-TC-IPM'!G8 -> 212.8755683 | DC29: =+'ALUMINIO-COBRE-TC-IPM'!F8 -> 2.809 | DD29: =+'ALUMINIO-COBRE-TC-IPM'!E8 -> 322.2266667 | DE29: =+'ALUMINIO-COBRE-TC-IPM'!D8 -> 1773.359558
A30: =Historico!A30 -> SPT de Antamina | B30: =+Historico!O30 -> 1 | C30: 0.9997 | D30: -0.0003 | F30: =IF(N30="**",C30,IF(AND(DAY($F$5)=1,MONTH($F$5)=5),$C$8,IF(IF(Resumen!$G$9="Ft-1",B30,C30)=0,0,IF(Resumen!$G$9="Ft-1",B30,C30)))) -> 1 | G30: 1 | O30: SPT de Antamina | S30: 0.5257 | T30: 0.4689 | U30: 0 | V30: 0.0054 | Z30: SPT de Antamina | AD30: 1 | AE30: 1.000589148 | AF30: 0 | AG30: 0.8967480037 | AH30: 0 | AK30: SPT de Antamina | AO30: =DC29 -> 2.809 | AP30: =DB29 -> 212.8755683 | AQ30: 0 | AR30: =DD29 -> 322.2266667 | BS30: SPT de Antamina | BW30: =DC28 -> 2.809 | BX30: =DB28 -> 212.7502269 | BY30: 0 | BZ30: =DD28 -> 359.328 | CA30: 0
A31: =Historico!A31 -> SPT de Eteselva | B31: =+Historico!O31 -> 1 | C31: 0.9846 | D31: -0.0154 | F31: =IF(N31="**",C31,IF(AND(DAY($F$5)=1,MONTH($F$5)=5),$C$8,IF(IF(Resumen!$G$9="Ft-1",B31,C31)=0,0,IF(Resumen!$G$9="Ft-1",B31,C31)))) -> 1 | G31: 1 | O31: SPT de Eteselva | S31: 0.4975 | T31: 0.3691 | U31: 0.1262 | V31: 0.0072 | Z31: SPT de Eteselva | AD31: 1 | AE31: 1.000589148 | AF31: =AQ31/BY31 -> 0.8820849981 | AG31: 0.8967480037 | AH31: 0 | AK31: SPT de Eteselva | AO31: =DC29 -> 2.809 | AP31: =DB29 -> 212.8755683 | AQ31: =DE29 -> 1773.359558 | AR31: =DD29 -> 322.2266667 | BS31: SPT de Eteselva | BW31: =DC28 -> 2.809 | BX31: =DB28 -> 212.7502269 | BY31: =DE28 -> 2010.418 | BZ31: =DD28 -> 359.328 | CA31: 0
A32: =Historico!A32 -> SPT de Redesur | B32: =+Historico!O32 -> 1 | C32: =IF(N32="*",0,ROUND(S32*AD32+T32*AE32+U32*AF32+V32*AG32+AH32,4)) -> 1 | D32: 0 | F32: =IF(N32="**",C32,IF(AND(DAY($F$5)=1,MONTH($F$5)=5),$C$8,IF(IF(Resumen!$G$9="Ft-1",B32,C32)=0,0,IF(Resumen!$G$9="Ft-1",B32,C32)))) -> 1 | G32: 1 | O32: SPT de Redesur | S32: 1 | T32: 0 | U32: 0 | V32: 0 | Z32: SPT de Redesur | AD32: 1 | AE32: 0 | AF32: 0 | AG32: 0 | AH32: 0 | AK32: SPT de Redesur | AO32: =DC29 -> 2.809 | AP32: 0 | AQ32: 0 | AR32: 0 | BS32: SPT de Redesur | BW32: =DC28 -> 2.809 | BX32: 0 | BY32: 0 | BZ32: 0 | CA32: 0
A33: =Historico!A33 -> SPT de Transmantaro | B33: =+Historico!O33 -> 1 | C33: 1 | D33: 0 | F33: =IF(N33="**",C33,IF(AND(DAY($F$5)=1,MONTH($F$5)=5),$C$8,IF(IF(Resumen!$G$9="Ft-1",B33,C33)=0,0,IF(Resumen!$G$9="Ft-1",B33,C33)))) -> 1 | G33: 1 | O33: SPT de Transmantaro | S33: 1 | T33: 0 | U33: 0 | V33: 0 | Z33: SPT de Transmantaro | AD33: 1 | AE33: 0 | AF33: 0 | AG33: 0 | AH33: 0 | AK33: SPT de Transmantaro | AO33: =DC29 -> 2.809 | AP33: 0 | AQ33: 0 | AR33: 0 | BS33: SPT de Transmantaro | BW33: =DC28 -> 2.809 | BX33: 0 | BY33: 0 | BZ33: 0 | CA33: 0
A34: =Historico!A34 -> SPT de ISA | B34: =+Historico!O34 -> 1 | C34: 1 | D34: 0 | F34: =IF(N34="**",C34,IF(AND(DAY($F$5)=1,MONTH($F$5)=5),$C$8,IF(IF(Resumen!$G$9="Ft-1",B34,C34)=0,0,IF(Resumen!$G$9="Ft-1",B34,C34)))) -> 1 | G34: 1 | O34: SPT de ISA | S34: 1 | T34: 0 | U34: 0 | V34: 0 | Z34: SPT de ISA | AD34: =AO34/BW34 -> 1 | AE34: 0 | AF34: 0 | AG34: 0 | AH34: 0 | AK34: SPT de ISA | AO34: =DC29 -> 2.809 | AP34: 0 | AQ34: 0 | AR34: 0 | BS34: SPT de ISA | BW34: =DC28 -> 2.809 | BX34: 0 | BY34: 0 | BZ34: 0 | CA34: 0
A35: Ampliación N° 1 del SPT de ISA | B35: =+Historico!O35 -> 1 | C35: =IF(N35="*",0,ROUND(S35*AD35+T35*AE35+U35*AF35+V35*AG35+AH35,4)) -> 1 | D35: =IF(ISERR(C35/B35-1),0,C35/B35-1) -> 0 | F35: =IF(N35="**",C35,IF(AND(DAY($F$5)=1,MONTH($F$5)=5),$C$8,IF(IF(Resumen!$G$9="Ft-1",B35,C35)=0,0,IF(Resumen!$G$9="Ft-1",B35,C35)))) -> 1 | G35: 1 | O35: Ampliación N° 1 del SPT de ISA | S35: 1 | T35: 0 | U35: 0 | V35: 0 | Z35: Ampliación N° 1 del SPT de ISA | AD35: 1 | AE35: 0 | AF35: 0 | AG35: 0 | AH35: 0 | AK35: Ampliación N° 1 del SPT de ISA | AO35: =DC29 -> 2.809 | AP35: 0 | AQ35: 0 | AR35: 0 | BS35: Ampliación N° 1 del SPT de ISA | BW35: =DC28 -> 2.809 | BX35: 0 | BY35: 0 | BZ35: 0 | CA35: 0
A36: Ampliación N° 2 del SPT de ISA (2) | B36: =+Historico!O36 -> 0 | C36: =IF(N36="*",0,ROUND(S36*AD36+T36*AE36+U36*AF36+V36*AG36+AH36,4)) -> 0 | D36: =IF(ISERR(C36/B36-1),0,C36/B36-1) -> 0 | F36: =IF(N36="**",C36,IF(AND(DAY($F$5)=1,MONTH($F$5)=5),$C$8,IF(IF(Resumen!$G$9="Ft-1",B36,C36)=0,0,IF(Resumen!$G$9="Ft-1",B36,C36)))) -> 0 | G36: 1 | N36: * | O36: Ampliación N° 2 del SPT de ISA (2) | S36: 1 | T36: 0 | U36: 0 | V36: 0 | Z36: Ampliación N° 2 del SPT de ISA (2) | AD36: =AO36/BW36 -> 1 | AE36: 0 | AF36: 0 | AG36: 0 | AH36: 0 | AK36: Ampliación N° 2 del SPT de ISA (2) | AO36: =DC29 -> 2.809 | AP36: 0 | AQ36: 0 | AR36: 0 | BS36: Ampliación N° 2 del SPT de ISA (2) | BW36: =DC28 -> 2.809 | BX36: 0 | BY36: 0 | BZ36: 0 | CA36: 0
A37: =Historico!A37 -> Cargo por Garantía (SGT) | B37: =+Historico!O37 ->  | F37: =IF(N37="**",C37,IF(AND(DAY($F$5)=1,MONTH($F$5)=5),$C$8,IF(IF(Resumen!$G$9="Ft-1",B37,C37)=0,0,IF(Resumen!$G$9="Ft-1",B37,C37)))) ->  | G37: 1 | O37: Cargo por Garantía (SGT) | Z37: Cargo por Garantía (SGT) | AK37: Cargo por Garantía (SGT) | BS37: Cargo por Garantía (SGT)
A38: =Historico!A38 -> Línea Chilca -Zapallal (Tramos 1 y 2) | B38: =+Historico!O38 -> 1 | C38: =ROUND(S38*AD38+T38*AE38+U38*AF38+V38*AG38+AH38,4) -> 1 | D38: 0 | F38: =IF(N38="**",C38,IF(AND(DAY($F$5)=1,MONTH($F$5)=5),$C$8,IF(IF(Resumen!$G$9="Ft-1",B38,C38)=0,0,IF(Resumen!$G$9="Ft-1",B38,C38)))) -> 1 | G38: 1 | O38: Línea Chilca -Zapallal (Tramos 1 y 2) | S38: 1 | T38: 0 | U38: 0 | V38: 0 | Z38: Línea Chilca -Zapallal (Tramos 1 y 2) | AD38: =AO38/BW38 -> 1 | AE38: 0 | AF38: 0 | AG38: 0 | AH38: 0 | AK38: Línea Chilca -Zapallal (Tramos 1 y 2) | AO38: =DC29 -> 2.809 | AP38: 0 | AQ38: 0 | AR38: 0 | BS38: Línea Chilca -Zapallal (Tramos 1 y 2) | BW38: =DC28 -> 2.809 | BX38: 0 | BY38: 0 | BZ38: 0 | CA38: 0
A39: =Historico!A39 -> Líneas Carhuamayo - Cajamarca 220 kV (Tramos 1, 2, 3 y4) y SVC-Cajamarca | F39: =IF(N37="**",C39,IF(AND(DAY($F$5)=1,MONTH($F$5)=5),$C$8,IF(IF(Resumen!$G$9="Ft-1",B39,C39)=0,0,IF(Resumen!$G$9="Ft-1",B39,C39)))) ->  | G39: 1 | O39: Líneas Carhuamayo - Cajamarca 220 kV (Tramos 1, 2, 3 y4) y SVC-Cajamarca | Z39: Líneas Carhuamayo - Cajamarca 220 kV (Tramos 1, 2, 3 y4) y SVC-Cajamarca | AK39: Líneas Carhuamayo - Cajamarca 220 kV (Tramos 1, 2, 3 y4) y SVC-Cajamarca | BS39: Líneas Carhuamayo - Cajamarca 220 kV (Tramos 1, 2, 3 y4) y SVC-Cajamarca
A40: =Historico!A40 -> LT 220 kV Carhuaquero-Paragsha y subestaciones asociadas – Tramo 1 | B40: =+Historico!O40 -> 1 | C40: =ROUND(S40*AD40+T40*AE40+U40*AF40+V40*AG40+AH40,4) -> 1 | D40: 0 | F40: =IF(N40="**",C40,IF(AND(DAY($F$5)=1,MONTH($F$5)=5),$C$8,IF(IF(Resumen!$G$9="Ft-1",B40,C40)=0,0,IF(Resumen!$G$9="Ft-1",B40,C40)))) -> 1 | G40: 1 | O40: LT 220 kV Carhuaquero-Paragsha y subestaciones asociadas – Tramo 1 | S40: 1 | T40: 0 | U40: 0 | V40: 0 | Z40: LT 220 kV Carhuaquero-Paragsha y subestaciones asociadas – Tramo 1 | AD40: 1 | AE40: 0 | AF40: 0 | AG40: 0 | AH40: 0 | AK40: LT 220 kV Carhuaquero-Paragsha y subestaciones asociadas – Tramo 1 | AO40: =DC29 -> 2.809 | AP40: 0 | AQ40: 0 | AR40: 0 | BS40: LT 220 kV Carhuaquero-Paragsha y subestaciones asociadas – Tramo 1 | BW40: =DC28 -> 2.809 | BX40: 0 | BY40: 0 | BZ40: 0 | CA40: 0
A41: =Historico!A41 -> L.T. Paragsha-Conococha y subestaciones asociadas – Tramo 2 | B41: =+Historico!O41 -> 1 | C41: 1 | D41: 0 | F41: =IF(N41="**",C41,IF(AND(DAY($F$5)=1,MONTH($F$5)=5),$C$8,IF(IF(Resumen!$G$9="Ft-1",B41,C41)=0,0,IF(Resumen!$G$9="Ft-1",B41,C41)))) -> 1 | G41: 1 | O41: L.T. Paragsha-Conococha y subestaciones asociadas – Tramo 2 | S41: 1 | T41: 0 | U41: 0 | V41: 0 | Z41: L.T. Paragsha-Conococha y subestaciones asociadas – Tramo 2 | AD41: 1 | AE41: 0 | AF41: 0 | AG41: 0 | AH41: 0 | AK41: L.T. Paragsha-Conococha y subestaciones asociadas – Tramo 2 | AO41: =DC29 -> 2.809 | AP41: 0 | AQ41: 0 | AR41: 0 | BS41: L.T. Paragsha-Conococha y subestaciones asociadas – Tramo 2 | BW41: =DC28 -> 2.809 | BX41: 0 | BY41: 0 | BZ41: 0 | CA41: 0
A42: =Historico!A42 -> Ampliación de la Subestación Cajamarca 220 kV – SVC | B42: =+Historico!O42 -> 1 | C42: 1 | D42: 0 | F42: =IF(N42="**",C42,IF(AND(DAY($F$5)=1,MONTH($F$5)=5),$C$8,IF(IF(Resumen!$G$9="Ft-1",B42,C42)=0,0,IF(Resumen!$G$9="Ft-1",B42,C42)))) -> 1 | G42: 1 | O42: Ampliación de la Subestación Cajamarca 220 kV – SVC | S42: 1 | T42: 0 | U42: 0 | V42: 0 | Z42: Ampliación de la Subestación Cajamarca 220 kV – SVC | AD42: 1 | AE42: 0 | AF42: 0 | AG42: 0 | AH42: 0 | AK42: Ampliación de la Subestación Cajamarca 220 kV – SVC | AO42: =DC29 -> 2.809 | AP42: 0 | AQ42: 0 | AR42: 0 | BS42: Ampliación de la Subestación Cajamarca 220 kV – SVC | BW42: =DC28 -> 2.809 | BX42: 0 | BY42: 0 | BZ42: 0 | CA42: 0
A43: =Historico!A43 -> LT 220 kV Conococha-Huallanca y subestaciones asociadas – Tramo 3 | B43: =+Historico!O43 -> 1 | C43: 1 | D43: 0 | F43: =IF(N43="**",C43,IF(AND(DAY($F$5)=1,MONTH($F$5)=5),$C$8,IF(IF(Resumen!$G$9="Ft-1",B43,C43)=0,0,IF(Resumen!$G$9="Ft-1",B43,C43)))) -> 1 | G43: 1 | O43: LT 220 kV Conococha-Huallanca y subestaciones asociadas – Tramo 3 | S43: 1 | T43: 0 | U43: 0 | V43: 0 | Z43: LT 220 kV Conococha-Huallanca y subestaciones asociadas – Tramo 3 | AD43: 1 | AE43: 0 | AF43: 0 | AG43: 0 | AH43: 0 | AK43: LT 220 kV Conococha-Huallanca y subestaciones asociadas – Tramo 3 | AO43: =DC29 -> 2.809 | AP43: 0 | AQ43: 0 | AR43: 0 | BS43: LT 220 kV Conococha-Huallanca y subestaciones asociadas – Tramo 3 | BW43: =DC28 -> 2.809 | BX43: 0 | BY43: 0 | BZ43: 0 | CA43: 0
A44: =Historico!A44 -> LT 220 kV Huallanca-Cajamarca y subestaciones asociadas - Tramo 4 | B44: =+Historico!O44 -> 1 | C44: 1 | D44: 0 | F44: =IF(N44="**",C44,IF(AND(DAY($F$5)=1,MONTH($F$5)=5),$C$8,IF(IF(Resumen!$G$9="Ft-1",B44,C44)=0,0,IF(Resumen!$G$9="Ft-1",B44,C44)))) -> 1 | G44: 1 | O44: LT 220 kV Huallanca-Cajamarca y subestaciones asociadas - Tramo 4 | S44: 1 | T44: 0 | U44: 0 | V44: 0 | Z44: LT 220 kV Huallanca-Cajamarca y subestaciones asociadas - Tramo 4 | AD44: =AO44/BW44 -> 1 | AE44: 0 | AF44: 0 | AG44: 0 | AH44: 0 | AK44: LT 220 kV Huallanca-Cajamarca y subestaciones asociadas - Tramo 4 | AO44: =DC29 -> 2.809 | AP44: 0 | AQ44: 0 | AR44: 0 | BS44: LT 220 kV Huallanca-Cajamarca y subestaciones asociadas - Tramo 4 | BW44: =DC28 -> 2.809 | BX44: 0 | BY44: 0 | BZ44: 0 | CA44: 0
A45: Línea Talara-Piura 220 kV (2do circuito) | B45: =+Historico!O45 -> 1 | C45: =IF(N45="*",0,ROUND(S45*AD45+T45*AE45+U45*AF45+V45*AG45+AH45,4)) -> 1 | D45: =IF(ISERR(C45/B45-1),0,C45/B45-1) -> 0 | F45: =IF(N45="**",C45,IF(AND(DAY($F$5)=1,MONTH($F$5)=5),$C$8,IF(IF(Resumen!$G$9="Ft-1",B45,C45)=0,0,IF(Resumen!$G$9="Ft-1",B45,C45)))) -> 1 | G45: 1 | O45: Línea Talara-Piura 220 kV (2do circuito) | S45: 1 | T45: 0 | U45: 0 | V45: 0 | Z45: Línea Talara-Piura 220 kV (2do circuito) | AD45: 1 | AE45: 0 | AF45: 0 | AG45: 0 | AH45: 0 | AK45: Línea Talara-Piura 220 kV (2do circuito) | AO45: =DC29 -> 2.809 | AP45: 0 | AQ45: 0 | AR45: 0 | BS45: Línea Talara-Piura 220 kV (2do circuito) | BW45: =DC28 -> 2.809 | BX45: 0 | BY45: 0 | BZ45: 0 | CA45: 0
A46: =Historico!A46 -> Línea Zapallal – Trujillo 500 kV | B46: =+Historico!O46 -> 1 | C46: =ROUND(S46*AD46+T46*AE46+U46*AF46+V46*AG46+AH46,4) -> 1 | D46: =IF(ISERR(C46/B46-1),0,C46/B46-1) -> 0 | F46: =IF(N46="**",C46,IF(AND(DAY($F$5)=1,MONTH($F$5)=5),$C$8,IF(IF(Resumen!$G$9="Ft-1",B46,C46)=0,0,IF(Resumen!$G$9="Ft-1",B46,C46)))) -> 1 | G46: 1 | O46: Línea Zapallal – Trujillo 500 kV | S46: 1 | T46: 0 | U46: 0 | V46: 0 | Z46: Línea Zapallal – Trujillo 500 kV | AD46: =AO46/BW46 -> 1 | AE46: 0 | AF46: 0 | AG46: 0 | AH46: 0 | AK46: Línea Zapallal – Trujillo 500 kV | AO46: =DC29 -> 2.809 | AP46: 0 | AQ46: 0 | AR46: 0 | BS46: Línea Zapallal – Trujillo 500 kV | BW46: =DC28 -> 2.809 | BX46: 0 | BY46: 0 | BZ46: 0 | CA46: 0
A47: Línea Pomacocha - Carhuamayo 220 kV | B47: =+Historico!O47 -> 1 | C47: =IF(N47="*",0,ROUND(S47*AD47+T47*AE47+U47*AF47+V47*AG47+AH47,4)) -> 1 | D47: =IF(ISERR(C47/B47-1),0,C47/B47-1) -> 0 | F47: =IF(N47="**",C47,IF(AND(DAY($F$5)=1,MONTH($F$5)=5),$C$8,IF(IF(Resumen!$G$9="Ft-1",B47,C47)=0,0,IF(Resumen!$G$9="Ft-1",B47,C47)))) -> 1 | G47: 1 | O47: Línea Pomacocha - Carhuamayo 220 kV | S47: 1 | T47: 0 | U47: 0 | V47: 0 | Z47: Línea Pomacocha - Carhuamayo 220 kV | AD47: 1 | AE47: 0 | AF47: 0 | AG47: 0 | AH47: 0 | AK47: Línea Pomacocha - Carhuamayo 220 kV | AO47: =DC29 -> 2.809 | AP47: 0 | AQ47: 0 | AR47: 0 | BS47: Línea Pomacocha - Carhuamayo 220 kV | BW47: =DC28 -> 2.809 | BX47: 0 | BY47: 0 | BZ47: 0 | CA47: 0
A48: Línea Socabaya - Tintaya 220 kV | B48: =+Historico!O48 -> 0 | C48: =IF(N48="*",0,ROUND(S48*AD48+T48*AE48+U48*AF48+V48*AG48+AH48,4)) -> 0 | D48: =IF(ISERR(C48/B48-1),0,C48/B48-1) -> 0 | F48: =IF(N48="**",C48,IF(AND(DAY($F$5)=1,MONTH($F$5)=5),$C$8,IF(IF(Resumen!$G$9="Ft-1",B48,C48)=0,0,IF(Resumen!$G$9="Ft-1",B48,C48)))) -> 0 | G48: 1 | N48: * | O48: Línea Socabaya - Tintaya 220 kV | S48: 1 | T48: 0 | U48: 0 | V48: 0 | Z48: Línea Socabaya - Tintaya 220 kV | AD48: 1 | AE48: 0 | AF48: 0 | AG48: 0 | AH48: 0 | AK48: Línea Socabaya - Tintaya 220 kV | AO48: =DC29 -> 2.809 | AP48: 0 | AQ48: 0 | AR48: 0 | BS48: Línea Socabaya - Tintaya 220 kV | BW48: =DC28 -> 2.809 | BX48: 0 | BY48: 0 | BZ48: 0 | CA48: 0
A49: Línea Chilca - Marcona - Montalvo 500 kV | B49: =+Historico!O49 -> 1 | C49: =IF(N49="*",0,(ROUND(S49*AD49+T49*AE49+U49*AF49+V49*AG49+AH49,4))) -> 1 | D49: 0 | F49: =IF(N49="**",C49,IF(AND(DAY($F$5)=1,MONTH($F$5)=5),$C$8,IF(IF(Resumen!$G$9="Ft-1",B49,C49)=0,0,IF(Resumen!$G$9="Ft-1",B49,C49)))) -> 1 | G49: 1 | O49: Línea Chilca - Marcona - Montalvo 500 kV | S49: 1 | T49: 0 | U49: 0 | V49: 0 | Z49: Línea Chilca - Marcona - Montalvo 500 kV | AD49: 1 | AE49: 0 | AF49: 0 | AG49: 0 | AH49: 0 | AK49: Línea Chilca - Marcona - Montalvo 500 kV | AO49: =DC29 -> 2.809 | AP49: 0 | AQ49: 0 | AR49: 0 | BS49: Línea Chilca - Marcona - Montalvo 500 kV | BW49: =DC28 -> 2.809 | BX49: 0 | BY49: 0 | BZ49: 0 | CA49: 0 | DF49: Resolución Barra 053-2014-OS/CD
A50: SGT Linea Trujillo - Chiclayo 500 KV (1) | B50: =+Historico!O50 -> 0 | C50: =IF(N50="*",0,(ROUND(S50*AD50+T50*AE50+U50*AF50+V50*AG50+AH50,4))) -> 0 | D50: =IF(ISERR(C50/B50-1),0,C50/B50-1) -> 0 | F50: =IF(N50="**",C50,IF(AND(DAY($F$5)=1,MONTH($F$5)=5),$C$8,IF(IF(Resumen!$G$9="Ft-1",B50,C50)=0,0,IF(Resumen!$G$9="Ft-1",B50,C50)))) -> 0 | G50: 1 | N50: * | O50: SGT Linea Trujillo - Chiclayo 500 KV (1) | S50: 1 | T50: 0 | U50: 0 | V50: 0 | Z50: SGT Linea Trujillo - Chiclayo 500 KV (1) | AD50: 1 | AE50: 0 | AF50: 0 | AG50: 0 | AH50: 0 | AK50: SGT Linea Trujillo - Chiclayo 500 KV (1) | AO50: =DC29 -> 2.809 | AP50: 0 | AQ50: 0 | AR50: 0 | BS50: SGT Linea Trujillo - Chiclayo 500 KV (1) | BW50: =DC28 -> 2.809 | BX50: 0 | BY50: 0 | BZ50: 0 | CA50: 0
A51: SGT Linea Machupicchu - Abancay - Cotaruse 220 kV (1) | B51: =+Historico!O51 -> 0 | C51: =IF(N51="*",0,(ROUND(S51*AD51+T51*AE51+U51*AF51+V51*AG51+AH51,4))) -> 0 | D51: =IF(ISERR(C51/B51-1),0,C51/B51-1) -> 0 | F51: =IF(N51="**",C51,IF(AND(DAY($F$5)=1,MONTH($F$5)=5),$C$8,IF(IF(Resumen!$G$9="Ft-1",B51,C51)=0,0,IF(Resumen!$G$9="Ft-1",B51,C51)))) -> 0 | G51: 1 | N51: * | O51: SGT Linea Machupicchu - Abancay - Cotaruse 220 kV (1) | S51: 1 | T51: 0 | U51: 0 | V51: 0 | Z51: SGT Linea Machupicchu - Abancay - Cotaruse 220 kV (1) | AD51: 1 | AE51: 0 | AF51: 0 | AG51: 0 | AH51: 0 | AK51: SGT Linea Machupicchu - Abancay - Cotaruse 220 kV (1) | AO51: =DC29 -> 2.809 | AP51: 0 | AQ51: 0 | AR51: 0 | BS51: SGT Linea Machupicchu - Abancay - Cotaruse 220 kV (1) | BW51: =DC28 -> 2.809 | BX51: 0 | BY51: 0 | BZ51: 0 | CA51: 0
A52: =Historico!A52 -> Cargo Unitario por Compensación por Seguridad de Suministro (CUCSS) | F52: =IF(AND(DAY($F$5)=1,MONTH($F$5)=5),$C$8,IF(IF(Resumen!$G$9="Ft-1",B52,C52)=0,"",IF(Resumen!$G$9="Ft-1",B52,C52))) ->  | G52: 1 | N52: (*) Significa que aún no entran en operación comercial efectiva. | CZ52: Multiplicativo del Factor "p", DP/428.904 | DB52: DP (Último Comunicado GART) | DC52: Denominador (por Res. Barra) | DF52: t-1
A53: =Historico!A53 -> No RF (No Reserva Fría) | B53: =+Historico!O53 -> 1 | C53: =ROUND(F8*DB53/DC53,4) -> 1 | D53: =+C53/B53-1 -> 0 | F53: =IF(C53="","",C53) -> 1 | G53: 1 | N53: (**) Significa que acaba de activarse por su entrada en operación comercial. | CZ53: Multiplicativo del factor "p" del CUCSS | DB53: =COMBUSTIBLES!G395 -> 428.904 | DC53: 428.904 | DF53: 225.54
A54: =Historico!A54 ->  | F54: =IF(C54="","",C54) ->  | G54: 1 | O54: Reserva Fría | Z54: Reserva Fría (similar al factor "p") | AH54: RF | BS54: Reserva Fría (similar al factor "p") | CA54: RF | CZ54: Reserva Fría (similar al factor "p") | DB54: RF
A55: =Historico!A55 -> Reserva Fría (RF) de Talara | B55: =+Historico!O55 -> 1 | C55: =IF(N55="*",0,AH55) -> 1 | D55: 0 | F55: 1 | G55: 1 | O55: Reserva Fría (RF) de Talara | Z55: Reserva Fría (RF) de Talara | AH55: =CA55 -> 1 | BS55: Reserva Fría (RF) de Talara | CA55: =DB55 -> 1 | CZ55: Reserva Fría (RF) de Talara | DB55: 1
A56: =Historico!A56 -> Reserva Fría (RF) de Ilo | B56: =+Historico!O56 -> 1 | C56: =IF(N56="*",0,AH56) -> 1 | D56: 0 | F56: =IF(C56="","",C56) -> 1 | G56: 1 | O56: Reserva Fría (RF) de Ilo | Z56: Reserva Fría (RF) de Ilo | AH56: =CA56 -> 1 | BS56: Reserva Fría (RF) de Ilo | CA56: 1 | CZ56: Reserva Fría (RF) de Ilo | DB56: 1
A57: Reserva Fría (RF) de Pucallpa | B57: =+Historico!O57 -> 0 | C57: =IF(N57="*",0,AH57) -> 0 | D57: =IF(ISERR(C57/B57-1),0,C57/B57-1) -> 0 | F57: =IF(C57="","",C57) -> 0 | G57: 1 | N57: * | O57: Reserva Fría (RF) de Pucallpa | Z57: Reserva Fría (RF) de Pucallpa | AH57: =CA57 -> 1 | BS57: Reserva Fría (RF) de Pucallpa | CA57: 1 | CZ57: Reserva Fría (RF) de Pucallpa | DB57: 1
A58: Reserva Fría (RF) de Puerto Maldonado | B58: =+Historico!O58 -> 0 | C58: =IF(N58="*",0,AH58) -> 0 | D58: =IF(ISERR(C58/B58-1),0,C58/B58-1) -> 0 | F58: =IF(C58="","",C58) -> 0 | G58: 1 | N58: * | O58: Reserva Fría (RF) de Puerto Maldonado | Z58: Reserva Fría (RF) de Puerto Maldonado | AH58: 1 | BS58: Reserva Fría (RF) de Puerto Maldonado | CA58: 1 | CZ58: Reserva Fría (RF) de Puerto Maldonado | DB58: 1
A59: =Historico!A59 ->  | F59: =IF(C59="","",C59) ->  | G59: 1 | N59: (*) Significa que aún no entran en operación comercial efectiva. | S59: FTCtp | T59: FPMtp | U59: FPALtp | V59: FPCUtp | AD59: FTCtp | AE59: FPMtp | AF59: FPALtp | AG59: FPCUtp | AO59: FTCtp | AP59: FPMtp | AQ59: FPALtp | AR59: FPCUtp | BW59: FTCtp | BX59: FPMtp | BY59: FPALtp | BZ59: FPCUtp
A60: =Historico!A60 -> Costos Variables de Operación Adicional en Generación | G60: 1 | S60: l | T60: m | U60: n | V60: o | AD60: l | AE60: m | AF60: n | AG60: o | AH60: p | AO60: l | AP60: m | AQ60: n | AR60: o | BW60: l | BX60: m | BY60: n | BZ60: o | CA60: p | CZ60: Factor "p" establecido por Resolución | DB60: p
A61: =Historico!A61 -> Cargo Unitario por CVOA-CMg | B61: =+Historico!O61 -> 1 | C61: =ROUND(S61*AD61+T61*AE61+U61*AF61+V61*AG61+AH61,4) -> 1 | D61: =+C61/B61-1 -> 0 | F61: 1 | G61: 1 | O61: Cargo Unitario por CVOA-CMg | S61: 0 | T61: 0 | U61: 0 | V61: 0 | Z61: Cargo Unitario por CVOA-CMg | AD61: 0 | AE61: 0 | AF61: 0 | AG61: 0 | AH61: =CA61 -> 1 | AK61: Cargo Unitario por CVOA-CMg | AO61: 0 | AP61: 0 | AQ61: 0 | AR61: 0 | BS61: Cargo Unitario por CVOA-CMg | BW61: 0 | BX61: 0 | BY61: 0 | BZ61: 0 | CA61: =DB61 -> 1 | CZ61: Cargo Unitario por CVOA-CMg (*) | DB61: 1
A62: =Historico!A62 -> Cargo Unitario por CVOA-RSC | B62: =+Historico!O62 -> 1 | C62: =ROUND(S62*AD62+T62*AE62+U62*AF62+V62*AG62+AH62,4) -> 1 | D62: =IF(B62=0,0,C62/B62-1) -> 0 | F62: =IF(C62="","",C62) -> 1 | G62: 1 | O62: Cargo Unitario por CVOA-RSC | S62: 0 | T62: 0 | U62: 0 | V62: 0 | Z62: Cargo Unitario por CVOA-RSC | AD62: 0 | AE62: 0 | AF62: 0 | AG62: 0 | AH62: 1 | AK62: Cargo Unitario por CVOA-RSC | AO62: 0 | AP62: 0 | AQ62: 0 | AR62: 0 | BS62: Cargo Unitario por CVOA-RSC | BW62: 0 | BX62: 0 | BY62: 0 | BZ62: 0 | CA62: =DB62 -> 1 | CZ62: Cargo Unitario por CVOA-RSC (*) | DB62: 1
A63: =Historico!A63 -> Cargo por Prima | B63: =+Historico!O63 ->  | G63: 1 | O63: Cargo por Prima | Z63: Cargo por Prima | AK63: Cargo por Prima | BS63: Cargo por Prima | CZ63: Cargo por Prima
A64: =Historico!A64 -> Cogeneración Paramonga | B64: =+Historico!O64 -> 1 | C64: 1 | D64: 0 | F64: 1 | G64: 1 | O64: Cogeneración Paramonga | S64: 0 | T64: 0 | U64: 0 | V64: 0 | Z64: Cogeneración Paramonga | AD64: 0 | AE64: 0 | AF64: 0 | AG64: 0 | AH64: 1 | AK64: Cogeneración Paramonga | AO64: 0 | AP64: 0 | AQ64: 0 | AR64: 0 | BS64: Cogeneración Paramonga | BW64: 0 | BX64: 0 | BY64: 0 | BZ64: 0 | CA64: =DB64 -> 1 | CZ64: Cogeneración Paramonga | DB64: 1
A65: =Historico!A65 -> C.H. Santa Cruz II | B65: =+Historico!O65 -> 1 | C65: 1 | D65: 0 | F65: =IF(C65="","",C65) -> 1 | G65: 1 | O65: C.H. Santa Cruz II | S65: 0 | T65: 0 | U65: 0 | V65: 0 | Z65: C.H. Santa Cruz II | AD65: 0 | AE65: 0 | AF65: 0 | AG65: 0 | AH65: =CA65 -> 1 | AK65: C.H. Santa Cruz II | AO65: 0 | AP65: 0 | AQ65: 0 | AR65: 0 | BS65: C.H. Santa Cruz II | BW65: 0 | BX65: 0 | BY65: 0 | BZ65: 0 | CA65: 1 | CZ65: C.H. Santa Cruz II | DB65: 1
A66: =Historico!A66 -> C.H. Santa Cruz I | B66: =+Historico!O66 -> 1 | C66: 1 | D66: 0 | F66: 1 | G66: 1 | O66: C.H. Santa Cruz I | S66: 0 | T66: 0 | U66: 0 | V66: 0 | Z66: C.H. Santa Cruz I | AD66: 0 | AE66: 0 | AF66: 0 | AG66: 0 | AH66: 1 | AK66: C.H. Santa Cruz I | AO66: 0 | AP66: 0 | AQ66: 0 | AR66: 0 | BS66: C.H. Santa Cruz I | BW66: 0 | BX66: 0 | BY66: 0 | BZ66: 0 | CA66: 1 | CZ66: C.H. Santa Cruz I | DB66: 1
A67: =Historico!A67 -> C.H. Poechos 2 | B67: =+Historico!O67 -> 1 | C67: 1 | D67: 0 | F67: 1 | G67: 1 | O67: C.H. Poechos 2 | S67: 0 | T67: 0 | U67: 0 | V67: 0 | Z67: C.H. Poechos 2 | AD67: 0 | AE67: 0 | AF67: 0 | AG67: 0 | AH67: 1 | AK67: C.H. Poechos 2 | AO67: 0 | AP67: 0 | AQ67: 0 | AR67: 0 | BS67: C.H. Poechos 2 | BW67: 0 | BX67: 0 | BY67: 0 | BZ67: 0 | CA67: 1 | CZ67: C.H. Poechos 2 | DB67: 1
A68: =Historico!A68 -> C.H. Roncador | B68: =+Historico!O68 -> 1 | C68: 1 | D68: 0 | F68: 1 | G68: 1 | O68: C.H. Roncador | S68: 0 | T68: 0 | U68: 0 | V68: 0 | Z68: C.H. Roncador | AD68: 0 | AE68: 0 | AF68: 0 | AG68: 0 | AH68: 1 | AK68: C.H. Roncador | AO68: 0 | AP68: 0 | AQ68: 0 | AR68: 0 | BS68: C.H. Roncador | BW68: 0 | BX68: 0 | BY68: 0 | BZ68: 0 | CA68: 1 | CZ68: C.H. Roncador | DB68: 1
A69: =Historico!A69 -> C.H. Carhuaquero IV | B69: =+Historico!O69 -> 1 | C69: =ROUND(S69*AD69+T69*AE69+U69*AF69+V69*AG69+AH69,4) -> 1 | D69: 0 | F69: 1 | G69: 1 | O69: C.H. Carhuaquero IV | S69: 0 | T69: 0 | U69: 0 | V69: 0 | Z69: C.H. Carhuaquero IV | AD69: 0 | AE69: 0 | AF69: 0 | AG69: 0 | AH69: 1 | AK69: C.H. Carhuaquero IV | AO69: 0 | AP69: 0 | AQ69: 0 | AR69: 0 | BS69: C.H. Carhuaquero IV | BW69: 0 | BX69: 0 | BY69: 0 | BZ69: 0 | CA69: 1 | CZ69: C.H. Carhuaquero IV | DB69: 1
A70: =Historico!A70 -> C.H. Caña Brava | B70: =+Historico!O70 -> 1 | C70: 1 | D70: 0 | F70: 1 | G70: 1 | O70: C.H. Caña Brava | S70: 0 | T70: 0 | U70: 0 | V70: 0 | Z70: C.H. Caña Brava | AD70: 0 | AE70: 0 | AF70: 0 | AG70: 0 | AH70: 1 | AK70: C.H. Caña Brava | AO70: 0 | AP70: 0 | AQ70: 0 | AR70: 0 | BS70: C.H. Caña Brava | BW70: 0 | BX70: 0 | BY70: 0 | BZ70: 0 | CA70: 1 | CZ70: C.H. Caña Brava | DB70: 1
A71: =Historico!A71 -> C.H. La Joya | B71: =+Historico!O71 -> 1 | C71: 1 | D71: 0 | F71: 1 | G71: 1 | O71: C.H. La Joya | S71: 0 | T71: 0 | U71: 0 | V71: 0 | Z71: C.H. La Joya | AD71: 0 | AE71: 0 | AF71: 0 | AG71: 0 | AH71: 1 | AK71: C.H. La Joya | AO71: 0 | AP71: 0 | AQ71: 0 | AR71: 0 | BS71: C.H. La Joya | BW71: 0 | BX71: 0 | BY71: 0 | BZ71: 0 | CA71: 1 | CZ71: C.H. La Joya | DB71: 1
A72: =Historico!A72 -> C.T. Huaycoloro | B72: =+Historico!O72 -> 1 | C72: 1 | D72: 0 | F72: 1 | G72: 1 | O72: C.T. Huaycoloro | S72: 0 | T72: 0 | U72: 0 | V72: 0 | Z72: C.T. Huaycoloro | AD72: 0 | AE72: 0 | AF72: 0 | AG72: 0 | AH72: 1 | AK72: C.T. Huaycoloro | AO72: 0 | AP72: 0 | AQ72: 0 | AR72: 0 | BS72: C.T. Huaycoloro | BW72: 0 | BX72: 0 | BY72: 0 | BZ72: 0 | CA72: 1 | CZ72: C.T. Huaycoloro | DB72: 1
A73: =Historico!A73 -> C. H. Purmacana | B73: =+Historico!O73 -> 1 | C73: 1 | D73: 0 | F73: 1 | G73: =+IF(F73=B73,1,0) -> 1 | O73: C. H. Purmacana | S73: 0 | T73: 0 | U73: 0 | V73: 0 | Z73: C. H. Purmacana | AD73: 0 | AE73: 0 | AF73: 0 | AG73: 0 | AH73: 1 | AK73: C. H. Purmacana | AO73: 0 | AP73: 0 | AQ73: 0 | AR73: 0 | BS73: C. H. Purmacana | BW73: 0 | BX73: 0 | BY73: 0 | BZ73: 0 | CA73: 1 | CZ73: C. H. Purmacana | DB73: 1
A74: =Historico!A74 -> C.H. Huasahuasi I | B74: =+Historico!O74 -> 1 | C74: 1 | D74: 0 | F74: 1 | G74: 1 | O74: C.H. Huasahuasi I | S74: 0 | T74: 0 | U74: 0 | V74: 0 | Z74: C.H. Huasahuasi I | AD74: 0 | AE74: 0 | AF74: 0 | AG74: 0 | AH74: =CA74 -> 1 | AK74: C.H. Huasahuasi I | AO74: 0 | AP74: 0 | AQ74: 0 | AR74: 0 | BS74: C.H. Huasahuasi I | BW74: 0 | BX74: 0 | BY74: 0 | BZ74: 0 | CA74: 1 | CZ74: C.H. Huasahuasi I | DB74: 1
A75: =Historico!A75 -> C.H. Huasahuasi II | B75: =+Historico!O75 -> 1 | C75: 1 | D75: 0 | F75: 1 | G75: 1 | O75: C.H. Huasahuasi II | S75: 0 | T75: 0 | U75: 0 | V75: 0 | Z75: C.H. Huasahuasi II | AD75: 0 | AE75: 0 | AF75: 0 | AG75: 0 | AH75: 1 | AK75: C.H. Huasahuasi II | AO75: 0 | AP75: 0 | AQ75: 0 | AR75: 0 | BS75: C.H. Huasahuasi II | BW75: 0 | BX75: 0 | BY75: 0 | BZ75: 0 | CA75: 1 | CZ75: C.H. Huasahuasi II | DB75: 1
A76: =Historico!A76 -> C.H. Nuevo Imperial | B76: =+Historico!O76 -> 1 | C76: =ROUND(S76*AD76+T76*AE76+U76*AF76+V76*AG76+AH76,4) -> 1 | D76: =IF(B76=0,0,C76/B76-1) -> 0 | F76: =IF(C76="","",C76) -> 1 | G76: 1 | O76: C.H. Nuevo Imperial | S76: 0 | T76: 0 | U76: 0 | V76: 0 | Z76: C.H. Nuevo Imperial | AD76: 0 | AE76: 0 | AF76: 0 | AG76: 0 | AH76: 1 | AK76: C.H. Nuevo Imperial | AO76: 0 | AP76: 0 | AQ76: 0 | AR76: 0 | BS76: C.H. Nuevo Imperial | BW76: 0 | BX76: 0 | BY76: 0 | BZ76: 0 | CA76: 1 | CZ76: C.H. Nuevo Imperial | DB76: 1
A77: CS Repartición Solar 20T | B77: =+Historico!O77 -> 1 | C77: =ROUND(S77*AD77+T77*AE77+U77*AF77+V77*AG77+AH77,4) -> 1 | D77: 0 | F77: 1 | G77: 1 | O77: CS Repartición Solar 20T | S77: 0 | T77: 0 | U77: 0 | V77: 0 | Z77: CS Repartición Solar 20T | AD77: 0 | AE77: 0 | AF77: 0 | AG77: 0 | AH77: =CA77 -> 1 | AK77: CS Repartición Solar 20T | AO77: 0 | AP77: 0 | AQ77: 0 | AR77: 0 | BS77: CS Repartición Solar 20T | BW77: 0 | BX77: 0 | BY77: 0 | BZ77: 0 | CA77: 1 | CZ77: CS Repartición Solar 20T | DB77: 1
A78: CS Majes Solar 20T | B78: =+Historico!O78 -> 1 | C78: =ROUND(S78*AD78+T78*AE78+U78*AF78+V78*AG78+AH78,4) -> 1 | D78: 0 | F78: 1 | G78: 1 | O78: CS Majes Solar 20T | S78: 0 | T78: 0 | U78: 0 | V78: 0 | Z78: CS Majes Solar 20T | AD78: 0 | AE78: 0 | AF78: 0 | AG78: 0 | AH78: 1 | AK78: CS Majes Solar 20T | AO78: 0 | AP78: 0 | AQ78: 0 | AR78: 0 | BS78: CS Majes Solar 20T | BW78: 0 | BX78: 0 | BY78: 0 | BZ78: 0 | CA78: 1 | CZ78: CS Majes Solar 20T | DB78: 1
A79: CS Tacna Solar 20T | B79: =+Historico!O79 -> 1 | C79: =ROUND(S79*AD79+T79*AE79+U79*AF79+V79*AG79+AH79,4) -> 1 | D79: 0 | F79: 1 | G79: 1 | O79: CS Tacna Solar 20T | S79: 0 | T79: 0 | U79: 0 | V79: 0 | Z79: CS Tacna Solar 20T | AD79: 0 | AE79: 0 | AF79: 0 | AG79: 0 | AH79: 1 | AK79: CS Tacna Solar 20T | AO79: 0 | AP79: 0 | AQ79: 0 | AR79: 0 | BS79: CS Tacna Solar 20T | BW79: 0 | BX79: 0 | BY79: 0 | BZ79: 0 | CA79: 1 | CZ79: CS Tacna Solar 20T | DB79: 1
A80: CS Panamericana Solar 20T | B80: =+Historico!O80 -> 1 | C80: =ROUND(S80*AD80+T80*AE80+U80*AF80+V80*AG80+AH80,4) -> 1 | D80: 0 | F80: 1 | G80: 1 | O80: CS Panamericana Solar 20T | S80: 0 | T80: 0 | U80: 0 | V80: 0 | Z80: CS Panamericana Solar 20T | AD80: 0 | AE80: 0 | AF80: 0 | AG80: 0 | AH80: 1 | AK80: CS Panamericana Solar 20T | AO80: 0 | AP80: 0 | AQ80: 0 | AR80: 0 | BS80: CS Panamericana Solar 20T | BW80: 0 | BX80: 0 | BY80: 0 | BZ80: 0 | CA80: 1 | CZ80: CS Panamericana Solar 20T | DB80: 1
A81: C.H. Yanapampa | B81: =+Historico!O81 -> 1 | C81: =ROUND(S81*AD81+T81*AE81+U81*AF81+V81*AG81+AH81,4) -> 1 | D81: =IF(B81=0,0,C81/B81-1) -> 0 | F81: =IF(C81="","",C81) -> 1 | G81: 1 | O81: C.H. Yanapampa | S81: 0 | T81: 0 | U81: 0 | V81: 0 | Z81: C.H. Yanapampa | AD81: 0 | AE81: 0 | AF81: 0 | AG81: 0 | AH81: =CA81 -> 1 | AK81: C.H. Yanapampa | AO81: 0 | AP81: 0 | AQ81: 0 | AR81: 0 | BS81: C.H. Yanapampa | BW81: 0 | BX81: 0 | BY81: 0 | BZ81: 0 | CA81: 1 | CZ81: C.H. Yanapampa | DB81: 1
A82: C.H. Las Pizarras | B82: =+Historico!O82 -> 1 | C82: =ROUND(S82*AD82+T82*AE82+U82*AF82+V82*AG82+AH82,4) -> 1 | D82: =IF(B82=0,0,C82/B82-1) -> 0 | F82: 1 | G82: 1 | O82: C.H. Las Pizarras | S82: 0 | T82: 0 | U82: 0 | V82: 0 | Z82: C.H. Las Pizarras | AD82: 0 | AE82: 0 | AF82: 0 | AG82: 0 | AH82: =CA82 -> 1 | AK82: C.H. Las Pizarras | AO82: 0 | AP82: 0 | AQ82: 0 | AR82: 0 | BS82: C.H. Las Pizarras | BW82: 0 | BX82: 0 | BY82: 0 | BZ82: 0 | CA82: 1 | CZ82: C.H. Las Pizarras | DB82: 1
A83: C.E. Marcona | B83: =+Historico!O83 -> 1 | C83: =ROUND(S83*AD83+T83*AE83+U83*AF83+V83*AG83+AH83,4) -> 1 | D83: =IF(B83=0,0,C83/B83-1) -> 0 | F83: 1 | G83: 1 | O83: C.E. Marcona | S83: 0 | T83: 0 | U83: 0 | V83: 0 | Z83: C.E. Marcona | AD83: 0 | AE83: 0 | AF83: 0 | AG83: 0 | AH83: =CA83 -> 1 | AK83: C.E. Marcona | AO83: 0 | AP83: 0 | AQ83: 0 | AR83: 0 | BS83: C.E. Marcona | BW83: 0 | BX83: 0 | BY83: 0 | BZ83: 0 | CA83: 1 | CZ83: C.E. Marcona | DB83: 1
A84: =Historico!A84 -> Cargo Unitario por FISE | B84: =+Historico!O84 -> 1 | C84: =ROUND(S84*AD84+T84*AE84+U84*AF84+V84*AG84+AH84,4) -> 1 | D84: =IF(B84=0,0,C84/B84-1) -> 0 | F84: =IF(C84="","",C84) -> 1 | G84: 1 | O84: Cargo Unitario por FISE | S84: 0 | T84: 0 | U84: 0 | V84: 0 | Z84: Cargo Unitario por FISE | AD84: 0 | AE84: 0 | AF84: 0 | AG84: 0 | AH84: 1 | AK84: Cargo Unitario por FISE | AO84: 0 | AP84: 0 | AQ84: 0 | AR84: 0 | BS84: Cargo Unitario por FISE | BW84: 0 | BX84: 0 | BY84: 0 | BZ84: 0 | CA84: 1 | CZ84: Cargo Unitario por FISE | DB84: 1
A85: =Historico!A85 -> Cargo Unitario por Generación Adicional | B85: =+Historico!O85 ->  | F85: =IF(AND(DAY($F$5)=1,MONTH($F$5)=5),$C$8,IF(IF(Resumen!$G$9="Ft-1",B85,C85)=0,"",IF(Resumen!$G$9="Ft-1",B85,C85))) ->  | G85: 1 | O85: Cargo Unitario por Generación Adicional | Z85: Cargo Unitario por Generación Adicional | AK85: Cargo Unitario por Generación Adicional | BS85: Cargo Unitario por Generación Adicional | CZ85: Cargo Unitario por Generación Adicional
A86: =Historico!A86 -> Usuarios Regulados | B86: =+Historico!O86 -> 1 | C86: 1 | D86: 0 | F86: 1 | G86: 1 | O86: Usuarios Regulados | S86: 0 | T86: 0 | U86: 0 | V86: 0 | Z86: Usuarios Regulados | AD86: 0 | AE86: 0 | AF86: 0 | AG86: 0 | AH86: =CA86 -> 1 | AK86: Usuarios Regulados | AO86: 0 | AP86: 0 | AQ86: 0 | AR86: 0 | BS86: Usuarios Regulados | BW86: 0 | BX86: 0 | BY86: 0 | BZ86: 0 | CA86: =DB86 -> 1 | CZ86: Usuarios Regulados | DB86: 1
A87: =Historico!A87 ->  | F87: =IF(AND(DAY($F$5)=1,MONTH($F$5)=5),$C$8,IF(IF(Resumen!$G$9="Ft-1",B87,C87)=0,"",IF(Resumen!$G$9="Ft-1",B87,C87))) ->  | G87: 1
A88: =Historico!A88 ->  | F88: =IF(AND(DAY($F$5)=1,MONTH($F$5)=5),$C$8,IF(IF(Resumen!$G$9="Ft-1",B88,C88)=0,"",IF(Resumen!$G$9="Ft-1",B88,C88))) ->  | G88: 1 | O88: T.Secundaria (Ponderadores) | S88: FTCts | T88: FPMts | U88: FPCUts | V88: FPALts | Z88: T.Secundaria (Componentes) | AD88: FTCts | AE88: FPMts | AF88: FPCUts | AG88: FPALts | AK88: T.Secundaria (V.actuales) | AO88: FTCts | AP88: FPMts | AQ88: FPCUts | AR88: FPALts | BS88: T.Secundaria (V.Resolución) | BW88: FTCts | BX88: FPMts | BY88: FPCUts | BZ88: FPALts | CZ88: Indicadores Macroeconómicos de la Transmision Secundaria (Parte 2)
A89: =Historico!A89 -> B.2. PEAJES SECUNDARIOS (Res. N° 054, 055, 068, 136, 137 y 160-2013-OS/CD) | B89: =+Historico!O89 ->  | F89: =IF(IF(Resumen!$G$10="Ft-1",B89,C89)=0,"",IF(Resumen!$G$10="Ft-1",B89,C89)) ->  | G89: 1 | S89: a | T89: b | U89: c | V89: d | AD89: a | AE89: b | AF89: c | AG89: d | AH89: PUC | AO89: a | AP89: b | AQ89: c | AR89: d | BW89: a | BX89: b | BY89: c | BZ89: d | DA89: Fecha | DB89: IPM | DC89: TC (S/./US$) (*) | DD89: Pco (ctv. US$/lb) | DE89: Pal
A90: =Historico!A90 -> Área de Demanda 1 | B90: =+Historico!O90 -> 1.0313 | C90: =ROUND(S90*AD90+T90*AE90+U90*AF90+V90*AG90,4) -> 1.0302 | D90: =+C90/B90-1 -> -0.001066614952 | F90: =IF(IF(Resumen!$G$10="Ft-1",B90,C90)=0,"",IF(Resumen!$G$10="Ft-1",B90,C90)) -> 1.0313 | G90: 1 | O90: Áreas de Demanda: Cuadro 4.2 FORMULAS DE ACTUALIZACION | R90: 1 | S90: 0.3096 | T90: 0.5865 | U90: 0.0481 | V90: 0.0558 | Z90: Áreas de Demanda: Cuadro 4.2 FORMULAS DE ACTUALIZACION | AC90: 1 | AD90: =AO90/BW90 -> 1.084974894 | AE90: =AP90/BX90 -> 1.02667178 | AF90: =AQ90/BY90 -> 0.8934380897 | AG90: =AR90/BZ90 -> 0.882085042 | AH90: 0 | AK90: Áreas de Demanda: Cuadro 4.2 FORMULAS DE ACTUALIZACION | AN90: 1 | AO90: =DC91 -> 2.809 | AP90: =DB91 -> 212.8755683 | AQ90: =DD91 -> 322.2266667 | AR90: =DE91 -> 1773.359558 | BS90: Áreas de Demanda: Cuadro 4.2 FORMULAS DE ACTUALIZACION | BV90: 1 | BW90: =DC90 -> 2.589 | BX90: =DB90 -> 207.3453 | BY90: =DD90 -> 360.6592 | BZ90: =DE90 -> 2010.4179 | CZ90: Valores Base | DA90: Resolucion Base | DB90: 207.3453 | DC90: 2.589 | DD90: 360.6592 | DE90: 2010.4179
A91: =Historico!A91 -> Área de Demanda 2 | B91: =+Historico!O91 -> 1.0288 | C91: =ROUND(S91*AD91+T91*AE91+U91*AF91+V91*AG91,4) -> 1.0287 | D91: -9.720062208e-05 | F91: =IF(IF(Resumen!$G$10="Ft-1",B91,C91)=0,"",IF(Resumen!$G$10="Ft-1",B91,C91)) -> 1.0288 | G91: 1 | R91: 2 | S91: 0.2657 | T91: 0.6353 | U91: 0.0762 | V91: 0.0228 | AC91: 2 | AD91: 1.084974894 | AE91: 1.02667178 | AF91: 0.8934380897 | AG91: 0.882085042 | AH91: 0 | AN91: 2 | AO91: =DC91 -> 2.809 | AP91: =DB91 -> 212.8755683 | AQ91: =DD91 -> 322.2266667 | AR91: =DE91 -> 1773.359558 | BV91: 2 | BW91: =DC90 -> 2.589 | BX91: =DB90 -> 207.3453 | BY91: =DD90 -> 360.6592 | BZ91: =DE90 -> 2010.4179 | CZ91: Valores Actuales | DA91: Indicador actualizado | DB91: =+'ALUMINIO-COBRE-TC-IPM'!G8 -> 212.8755683 | DC91: =+'ALUMINIO-COBRE-TC-IPM'!F8 -> 2.809 | DD91: =+'ALUMINIO-COBRE-TC-IPM'!E8 -> 322.2266667 | DE91: =+'ALUMINIO-COBRE-TC-IPM'!D8 -> 1773.359558
A92: =Historico!A92 -> Área de Demanda 3 | B92: =+Historico!O92 -> 1.0267 | C92: 1.0267 | D92: 0 | F92: =IF(IF(Resumen!$G$10="Ft-1",B92,C92)=0,"",IF(Resumen!$G$10="Ft-1",B92,C92)) -> 1.0267 | G92: =+IF(F92=B92,1,0) -> 1 | R92: 3 | S92: 0.2377 | T92: 0.6617 | U92: 0.0602 | V92: 0.0404 | AC92: 3 | AD92: 1.084974894 | AE92: 1.02667178 | AF92: 0.8934380897 | AG92: 0.882085042 | AH92: 0 | AN92: 3 | AO92: =DC91 -> 2.809 | AP92: =DB91 -> 212.8755683 | AQ92: =DD91 -> 322.2266667 | AR92: =DE91 -> 1773.359558 | BV92: 3 | BW92: =DC90 -> 2.589 | BX92: =DB90 -> 207.3453 | BY92: =DD90 -> 360.6592 | BZ92: =DE90 -> 2010.4179
A93: =Historico!A93 -> Área de Demanda 4 | B93: =+Historico!O93 -> 1.0262 | C93: 1.0262 | D93: 0 | F93: =IF(IF(Resumen!$G$10="Ft-1",B93,C93)=0,"",IF(Resumen!$G$10="Ft-1",B93,C93)) -> 1.0262 | G93: 1 | R93: 4 | S93: 0.2299 | T93: 0.6705 | U93: 0.0435 | V93: 0.0561 | AC93: 4 | AD93: 1.084974894 | AE93: 1.02667178 | AF93: 0.8934380897 | AG93: 0.882085042 | AH93: 0 | AN93: 4 | AO93: =DC91 -> 2.809 | AP93: =DB91 -> 212.8755683 | AQ93: =DD91 -> 322.2266667 | AR93: =DE91 -> 1773.359558 | BV93: 4 | BW93: =DC90 -> 2.589 | BX93: =DB90 -> 207.3453 | BY93: =DD90 -> 360.6592 | BZ93: =DE90 -> 2010.4179
A94: =Historico!A94 -> Área de Demanda 5 | B94: =+Historico!O94 -> 1.0269 | C94: 1.0248 | D94: -0.002044989775 | F94: =IF(IF(Resumen!$G$10="Ft-1",B94,C94)=0,"",IF(Resumen!$G$10="Ft-1",B94,C94)) -> 1.0269 | G94: 1 | R94: 5 | S94: 0.3019 | T94: 0.5545 | U94: 0.1146 | V94: 0.029 | AC94: 5 | AD94: 1.084974894 | AE94: 1.02667178 | AF94: 0.8934380897 | AG94: 0.882085042 | AH94: 0 | AN94: 5 | AO94: =DC91 -> 2.809 | AP94: =DB91 -> 212.8755683 | AQ94: =DD91 -> 322.2266667 | AR94: =DE91 -> 1773.359558 | BV94: 5 | BW94: =DC90 -> 2.589 | BX94: =DB90 -> 207.3453 | BY94: =DD90 -> 360.6592 | BZ94: =DE90 -> 2010.4179
A95: =Historico!A95 -> Área de Demanda 6 | B95: =+Historico!O95 -> 1.0363 | C95: =ROUND(S95*AD95+T95*AE95+U95*AF95+V95*AG95,4) -> 1.0348 | D95: -0.0014474573 | F95: =IF(IF(Resumen!$G$10="Ft-1",B95,C95)=0,"",IF(Resumen!$G$10="Ft-1",B95,C95)) -> 1.0363 | G95: 1 | R95: 6 | S95: 0.3789 | T95: 0.5175 | U95: 0.0866 | V95: 0.017 | AC95: 6 | AD95: 1.084974894 | AE95: 1.02667178 | AF95: 0.8934380897 | AG95: 0.882085042 | AH95: 0 | AN95: 6 | AO95: =DC91 -> 2.809 | AP95: =DB91 -> 212.8755683 | AQ95: =DD91 -> 322.2266667 | AR95: =DE91 -> 1773.359558 | BV95: 6 | BW95: =DC90 -> 2.589 | BX95: =DB90 -> 207.3453 | BY95: =DD90 -> 360.6592 | BZ95: =DE90 -> 2010.4179
A96: =Historico!A96 -> Área de Demanda 7 | B96: =+Historico!O96 -> 1.0412 | C96: 1.0402 | D96: -0.0009604302728 | F96: =IF(IF(Resumen!$G$10="Ft-1",B96,C96)=0,"",IF(Resumen!$G$10="Ft-1",B96,C96)) -> 1.0412 | G96: 1 | R96: 7 | S96: 0.4117 | T96: 0.5107 | U96: 0.0612 | V96: 0.0164 | AC96: 7 | AD96: 1.084974894 | AE96: 1.02667178 | AF96: 0.8934380897 | AG96: 0.882085042 | AH96: 0 | AN96: 7 | AO96: =DC91 -> 2.809 | AP96: =DB91 -> 212.8755683 | AQ96: =DD91 -> 322.2266667 | AR96: =DE91 -> 1773.359558 | BV96: 7 | BW96: =DC90 -> 2.589 | BX96: =DB90 -> 207.3453 | BY96: =DD90 -> 360.6592 | BZ96: =DE90 -> 2010.4179
A97: =Historico!A97 -> Área de Demanda 8 | B97: =+Historico!O97 -> 1.0291 | C97: 1.0268 | D97: -0.002234962589 | F97: =IF(IF(Resumen!$G$10="Ft-1",B97,C97)=0,"",IF(Resumen!$G$10="Ft-1",B97,C97)) -> 1.0291 | G97: 1 | R97: 8 | S97: 0.3176 | T97: 0.5516 | U97: 0.0445 | V97: 0.0863 | AC97: 8 | AD97: 1.084974894 | AE97: 1.02667178 | AF97: 0.8934380897 | AG97: 0.882085042 | AH97: 0 | AN97: 8 | AO97: =DC91 -> 2.809 | AP97: =DB91 -> 212.8755683 | AQ97: =DD91 -> 322.2266667 | AR97: =DE91 -> 1773.359558 | BV97: 8 | BW97: =DC90 -> 2.589 | BX97: =DB90 -> 207.3453 | BY97: =DD90 -> 360.6592 | BZ97: =DE90 -> 2010.4179
A98: =Historico!A98 -> Área de Demanda 9 | B98: =+Historico!O98 -> 1.0356 | C98: 1.0351 | D98: -0.0004828118965 | F98: =IF(IF(Resumen!$G$10="Ft-1",B98,C98)=0,"",IF(Resumen!$G$10="Ft-1",B98,C98)) -> 1.0356 | G98: 1 | R98: 9 | S98: 0.335 | T98: 0.5858 | U98: 0.035 | V98: 0.0442 | AC98: 9 | AD98: 1.084974894 | AE98: 1.02667178 | AF98: 0.8934380897 | AG98: 0.882085042 | AH98: 0 | AN98: 9 | AO98: =DC91 -> 2.809 | AP98: =DB91 -> 212.8755683 | AQ98: =DD91 -> 322.2266667 | AR98: =DE91 -> 1773.359558 | BV98: 9 | BW98: =DC90 -> 2.589 | BX98: =DB90 -> 207.3453 | BY98: =DD90 -> 360.6592 | BZ98: =DE90 -> 2010.4179
A99: =Historico!A99 -> Área de Demanda 10 | B99: =+Historico!O99 -> 1.0325 | C99: 1.0328 | D99: 0.0002905569007 | F99: =IF(IF(Resumen!$G$10="Ft-1",B99,C99)=0,"",IF(Resumen!$G$10="Ft-1",B99,C99)) -> 1.0325 | G99: 1 | R99: 10 | S99: 0.2828 | T99: 0.6441 | U99: 0.0221 | V99: 0.051 | AC99: 10 | AD99: 1.084974894 | AE99: 1.02667178 | AF99: 0.8934380897 | AG99: 0.882085042 | AH99: 0 | AN99: 10 | AO99: =DC91 -> 2.809 | AP99: =DB91 -> 212.8755683 | AQ99: =DD91 -> 322.2266667 | AR99: =DE91 -> 1773.359558 | BV99: 10 | BW99: =DC90 -> 2.589 | BX99: =DB90 -> 207.3453 | BY99: =DD90 -> 360.6592 | BZ99: =DE90 -> 2010.4179
A100: =Historico!A100 -> Área de Demanda 11 | B100: =+Historico!O100 -> 1.01 | C100: 1.0072 | D100: -0.002772277228 | F100: =IF(IF(Resumen!$G$10="Ft-1",B100,C100)=0,"",IF(Resumen!$G$10="Ft-1",B100,C100)) -> 1.01 | G100: 1 | R100: 11 | S100: 0.1596 | T100: 0.6261 | U100: 0.1962 | V100: 0.0181 | AC100: 11 | AD100: 1.084974894 | AE100: 1.02667178 | AF100: 0.8934380897 | AG100: 0.882085042 | AH100: 0 | AN100: 11 | AO100: =DC91 -> 2.809 | AP100: =DB91 -> 212.8755683 | AQ100: =DD91 -> 322.2266667 | AR100: =DE91 -> 1773.359558 | BV100: 11 | BW100: =DC90 -> 2.589 | BX100: =DB90 -> 207.3453 | BY100: =DD90 -> 360.6592 | BZ100: =DE90 -> 2010.4179
A101: =Historico!A101 -> Área de Demanda 12 | B101: =+Historico!O101 -> 1.0481 | C101: 1.0451 | D101: -0.002862322297 | F101: =IF(IF(Resumen!$G$10="Ft-1",B101,C101)=0,"",IF(Resumen!$G$10="Ft-1",B101,C101)) -> 1.0481 | G101: 1 | R101: 12 | S101: 0.5289 | T101: 0.381 | U101: 0.0557 | V101: 0.0344 | AC101: 12 | AD101: 1.084974894 | AE101: 1.02667178 | AF101: 0.8934380897 | AG101: 0.882085042 | AH101: 0 | AN101: 12 | AO101: =DC91 -> 2.809 | AP101: =DB91 -> 212.8755683 | AQ101: =DD91 -> 322.2266667 | AR101: =DE91 -> 1773.359558 | BV101: 12 | BW101: =DC90 -> 2.589 | BX101: =DB90 -> 207.3453 | BY101: =DD90 -> 360.6592 | BZ101: =DE90 -> 2010.4179
A102: =Historico!A102 -> Área de Demanda 13 | B102: =+Historico!O102 -> 1.0319 | C102: 1.0323 | D102: 0.0003876344607 | F102: =IF(IF(Resumen!$G$10="Ft-1",B102,C102)=0,"",IF(Resumen!$G$10="Ft-1",B102,C102)) -> 1.0319 | G102: 1 | R102: 13 | S102: 0.2756 | T102: 0.65 | U102: 0.03 | V102: 0.0444 | AC102: 13 | AD102: 1.084974894 | AE102: 1.02667178 | AF102: 0.8934380897 | AG102: 0.882085042 | AH102: 0 | AN102: 13 | AO102: =DC91 -> 2.809 | AP102: =DB91 -> 212.8755683 | AQ102: =DD91 -> 322.2266667 | AR102: =DE91 -> 1773.359558 | BV102: 13 | BW102: =DC90 -> 2.589 | BX102: =DB90 -> 207.3453 | BY102: =DD90 -> 360.6592 | BZ102: =DE90 -> 2010.4179
A103: =Historico!A103 -> Área de Demanda 14 | B103: =+Historico!O103 -> 1.0262 | C103: 1.0276 | D103: 0.00136425648 | F103: =IF(IF(Resumen!$G$10="Ft-1",B103,C103)=0,"",IF(Resumen!$G$10="Ft-1",B103,C103)) -> 1.0262 | G103: 1 | R103: 14 | S103: 0.2006 | T103: 0.7201 | U103: 0.0634 | V103: 0.0159 | AC103: 14 | AD103: 1.084974894 | AE103: 1.02667178 | AF103: 0.8934380897 | AG103: 0.882085042 | AH103: 0 | AN103: 14 | AO103: =DC91 -> 2.809 | AP103: =DB91 -> 212.8755683 | AQ103: =DD91 -> 322.2266667 | AR103: =DE91 -> 1773.359558 | BV103: 14 | BW103: =DC90 -> 2.589 | BX103: =DB90 -> 207.3453 | BY103: =DD90 -> 360.6592 | BZ103: =DE90 -> 2010.4179
A104: =Historico!A104 -> Área de Demanda 15 | B104: =+Historico!O104 -> 1.0255 | C104: 1.0218 | D104: -0.003607996099 | F104: =IF(IF(Resumen!$G$10="Ft-1",B104,C104)=0,"",IF(Resumen!$G$10="Ft-1",B104,C104)) -> 1.0255 | G104: 1 | R104: 15 | S104: 0.3047 | T104: 0.5387 | U104: 0.0006 | V104: 0.156 | AC104: 15 | AD104: 1.084974894 | AE104: 1.02667178 | AF104: 0.8934380897 | AG104: 0.882085042 | AH104: 0 | AN104: 15 | AO104: =DC91 -> 2.809 | AP104: =DB91 -> 212.8755683 | AQ104: =DD91 -> 322.2266667 | AR104: =DE91 -> 1773.359558 | BV104: 15 | BW104: =DC90 -> 2.589 | BX104: =DB90 -> 207.3453 | BY104: =DD90 -> 360.6592 | BZ104: =DE90 -> 2010.4179
A105: =Historico!A105 -> Instalaciones BOOT - Redesur | B105: =+Historico!O105 -> 1.09 | C105: 1.085 | D105: -0.004587155963 | F105: =IF(IF(Resumen!$G$10="Ft-1",B105,C105)=0,"",IF(Resumen!$G$10="Ft-1",B105,C105)) -> 1.09 | G105: 1 | O105: Cuadro 5.3.- FORMULAS DE ACTUALIZACION DE LOS SST DE ISA Y REDESUR (BOOT) | P105: Instalac. BOOT | Q105: REDESUR | R105: SST Tacna - Transf. 220/66/10 kV; 50 MVA | S105: 1 | T105: 0 | U105: 0 | V105: 0 | Z105: Cuadro 5.3.- FORMULAS DE ACTUALIZACION DE LOS SST DE ISA Y REDESUR (BOOT) | AA105: Instalac. BOOT | AB105: REDESUR | AC105: SST Tacna - Transf. 220/66/10 kV; 50 MVA | AD105: =AO105/BW105 -> 1.084974894 | AE105: 0 | AF105: 0 | AG105: 0 | AH105: 0 | AK105: Cuadro 5.3.- FORMULAS DE ACTUALIZACION DE LOS SST DE ISA Y REDESUR (BOOT) | AL105: Instalac. BOOT | AM105: REDESUR | AN105: SST Tacna - Transf. 220/66/10 kV; 50 MVA | AO105: =DC91 -> 2.809 | AP105: 0 | AQ105: 0 | AR105: 0 | BS105: Cuadro 5.3.- FORMULAS DE ACTUALIZACION DE LOS SST DE ISA Y REDESUR (BOOT) | BT105: Instalac. BOOT | BU105: REDESUR | BV105: SST Tacna - Transf. 220/66/10 kV; 50 MVA | BW105: =DC90 -> 2.589 | BX105: 0 | BY105: 0 | BZ105: 0
A106: =Historico!A106 -> Instalaciones BOOT - ISA Peru | B106: =+Historico!O106 -> 1.09 | C106: 1.085 | D106: -0.004587155963 | F106: =IF(IF(Resumen!$G$10="Ft-1",B106,C106)=0,"",IF(Resumen!$G$10="Ft-1",B106,C106)) -> 1.09 | G106: 1 | Q106: ISA-PERÚ | R106: SST Aguaytía – Pucallpa, S.E. Aguaytía 220/60/10kV, S.E. Pucallpa 138/60/10kV, Reactor 8MVAR | S106: 1 | T106: 0 | U106: 0 | V106: 0 | AB106: ISA-PERÚ | AC106: SST Aguaytía – Pucallpa, S.E. Aguaytía 220/60/10kV, S.E. Pucallpa 138/60/10kV, Reactor 8MVAR | AD106: 1.084974894 | AE106: 0 | AF106: 0 | AG106: 0 | AH106: 0 | AM106: ISA-PERÚ | AN106: SST Aguaytía – Pucallpa, S.E. Aguaytía 220/60/10kV, S.E. Pucallpa 138/60/10kV, Reactor 8MVAR | AO106: =DC91 -> 2.809 | AP106: 0 | AQ106: 0 | AR106: 0 | BU106: ISA-PERÚ | BV106: SST Aguaytía – Pucallpa, S.E. Aguaytía 220/60/10kV, S.E. Pucallpa 138/60/10kV, Reactor 8MVAR | BW106: =DC90 -> 2.589 | BX106: 0 | BY106: 0 | BZ106: 0
A107: =Historico!A107 -> Peaje Unitario por Compensación | F107: =IF(IF(Resumen!$G$10="Ft-1",B107,C107)=0,"",IF(Resumen!$G$10="Ft-1",B107,C107)) ->  | G107: 1 | Z107: Peaje Unitario por Compensación | AD107: FA | CZ107: Peaje Unitario por Compensación | DB107: FA
A108: =Historico!A108 -> Resolucion del FA_Peaje Unitario de Compensación (FA_PUC) | B108: =+Historico!O108 -> 1.2328 | C108: =AD108 -> 1.2328 | D108: =+C108/B108-1 -> 0 | F108: =C108 -> 1.2328 | G108: 1 | Z108: FA_PUC añadido en Áreas SST 6 y 7) | AD108: =DB108 -> 1.2328 | CZ108: FA_PUC añadido en Áreas SST 6 y 7) | DB108: 1.2328
A109: =Historico!A109 ->  | F109: =IF(IF(Resumen!$G$10="Ft-1",B109,C109)=0,"",IF(Resumen!$G$10="Ft-1",B109,C109)) ->  | G109: 1
A110: =Historico!A110 ->  | F110: =IF(IF(Resumen!$G$11="Ft-1",B110,C110)=0,"",IF(Resumen!$G$11="Ft-1",B110,C110)) ->  | G110: 1 | AV110: Ponderadores | BC110: Tasa arancelaria por partida arancelaria | CD110: Ponderadores | CK110: Tasa arancelaria por partida arancelaria
A111: =Historico!A111 -> C.1. DISTRIBUCIÓN - VAD Y CARGOS FIJOS (Res. N° 203-2013-OS/CD) | B111: =+Historico!O111 ->  | F111: =IF(IF(Resumen!$G$11="Ft-1",B111,C111)=0,"",IF(Resumen!$G$11="Ft-1",B111,C111)) ->  | G111: 1 | O111: Distribución (Ponderadores) | S111: IPM / IPMo | T111: [TC/TCo] | U111: [IPCu/IPCuo]*[TC/TCo] | V111: [IPAl/IPAlo]*[TC/TCo] | Z111: Distribución (Componentes) | AD111: IPM / IPMo | AE111: [TC/TCo] | AF111: [IPCu/IPCuo]*[TC/TCo] | AG111: [IPAl/IPAlo]*[TC/TCo] | AK111: Distribución (V.actuales) | AO111: IPM / IPMo | AP111: [TC/TCo] | AQ111: [IPCu/IPCuo]*[TC/TCo] | AR111: [IPAl/IPAlo]*[TC/TCo] | AU111: TA | AV111: 8471.30.00.00 | AW111: 8504.21.90.00 | AX111: 8517.11.00.00 | AY111: 8535.30.00.00 | AZ111: 8539.32.00.00 | BA111: 8704.21.10.10 | BB111: 9028.30.10.00 | BC111: 8471.30.00.00 | BD111: 8504.21.90.00 | BE111: 8517.11.00.00 | BF111: 8535.30.00.00 | BG111: 8539.32.00.00 | BH111: 8704.21.10.10 | BI111: 9028.30.10.00 | BS111: Distribución (V.Resolución) | BW111: IPM / IPMo | BX111: [TC/TCo] | BY111: [IPCu/IPCuo]*[TC/TCo] | BZ111: [IPAl/IPAlo]*[TC/TCo] | CC111: TAo | CD111: 8471.30.00.00 | CE111: 8504.21.90.00 | CF111: 8517.11.00.00 | CG111: 8535.30.00.00 | CH111: 8539.32.00.00 | CI111: 8704.21.10.10 | CJ111: 9028.30.10.00 | CK111: 8471.30.00.00 | CL111: 8504.21.90.00 | CM111: 8517.11.00.00 | CN111: 8535.30.00.00 | CO111: 8539.32.00.00 | CP111: 8704.21.10.10 | CQ111: 9028.30.10.00 | CZ111: Indicadores Macroeconómicos de la Distribucion (Parte 1)
A112: 1. VALOR AGREGADO DE DISTRIBUCIÓN EN MT (FAVADMT) | B112: =+Historico!O112 ->  | F112: =IF(IF(Resumen!$G$11="Ft-1",B112,C112)=0,"",IF(Resumen!$G$11="Ft-1",B112,C112)) ->  | G112: 1 | O112: 1. Media Tensión (MT) | S112: AMT | T112: BMT | U112: CMT | V112: DMT | Z112: 1. Media Tensión (MT) | AD112: AMT | AE112: BMT | AF112: CMT | AG112: DMT | AK112: 1. Media Tensión (MT) | AO112: AMT | AP112: BMT | AQ112: CMT | AR112: DMT | AU112: TABMT | BS112: 1. Media Tensión (MT) | BW112: AMT | BX112: BMT | BY112: CMT | BZ112: DMT | CC112: TABMT | DA112: Fecha | DB112: IPM | DC112: TC (S/./US$) | DD112: IPCu (ctv.US$/lb) | DE112: IPAl (US$/tn)
A113: a) Sector 1 | B113: =+Historico!O113 -> 1.0354 | C113: =IF(AND(DAY($F$5)=1,MONTH($F$5)=11,YEAR($F$5)=2013),1,ROUND(S113*AD113+T113*AE113+U113*AF113+V113*AG113,4)) -> 1.0348 | D113: =IF(AND(DAY($F$5)=1,MONTH($F$5)=11,YEAR($F$5)=2013),0,IF(B113=0,0,C113/B113-1)) -> -0.0005794861889 | F113: =IF(AND(DAY($F$5)=1,MONTH($F$5)=11,YEAR($F$5)=2014),1,IF(IF(Resumen!$G$11="Ft-1",B113,C113)=0,"",IF(Resumen!$G$11="Ft-1",B113,C113))) -> 1.0354 | G113: 1 | O113: Sector 1 | S113: 0.6727 | T113: 0.2227 | U113: 0.0337 | V113: 0.0709 | Z113: Sector 1 | AD113: =AO113/BW113 -> 1.022350456 | AE113: =AP113/BX113 -> 1.101136809 | AF113: =AQ113/BY113 -> 0.9840955305 | AG113: =AR113/BZ113 -> 0.9680498744 | AK113: Sector 1 | AO113: =DB114 -> 212.8755683 | AP113: =DC114*(1+AU113) -> 2.809 | AQ113: =DD114*DC114*(1+DC145) -> 905.1347067 | AR113: =DE114*DC114*(1+DC146) -> 4981.366998 | AU113: =AV113*BC113+AW113*BD113+AX113*BE113+AY113*BF113+AZ113*BG113+BA113*BH113+BB113*BI113 -> 0 | AV113: =DB116 -> 0 | AW113: =DB117 -> 0 | AX113: =DB118 -> 0 | AY113: =DB119 -> 0 | AZ113: =DB120 -> 0 | BA113: =DB121 -> 0 | BB113: =DB122 -> 0 | BC113: =DC138 -> 0 | BD113: =DC139 -> 0 | BE113: =DC140 -> 0 | BF113: =DC141 -> 0 | BG113: =DC142 -> 0.06 | BH113: =DC143 -> 0 | BI113: =DC144 -> 0 | BS113: Sector 1 | BW113: =DB113 -> 208.221718 | BX113: =DC113*(1+CC113) -> 2.551 | BY113: =DD113*DC113*(1+DB145) -> 919.76305 | BZ113: =DE113*DC113*(1+DB146) -> 5145.77516 | CC113: =CD113*CK113+CE113*CL113+CF113*CM113+CG113*CN113+CH113*CO113+CI113*CP113+CJ113*CQ113 -> 0 | CD113: =DB116 -> 0 | CE113: =DB117 -> 0 | CF113: =DB118 -> 0 | CG113: =DB119 -> 0 | CH113: =DB120 -> 0 | CI113: =DB121 -> 0 | CJ113: =DB122 -> 0 | CK113: =DB138 -> 0 | CL113: =DB139 -> 0 | CM113: =DB140 -> 0 | CN113: =DB141 -> 0 | CO113: =DB142 -> 0.06 | CP113: =DB143 -> 0 | CQ113: =DB144 -> 0 | CZ113: Valores Base | DA113: Resolucion Base | DB113: 208.221718 | DC113: 2.551 | DD113: 360.55 | DE113: 2017.16
A114: b) Sector 2 | B114: =+Historico!O114 -> 1.0233 | C114: 1.0231 | D114: =IF(AND(DAY($F$5)=1,MONTH($F$5)=11,YEAR($F$5)=2013),0,IF(B114=0,0,C114/B114-1)) -> -0.0001954461057 | F114: =IF(AND(DAY($F$5)=1,MONTH($F$5)=11,YEAR($F$5)=2014),1,IF(IF(Resumen!$G$11="Ft-1",B114,C114)=0,"",IF(Resumen!$G$11="Ft-1",B114,C114))) -> 1.0233 | G114: 1 | O114: Sector 2 | S114: 0.8592 | T114: 0.0632 | U114: 0 | V114: 0.0776 | Z114: Sector 2 | AD114: 1.022350456 | AE114: 1.101136809 | AF114: =AQ114/BY114 -> 0.9840955305 | AG114: 0.9680498744 | AK114: Sector 2 | AO114: =DB114 -> 212.8755683 | AP114: =DC114*(1+AU114) -> 2.809 | AQ114: =DD114*DC114*(1+DC145) -> 905.1347067 | AR114: =DE114*DC114*(1+DC146) -> 4981.366998 | AU114: 0 | AV114: =DC116 -> 0 | AW114: =DC117 -> 0 | AX114: =DC118 -> 0 | AY114: =DC119 -> 0 | AZ114: =DC120 -> 0 | BA114: =DC121 -> 0 | BB114: =DC122 -> 0 | BC114: =DC138 -> 0 | BD114: =DC139 -> 0 | BE114: =DC140 -> 0 | BF114: =DC141 -> 0 | BG114: =DC142 -> 0.06 | BH114: =DC143 -> 0 | BI114: =DC144 -> 0 | BS114: Sector 2 | BW114: =DB113 -> 208.221718 | BX114: =DC113*(1+CC114) -> 2.551 | BY114: =DD113*DC113*(1+DB145) -> 919.76305 | BZ114: =DE113*DC113*(1+DB146) -> 5145.77516 | CC114: 0 | CD114: =DC116 -> 0 | CE114: =DC117 -> 0 | CF114: =DC118 -> 0 | CG114: =DC119 -> 0 | CH114: =DC120 -> 0 | CI114: =DC121 -> 0 | CJ114: =DC122 -> 0 | CK114: =DB138 -> 0 | CL114: =DB139 -> 0 | CM114: =DB140 -> 0 | CN114: =DB141 -> 0 | CO114: =DB142 -> 0.06 | CP114: =DB143 -> 0 | CQ114: =DB144 -> 0 | CZ114: Valores Actuales | DA114: Indicador actualizado | DB114: =+'ALUMINIO-COBRE-TC-IPM'!G8 -> 212.8755683 | DC114: =+'ALUMINIO-COBRE-TC-IPM'!F8 -> 2.809 | DD114: =+'ALUMINIO-COBRE-TC-IPM'!E8 -> 322.2266667 | DE114: =+'ALUMINIO-COBRE-TC-IPM'!D8 -> 1773.359558
A115: c) Sector 3 | B115: =+Historico!O115 -> 1.0329 | C115: 1.0329 | D115: 0 | F115: =IF(AND(DAY($F$5)=1,MONTH($F$5)=11,YEAR($F$5)=2014),1,IF(IF(Resumen!$G$11="Ft-1",B115,C115)=0,"",IF(Resumen!$G$11="Ft-1",B115,C115))) -> 1.0329 | G115: 1 | O115: Sector 3 | S115: 0.7771 | T115: 0.1698 | U115: 0.0032 | V115: 0.0499 | Z115: Sector 3 | AD115: 1.022350456 | AE115: 1.101136809 | AF115: 0.9840955305 | AG115: 0.9680498744 | AK115: Sector 3 | AO115: =DB114 -> 212.8755683 | AP115: =DC114*(1+AU115) -> 2.809 | AQ115: =DD114*DC114*(1+DC145) -> 905.1347067 | AR115: =DE114*DC114*(1+DC146) -> 4981.366998 | AU115: 0 | AV115: =DD116 -> 0 | AW115: =DD117 -> 0 | AX115: =DD118 -> 0 | AY115: =DD119 -> 0 | AZ115: =DD120 -> 0 | BA115: =DD121 -> 0 | BB115: =DD122 -> 0 | BC115: =DC138 -> 0 | BD115: =DC139 -> 0 | BE115: =DC140 -> 0 | BF115: =DC141 -> 0 | BG115: =DC142 -> 0.06 | BH115: =DC143 -> 0 | BI115: =DC144 -> 0 | BS115: Sector 3 | BW115: =DB113 -> 208.221718 | BX115: =DC113*(1+CC115) -> 2.551 | BY115: =DD113*DC113*(1+DB145) -> 919.76305 | BZ115: =DE113*DC113*(1+DB146) -> 5145.77516 | CC115: 0 | CD115: =DD116 -> 0 | CE115: =DD117 -> 0 | CF115: =DD118 -> 0 | CG115: =DD119 -> 0 | CH115: =DD120 -> 0 | CI115: =DD121 -> 0 | CJ115: =DD122 -> 0 | CK115: =DB138 -> 0 | CL115: =DB139 -> 0 | CM115: =DB140 -> 0 | CN115: =DB141 -> 0 | CO115: =DB142 -> 0.06 | CP115: =DB143 -> 0 | CQ115: =DB144 -> 0 | DA115: PARTIDA | DB115: Sector 1 | DC115: Sector 2 | DD115: Sector 3 | DE115: Sector 4 | DF115: Sector 5 | DG115: Sector 6 | DH115: Sector Especial | DI115: SER 100% Estado Prepago | DJ115: SER 100% Estado Convencional | DK115: SER 100% Empresa Prepago | DL115: SER 100% Empresa Convencional
A116: d) Sector 4 | B116: =+Historico!O116 -> 1.0416 | C116: 1.0413 | D116: -0.0002880184332 | F116: =IF(AND(DAY($F$5)=1,MONTH($F$5)=11,YEAR($F$5)=2014),1,IF(IF(Resumen!$G$11="Ft-1",B116,C116)=0,"",IF(Resumen!$G$11="Ft-1",B116,C116))) -> 1.0416 | G116: 1 | O116: Sector 4 | S116: 0.6456 | T116: 0.2837 | U116: 0.0293 | V116: 0.0414 | Z116: Sector 4 | AD116: 1.022350456 | AE116: 1.101136809 | AF116: 0.9840955305 | AG116: 0.9680498744 | AK116: Sector 4 | AO116: =DB114 -> 212.8755683 | AP116: =DC114*(1+AU116) -> 2.809 | AQ116: =DD114*DC114*(1+DC145) -> 905.1347067 | AR116: =DE114*DC114*(1+DC146) -> 4981.366998 | AU116: 0 | AV116: =DE116 -> 0 | AW116: =DE117 -> 0 | AX116: =DE118 -> 0 | AY116: =DE119 -> 0 | AZ116: =DE120 -> 0 | BA116: =DE121 -> 0 | BB116: =DE122 -> 0 | BC116: =DC138 -> 0 | BD116: =DC139 -> 0 | BE116: =DC140 -> 0 | BF116: =DC141 -> 0 | BG116: =DC142 -> 0.06 | BH116: =DC143 -> 0 | BI116: =DC144 -> 0 | BS116: Sector 4 | BW116: =DB113 -> 208.221718 | BX116: =DC113*(1+CC116) -> 2.551 | BY116: =DD113*DC113*(1+DB145) -> 919.76305 | BZ116: =DE113*DC113*(1+DB146) -> 5145.77516 | CC116: 0 | CD116: =DE116 -> 0 | CE116: =DE117 -> 0 | CF116: =DE118 -> 0 | CG116: =DE119 -> 0 | CH116: =DE120 -> 0 | CI116: =DE121 -> 0 | CJ116: =DE122 -> 0 | CK116: =DB138 -> 0 | CL116: =DB139 -> 0 | CM116: =DB140 -> 0 | CN116: =DB141 -> 0 | CO116: =DB142 -> 0.06 | CP116: =DB143 -> 0 | CQ116: =DB144 -> 0 | CZ116: BMT | DA116: 8471.30.00.00 | DB116: 0 | DC116: 0 | DD116: 0 | DE116: 0 | DF116: 0 | DG116: 0 | DH116: 0 | DI116: 0 | DJ116: 0 | DK116: 0 | DL116: 0
A117: e) Sector 5 | B117: =+Historico!O117 -> 1.0257 | C117: 1.0253 | D117: -0.0003899775763 | F117: =IF(AND(DAY($F$5)=1,MONTH($F$5)=11,YEAR($F$5)=2014),1,IF(IF(Resumen!$G$11="Ft-1",B117,C117)=0,"",IF(Resumen!$G$11="Ft-1",B117,C117))) -> 1.0257 | G117: 1 | O117: Sector 5 | S117: 0.8048 | T117: 0.099 | U117: 0.0205 | V117: 0.0757 | Z117: Sector 5 | AD117: =AO117/BW117 -> 1.022350456 | AE117: =AP117/BX117 -> 1.101136809 | AF117: =AQ117/BY117 -> 0.9840955305 | AG117: =AR117/BZ117 -> 0.9680498744 | AK117: Sector 5 | AO117: =DB114 -> 212.8755683 | AP117: =DC114*(1+AU117) -> 2.809 | AQ117: =DD114*DC114*(1+DC145) -> 905.1347067 | AR117: =DE114*DC114*(1+DC146) -> 4981.366998 | AU117: =AV117*BC117+AW117*BD117+AX117*BE117+AY117*BF117+AZ117*BG117+BA117*BH117+BB117*BI117 -> 0 | AV117: =DF116 -> 0 | AW117: =DF117 -> 0 | AX117: =DF118 -> 0 | AY117: =DF119 -> 0 | AZ117: =DF120 -> 0 | BA117: =DF121 -> 0 | BB117: =DF122 -> 0 | BC117: =DC138 -> 0 | BD117: =DC139 -> 0 | BE117: =DC140 -> 0 | BF117: =DC141 -> 0 | BG117: =DC142 -> 0.06 | BH117: =DC143 -> 0 | BI117: =DC144 -> 0 | BS117: Sector 5 | BW117: =DB113 -> 208.221718 | BX117: =DC113*(1+CC117) -> 2.551 | BY117: =DD113*DC113*(1+DB145) -> 919.76305 | BZ117: =DE113*DC113*(1+DB146) -> 5145.77516 | CC117: =CD117*CK117+CE117*CL117+CF117*CM117+CG117*CN117+CH117*CO117+CI117*CP117+CJ117*CQ117 -> 0 | CD117: =DF116 -> 0 | CE117: =DF117 -> 0 | CF117: =DF118 -> 0 | CG117: =DF119 -> 0 | CH117: =DF120 -> 0 | CI117: =DF121 -> 0 | CJ117: =DF122 -> 0 | CK117: =DB138 -> 0 | CL117: =DB139 -> 0 | CM117: =DB140 -> 0 | CN117: =DB141 -> 0 | CO117: =DB142 -> 0.06 | CP117: =DB143 -> 0 | CQ117: =DB144 -> 0 | DA117: 8504.21.90.00 | DB117: 0 | DC117: 0 | DD117: 0 | DE117: 0 | DF117: 0 | DG117: 0 | DH117: 0 | DI117: 0 | DJ117: 0 | DK117: 0 | DL117: 0
A118: f) Sector 6 | B118: =+Historico!O118 -> 1.0385 | C118: 1.0381 | D118: -0.0003851709196 | F118: =IF(AND(DAY($F$5)=1,MONTH($F$5)=11,YEAR($F$5)=2014),1,IF(IF(Resumen!$G$11="Ft-1",B118,C118)=0,"",IF(Resumen!$G$11="Ft-1",B118,C118))) -> 1.0385 | G118: 1 | O118: Sector 6 | S118: 0.6465 | T118: 0.2626 | U118: 0.0005 | V118: 0.0904 | Z118: Sector 6 | AD118: 1.022350456 | AE118: 1.101136809 | AF118: 0.9840955305 | AG118: 0.9680498744 | AK118: Sector 6 | AO118: =DB114 -> 212.8755683 | AP118: =DC114*(1+AU118) -> 2.809 | AQ118: =DD114*DC114*(1+DC145) -> 905.1347067 | AR118: =DE114*DC114*(1+DC146) -> 4981.366998 | AU118: 0 | AV118: =DG116 -> 0 | AW118: =DG117 -> 0 | AX118: =DG118 -> 0 | AY118: =DG119 -> 0 | AZ118: =DG120 -> 0 | BA118: =DG121 -> 0 | BB118: =DG122 -> 0 | BC118: =DC138 -> 0 | BD118: =DC139 -> 0 | BE118: =DC140 -> 0 | BF118: =DC141 -> 0 | BG118: =DC142 -> 0.06 | BH118: =DC143 -> 0 | BI118: =DC144 -> 0 | BS118: Sector 6 | BW118: =DB113 -> 208.221718 | BX118: =DC113*(1+CC118) -> 2.551 | BY118: =DD113*DC113*(1+DB145) -> 919.76305 | BZ118: =DE113*DC113*(1+DB146) -> 5145.77516 | CC118: 0 | CD118: =DG116 -> 0 | CE118: =DG117 -> 0 | CF118: =DG118 -> 0 | CG118: =DG119 -> 0 | CH118: =DG120 -> 0 | CI118: =DG121 -> 0 | CJ118: =DG122 -> 0 | CK118: =DB138 -> 0 | CL118: =DB139 -> 0 | CM118: =DB140 -> 0 | CN118: =DB141 -> 0 | CO118: =DB142 -> 0.06 | CP118: =DB143 -> 0 | CQ118: =DB144 -> 0 | DA118: 8517.11.00.00 | DB118: 0 | DC118: 0 | DD118: 0 | DE118: 0 | DF118: 0 | DG118: 0 | DH118: 0 | DI118: 0 | DJ118: 0 | DK118: 0 | DL118: 0
A119: g) Sector Especial | B119: =+Historico!O119 -> 1.0296 | C119: =IF(AND(DAY($F$5)=1,MONTH($F$5)=11,YEAR($F$5)=2013),1,ROUND(S119*AD119+T119*AE119+U119*AF119+V119*AG119,4)) -> 1.0293 | D119: -0.0002913752914 | F119: =IF(AND(DAY($F$5)=1,MONTH($F$5)=11,YEAR($F$5)=2014),1,IF(IF(Resumen!$G$11="Ft-1",B119,C119)=0,"",IF(Resumen!$G$11="Ft-1",B119,C119))) -> 1.0296 | G119: 1 | O119: Sector Especial | S119: 0.7733 | T119: 0.1426 | U119: 0.018 | V119: 0.0661 | Z119: Sector Especial | AD119: 1.022350456 | AE119: 1.101136809 | AF119: 0.9840955305 | AG119: 0.9680498744 | AK119: Sector Especial | AO119: =DB114 -> 212.8755683 | AP119: =DC114*(1+AU119) -> 2.809 | AQ119: =DD114*DC114*(1+DC145) -> 905.1347067 | AR119: =DE114*DC114*(1+DC146) -> 4981.366998 | AU119: 0 | AV119: =DH116 -> 0 | AW119: =DH117 -> 0 | AX119: =DH118 -> 0 | AY119: =DH119 -> 0 | AZ119: =DH120 -> 0 | BA119: =DH121 -> 0 | BB119: =DH122 -> 0 | BC119: =DC138 -> 0 | BD119: =DC139 -> 0 | BE119: =DC140 -> 0 | BF119: =DC141 -> 0 | BG119: =DC142 -> 0.06 | BH119: =DC143 -> 0 | BI119: =DC144 -> 0 | BS119: Sector Especial | BW119: =DB113 -> 208.221718 | BX119: =DC113*(1+CC119) -> 2.551 | BY119: =DD113*DC113*(1+DB145) -> 919.76305 | BZ119: =DE113*DC113*(1+DB146) -> 5145.77516 | CC119: 0 | CD119: =DH116 -> 0 | CE119: =DH117 -> 0 | CF119: =DH118 -> 0 | CG119: =DH119 -> 0 | CH119: =DH120 -> 0 | CI119: =DH121 -> 0 | CJ119: =DH122 -> 0 | CK119: =DB138 -> 0 | CL119: =DB139 -> 0 | CM119: =DB140 -> 0 | CN119: =DB141 -> 0 | CO119: =DB142 -> 0.06 | CP119: =DB143 -> 0 | CQ119: =DB144 -> 0 | DA119: 8535.30.00.00 | DB119: 0 | DC119: 0 | DD119: 0 | DE119: 0 | DF119: 0 | DG119: 0 | DH119: 0 | DI119: 0 | DJ119: 0 | DK119: 0 | DL119: 0
A120: h) VAD SER 100 Estado Prepago | B120: =+Historico!O120 -> 1.0572 | C120: 1.0572 | D120: 0 | F120: =IF(AND(DAY($F$5)=1,MONTH($F$5)=11,YEAR($F$5)=2014),1,IF(IF(Resumen!$G$11="Ft-1",B120,C120)=0,"",IF(Resumen!$G$11="Ft-1",B120,C120))) -> 1.0572 | G120: 1 | O120: 100% Estado | P120: Prepago | S120: 0.5012 | T120: 0.4653 | U120: 0.0003 | V120: 0.0332 | Z120: 100% Estado | AA120: Prepago | AD120: 1.022350456 | AE120: 1.101136809 | AF120: 0.9840955305 | AG120: 0.9680498744 | AK120: 100% Estado | AL120: Prepago | AO120: =DB114 -> 212.8755683 | AP120: =DC114*(1+AU120) -> 2.809 | AQ120: =DD114*DC114*(1+DC145) -> 905.1347067 | AR120: =DE114*DC114*(1+DC146) -> 4981.366998 | AU120: 0 | AV120: =DI116 -> 0 | AW120: =DI117 -> 0 | AX120: =DI118 -> 0 | AY120: =DI119 -> 0 | AZ120: =DI120 -> 0 | BA120: =DI121 -> 0 | BB120: =DI122 -> 0 | BC120: =DC138 -> 0 | BD120: =DC139 -> 0 | BE120: =DC140 -> 0 | BF120: =DC141 -> 0 | BG120: =DC142 -> 0.06 | BH120: =DC143 -> 0 | BI120: =DC144 -> 0 | BS120: 100% Estado | BT120: Prepago | BW120: =DB113 -> 208.221718 | BX120: =DC113*(1+CC120) -> 2.551 | BY120: =DD113*DC113*(1+DB145) -> 919.76305 | BZ120: =DE113*DC113*(1+DB146) -> 5145.77516 | CC120: 0 | CD120: =DI116 -> 0 | CE120: =DI117 -> 0 | CF120: =DI118 -> 0 | CG120: =DI119 -> 0 | CH120: =DI120 -> 0 | CI120: =DI121 -> 0 | CJ120: =DI122 -> 0 | CK120: =DB138 -> 0 | CL120: =DB139 -> 0 | CM120: =DB140 -> 0 | CN120: =DB141 -> 0 | CO120: =DB142 -> 0.06 | CP120: =DB143 -> 0 | CQ120: =DB144 -> 0 | DA120: 8539.32.00.00 | DB120: 0 | DC120: 0 | DD120: 0 | DE120: 0 | DF120: 0 | DG120: 0 | DH120: 0 | DI120: 0 | DJ120: 0 | DK120: 0 | DL120: 0
A121: i) VAD SER 100 Estado Convencional | B121: =+Historico!O121 -> 1.0569 | C121: 1.0569 | D121: 0 | F121: =IF(AND(DAY($F$5)=1,MONTH($F$5)=11,YEAR($F$5)=2014),1,IF(IF(Resumen!$G$11="Ft-1",B121,C121)=0,"",IF(Resumen!$G$11="Ft-1",B121,C121))) -> 1.0569 | G121: 1 | P121: Convencional | S121: 0.506 | T121: 0.4609 | U121: 0.0003 | V121: 0.0328 | AA121: Convencional | AD121: 1.022350456 | AE121: 1.101136809 | AF121: 0.9840955305 | AG121: 0.9680498744 | AL121: Convencional | AO121: =DB114 -> 212.8755683 | AP121: =DC114*(1+AU121) -> 2.809 | AQ121: =DD114*DC114*(1+DC145) -> 905.1347067 | AR121: =DE114*DC114*(1+DC146) -> 4981.366998 | AU121: 0 | AV121: =DJ116 -> 0 | AW121: =DJ117 -> 0 | AX121: =DJ118 -> 0 | AY121: =DJ119 -> 0 | AZ121: =DJ120 -> 0 | BA121: =DJ121 -> 0 | BB121: =DJ122 -> 0 | BC121: =DC138 -> 0 | BD121: =DC139 -> 0 | BE121: =DC140 -> 0 | BF121: =DC141 -> 0 | BG121: =DC142 -> 0.06 | BH121: =DC143 -> 0 | BI121: =DC144 -> 0 | BT121: Convencional | BW121: =DB113 -> 208.221718 | BX121: =DC113*(1+CC121) -> 2.551 | BY121: =DD113*DC113*(1+DB145) -> 919.76305 | BZ121: =DE113*DC113*(1+DB146) -> 5145.77516 | CC121: 0 | CD121: =DJ116 -> 0 | CE121: =DJ117 -> 0 | CF121: =DJ118 -> 0 | CG121: =DJ119 -> 0 | CH121: =DJ120 -> 0 | CI121: =DJ121 -> 0 | CJ121: =DJ122 -> 0 | CK121: =DB138 -> 0 | CL121: =DB139 -> 0 | CM121: =DB140 -> 0 | CN121: =DB141 -> 0 | CO121: =DB142 -> 0.06 | CP121: =DB143 -> 0 | CQ121: =DB144 -> 0 | DA121: 8704.21.10.10 | DB121: 0 | DC121: 0 | DD121: 0 | DE121: 0 | DF121: 0 | DG121: 0 | DH121: 0 | DI121: 0 | DJ121: 0 | DK121: 0 | DL121: 0
A122: j) VAD SER 100 Empresa Prepago | B122: =+Historico!O122 -> 1.0572 | C122: 1.0572 | D122: 0 | F122: =IF(AND(DAY($F$5)=1,MONTH($F$5)=11,YEAR($F$5)=2014),1,IF(IF(Resumen!$G$11="Ft-1",B122,C122)=0,"",IF(Resumen!$G$11="Ft-1",B122,C122))) -> 1.0572 | G122: 1 | O122: 100% Empresa | P122: Prepago | S122: 0.5012 | T122: 0.4653 | U122: 0.0003 | V122: 0.0332 | Z122: 100% Empresa | AA122: Prepago | AD122: 1.022350456 | AE122: 1.101136809 | AF122: 0.9840955305 | AG122: 0.9680498744 | AK122: 100% Empresa | AL122: Prepago | AO122: =DB114 -> 212.8755683 | AP122: =DC114*(1+AU122) -> 2.809 | AQ122: =DD114*DC114*(1+DC145) -> 905.1347067 | AR122: =DE114*DC114*(1+DC146) -> 4981.366998 | AU122: 0 | AV122: =DK116 -> 0 | AW122: =DK117 -> 0 | AX122: =DK118 -> 0 | AY122: =DK119 -> 0 | AZ122: =DK120 -> 0 | BA122: =DK121 -> 0 | BB122: =DK122 -> 0 | BC122: =DC138 -> 0 | BD122: =DC139 -> 0 | BE122: =DC140 -> 0 | BF122: =DC141 -> 0 | BG122: =DC142 -> 0.06 | BH122: =DC143 -> 0 | BI122: =DC144 -> 0 | BS122: 100% Empresa | BT122: Prepago | BW122: =DB113 -> 208.221718 | BX122: =DC113*(1+CC122) -> 2.551 | BY122: =DD113*DC113*(1+DB145) -> 919.76305 | BZ122: =DE113*DC113*(1+DB146) -> 5145.77516 | CC122: 0 | CD122: =DK116 -> 0 | CE122: =DK117 -> 0 | CF122: =DK118 -> 0 | CG122: =DK119 -> 0 | CH122: =DK120 -> 0 | CI122: =DK121 -> 0 | CJ122: =DK122 -> 0 | CK122: =DB138 -> 0 | CL122: =DB139 -> 0 | CM122: =DB140 -> 0 | CN122: =DB141 -> 0 | CO122: =DB142 -> 0.06 | CP122: =DB143 -> 0 | CQ122: =DB144 -> 0 | DA122: 9028.30.10.00 | DB122: 0 | DC122: 0 | DD122: 0 | DE122: 0 | DF122: 0 | DG122: 0 | DH122: 0 | DI122: 0 | DJ122: 0 | DK122: 0 | DL122: 0
A123: k) VAD SER 100 Empresa Convencional | B123: =+Historico!O123 -> 1.0569 | C123: 1.0569 | D123: 0 | F123: =IF(AND(DAY($F$5)=1,MONTH($F$5)=11,YEAR($F$5)=2014),1,IF(IF(Resumen!$G$11="Ft-1",B123,C123)=0,"",IF(Resumen!$G$11="Ft-1",B123,C123))) -> 1.0569 | G123: 1 | P123: Convencional | S123: 0.506 | T123: 0.4609 | U123: 0.0003 | V123: 0.0328 | AA123: Convencional | AD123: 1.022350456 | AE123: 1.101136809 | AF123: 0.9840955305 | AG123: 0.9680498744 | AL123: Convencional | AO123: =DB114 -> 212.8755683 | AP123: =DC114*(1+AU123) -> 2.809 | AQ123: =DD114*DC114*(1+DC145) -> 905.1347067 | AR123: =DE114*DC114*(1+DC146) -> 4981.366998 | AU123: 0 | AV123: =DL116 -> 0 | AW123: =DL117 -> 0 | AX123: =DL118 -> 0 | AY123: =DL119 -> 0 | AZ123: =DL120 -> 0 | BA123: =DL121 -> 0 | BB123: =DL122 -> 0 | BC123: =DC138 -> 0 | BD123: =DC139 -> 0 | BE123: =DC140 -> 0 | BF123: =DC141 -> 0 | BG123: =DC142 -> 0.06 | BH123: =DC143 -> 0 | BI123: =DC144 -> 0 | BT123: Convencional | BW123: =DB113 -> 208.221718 | BX123: =DC113*(1+CC123) -> 2.551 | BY123: =DD113*DC113*(1+DB145) -> 919.76305 | BZ123: =DE113*DC113*(1+DB146) -> 5145.77516 | CC123: 0 | CD123: =DL116 -> 0 | CE123: =DL117 -> 0 | CF123: =DL118 -> 0 | CG123: =DL119 -> 0 | CH123: =DL120 -> 0 | CI123: =DL121 -> 0 | CJ123: =DL122 -> 0 | CK123: =DB138 -> 0 | CL123: =DB139 -> 0 | CM123: =DB140 -> 0 | CN123: =DB141 -> 0 | CO123: =DB142 -> 0.06 | CP123: =DB143 -> 0 | CQ123: =DB144 -> 0 | CZ123: BBT | DA123: 8471.30.00.00 | DB123: 0 | DC123: 0 | DD123: 0 | DE123: 0 | DF123: 0 | DG123: 0 | DH123: 0 | DI123: 0 | DJ123: 0 | DK123: 0 | DL123: 0
A124: 2. VALOR AGREGADO DE DISTRIBUCIÓN EN BT (FAVADBT) | B124: =+Historico!O124 ->  | F124: =IF(IF(Resumen!$G$11="Ft-1",B124,C124)=0,"",IF(Resumen!$G$11="Ft-1",B124,C124)) ->  | G124: 1 | O124: 2. Baja Tensión (BT) | S124: ABT | T124: BBT | U124: CBT | V124: DBT | Z124: 2. Baja Tensión (BT) | AD124: ABT | AE124: BBT | AF124: CBT | AG124: DBT | AK124: 2. Baja Tensión (BT) | AO124: ABT | AP124: BBT | AQ124: CBT | AR124: DBT | AU124: TABBT | BS124: 2. Baja Tensión (BT) | BW124: ABT | BX124: BBT | BY124: CBT | BZ124: DBT | CC124: TABBT | DA124: 8504.21.90.00 | DB124: 0 | DC124: 0 | DD124: 0 | DE124: 0 | DF124: 0 | DG124: 0 | DH124: 0 | DI124: 0 | DJ124: 0 | DK124: 0 | DL124: 0
A125: a) Sector 1 | B125: =+Historico!O125 -> 1.0376 | C125: =IF(AND(DAY($F$5)=1,MONTH($F$5)=11,YEAR($F$5)=2013),1,ROUND(S125*AD125+T125*AE125+U125*AF125+V125*AG125,4)) -> 1.037 | D125: -0.0005782575173 | F125: =IF(AND(DAY($F$5)=1,MONTH($F$5)=11,YEAR($F$5)=2014),1,IF(IF(Resumen!$G$11="Ft-1",B125,C125)=0,"",IF(Resumen!$G$11="Ft-1",B125,C125))) -> 1.0376 | G125: 1 | O125: Sector 1 | S125: 0.6316 | T125: 0.2596 | U125: 0.0081 | V125: 0.1007 | Z125: Sector 1 | AD125: =AO125/BW125 -> 1.022350456 | AE125: =AP125/BX125 -> 1.101136809 | AF125: =AQ125/BY125 -> 0.9840955305 | AG125: =AR125/BZ125 -> 0.9680498744 | AK125: Sector 1 | AO125: =DB114 -> 212.8755683 | AP125: =DC114*(1+AU125) -> 2.809 | AQ125: =DD114*DC114*(1+DC145) -> 905.1347067 | AR125: =DE114*DC114*(1+DC146) -> 4981.366998 | AU125: =AV125*BC125+AW125*BD125+AX125*BE125+AY125*BF125+AZ125*BG125+BA125*BH125+BB125*BI125 -> 0 | AV125: =DB123 -> 0 | AW125: =DB124 -> 0 | AX125: =DB125 -> 0 | AY125: =DB126 -> 0 | AZ125: =DB127 -> 0 | BA125: =DB128 -> 0 | BB125: =DB129 -> 0 | BC125: =DC138 -> 0 | BD125: =DC139 -> 0 | BE125: =DC140 -> 0 | BF125: =DC141 -> 0 | BG125: =DC142 -> 0.06 | BH125: =DC143 -> 0 | BI125: =DC144 -> 0 | BS125: Sector 1 | BW125: =DB113 -> 208.221718 | BX125: =DC113*(1+CC125) -> 2.551 | BY125: =DD113*DC113*(1+DB145) -> 919.76305 | BZ125: =DE113*DC113*(1+DB146) -> 5145.77516 | CC125: =CD125*CK125+CE125*CL125+CF125*CM125+CG125*CN125+CH125*CO125+CI125*CP125+CJ125*CQ125 -> 0 | CD125: =DB123 -> 0 | CE125: =DB124 -> 0 | CF125: =DB125 -> 0 | CG125: =DB126 -> 0 | CH125: =DB127 -> 0 | CI125: =DB128 -> 0 | CJ125: =DB129 -> 0 | CK125: =DB138 -> 0 | CL125: =DB139 -> 0 | CM125: =DB140 -> 0 | CN125: =DB141 -> 0 | CO125: =DB142 -> 0.06 | CP125: =DB143 -> 0 | CQ125: =DB144 -> 0 | DA125: 8517.11.00.00 | DB125: 0 | DC125: 0 | DD125: 0 | DE125: 0 | DF125: 0 | DG125: 0 | DH125: 0 | DI125: 0 | DJ125: 0 | DK125: 0 | DL125: 0
A126: b) Sector 2 | B126: =+Historico!O126 -> 1.0245 | C126: 1.0243 | D126: -0.0001952171791 | F126: =IF(AND(DAY($F$5)=1,MONTH($F$5)=11,YEAR($F$5)=2014),1,IF(IF(Resumen!$G$11="Ft-1",B126,C126)=0,"",IF(Resumen!$G$11="Ft-1",B126,C126))) -> 1.0245 | G126: 1 | O126: Sector 2 | S126: 0.8359 | T126: 0.0816 | U126: 0.0004 | V126: 0.0821 | Z126: Sector 2 | AD126: 1.022350456 | AE126: 1.101136809 | AF126: 0.9840955305 | AG126: 0.9680498744 | AK126: Sector 2 | AO126: =DB114 -> 212.8755683 | AP126: =DC114*(1+AU126) -> 2.809 | AQ126: =DD114*DC114*(1+DC145) -> 905.1347067 | AR126: =DE114*DC114*(1+DC146) -> 4981.366998 | AU126: =AV126*BC126+AW126*BD126+AX126*BE126+AY126*BF126+AZ126*BG126+BA126*BH126+BB126*BI126 -> 0 | AV126: =DC123 -> 0 | AW126: =DC124 -> 0 | AX126: =DC125 -> 0 | AY126: =DC126 -> 0 | AZ126: =DC127 -> 0 | BA126: =DC128 -> 0 | BB126: =DC129 -> 0 | BC126: =DC138 -> 0 | BD126: =DC139 -> 0 | BE126: =DC140 -> 0 | BF126: =DC141 -> 0 | BG126: =DC142 -> 0.06 | BH126: =DC143 -> 0 | BI126: =DC144 -> 0 | BS126: Sector 2 | BW126: =DB113 -> 208.221718 | BX126: =DC113*(1+CC126) -> 2.551 | BY126: =DD113*DC113*(1+DB145) -> 919.76305 | BZ126: =DE113*DC113*(1+DB146) -> 5145.77516 | CC126: 0 | CD126: =DC123 -> 0 | CE126: =DC124 -> 0 | CF126: =DC125 -> 0 | CG126: =DC126 -> 0 | CH126: =DC127 -> 0 | CI126: =DC128 -> 0 | CJ126: =DC129 -> 0 | CK126: =DB138 -> 0 | CL126: =DB139 -> 0 | CM126: =DB140 -> 0 | CN126: =DB141 -> 0 | CO126: =DB142 -> 0.06 | CP126: =DB143 -> 0 | CQ126: =DB144 -> 0 | DA126: 8535.30.00.00 | DB126: 0 | DC126: 0 | DD126: 0 | DE126: 0 | DF126: 0 | DG126: 0 | DH126: 0 | DI126: 0 | DJ126: 0 | DK126: 0 | DL126: 0
A127: c) Sector 3 | B127: =+Historico!O127 -> 1.033 | C127: 1.0319 | D127: -0.001064859632 | F127: =IF(AND(DAY($F$5)=1,MONTH($F$5)=11,YEAR($F$5)=2014),1,IF(IF(Resumen!$G$11="Ft-1",B127,C127)=0,"",IF(Resumen!$G$11="Ft-1",B127,C127))) -> 1.033 | G127: 1 | O127: Sector 3 | S127: 0.622 | T127: 0.2229 | U127: 0.0266 | V127: 0.1285 | Z127: Sector 3 | AD127: 1.022350456 | AE127: 1.101136809 | AF127: 0.9840955305 | AG127: 0.9680498744 | AK127: Sector 3 | AO127: =DB114 -> 212.8755683 | AP127: =DC114*(1+AU127) -> 2.809 | AQ127: =DD114*DC114*(1+DC145) -> 905.1347067 | AR127: =DE114*DC114*(1+DC146) -> 4981.366998 | AU127: 0 | AV127: =DD123 -> 0 | AW127: =DD124 -> 0 | AX127: =DD125 -> 0 | AY127: =DD126 -> 0 | AZ127: =DD127 -> 0 | BA127: =DD128 -> 0 | BB127: =DD129 -> 0 | BC127: =DC138 -> 0 | BD127: =DC139 -> 0 | BE127: =DC140 -> 0 | BF127: =DC141 -> 0 | BG127: =DC142 -> 0.06 | BH127: =DC143 -> 0 | BI127: =DC144 -> 0 | BS127: Sector 3 | BW127: =DB113 -> 208.221718 | BX127: =DC113*(1+CC127) -> 2.551 | BY127: =DD113*DC113*(1+DB145) -> 919.76305 | BZ127: =DE113*DC113*(1+DB146) -> 5145.77516 | CC127: 0 | CD127: =DD123 -> 0 | CE127: =DD124 -> 0 | CF127: =DD125 -> 0 | CG127: =DD126 -> 0 | CH127: =DD127 -> 0 | CI127: =DD128 -> 0 | CJ127: =DD129 -> 0 | CK127: =DB138 -> 0 | CL127: =DB139 -> 0 | CM127: =DB140 -> 0 | CN127: =DB141 -> 0 | CO127: =DB142 -> 0.06 | CP127: =DB143 -> 0 | CQ127: =DB144 -> 0 | DA127: 8539.32.00.00 | DB127: 0 | DC127: 0 | DD127: 0 | DE127: 0 | DF127: 0 | DG127: 0 | DH127: 0 | DI127: 0 | DJ127: 0 | DK127: 0 | DL127: 0
A128: d) Sector 4 | B128: =+Historico!O128 -> 1.0359 | C128: 1.0353 | D128: -0.0005792064871 | F128: =IF(AND(DAY($F$5)=1,MONTH($F$5)=11,YEAR($F$5)=2014),1,IF(IF(Resumen!$G$11="Ft-1",B128,C128)=0,"",IF(Resumen!$G$11="Ft-1",B128,C128))) -> 1.0359 | G128: 1 | O128: Sector 4 | S128: 0.6525 | T128: 0.2377 | U128: 0.0099 | V128: 0.0999 | Z128: Sector 4 | AD128: 1.022350456 | AE128: 1.101136809 | AF128: 0.9840955305 | AG128: 0.9680498744 | AK128: Sector 4 | AO128: =DB114 -> 212.8755683 | AP128: =DC114*(1+AU128) -> 2.809 | AQ128: =DD114*DC114*(1+DC145) -> 905.1347067 | AR128: =DE114*DC114*(1+DC146) -> 4981.366998 | AU128: 0 | AV128: =DE123 -> 0 | AW128: =DE124 -> 0 | AX128: =DE125 -> 0 | AY128: =DE126 -> 0 | AZ128: =DE127 -> 0 | BA128: =DE128 -> 0 | BB128: =DE129 -> 0 | BC128: =DC138 -> 0 | BD128: =DC139 -> 0 | BE128: =DC140 -> 0 | BF128: =DC141 -> 0 | BG128: =DC142 -> 0.06 | BH128: =DC143 -> 0 | BI128: =DC144 -> 0 | BS128: Sector 4 | BW128: =DB113 -> 208.221718 | BX128: =DC113*(1+CC128) -> 2.551 | BY128: =DD113*DC113*(1+DB145) -> 919.76305 | BZ128: =DE113*DC113*(1+DB146) -> 5145.77516 | CC128: 0 | CD128: =DE123 -> 0 | CE128: =DE124 -> 0 | CF128: =DE125 -> 0 | CG128: =DE126 -> 0 | CH128: =DE127 -> 0 | CI128: =DE128 -> 0 | CJ128: =DE129 -> 0 | CK128: =DB138 -> 0 | CL128: =DB139 -> 0 | CM128: =DB140 -> 0 | CN128: =DB141 -> 0 | CO128: =DB142 -> 0.06 | CP128: =DB143 -> 0 | CQ128: =DB144 -> 0 | DA128: 8704.21.10.10 | DB128: 0 | DC128: 0 | DD128: 0 | DE128: 0 | DF128: 0 | DG128: 0 | DH128: 0 | DI128: 0 | DJ128: 0 | DK128: 0 | DL128: 0
A129: e) Sector 5 | B129: =+Historico!O129 -> 1.033 | C129: 1.0326 | D129: -0.0003872216844 | F129: =IF(AND(DAY($F$5)=1,MONTH($F$5)=11,YEAR($F$5)=2014),1,IF(IF(Resumen!$G$11="Ft-1",B129,C129)=0,"",IF(Resumen!$G$11="Ft-1",B129,C129))) -> 1.033 | G129: 1 | O129: Sector 5 | S129: 0.7092 | T129: 0.195 | U129: 0.0036 | V129: 0.0922 | Z129: Sector 5 | AD129: =AO129/BW129 -> 1.022350456 | AE129: =AP129/BX129 -> 1.101136809 | AF129: =AQ129/BY129 -> 0.9840955305 | AG129: =AR129/BZ129 -> 0.9680498744 | AK129: Sector 5 | AO129: =DB114 -> 212.8755683 | AP129: =DC114*(1+AU129) -> 2.809 | AQ129: =DD114*DC114*(1+DC145) -> 905.1347067 | AR129: =DE114*DC114*(1+DC146) -> 4981.366998 | AU129: 0 | AV129: =DF123 -> 0 | AW129: =DF124 -> 0 | AX129: =DF125 -> 0 | AY129: =DF126 -> 0 | AZ129: =DF127 -> 0 | BA129: =DF128 -> 0 | BB129: =DF129 -> 0 | BC129: =DC138 -> 0 | BD129: =DC139 -> 0 | BE129: =DC140 -> 0 | BF129: =DC141 -> 0 | BG129: =DC142 -> 0.06 | BH129: =DC143 -> 0 | BI129: =DC144 -> 0 | BS129: Sector 5 | BW129: =DB113 -> 208.221718 | BX129: =DC113*(1+CC129) -> 2.551 | BY129: =DD113*DC113*(1+DB145) -> 919.76305 | BZ129: =DE113*DC113*(1+DB146) -> 5145.77516 | CC129: 0 | CD129: =DF123 -> 0 | CE129: =DF124 -> 0 | CF129: =DF125 -> 0 | CG129: =DF126 -> 0 | CH129: =DF127 -> 0 | CI129: =DF128 -> 0 | CJ129: =DF129 -> 0 | CK129: =DB138 -> 0 | CL129: =DB139 -> 0 | CM129: =DB140 -> 0 | CN129: =DB141 -> 0 | CO129: =DB142 -> 0.06 | CP129: =DB143 -> 0 | CQ129: =DB144 -> 0 | DA129: 9028.30.10.00 | DB129: 0 | DC129: 0 | DD129: 0 | DE129: 0 | DF129: 0 | DG129: 0 | DH129: 0 | DI129: 0 | DJ129: 0 | DK129: 0 | DL129: 0
A130: f) Sector 6 | B130: =+Historico!O130 -> 1.0366 | C130: 1.0364 | D130: -0.0001929384526 | F130: =IF(AND(DAY($F$5)=1,MONTH($F$5)=11,YEAR($F$5)=2014),1,IF(IF(Resumen!$G$11="Ft-1",B130,C130)=0,"",IF(Resumen!$G$11="Ft-1",B130,C130))) -> 1.0366 | G130: 1 | O130: Sector 6 | S130: 0.6984 | T130: 0.2281 | U130: 0.0015 | V130: 0.072 | Z130: Sector 6 | AD130: 1.022350456 | AE130: 1.101136809 | AF130: 0.9840955305 | AG130: 0.9680498744 | AK130: Sector 6 | AO130: =DB114 -> 212.8755683 | AP130: =DC114*(1+AU130) -> 2.809 | AQ130: =DD114*DC114*(1+DC145) -> 905.1347067 | AR130: =DE114*DC114*(1+DC146) -> 4981.366998 | AU130: =AV130*BC130+AW130*BD130+AX130*BE130+AY130*BF130+AZ130*BG130+BA130*BH130+BB130*BI130 -> 0 | AV130: =DG123 -> 0 | AW130: =DG124 -> 0 | AX130: =DG125 -> 0 | AY130: =DG126 -> 0 | AZ130: =DG127 -> 0 | BA130: =DG128 -> 0 | BB130: =DG129 -> 0 | BC130: =DC138 -> 0 | BD130: =DC139 -> 0 | BE130: =DC140 -> 0 | BF130: =DC141 -> 0 | BG130: =DC142 -> 0.06 | BH130: =DC143 -> 0 | BI130: =DC144 -> 0 | BS130: Sector 6 | BW130: =DB113 -> 208.221718 | BX130: =DC113*(1+CC130) -> 2.551 | BY130: =DD113*DC113*(1+DB145) -> 919.76305 | BZ130: =DE113*DC113*(1+DB146) -> 5145.77516 | CC130: =CD130*CK130+CE130*CL130+CF130*CM130+CG130*CN130+CH130*CO130+CI130*CP130+CJ130*CQ130 -> 0 | CD130: =DG123 -> 0 | CE130: =DG124 -> 0 | CF130: =DG125 -> 0 | CG130: =DG126 -> 0 | CH130: =DG127 -> 0 | CI130: =DG128 -> 0 | CJ130: =DG129 -> 0 | CK130: =DB138 -> 0 | CL130: =DB139 -> 0 | CM130: =DB140 -> 0 | CN130: =DB141 -> 0 | CO130: =DB142 -> 0.06 | CP130: =DB143 -> 0 | CQ130: =DB144 -> 0 | CZ130: BSED | DA130: 8471.30.00.00 | DB130: 0 | DC130: 0 | DD130: 0 | DE130: 0 | DF130: 0 | DG130: 0 | DH130: 0 | DI130: 0 | DJ130: 0 | DK130: 0 | DL130: 0
A131: g) Sector Especial | B131: =+Historico!O131 -> 1.0261 | C131: =IF(AND(DAY($F$5)=1,MONTH($F$5)=11,YEAR($F$5)=2013),1,ROUND(S131*AD131+T131*AE131+U131*AF131+V131*AG131,4)) -> 1.0256 | D131: -0.0004872819413 | F131: =IF(AND(DAY($F$5)=1,MONTH($F$5)=11,YEAR($F$5)=2014),1,IF(IF(Resumen!$G$11="Ft-1",B131,C131)=0,"",IF(Resumen!$G$11="Ft-1",B131,C131))) -> 1.0261 | G131: 1 | O131: Sector Especial | S131: 0.7836 | T131: 0.1106 | U131: 0.018 | V131: 0.0878 | Z131: Sector Especial | AD131: 1.022350456 | AE131: 1.101136809 | AF131: 0.9840955305 | AG131: 0.9680498744 | AK131: Sector Especial | AO131: =DB114 -> 212.8755683 | AP131: =DC114*(1+AU131) -> 2.809 | AQ131: =DD114*DC114*(1+DC145) -> 905.1347067 | AR131: =DE114*DC114*(1+DC146) -> 4981.366998 | AU131: 0 | AV131: =DH123 -> 0 | AW131: =DH124 -> 0 | AX131: =DH125 -> 0 | AY131: =DH126 -> 0 | AZ131: =DH127 -> 0 | BA131: =DH128 -> 0 | BB131: =DH129 -> 0 | BC131: =DC138 -> 0 | BD131: =DC139 -> 0 | BE131: =DC140 -> 0 | BF131: =DC141 -> 0 | BG131: =DC142 -> 0.06 | BH131: =DC143 -> 0 | BI131: =DC144 -> 0 | BS131: Sector Especial | BW131: =DB113 -> 208.221718 | BX131: =DC113*(1+CC131) -> 2.551 | BY131: =DD113*DC113*(1+DB145) -> 919.76305 | BZ131: =DE113*DC113*(1+DB146) -> 5145.77516 | CC131: 0 | CD131: =DH123 -> 0 | CE131: =DH124 -> 0 | CF131: =DH125 -> 0 | CG131: =DH126 -> 0 | CH131: =DH127 -> 0 | CI131: =DH128 -> 0 | CJ131: =DH129 -> 0 | CK131: =DB138 -> 0 | CL131: =DB139 -> 0 | CM131: =DB140 -> 0 | CN131: =DB141 -> 0 | CO131: =DB142 -> 0.06 | CP131: =DB143 -> 0 | CQ131: =DB144 -> 0 | DA131: 8504.21.90.00 | DB131: 0 | DC131: 0 | DD131: 0 | DE131: 0 | DF131: 0 | DG131: 0 | DH131: 0 | DI131: 0 | DJ131: 0 | DK131: 0 | DL131: 0
A132: h) VAD SER 100 Estado Prepago | B132: =+Historico!O132 -> 1.0565 | C132: 1.0565 | D132: 0 | F132: =IF(AND(DAY($F$5)=1,MONTH($F$5)=11,YEAR($F$5)=2014),1,IF(IF(Resumen!$G$11="Ft-1",B132,C132)=0,"",IF(Resumen!$G$11="Ft-1",B132,C132))) -> 1.0565 | G132: =+IF(F132=B132,1,0) -> 1 | O132: 100% Estado | P132: Prepago | S132: 0.5036 | T132: 0.4589 | U132: 0 | V132: 0.0375 | Z132: 100% Estado | AA132: Prepago | AD132: 1.022350456 | AE132: 1.101136809 | AF132: 0.9840955305 | AG132: 0.9680498744 | AK132: 100% Estado | AL132: Prepago | AO132: =DB114 -> 212.8755683 | AP132: =DC114*(1+AU132) -> 2.809 | AQ132: =DD114*DC114*(1+DC145) -> 905.1347067 | AR132: =DE114*DC114*(1+DC146) -> 4981.366998 | AU132: 0 | AV132: =DI123 -> 0 | AW132: =DI124 -> 0 | AX132: =DI125 -> 0 | AY132: =DI126 -> 0 | AZ132: =DI127 -> 0 | BA132: =DI128 -> 0 | BB132: =DI129 -> 0 | BC132: =DC138 -> 0 | BD132: =DC139 -> 0 | BE132: =DC140 -> 0 | BF132: =DC141 -> 0 | BG132: =DC142 -> 0.06 | BH132: =DC143 -> 0 | BI132: =DC144 -> 0 | BS132: 100% Estado | BT132: Prepago | BW132: =DB113 -> 208.221718 | BX132: =DC113*(1+CC132) -> 2.551 | BY132: =DD113*DC113*(1+DB145) -> 919.76305 | BZ132: =DE113*DC113*(1+DB146) -> 5145.77516 | CC132: 0 | CD132: =DI123 -> 0 | CE132: =DI124 -> 0 | CF132: =DI125 -> 0 | CG132: =DI126 -> 0 | CH132: =DI127 -> 0 | CI132: =DI128 -> 0 | CJ132: =DI129 -> 0 | CK132: =DB138 -> 0 | CL132: =DB139 -> 0 | CM132: =DB140 -> 0 | CN132: =DB141 -> 0 | CO132: =DB142 -> 0.06 | CP132: =DB143 -> 0 | CQ132: =DB144 -> 0 | DA132: 8517.11.00.00 | DB132: 0 | DC132: 0 | DD132: 0 | DE132: 0 | DF132: 0 | DG132: 0 | DH132: 0 | DI132: 0 | DJ132: 0 | DK132: 0 | DL132: 0
A133: i) VAD SER 100 Estado Convencional | B133: =+Historico!O133 -> 1.0562 | C133: 1.0562 | D133: 0 | F133: =IF(AND(DAY($F$5)=1,MONTH($F$5)=11,YEAR($F$5)=2014),1,IF(IF(Resumen!$G$11="Ft-1",B133,C133)=0,"",IF(Resumen!$G$11="Ft-1",B133,C133))) -> 1.0562 | G133: 1 | P133: Convencional | S133: 0.5088 | T133: 0.4544 | U133: 0 | V133: 0.0368 | AA133: Convencional | AD133: 1.022350456 | AE133: 1.101136809 | AF133: 0.9840955305 | AG133: 0.9680498744 | AL133: Convencional | AO133: =DB114 -> 212.8755683 | AP133: =DC114*(1+AU133) -> 2.809 | AQ133: =DD114*DC114*(1+DC145) -> 905.1347067 | AR133: =DE114*DC114*(1+DC146) -> 4981.366998 | AU133: 0 | AV133: =DJ123 -> 0 | AW133: =DJ124 -> 0 | AX133: =DJ125 -> 0 | AY133: =DJ126 -> 0 | AZ133: =DJ127 -> 0 | BA133: =DJ128 -> 0 | BB133: =DJ129 -> 0 | BC133: =DC138 -> 0 | BD133: =DC139 -> 0 | BE133: =DC140 -> 0 | BF133: =DC141 -> 0 | BG133: =DC142 -> 0.06 | BH133: =DC143 -> 0 | BI133: =DC144 -> 0 | BT133: Convencional | BW133: =DB113 -> 208.221718 | BX133: =DC113*(1+CC133) -> 2.551 | BY133: =DD113*DC113*(1+DB145) -> 919.76305 | BZ133: =DE113*DC113*(1+DB146) -> 5145.77516 | CC133: 0 | CD133: =DJ123 -> 0 | CE133: =DJ124 -> 0 | CF133: =DJ125 -> 0 | CG133: =DJ126 -> 0 | CH133: =DJ127 -> 0 | CI133: =DJ128 -> 0 | CJ133: =DJ129 -> 0 | CK133: =DB138 -> 0 | CL133: =DB139 -> 0 | CM133: =DB140 -> 0 | CN133: =DB141 -> 0 | CO133: =DB142 -> 0.06 | CP133: =DB143 -> 0 | CQ133: =DB144 -> 0 | DA133: 8535.30.00.00 | DB133: 0 | DC133: 0 | DD133: 0 | DE133: 0 | DF133: 0 | DG133: 0 | DH133: 0 | DI133: 0 | DJ133: 0 | DK133: 0 | DL133: 0
A134: j) VAD SER 100 Empresa Prepago | B134: =+Historico!O134 -> 1.0565 | C134: 1.0565 | D134: 0 | F134: =IF(AND(DAY($F$5)=1,MONTH($F$5)=11,YEAR($F$5)=2014),1,IF(IF(Resumen!$G$11="Ft-1",B134,C134)=0,"",IF(Resumen!$G$11="Ft-1",B134,C134))) -> 1.0565 | G134: 1 | O134: 100% Empresa | P134: Prepago | S134: 0.5036 | T134: 0.4589 | U134: 0 | V134: 0.0375 | Z134: 100% Empresa | AA134: Prepago | AD134: 1.022350456 | AE134: 1.101136809 | AF134: 0.9840955305 | AG134: 0.9680498744 | AK134: 100% Empresa | AL134: Prepago | AO134: =DB114 -> 212.8755683 | AP134: =DC114*(1+AU134) -> 2.809 | AQ134: =DD114*DC114*(1+DC145) -> 905.1347067 | AR134: =DE114*DC114*(1+DC146) -> 4981.366998 | AU134: 0 | AV134: =DK123 -> 0 | AW134: =DK124 -> 0 | AX134: =DK125 -> 0 | AY134: =DK126 -> 0 | AZ134: =DK127 -> 0 | BA134: =DK128 -> 0 | BB134: =DK129 -> 0 | BC134: =DC138 -> 0 | BD134: =DC139 -> 0 | BE134: =DC140 -> 0 | BF134: =DC141 -> 0 | BG134: =DC142 -> 0.06 | BH134: =DC143 -> 0 | BI134: =DC144 -> 0 | BS134: 100% Empresa | BT134: Prepago | BW134: =DB113 -> 208.221718 | BX134: =DC113*(1+CC134) -> 2.551 | BY134: =DD113*DC113*(1+DB145) -> 919.76305 | BZ134: =DE113*DC113*(1+DB146) -> 5145.77516 | CC134: 0 | CD134: =DK123 -> 0 | CE134: =DK124 -> 0 | CF134: =DK125 -> 0 | CG134: =DK126 -> 0 | CH134: =DK127 -> 0 | CI134: =DK128 -> 0 | CJ134: =DK129 -> 0 | CK134: =DB138 -> 0 | CL134: =DB139 -> 0 | CM134: =DB140 -> 0 | CN134: =DB141 -> 0 | CO134: =DB142 -> 0.06 | CP134: =DB143 -> 0 | CQ134: =DB144 -> 0 | DA134: 8539.32.00.00 | DB134: 0 | DC134: 0 | DD134: 0 | DE134: 0 | DF134: 0 | DG134: 0 | DH134: 0 | DI134: 0 | DJ134: 0 | DK134: 0 | DL134: 0
A135: k) VAD SER 100 Empresa Convencional | B135: =+Historico!O135 -> 1.0562 | C135: 1.0562 | D135: 0 | F135: =IF(AND(DAY($F$5)=1,MONTH($F$5)=11,YEAR($F$5)=2014),1,IF(IF(Resumen!$G$11="Ft-1",B135,C135)=0,"",IF(Resumen!$G$11="Ft-1",B135,C135))) -> 1.0562 | G135: 1 | P135: Convencional | S135: 0.5088 | T135: 0.4544 | U135: 0 | V135: 0.0368 | AA135: Convencional | AD135: 1.022350456 | AE135: 1.101136809 | AF135: 0.9840955305 | AG135: 0.9680498744 | AL135: Convencional | AO135: =DB114 -> 212.8755683 | AP135: =DC114*(1+AU135) -> 2.809 | AQ135: =DD114*DC114*(1+DC145) -> 905.1347067 | AR135: =DE114*DC114*(1+DC146) -> 4981.366998 | AU135: 0 | AV135: =DL123 -> 0 | AW135: =DL124 -> 0 | AX135: =DL125 -> 0 | AY135: =DL126 -> 0 | AZ135: =DL127 -> 0 | BA135: =DL128 -> 0 | BB135: =DL129 -> 0 | BC135: =DC138 -> 0 | BD135: =DC139 -> 0 | BE135: =DC140 -> 0 | BF135: =DC141 -> 0 | BG135: =DC142 -> 0.06 | BH135: =DC143 -> 0 | BI135: =DC144 -> 0 | BT135: Convencional | BW135: =DB113 -> 208.221718 | BX135: =DC113*(1+CC135) -> 2.551 | BY135: =DD113*DC113*(1+DB145) -> 919.76305 | BZ135: =DE113*DC113*(1+DB146) -> 5145.77516 | CC135: 0 | CD135: =DL123 -> 0 | CE135: =DL124 -> 0 | CF135: =DL125 -> 0 | CG135: =DL126 -> 0 | CH135: =DL127 -> 0 | CI135: =DL128 -> 0 | CJ135: =DL129 -> 0 | CK135: =DB138 -> 0 | CL135: =DB139 -> 0 | CM135: =DB140 -> 0 | CN135: =DB141 -> 0 | CO135: =DB142 -> 0.06 | CP135: =DB143 -> 0 | CQ135: =DB144 -> 0 | DA135: 8704.21.10.10 | DB135: 0 | DC135: 0 | DD135: 0 | DE135: 0 | DF135: 0 | DG135: 0 | DH135: 0 | DI135: 0 | DJ135: 0 | DK135: 0 | DL135: 0
A136: 3. VALOR AGREGADO DE DISTRIBUCIÓN EN SUBESTACIONES MT/BT (FASED) | B136: =+Historico!O136 ->  | F136: =IF(IF(Resumen!$G$11="Ft-1",B136,C136)=0,"",IF(Resumen!$G$11="Ft-1",B136,C136)) ->  | G136: 1 | O136: 3. Sub Estaciones de Distribución (SED) | S136: ASED | T136: BSED | U136: CSED | V136: DSED | Z136: 3. Sub Estaciones de Distribución (SED) | AD136: ASED | AE136: BSED | AF136: CSED | AG136: DSED | AK136: 3. Sub Estaciones de Distribución (SED) | AO136: ASED | AP136: BSED | AQ136: CSED | AR136: DSED | AU136: TABSED | BS136: 3. Sub Estaciones de Distribución (SED) | BW136: ASED | BX136: BSED | BY136: CSED | BZ136: DSED | CC136: TABSED | DA136: 9028.30.10.00 | DB136: 0 | DC136: 0 | DD136: 0 | DE136: 0 | DF136: 0 | DG136: 0 | DH136: 0 | DI136: 0 | DJ136: 0 | DK136: 0 | DL136: 0
A137: a) Sector 1 | B137: =+Historico!O137 -> 1.0634 | C137: =IF(AND(DAY($F$5)=1,MONTH($F$5)=11,YEAR($F$5)=2013),1,ROUND(S137*AD137+T137*AE137+U137*AF137+V137*AG137,4)) -> 1.0633 | D137: -9.403799135e-05 | F137: =IF(AND(DAY($F$5)=1,MONTH($F$5)=11,YEAR($F$5)=2014),1,IF(IF(Resumen!$G$11="Ft-1",B137,C137)=0,"",IF(Resumen!$G$11="Ft-1",B137,C137))) -> 1.0634 | G137: =+IF(F137=B137,1,0) -> 1 | O137: Sector 1 | S137: 0.4253 | T137: 0.5381 | U137: 0.031 | V137: 0.0056 | Z137: Sector 1 | AD137: =AO137/BW137 -> 1.022350456 | AE137: =AP137/BX137 -> 1.101136809 | AF137: =AQ137/BY137 -> 0.9840955305 | AG137: 0.9680498744 | AK137: Sector 1 | AO137: =DB114 -> 212.8755683 | AP137: =DC114*(1+AU137) -> 2.809 | AQ137: =DD114*DC114*(1+DC145) -> 905.1347067 | AR137: =DE114*DC114*(1+DC146) -> 4981.366998 | AU137: =AV137*BC137+AW137*BD137+AX137*BE137+AY137*BF137+AZ137*BG137+BA137*BH137+BB137*BI137 -> 0 | AV137: =DB130 -> 0 | AW137: =DB131 -> 0 | AX137: =DB132 -> 0 | AY137: =DB133 -> 0 | AZ137: =DB134 -> 0 | BA137: =DB135 -> 0 | BB137: =DB136 -> 0 | BC137: =DC138 -> 0 | BD137: =DC139 -> 0 | BE137: =DC140 -> 0 | BF137: =DC141 -> 0 | BG137: =DC142 -> 0.06 | BH137: =DC143 -> 0 | BI137: =DC144 -> 0 | BS137: Sector 1 | BW137: =DB113 -> 208.221718 | BX137: =DC113*(1+CC137) -> 2.551 | BY137: =DD113*DC113*(1+DB145) -> 919.76305 | BZ137: =DE113*DC113*(1+DB146) -> 5145.77516 | CC137: =CD137*CK137+CE137*CL137+CF137*CM137+CG137*CN137+CH137*CO137+CI137*CP137+CJ137*CQ137 -> 0 | CD137: =DB130 -> 0 | CE137: =DB131 -> 0 | CF137: =DB132 -> 0 | CG137: =DB133 -> 0 | CH137: =DB134 -> 0 | CI137: =DB135 -> 0 | CJ137: =DB136 -> 0 | CK137: =DB138 -> 0 | CL137: =DB139 -> 0 | CM137: =DB140 -> 0 | CN137: =DB141 -> 0 | CO137: =DB142 -> 0.06 | CP137: =DB143 -> 0 | CQ137: =DB144 -> 0 | DA137: PARTIDA | DB137: Valor Base | DC137: Valor actual | DD137: Codigo
A138: b) Sector 2 | B138: =+Historico!O138 -> 1.0311 | C138: =IF(AND(DAY($F$5)=1,MONTH($F$5)=11,YEAR($F$5)=2013),1,ROUND(S138*AD138+T138*AE138+U138*AF138+V138*AG138,4)) -> 1.0308 | D138: -0.0002909514111 | F138: =IF(AND(DAY($F$5)=1,MONTH($F$5)=11,YEAR($F$5)=2014),1,IF(IF(Resumen!$G$11="Ft-1",B138,C138)=0,"",IF(Resumen!$G$11="Ft-1",B138,C138))) -> 1.0311 | G138: 1 | O138: Sector 2 | S138: 0.7923 | T138: 0.1402 | U138: 0.0675 | V138: 0 | Z138: Sector 2 | AD138: =AO138/BW138 -> 1.022350456 | AE138: 1.101136809 | AF138: =AQ138/BY138 -> 0.9840955305 | AG138: 0.9680498744 | AK138: Sector 2 | AO138: =DB114 -> 212.8755683 | AP138: =DC114*(1+AU138) -> 2.809 | AQ138: =DD114*DC114*(1+DC145) -> 905.1347067 | AR138: =DE114*DC114*(1+DC146) -> 4981.366998 | AU138: 0 | AV138: =DC130 -> 0 | AW138: =DC131 -> 0 | AX138: =DC132 -> 0 | AY138: =DC133 -> 0 | AZ138: =DC134 -> 0 | BA138: =DC135 -> 0 | BB138: =DC136 -> 0 | BC138: =DC138 -> 0 | BD138: =DC139 -> 0 | BE138: =DC140 -> 0 | BF138: =DC141 -> 0 | BG138: =DC142 -> 0.06 | BH138: =DC143 -> 0 | BI138: =DC144 -> 0 | BS138: Sector 2 | BW138: =DB113 -> 208.221718 | BX138: =DC113*(1+CC138) -> 2.551 | BY138: =DD113*DC113*(1+DB145) -> 919.76305 | BZ138: =DE113*DC113*(1+DB146) -> 5145.77516 | CC138: 0 | CD138: =DC130 -> 0 | CE138: =DC131 -> 0 | CF138: =DC132 -> 0 | CG138: =DC133 -> 0 | CH138: =DC134 -> 0 | CI138: =DC135 -> 0 | CJ138: =DC136 -> 0 | CK138: =DB138 -> 0 | CL138: =DB139 -> 0 | CM138: =DB140 -> 0 | CN138: =DB141 -> 0 | CO138: =DB142 -> 0.06 | CP138: =DB143 -> 0 | CQ138: =DB144 -> 0 | CZ138: (1) VAD | DA138: 8471.30.00.00 | DB138: 0 | DC138: =TA_VAD!D11 -> 0 | DD138: 8471300000
A139: c) Sector 3 | B139: =+Historico!O139 -> 1.0633 | C139: 1.0633 | D139: 0 | F139: =IF(AND(DAY($F$5)=1,MONTH($F$5)=11,YEAR($F$5)=2014),1,IF(IF(Resumen!$G$11="Ft-1",B139,C139)=0,"",IF(Resumen!$G$11="Ft-1",B139,C139))) -> 1.0633 | G139: 1 | O139: Sector 3 | S139: 0.4513 | T139: 0.5292 | U139: 0.0195 | V139: 0 | Z139: Sector 3 | AD139: 1.022350456 | AE139: 1.101136809 | AF139: 0.9840955305 | AG139: 0.9680498744 | AK139: Sector 3 | AO139: =DB114 -> 212.8755683 | AP139: =DC114*(1+AU139) -> 2.809 | AQ139: =DD114*DC114*(1+DC145) -> 905.1347067 | AR139: =DE114*DC114*(1+DC146) -> 4981.366998 | AU139: 0 | AV139: =DD130 -> 0 | AW139: =DD131 -> 0 | AX139: =DD132 -> 0 | AY139: =DD133 -> 0 | AZ139: =DD134 -> 0 | BA139: =DD135 -> 0 | BB139: =DD136 -> 0 | BC139: =DC138 -> 0 | BD139: =DC139 -> 0 | BE139: =DC140 -> 0 | BF139: =DC141 -> 0 | BG139: =DC142 -> 0.06 | BH139: =DC143 -> 0 | BI139: =DC144 -> 0 | BS139: Sector 3 | BW139: =DB113 -> 208.221718 | BX139: =DC113*(1+CC139) -> 2.551 | BY139: =DD113*DC113*(1+DB145) -> 919.76305 | BZ139: =DE113*DC113*(1+DB146) -> 5145.77516 | CC139: 0 | CD139: =DD130 -> 0 | CE139: =DD131 -> 0 | CF139: =DD132 -> 0 | CG139: =DD133 -> 0 | CH139: =DD134 -> 0 | CI139: =DD135 -> 0 | CJ139: =DD136 -> 0 | CK139: =DB138 -> 0 | CL139: =DB139 -> 0 | CM139: =DB140 -> 0 | CN139: =DB141 -> 0 | CO139: =DB142 -> 0.06 | CP139: =DB143 -> 0 | CQ139: =DB144 -> 0 | CZ139: (2) VAD | DA139: 8504.21.90.00 | DB139: 0 | DC139: =TA_VAD!D12 -> 0 | DD139: 8504219000
A140: d) Sector 4 | B140: =+Historico!O140 -> 1.0566 | C140: 1.0569 | D140: 0.0002839295855 | F140: =IF(AND(DAY($F$5)=1,MONTH($F$5)=11,YEAR($F$5)=2014),1,IF(IF(Resumen!$G$11="Ft-1",B140,C140)=0,"",IF(Resumen!$G$11="Ft-1",B140,C140))) -> 1.0566 | G140: 1 | O140: Sector 4 | S140: 0.5548 | T140: 0.4409 | U140: 0.0043 | V140: 0 | Z140: Sector 4 | AD140: 1.022350456 | AE140: 1.101136809 | AF140: 0.9840955305 | AG140: 0.9680498744 | AK140: Sector 4 | AO140: =DB114 -> 212.8755683 | AP140: =DC114*(1+AU140) -> 2.809 | AQ140: =DD114*DC114*(1+DC145) -> 905.1347067 | AR140: =DE114*DC114*(1+DC146) -> 4981.366998 | AU140: 0 | AV140: =DE130 -> 0 | AW140: =DE131 -> 0 | AX140: =DE132 -> 0 | AY140: =DE133 -> 0 | AZ140: =DE134 -> 0 | BA140: =DE135 -> 0 | BB140: =DE136 -> 0 | BC140: =DC138 -> 0 | BD140: =DC139 -> 0 | BE140: =DC140 -> 0 | BF140: =DC141 -> 0 | BG140: =DC142 -> 0.06 | BH140: =DC143 -> 0 | BI140: =DC144 -> 0 | BS140: Sector 4 | BW140: =DB113 -> 208.221718 | BX140: =DC113*(1+CC140) -> 2.551 | BY140: =DD113*DC113*(1+DB145) -> 919.76305 | BZ140: =DE113*DC113*(1+DB146) -> 5145.77516 | CC140: 0 | CD140: =DE130 -> 0 | CE140: =DE131 -> 0 | CF140: =DE132 -> 0 | CG140: =DE133 -> 0 | CH140: =DE134 -> 0 | CI140: =DE135 -> 0 | CJ140: =DE136 -> 0 | CK140: =DB138 -> 0 | CL140: =DB139 -> 0 | CM140: =DB140 -> 0 | CN140: =DB141 -> 0 | CO140: =DB142 -> 0.06 | CP140: =DB143 -> 0 | CQ140: =DB144 -> 0 | CZ140: (3) VAD | DA140: 8517.11.00.00 | DB140: 0 | DC140: =TA_VAD!D13 -> 0 | DD140: 8517110000
A141: e) Sector 5 | B141: =+Historico!O141 -> 1.0477 | C141: 1.0478 | D141: 9.544716999e-05 | F141: =IF(AND(DAY($F$5)=1,MONTH($F$5)=11,YEAR($F$5)=2014),1,IF(IF(Resumen!$G$11="Ft-1",B141,C141)=0,"",IF(Resumen!$G$11="Ft-1",B141,C141))) -> 1.0477 | G141: 1 | O141: Sector 5 | S141: 0.6466 | T141: 0.333 | U141: 0.0204 | V141: 0 | Z141: Sector 5 | AD141: =AO141/BW141 -> 1.022350456 | AE141: =AP141/BX141 -> 1.101136809 | AF141: =AQ141/BY141 -> 0.9840955305 | AG141: 0.9680498744 | AK141: Sector 5 | AO141: =DB114 -> 212.8755683 | AP141: =DC114*(1+AU141) -> 2.809 | AQ141: =DD114*DC114*(1+DC145) -> 905.1347067 | AR141: =DE114*DC114*(1+DC146) -> 4981.366998 | AU141: =AV141*BC141+AW141*BD141+AX141*BE141+AY141*BF141+AZ141*BG141+BA141*BH141+BB141*BI141 -> 0 | AV141: =DF130 -> 0 | AW141: =DF131 -> 0 | AX141: =DF132 -> 0 | AY141: =DF133 -> 0 | AZ141: =DF134 -> 0 | BA141: =DF135 -> 0 | BB141: =DF136 -> 0 | BC141: =DC138 -> 0 | BD141: =DC139 -> 0 | BE141: =DC140 -> 0 | BF141: =DC141 -> 0 | BG141: =DC142 -> 0.06 | BH141: =DC143 -> 0 | BI141: =DC144 -> 0 | BS141: Sector 5 | BW141: =DB113 -> 208.221718 | BX141: =DC113*(1+CC141) -> 2.551 | BY141: =DD113*DC113*(1+DB145) -> 919.76305 | BZ141: =DE113*DC113*(1+DB146) -> 5145.77516 | CC141: =CD141*CK141+CE141*CL141+CF141*CM141+CG141*CN141+CH141*CO141+CI141*CP141+CJ141*CQ141 -> 0 | CD141: =DF130 -> 0 | CE141: =DF131 -> 0 | CF141: =DF132 -> 0 | CG141: =DF133 -> 0 | CH141: =DF134 -> 0 | CI141: =DF135 -> 0 | CJ141: =DF136 -> 0 | CK141: =DB138 -> 0 | CL141: =DB139 -> 0 | CM141: =DB140 -> 0 | CN141: =DB141 -> 0 | CO141: =DB142 -> 0.06 | CP141: =DB143 -> 0 | CQ141: =DB144 -> 0 | CZ141: (4) VAD | DA141: 8535.30.00.00 | DB141: 0 | DC141: =TA_VAD!D14 -> 0 | DD141: 8535300000
A142: f) Sector 6 | B142: =+Historico!O142 -> 1.053 | C142: 1.0533 | D142: 0.0002849002849 | F142: =IF(AND(DAY($F$5)=1,MONTH($F$5)=11,YEAR($F$5)=2014),1,IF(IF(Resumen!$G$11="Ft-1",B142,C142)=0,"",IF(Resumen!$G$11="Ft-1",B142,C142))) -> 1.053 | G142: 1 | O142: Sector 6 | S142: 0.6 | T142: 0.3953 | U142: 0.0047 | V142: 0 | Z142: Sector 6 | AD142: 1.022350456 | AE142: 1.101136809 | AF142: 0.9840955305 | AG142: 0.9680498744 | AK142: Sector 6 | AO142: =DB114 -> 212.8755683 | AP142: =DC114*(1+AU142) -> 2.809 | AQ142: =DD114*DC114*(1+DC145) -> 905.1347067 | AR142: =DE114*DC114*(1+DC146) -> 4981.366998 | AU142: 0 | AV142: =DG130 -> 0 | AW142: =DG131 -> 0 | AX142: =DG132 -> 0 | AY142: =DG133 -> 0 | AZ142: =DG134 -> 0 | BA142: =DG135 -> 0 | BB142: =DG136 -> 0 | BC142: =DC138 -> 0 | BD142: =DC139 -> 0 | BE142: =DC140 -> 0 | BF142: =DC141 -> 0 | BG142: =DC142 -> 0.06 | BH142: =DC143 -> 0 | BI142: =DC144 -> 0 | BS142: Sector 6 | BW142: =DB113 -> 208.221718 | BX142: =DC113*(1+CC142) -> 2.551 | BY142: =DD113*DC113*(1+DB145) -> 919.76305 | BZ142: =DE113*DC113*(1+DB146) -> 5145.77516 | CC142: 0 | CD142: =DG130 -> 0 | CE142: =DG131 -> 0 | CF142: =DG132 -> 0 | CG142: =DG133 -> 0 | CH142: =DG134 -> 0 | CI142: =DG135 -> 0 | CJ142: =DG136 -> 0 | CK142: =DB138 -> 0 | CL142: =DB139 -> 0 | CM142: =DB140 -> 0 | CN142: =DB141 -> 0 | CO142: =DB142 -> 0.06 | CP142: =DB143 -> 0 | CQ142: =DB144 -> 0 | CZ142: (5) VAD | DA142: 8539.32.00.00 | DB142: 0.06 | DC142: =TA_VAD!D15 -> 0.06 | DD142: 8539320000
A143: g) Sector Especial | B143: =+Historico!O143 -> 1.0384 | C143: 1.0388 | D143: 0.0003852080123 | F143: =IF(AND(DAY($F$5)=1,MONTH($F$5)=11,YEAR($F$5)=2014),1,IF(IF(Resumen!$G$11="Ft-1",B143,C143)=0,"",IF(Resumen!$G$11="Ft-1",B143,C143))) -> 1.0384 | G143: 1 | O143: Sector Especial | S143: 0.7738 | T143: 0.2157 | U143: 0 | V143: 0.0105 | Z143: Sector Especial | AD143: 1.022350456 | AE143: 1.101136809 | AF143: 0.9840955305 | AG143: 0.9680498744 | AK143: Sector Especial | AO143: =DB114 -> 212.8755683 | AP143: =DC114*(1+AU143) -> 2.809 | AQ143: =DD114*DC114*(1+DC145) -> 905.1347067 | AR143: =DE114*DC114*(1+DC146) -> 4981.366998 | AU143: 0 | AV143: =DH130 -> 0 | AW143: =DH131 -> 0 | AX143: =DH132 -> 0 | AY143: =DH133 -> 0 | AZ143: =DH134 -> 0 | BA143: =DH135 -> 0 | BB143: =DH136 -> 0 | BC143: =DC138 -> 0 | BD143: =DC139 -> 0 | BE143: =DC140 -> 0 | BF143: =DC141 -> 0 | BG143: =DC142 -> 0.06 | BH143: =DC143 -> 0 | BI143: =DC144 -> 0 | BS143: Sector Especial | BW143: =DB113 -> 208.221718 | BX143: =DC113*(1+CC143) -> 2.551 | BY143: =DD113*DC113*(1+DB145) -> 919.76305 | BZ143: =DE113*DC113*(1+DB146) -> 5145.77516 | CC143: 0 | CD143: =DH130 -> 0 | CE143: =DH131 -> 0 | CF143: =DH132 -> 0 | CG143: =DH133 -> 0 | CH143: =DH134 -> 0 | CI143: =DH135 -> 0 | CJ143: =DH136 -> 0 | CK143: =DB138 -> 0 | CL143: =DB139 -> 0 | CM143: =DB140 -> 0 | CN143: =DB141 -> 0 | CO143: =DB142 -> 0.06 | CP143: =DB143 -> 0 | CQ143: =DB144 -> 0 | CZ143: (6) VAD | DA143: 8704.21.10.10 | DB143: 0 | DC143: =TA_VAD!D16 -> 0 | DD143: 8704211010
A144: h) VAD SER 100 Estado Prepago | B144: =+Historico!O144 -> 1.0407 | C144: 1.0411 | D144: 0.000384356683 | F144: =IF(AND(DAY($F$5)=1,MONTH($F$5)=11,YEAR($F$5)=2014),1,IF(IF(Resumen!$G$11="Ft-1",B144,C144)=0,"",IF(Resumen!$G$11="Ft-1",B144,C144))) -> 1.0407 | G144: 1 | O144: 100% Estado | P144: Prepago | S144: 0.7615 | T144: 0.2383 | U144: 0.0002 | V144: 0 | Z144: 100% Estado | AA144: Prepago | AD144: 1.022350456 | AE144: 1.101136809 | AF144: 0.9840955305 | AG144: 0.9680498744 | AK144: 100% Estado | AL144: Prepago | AO144: =DB114 -> 212.8755683 | AP144: =DC114*(1+AU144) -> 2.809 | AQ144: =DD114*DC114*(1+DC145) -> 905.1347067 | AR144: =DE114*DC114*(1+DC146) -> 4981.366998 | AU144: 0 | AV144: =DI130 -> 0 | AW144: =DI131 -> 0 | AX144: =DI132 -> 0 | AY144: =DI133 -> 0 | AZ144: =DI134 -> 0 | BA144: =DI135 -> 0 | BB144: =DI136 -> 0 | BC144: =DC138 -> 0 | BD144: =DC139 -> 0 | BE144: =DC140 -> 0 | BF144: =DC141 -> 0 | BG144: =DC142 -> 0.06 | BH144: =DC143 -> 0 | BI144: =DC144 -> 0 | BS144: 100% Estado | BT144: Prepago | BW144: =DB113 -> 208.221718 | BX144: =DC113*(1+CC144) -> 2.551 | BY144: =DD113*DC113*(1+DB145) -> 919.76305 | BZ144: =DE113*DC113*(1+DB146) -> 5145.77516 | CC144: 0 | CD144: =DI130 -> 0 | CE144: =DI131 -> 0 | CF144: =DI132 -> 0 | CG144: =DI133 -> 0 | CH144: =DI134 -> 0 | CI144: =DI135 -> 0 | CJ144: =DI136 -> 0 | CK144: =DB138 -> 0 | CL144: =DB139 -> 0 | CM144: =DB140 -> 0 | CN144: =DB141 -> 0 | CO144: =DB142 -> 0.06 | CP144: =DB143 -> 0 | CQ144: =DB144 -> 0 | CZ144: (7) VAD | DA144: 9028.30.10.00 | DB144: 0 | DC144: =TA_VAD!D17 -> 0 | DD144: 9028301000
A145: i) VAD SER 100 Estado Convencional | B145: =+Historico!O145 -> 1.0403 | C145: 1.0407 | D145: 0.0003845044699 | F145: =IF(AND(DAY($F$5)=1,MONTH($F$5)=11,YEAR($F$5)=2014),1,IF(IF(Resumen!$G$11="Ft-1",B145,C145)=0,"",IF(Resumen!$G$11="Ft-1",B145,C145))) -> 1.0403 | G145: 1 | P145: Convencional | S145: 0.7665 | T145: 0.2332 | U145: 0.0003 | V145: 0 | AA145: Convencional | AD145: 1.022350456 | AE145: 1.101136809 | AF145: 0.9840955305 | AG145: 0.9680498744 | AL145: Convencional | AO145: =DB114 -> 212.8755683 | AP145: =DC114*(1+AU145) -> 2.809 | AQ145: =DD114*DC114*(1+DC145) -> 905.1347067 | AR145: =DE114*DC114*(1+DC146) -> 4981.366998 | AU145: 0 | AV145: =DJ130 -> 0 | AW145: =DJ131 -> 0 | AX145: =DJ132 -> 0 | AY145: =DJ133 -> 0 | AZ145: =DJ134 -> 0 | BA145: =DJ135 -> 0 | BB145: =DJ136 -> 0 | BC145: =DC138 -> 0 | BD145: =DC139 -> 0 | BE145: =DC140 -> 0 | BF145: =DC141 -> 0 | BG145: =DC142 -> 0.06 | BH145: =DC143 -> 0 | BI145: =DC144 -> 0 | BT145: Convencional | BW145: =DB113 -> 208.221718 | BX145: =DC113*(1+CC145) -> 2.551 | BY145: =DD113*DC113*(1+DB145) -> 919.76305 | BZ145: =DE113*DC113*(1+DB146) -> 5145.77516 | CC145: 0 | CD145: =DJ130 -> 0 | CE145: =DJ131 -> 0 | CF145: =DJ132 -> 0 | CG145: =DJ133 -> 0 | CH145: =DJ134 -> 0 | CI145: =DJ135 -> 0 | CJ145: =DJ136 -> 0 | CK145: =DB138 -> 0 | CL145: =DB139 -> 0 | CM145: =DB140 -> 0 | CN145: =DB141 -> 0 | CO145: =DB142 -> 0.06 | CP145: =DB143 -> 0 | CQ145: =DB144 -> 0 | CZ145: (8) Cobre | DA145: 7413.00.00.00 | DB145: 0 | DC145: =TA_VAD!D18 -> 0 | DD145: 7413000000
A146: j) VAD SER 100 Empresa Prepago | B146: =+Historico!O146 -> 1.0407 | C146: 1.0411 | D146: 0.000384356683 | F146: =IF(AND(DAY($F$5)=1,MONTH($F$5)=11,YEAR($F$5)=2014),1,IF(IF(Resumen!$G$11="Ft-1",B146,C146)=0,"",IF(Resumen!$G$11="Ft-1",B146,C146))) -> 1.0407 | G146: 1 | O146: 100% Empresa | P146: Prepago | S146: 0.7615 | T146: 0.2383 | U146: 0.0002 | V146: 0 | Z146: 100% Empresa | AA146: Prepago | AD146: 1.022350456 | AE146: 1.101136809 | AF146: 0.9840955305 | AG146: 0.9680498744 | AK146: 100% Empresa | AL146: Prepago | AO146: =DB114 -> 212.8755683 | AP146: =DC114*(1+AU146) -> 2.809 | AQ146: =DD114*DC114*(1+DC145) -> 905.1347067 | AR146: =DE114*DC114*(1+DC146) -> 4981.366998 | AU146: 0 | AV146: =DK130 -> 0 | AW146: =DK131 -> 0 | AX146: =DK132 -> 0 | AY146: =DK133 -> 0 | AZ146: =DK134 -> 0 | BA146: =DK135 -> 0 | BB146: =DK136 -> 0 | BC146: =DC138 -> 0 | BD146: =DC139 -> 0 | BE146: =DC140 -> 0 | BF146: =DC141 -> 0 | BG146: =DC142 -> 0.06 | BH146: =DC143 -> 0 | BI146: =DC144 -> 0 | BS146: 100% Empresa | BT146: Prepago | BW146: =DB113 -> 208.221718 | BX146: =DC113*(1+CC146) -> 2.551 | BY146: =DD113*DC113*(1+DB145) -> 919.76305 | BZ146: =DE113*DC113*(1+DB146) -> 5145.77516 | CC146: 0 | CD146: =DK130 -> 0 | CE146: =DK131 -> 0 | CF146: =DK132 -> 0 | CG146: =DK133 -> 0 | CH146: =DK134 -> 0 | CI146: =DK135 -> 0 | CJ146: =DK136 -> 0 | CK146: =DB138 -> 0 | CL146: =DB139 -> 0 | CM146: =DB140 -> 0 | CN146: =DB141 -> 0 | CO146: =DB142 -> 0.06 | CP146: =DB143 -> 0 | CQ146: =DB144 -> 0 | CZ146: (9) Aluminio | DA146: 7614.90.00.00 | DB146: 0 | DC146: =TA_VAD!D19 -> 0 | DD146: 7614900000
A147: k) VAD SER 100 Empresa Convencional | B147: =+Historico!O147 -> 1.0403 | C147: 1.0407 | D147: 0.0003845044699 | F147: =IF(AND(DAY($F$5)=1,MONTH($F$5)=11,YEAR($F$5)=2014),1,IF(IF(Resumen!$G$11="Ft-1",B147,C147)=0,"",IF(Resumen!$G$11="Ft-1",B147,C147))) -> 1.0403 | G147: 1 | P147: Convencional | S147: 0.7665 | T147: 0.2332 | U147: 0.0003 | V147: 0 | AA147: Convencional | AD147: 1.022350456 | AE147: 1.101136809 | AF147: 0.9840955305 | AG147: 0.9680498744 | AL147: Convencional | AO147: =DB114 -> 212.8755683 | AP147: =DC114*(1+AU147) -> 2.809 | AQ147: =DD114*DC114*(1+DC145) -> 905.1347067 | AR147: =DE114*DC114*(1+DC146) -> 4981.366998 | AU147: 0 | AV147: =DL130 -> 0 | AW147: =DL131 -> 0 | AX147: =DL132 -> 0 | AY147: =DL133 -> 0 | AZ147: =DL134 -> 0 | BA147: =DL135 -> 0 | BB147: =DL136 -> 0 | BC147: =DC138 -> 0 | BD147: =DC139 -> 0 | BE147: =DC140 -> 0 | BF147: =DC141 -> 0 | BG147: =DC142 -> 0.06 | BH147: =DC143 -> 0 | BI147: =DC144 -> 0 | BT147: Convencional | BW147: =DB113 -> 208.221718 | BX147: =DC113*(1+CC147) -> 2.551 | BY147: =DD113*DC113*(1+DB145) -> 919.76305 | BZ147: =DE113*DC113*(1+DB146) -> 5145.77516 | CC147: 0 | CD147: =DL130 -> 0 | CE147: =DL131 -> 0 | CF147: =DL132 -> 0 | CG147: =DL133 -> 0 | CH147: =DL134 -> 0 | CI147: =DL135 -> 0 | CJ147: =DL136 -> 0 | CK147: =DB138 -> 0 | CL147: =DB139 -> 0 | CM147: =DB140 -> 0 | CN147: =DB141 -> 0 | CO147: =DB142 -> 0.06 | CP147: =DB143 -> 0 | CQ147: =DB144 -> 0 | CZ147: Indicadores Macroeconómicos de PrePago
F148: =IF(IF(Resumen!$G$11="Ft-1",B148,C148)=0,"",IF(Resumen!$G$11="Ft-1",B148,C148)) ->  | G148: 1 | Z148: 4. Cargos Fijos (Componentes) | AD148: IPM / IPMo | AK148: 4. Cargos Fijos (Componentes) | AO148: IPM / IPMo | BS148: 4. Cargos Fijos (Componentes) | BW148: IPM / IPMo | DA148: Fecha | DB148: IPM
A149: 4. CARGOS FIJOS | B149: =+Historico!O149 -> 1.0217 | C149: =IF(AND(DAY($F$5)=1,MONTH($F$5)=11,YEAR($F$5)=2013),1,ROUND(AD149,4)) -> 1.0224 | D149: 0.0006851326221 | F149: =IF(AND(DAY($F$5)=1,MONTH($F$5)=11,YEAR($F$5)=2014),1,IF(IF(Resumen!$G$11="Ft-1",B149,C149)=0,"",IF(Resumen!$G$11="Ft-1",B149,C149))) -> 1.0217 | G149: 1 | Z149: CARGOS FIJOS | AD149: =AO149/BW149 -> 1.022350456 | AK149: CARGOS FIJOS | AO149: =DB114 -> 212.8755683 | BS149: CARGOS FIJOS | BW149: =DB113 -> 208.221718 | CZ149: Valores Base | DA149: Resolucion Base | DB149: 208.221718
F150: =IF(IF(Resumen!$G$11="Ft-1",B150,C150)=0,"",IF(Resumen!$G$11="Ft-1",B150,C150)) ->  | G150: 1 | Z150: 5. E.Reactiva (Componentes) | AD150: TC / TCo | AK150: 5. E.Reactiva (Componentes) | AO150: TC / TCo | BS150: 5. E.Reactiva (Componentes) | BW150: TC / TCo | CZ150: Valores Actuales | DA150: Indicador actualizado | DB150: =+'ALUMINIO-COBRE-TC-IPM'!G8 -> 212.8755683
A151: 5. ENERGÍA REACTIVA (FACER) | B151: =+Historico!O151 -> 1.1011 | C151: =IF(AND(DAY($F$5)=1,MONTH($F$5)=11,YEAR($F$5)=2013),1,ROUND(AD151,4)) -> 1.1011 | D151: 0 | F151: =IF(AND(DAY($F$5)=1,MONTH($F$5)=11,YEAR($F$5)=2014),1,IF(IF(Resumen!$G$11="Ft-1",B151,C151)=0,"",IF(Resumen!$G$11="Ft-1",B151,C151))) -> 1.1011 | G151: 1 | Z151: ENERGÍA REACTIVA (FACER) | AD151: =AO151/BW151 -> 1.101136809 | AK151: ENERGÍA REACTIVA (FACER) | AO151: =DC114 -> 2.809 | BS151: ENERGÍA REACTIVA (FACER) | BW151: =DC113 -> 2.551 | DG151: Ponderadores de las Partida Arancelarias de la Conexión y Mantenimiento
F152: =IF(IF(Resumen!$G$11="Ft-1",B152,C152)=0,"",IF(Resumen!$G$11="Ft-1",B152,C152)) ->  | G152: 1 | Z152: 6. PrePago (Componentes) | AD152: IPM / IPMo | AK152: 6. PrePago (Componentes) | AO152: IPM / IPMo | BS152: 6. PrePago (Componentes) | BW152: IPM / IPMo | CZ152: Indicadores Macroeconómicos de Conexión | DG152: 9028.30.90.00 | DH152: 8535.30.00.00
A153: FACCSP (Cargo Comercial del Servicio Prepago) | B153: =+Historico!O153 -> 1.0217 | C153: =IF(AND(DAY($F$5)=1,MONTH($F$5)=11,YEAR($F$5)=2013),1,ROUND(AD153,4)) -> 1.0224 | D153: 0.0006851326221 | F153: =IF(AND(DAY($F$5)=1,MONTH($F$5)=11,YEAR($F$5)=2014),1,IF(IF(Resumen!$G$11="Ft-1",B153,C153)=0,"",IF(Resumen!$G$11="Ft-1",B153,C153))) -> 1.0217 | G153: 1 | Z153: FACCSP (Cargo Comercial del Servicio Prepago) | AD153: =AO153/BW153 -> 1.022350456 | AK153: FACCSP (Cargo Comercial del Servicio Prepago) | AO153: =DB114 -> 212.8755683 | BS153: FACCSP (Cargo Comercial del Servicio Prepago) | BW153: =DB149 -> 208.221718 | CZ153: CONEXIÓN y MANTENIMIENTO
F154: =IF(IF(Resumen!$G$11="Ft-1",B154,C154)=0,"",IF(Resumen!$G$11="Ft-1",B154,C154)) ->  | G154: 1 | DA154: Fecha | DB154: TC | DC154: IPM | DD154: IPCu | DE154: IPAl
A155: C.2 DISTRIBUCIÓN - PRESUPUESTOS DE CONEXIÓN - Res. Nº 153-2011-OS/CD | B155: =+Historico!O155 ->  | F155: =IF(IF(Resumen!$G$11="Ft-1",B155,C155)=0,"",IF(Resumen!$G$11="Ft-1",B155,C155)) ->  | G155: 1 | O155: Conexión (Ponderadores) | S155: IPM / IPMo | T155: [TC/TCo]*[(1+TA)/(1+TAo)] | U155: [IPCu/IPCuo]*[TC/TCo]*[(1+TACu)/(1+TACuo)] | V155: [IPAl/IPAlo]*[TC/TCo]*[(1+TAAl)/(1+TAAlo)] | Z155: Conexión (Componentes) | AD155: IPM / IPMo | AE155: [TC/TCo]*[(1+TA)/(1+TAo)] | AF155: [IPCu/IPCuo]*[TC/TCo]*[(1+TACu)/(1+TACuo)] | AG155: [IPAl/IPAlo]*[TC/TCo]*[(1+TAAl)/(1+TAAlo)] | AK155: Conexión (V.actuales) | AO155: IPM / IPMo | AP155: [TC/TCo]*[(1+TA)/(1+TAo)] | AQ155: [IPCu/IPCuo]*[TC/TCo]*[(1+TACu)/(1+TACuo)] | AR155: [IPAl/IPAlo]*[TC/TCo]*[(1+TAAl)/(1+TAAlo)] | AU155: TA / TAo | AV155: Ponderadores | AX155: Tasa arancelaria por partida arancelaria | BS155: Conexión (V.Resolución) | BW155: IPM / IPMo | BX155: [TC/TCo]*[(1+TA)/(1+TAo)] | BY155: [IPCu/IPCuo]*[TC/TCo]*[(1+TACu)/(1+TACuo)] | BZ155: [IPAl/IPAlo]*[TC/TCo]*[(1+TAAl)/(1+TAAlo)] | CC155: TA / TAo | CD155: Ponderadores | CF155: Tasa arancelaria por partida arancelaria | CZ155: Valores Base | DA155: Resolucion Base | DB155: 2.788 | DC155: 193.596414 | DD155: 313.9 | DE155: 2060.02 | DF155: FAPC(1) | DG155: 0.98 | DH155: 0.02
A156: 1. PRESUPUESTOS Y CARGOS DE REPOSICIÓN DE LA CONEXIÓN | B156: =+Historico!O156 ->  | F156: =IF(IF(Resumen!$G$11="Ft-1",B156,C156)=0,"",IF(Resumen!$G$11="Ft-1",B156,C156)) ->  | G156: 1 | O156: Presupuesto de la conexión | S156: APC | T156: BPC | U156: CPC | V156: DPC | Z156: Presupuesto de la conexión | AD156: APC | AE156: BPC | AF156: CPC | AG156: DPC | AK156: Presupuesto de la conexión | AO156: APC | AP156: BPC | AQ156: CPC | AR156: DPC | AU156: TACNX | AV156: 9028.30.90.00 | AW156: 8535.30.00.00 | AX156: 9028.30.90.00 | AY156: 8535.30.00.00 | BS156: Presupuesto de la conexión | BW156: APC | BX156: BPC | BY156: CPC | BZ156: DPC | CC156: TACNX | CD156: 9028.30.90.00 | CE156: 8535.30.00.00 | CF156: 9028.30.90.00 | CG156: 8535.30.00.00 | CZ156: Valores Actuales | DA156: Indicador aplicable | DB156: =+'ALUMINIO-COBRE-TC-IPM'!F8 -> 2.809 | DC156: =+'ALUMINIO-COBRE-TC-IPM'!G8 -> 212.8755683 | DD156: =+'ALUMINIO-COBRE-TC-IPM'!E8 -> 322.2266667 | DE156: =+'ALUMINIO-COBRE-TC-IPM'!D8 -> 1773.359558 | DF156: FAPC(2) | DG156: 0.92 | DH156: 0.08
A157: Para conexiones | B157: =+Historico!O157 ->  | F157: =IF(IF(Resumen!$G$11="Ft-1",B157,C157)=0,"",IF(Resumen!$G$11="Ft-1",B157,C157)) ->  | G157: 1 | O157: Para conexiones | Z157: Para conexiones | AK157: Para conexiones | BS157: Para conexiones | DA157: PARTIDA | DB157: Valor Base | DC157: Valor actual | DD157: Codigo | DF157: FAPC(3) | DG157: 1 | DH157: 0
A158: a) Conexiones en Baja Tensión - C1/C2 | B158: =+Historico!O158 -> 1.0266 | C158: =ROUND(S158*AD158+T158*AE158+U158*AF158+V158*AG158,4) -> 1.0253 | D158: =+C158/B158-1 -> -0.001266315995 | F158: =IF(IF(Resumen!$G$11="Ft-1",B158,C158)=0,"",IF(Resumen!$G$11="Ft-1",B158,C158)) -> 1.0266 | G158: =+IF(F158=B158,1,0) -> 1 | O158: FAPC(1) | P158: a) Conexiones en Baja Tensión - C1/C2 | S158: 0.3 | T158: 0.56 | U158: 0.12 | V158: 0.02 | Z158: FAPC(1) | AA158: a) Conexiones en Baja Tensión - C1/C2 | AD158: =AO158/BW158 -> 1.099584253 | AE158: 1.007532281 | AF158: 0.9488610834 | AG158: 0.8673299291 | AK158: FAPC(1) | AL158: a) Conexiones en Baja Tensión - C1/C2 | AO158: =DC156 -> 212.8755683 | AP158: =DB156*(1+AU158) -> 2.809 | AQ158: =DD156*DB156*(1+DC160) -> 905.1347067 | AR158: =DE156*DB156*(1+DC161) -> 4981.366998 | AU158: =AV158*AX158+AW158*AY158 -> 0 | AV158: =DG155 -> 0.98 | AW158: 0.02 | AX158: =DC158 -> 0 | AY158: =DC159 -> 0 | BS158: FAPC(1) | BT158: a) Conexiones en Baja Tensión - C1/C2 | BW158: =DC155 -> 193.596414 | BX158: =DB155*(1+CC158) -> 2.788 | BY158: =DD155*DB155*(1+DB160) -> 953.916988 | BZ158: =DE155*DB155*(1+DC161) -> 5743.33576 | CC158: =CD158*CF158+CE158*CG158 -> 0 | CD158: =DG155 -> 0.98 | CE158: 0.02 | CF158: =DB158 -> 0 | CG158: =DB159 -> 0 | CZ158: (10) Conexión 1 | DA158: 9028.30.90.00 | DB158: 0 | DC158: =TA_VAD!D20 -> 0 | DD158: 9028309000 | DF158: FAPC(4) | DG158: 0 | DH158: 1
A159: b) Conexiones en Baja Tensión - C3/C4 | B159: =+Historico!O159 -> 1.0179 | C159: 1.0153 | D159: =+C159/B159-1 -> -0.002554278416 | F159: =IF(IF(Resumen!$G$11="Ft-1",B159,C159)=0,"",IF(Resumen!$G$11="Ft-1",B159,C159)) -> 1.0179 | G159: 1 | O159: FAPC(2) | P159: b) Conexiones en Baja Tensión - C3/C4 | S159: 0.31 | T159: 0.42 | U159: 0.21 | V159: 0.06 | Z159: FAPC(2) | AA159: b) Conexiones en Baja Tensión - C3/C4 | AD159: 1.099584253 | AE159: 1.007532281 | AF159: 0.9488610834 | AG159: 0.8673299291 | AK159: FAPC(2) | AL159: b) Conexiones en Baja Tensión - C3/C4 | AO159: =DC156 -> 212.8755683 | AP159: =DB156*(1+AU159) -> 2.809 | AQ159: =DD156*DB156*(1+DC160) -> 905.1347067 | AR159: =DE156*DB156*(1+DC161) -> 4981.366998 | AU159: =AV159*AX159+AW159*AY159 -> 0 | AV159: 0.92 | AW159: 0.08 | AX159: =DC158 -> 0 | AY159: =DC159 -> 0 | BS159: FAPC(2) | BT159: b) Conexiones en Baja Tensión - C3/C4 | BW159: =DC155 -> 193.596414 | BX159: =DB155*(1+CC159) -> 2.788 | BY159: =DD155*DB155*(1+DB160) -> 953.916988 | BZ159: =DE155*DB155*(1+DC161) -> 5743.33576 | CC159: =CD159*CF159+CE159*CG159 -> 0 | CD159: 0.92 | CE159: 0.08 | CF159: =DB158 -> 0 | CG159: =DB159 -> 0 | CZ159: (11) Conexión 2 | DA159: 8535.30.00.00 | DB159: 0 | DC159: =TA_VAD!D21 -> 0 | DD159: 8535300000 | DF159: FAPC(5) | DG159: 0 | DH159: 1
A160: c) Conexiones Básicas en Media Tensión (PMI y Celda) - C5 | B160: =+Historico!O160 -> 1.0231 | C160: 1.0232 | D160: =+C160/B160-1 -> 9.774215619e-05 | F160: =IF(IF(Resumen!$G$11="Ft-1",B160,C160)=0,"",IF(Resumen!$G$11="Ft-1",B160,C160)) -> 1.0231 | G160: 1 | O160: FAPC(3) | P160: c) Conexiones Básicas en Media Tensión (PMI y Celda) - C5 | S160: 0.17 | T160: 0.83 | U160: 0 | V160: 0 | Z160: FAPC(3) | AA160: c) Conexiones Básicas en Media Tensión (PMI y Celda) - C5 | AD160: =AO160/BW160 -> 1.099584253 | AE160: =AP160/BX160 -> 1.007532281 | AF160: 0 | AG160: 0 | AK160: FAPC(3) | AL160: c) Conexiones Básicas en Media Tensión (PMI y Celda) - C5 | AO160: =DC156 -> 212.8755683 | AP160: =DB156*(1+AU160) -> 2.809 | AQ160: 0 | AR160: 0 | AU160: =AV160*AX160+AW160*AY160 -> 0 | AV160: 1 | AW160: 0 | AX160: =DC158 -> 0 | AY160: =DC159 -> 0 | BS160: FAPC(3) | BT160: c) Conexiones Básicas en Media Tensión (PMI y Celda) - C5 | BW160: =DC155 -> 193.596414 | BX160: =DB155*(1+CC160) -> 2.788 | BY160: 0 | BZ160: 0 | CC160: =CD160*CF160+CE160*CG160 -> 0 | CD160: 1 | CE160: 0 | CF160: =DB158 -> 0 | CG160: =DB159 -> 0 | CZ160: (8) Cobre | DA160: 7413.00.00.00 | DB160: 0.09 | DC160: =TA_VAD!D18 -> 0 | DD160: 7413000000
A161: d) Otros Elementos Electromecánicos en Media Tensión - C5 | B161: =+Historico!O161 -> 1.0284 | C161: 1.0252 | D161: =+C161/B161-1 -> -0.003111629716 | F161: =IF(IF(Resumen!$G$11="Ft-1",B161,C161)=0,"",IF(Resumen!$G$11="Ft-1",B161,C161)) -> 1.0284 | G161: 1 | O161: FAPC(4) | P161: d) Otros Elementos Electromecánicos en Media Tensión - C5 | S161: 0.39 | T161: 0.3 | U161: 0.31 | V161: 0 | Z161: FAPC(4) | AA161: d) Otros Elementos Electromecánicos en Media Tensión - C5 | AD161: =AO161/BW161 -> 1.099584253 | AE161: =AP161/BX161 -> 1.007532281 | AF161: =AQ161/BY161 -> 0.9488610834 | AG161: 0 | AK161: FAPC(4) | AL161: d) Otros Elementos Electromecánicos en Media Tensión - C5 | AO161: =DC156 -> 212.8755683 | AP161: =DB156*(1+AU161) -> 2.809 | AQ161: =DD156*DB156*(1+DC160) -> 905.1347067 | AR161: 0 | AU161: =AV161*AX161+AW161*AY161 -> 0 | AV161: 0 | AW161: 1 | AX161: =DC158 -> 0 | AY161: =DC159 -> 0 | BS161: FAPC(4) | BT161: d) Otros Elementos Electromecánicos en Media Tensión - C5 | BW161: =DC155 -> 193.596414 | BX161: =DB155*(1+CC161) -> 2.788 | BY161: =DD155*DB155*(1+DB160) -> 953.916988 | BZ161: 0 | CC161: =CD161*CF161+CE161*CG161 -> 0 | CD161: 0 | CE161: 1 | CF161: =DB158 -> 0 | CG161: =DB159 -> 0 | CZ161: (9) Aluminio | DA161: 7614.90.00.00 | DB161: 0 | DC161: =TA_VAD!D19 -> 0 | DD161: 7614900000 | DF161: FAPC(6) | DG161: 0.98 | DH161: 0.02
A162: e) Vereda, Murete, Mástil y Protección de Estructuras - C1/C2/C3/C4/C5 | B162: =+Historico!O162 -> 1.0989 | C162: 1.0996 | D162: =+C162/B162-1 -> 0.000637000637 | F162: =IF(IF(Resumen!$G$11="Ft-1",B162,C162)=0,"",IF(Resumen!$G$11="Ft-1",B162,C162)) -> 1.0989 | G162: 1 | O162: FAPC(5) | P162: e) Vereda, Murete, Mástil y Protección de Estructuras - C1/C2/C3/C4/C5 | S162: 1 | T162: 0 | U162: 0 | V162: 0 | Z162: FAPC(5) | AA162: e) Vereda, Murete, Mástil y Protección de Estructuras - C1/C2/C3/C4/C5 | AD162: =AO162/BW162 -> 1.099584253 | AE162: 0 | AF162: 0 | AG162: 0 | AK162: FAPC(5) | AL162: e) Vereda, Murete, Mástil y Protección de Estructuras - C1/C2/C3/C4/C5 | AO162: =DC156 -> 212.8755683 | AP162: 0 | AQ162: 0 | AR162: 0 | AU162: =AV162*AX162+AW162*AY162 -> 0 | AV162: 0 | AW162: 1 | AX162: =DC158 -> 0 | AY162: =DC159 -> 0 | BS162: FAPC(5) | BT162: e) Vereda, Murete, Mástil y Protección de Estructuras - C1/C2/C3/C4/C5 | BW162: =DC155 -> 193.596414 | BX162: 0 | BY162: 0 | BZ162: 0 | CC162: =CD162*CF162+CE162*CG162 -> 0 | CD162: 0 | CE162: 1 | CF162: =DB158 -> 0 | CG162: =DB159 -> 0
A163: Para cambio a conexión prepago | B163: =+Historico!O163 ->  | F163: =IF(IF(Resumen!$G$11="Ft-1",B163,C163)=0,"",IF(Resumen!$G$11="Ft-1",B163,C163)) ->  | G163: 1 | O163: Para cambio a conexión prepago | Z163: Para cambio a conexión prepago | AK163: Para cambio a conexión prepago | BS163: Para cambio a conexión prepago | DF163: FAPC(7) | DG163: 0 | DH163: 1
A164: a) Conexiones en Baja Tensión - C1/C2 | B164: =+Historico!O164 -> 1.023 | C164: 1.0219 | D164: =+C164/B164-1 -> -0.001075268817 | F164: =IF(IF(Resumen!$G$11="Ft-1",B164,C164)=0,"",IF(Resumen!$G$11="Ft-1",B164,C164)) -> 1.023 | G164: 1 | O164: FAPC(6) | P164: a) Conexiones en Baja Tensión - C1/C2 | S164: 0.25 | T164: 0.63 | U164: 0.1 | V164: 0.02 | Z164: FAPC(6) | AA164: a) Conexiones en Baja Tensión - C1/C2 | AD164: =AO164/BW164 -> 1.099584253 | AE164: =AP164/BX164 -> 1.007532281 | AF164: =AQ164/BY164 -> 0.9488610834 | AG164: =AR164/BZ164 -> 0.8673299291 | AK164: FAPC(6) | AL164: a) Conexiones en Baja Tensión - C1/C2 | AO164: =DC156 -> 212.8755683 | AP164: =DB156*(1+AU164) -> 2.809 | AQ164: =DD156*DB156*(1+DC160) -> 905.1347067 | AR164: =DE156*DB156*(1+DC161) -> 4981.366998 | AU164: =AV164*AX164+AW164*AY164 -> 0 | AV164: =DG161 -> 0.98 | AW164: =DH161 -> 0.02 | AX164: =DC158 -> 0 | AY164: =DC159 -> 0 | BS164: FAPC(6) | BT164: a) Conexiones en Baja Tensión - C1/C2 | BW164: =DC155 -> 193.596414 | BX164: =DB155*(1+CC164) -> 2.788 | BY164: =DD155*DB155*(1+DB160) -> 953.916988 | BZ164: =DE155*DB155*(1+DC161) -> 5743.33576 | CC164: =CD164*CF164+CE164*CG164 -> 0 | CD164: =DG161 -> 0.98 | CE164: =DH161 -> 0.02 | CF164: =DB158 -> 0 | CG164: =DB159 -> 0
A165: Para costos por metro de cable | B165: =+Historico!O165 ->  | F165: =IF(IF(Resumen!$G$11="Ft-1",B165,C165)=0,"",IF(Resumen!$G$11="Ft-1",B165,C165)) ->  | G165: 1 | O165: Para costos por metro de cable | Z165: Para costos por metro de cable | AK165: Para costos por metro de cable | BS165: Para costos por metro de cable | DF165: FACM(1) | DG165: 0.93 | DH165: 0.07
A166: a) Conexiones en Baja Tensión - C1/C2 | B166: =+Historico!O166 -> 0.9961 | C166: 0.988 | D166: =+C166/B166-1 -> -0.008131713683 | F166: =IF(IF(Resumen!$G$11="Ft-1",B166,C166)=0,"",IF(Resumen!$G$11="Ft-1",B166,C166)) -> 0.9961 | G166: 1 | O166: FAPC(7) | P166: a) Conexiones en Baja Tensión - C1/C2 | S166: 0.26 | T166: 0 | U166: 0.74 | V166: 0 | Z166: FAPC(7) | AA166: a) Conexiones en Baja Tensión - C1/C2 | AD166: =AO166/BW166 -> 1.099584253 | AE166: 0 | AF166: =AQ166/BY166 -> 0.9488610834 | AG166: 0 | AK166: FAPC(7) | AL166: a) Conexiones en Baja Tensión - C1/C2 | AO166: =DC156 -> 212.8755683 | AP166: 0 | AQ166: =DD156*DB156*(1+DC160) -> 905.1347067 | AR166: 0 | AU166: =AV166*AX166+AW166*AY166 -> 0 | AV166: =DG163 -> 0 | AW166: =DH163 -> 1 | AX166: =DC158 -> 0 | AY166: =DC159 -> 0 | BS166: FAPC(7) | BT166: a) Conexiones en Baja Tensión - C1/C2 | BW166: =DC155 -> 193.596414 | BX166: 0 | BY166: =DD155*DB155*(1+DB160) -> 953.916988 | BZ166: 0 | CC166: =CD166*CF166+CE166*CG166 -> 0 | CD166: =DG163 -> 0 | CE166: =DH163 -> 1 | CF166: =DB158 -> 0 | CG166: =DB159 -> 0 | DF166: FACM(2) | DG166: 0.95 | DH166: 0.05
A167: 2. MANTENIMIENTO DE LA CONEXIÓN | B167: =+Historico!O167 ->  | F167: =IF(IF(Resumen!$G$11="Ft-1",B167,C167)=0,"",IF(Resumen!$G$11="Ft-1",B167,C167)) ->  | G167: =+IF(F167=B167,1,0) -> 1 | O167: Reposición y Mantenimiento | S167: ACM | T167: BCM | U167: CCM | V167: DCM | Z167: Reposición y Mantenimiento | AD167: ACM | AE167: BCM | AF167: CCM | AG167: DCM | AK167: Reposición y Mantenimiento | AO167: ACM | AP167: BCM | AQ167: CCM | AR167: DCM | BS167: Reposición y Mantenimiento | BW167: ACM | BX167: BCM | BY167: CCM | BZ167: DCM
A168: a) Conexiones en Baja Tensión - C1/C2 | B168: =+Historico!O168 -> 1.088 | C168: =ROUND(S168*AD168+T168*AE168+U168*AF168+V168*AG168,4) -> 1.0885 | D168: =+C168/B168-1 -> 0.0004595588235 | F168: =IF(IF(Resumen!$G$11="Ft-1",B168,C168)=0,"",IF(Resumen!$G$11="Ft-1",B168,C168)) -> 1.088 | G168: 1 | O168: FACM(1) | P168: a) Conexiones en Baja Tensión - C1/C2 (Conexiones Aéreas, Subterráneas, Subterráneas Múltiples y Mixtas en Baja Tensión) | S168: 0.88 | T168: 0.12 | U168: 0 | V168: 0 | Z168: FACM(1) | AA168: a) Conexiones en Baja Tensión - C1/C2 (Conexiones Aéreas, Subterráneas, Subterráneas Múltiples y Mixtas en Baja Tensión) | AD168: =AO168/BW168 -> 1.099584253 | AE168: =AP168/BX168 -> 1.007532281 | AF168: 0 | AG168: 0 | AK168: FACM(1) | AL168: a) Conexiones en Baja Tensión - C1/C2 (Conexiones Aéreas, Subterráneas, Subterráneas Múltiples y Mixtas en Baja Tensión) | AO168: =DC156 -> 212.8755683 | AP168: =DB156*(1+AU168) -> 2.809 | AQ168: 0 | AR168: 0 | AU168: =AV168*AX168+AW168*AY168 -> 0 | AV168: =DG165 -> 0.93 | AW168: =DH165 -> 0.07 | AX168: =DC158 -> 0 | AY168: =DC159 -> 0 | BS168: FACM(1) | BT168: a) Conexiones en Baja Tensión - C1/C2 (Conexiones Aéreas, Subterráneas, Subterráneas Múltiples y Mixtas en Baja Tensión) | BW168: =DC155 -> 193.596414 | BX168: =DB155*(1+CC168) -> 2.788 | BY168: 0 | BZ168: 0 | CC168: =CD168*CF168+CE168*CG168 -> 0 | CD168: =DG165 -> 0.93 | CE168: =DH165 -> 0.07 | CF168: =DB158 -> 0 | CG168: =DB159 -> 0 | CZ168: Indicadores Macroeconómicos de Corte y Reconexión
A169: b) Conexiones en Baja y Media Tensión (PMI y Celda) - C3/C4/C5 | B169: =+Historico!O169 -> 1.0935 | C169: 1.0941 | D169: =+C169/B169-1 -> 0.000548696845 | F169: =IF(IF(Resumen!$G$11="Ft-1",B169,C169)=0,"",IF(Resumen!$G$11="Ft-1",B169,C169)) -> 1.0935 | G169: 1 | O169: FACM(2) | P169: b) Conexiones en Baja y Media Tensión (PMI y Celda) - C3/C4/C5 (Conexiones Aéreas, Mixtas y Subterráneas en Baja Tensión Conexiones en Media Tensión (PMI y Celda)) | S169: 0.94 | T169: 0.06 | U169: 0 | V169: 0 | Z169: FACM(2) | AA169: b) Conexiones en Baja y Media Tensión (PMI y Celda) - C3/C4/C5 (Conexiones Aéreas, Mixtas y Subterráneas en Baja Tensión Conexiones en Media Tensión (PMI y Celda)) | AD169: =AO169/BW169 -> 1.099584253 | AE169: =AP169/BX169 -> 1.007532281 | AF169: 0 | AG169: 0 | AK169: FACM(2) | AL169: b) Conexiones en Baja y Media Tensión (PMI y Celda) - C3/C4/C5 (Conexiones Aéreas, Mixtas y Subterráneas en Baja Tensión Conexiones en Media Tensión (PMI y Celda)) | AO169: =DC156 -> 212.8755683 | AP169: =DB156*(1+AU169) -> 2.809 | AQ169: 0 | AR169: 0 | AU169: =AV169*AX169+AW169*AY169 -> 0 | AV169: =DG166 -> 0.95 | AW169: =DH166 -> 0.05 | AX169: =DC158 -> 0 | AY169: =DC159 -> 0 | BS169: FACM(2) | BT169: b) Conexiones en Baja y Media Tensión (PMI y Celda) - C3/C4/C5 (Conexiones Aéreas, Mixtas y Subterráneas en Baja Tensión Conexiones en Media Tensión (PMI y Celda)) | BW169: =DC155 -> 193.596414 | BX169: =DB155*(1+CC169) -> 2.788 | BY169: 0 | BZ169: 0 | CC169: =CD169*CF169+CE169*CG169 -> 0 | CD169: =DG166 -> 0.95 | CE169: =DH166 -> 0.05 | CF169: =DB158 -> 0 | CG169: =DB159 -> 0 | DA169: Fecha | DB169: IPM
F170: =IF(IF(Resumen!$G$11="Ft-1",B170,C170)=0,"",IF(Resumen!$G$11="Ft-1",B170,C170)) ->  | G170: 1 | CZ170: Valores Base | DA170: Resolucion Base | DB170: 199.037811
F171: =IF(IF(Resumen!$G$11="Ft-1",B171,C171)=0,"",IF(Resumen!$G$11="Ft-1",B171,C171)) ->  | G171: 1 | O171: Corte y Reconexión (Ponderadores) | Z171: Corte y Reconexión (Componentes) | AK171: Corte y Reconexión (V.actuales) | BS171: Corte y Reconexión (V.Resolución) | CZ171: Valores Actuales | DA171: Indicador actualizado | DB171: =+'ALUMINIO-COBRE-TC-IPM'!G8 -> 212.8755683
A172: C.3. DISTRIBUCIÓN - CORTE Y RECONEXIÓN (FAIM) - Res. Nº 159-2011-OS/CD | B172: =+Historico!O172 ->  | F172: =IF(IF(Resumen!$G$11="Ft-1",B172,C172)=0,"",IF(Resumen!$G$11="Ft-1",B172,C172)) ->  | G172: 1
F173: =IF(IF(Resumen!$G$11="Ft-1",B173,C173)=0,"",IF(Resumen!$G$11="Ft-1",B173,C173)) ->  | G173: 1 | Z173: Corte y Reconexión | AD173: IPM / IPMo | AK173: Corte y Reconexión | AO173: IPM / IPMo | BS173: Corte y Reconexión | BW173: IPM / IPMo
A174: a) Corte y Reconexión | B174: =+Historico!O174 -> 1.0689 | C174: =+ROUND(AD174,4) -> 1.0695 | D174: =+C174/B174-1 -> 0.0005613247264 | F174: =IF(IF(Resumen!$G$11="Ft-1",B174,C174)=0,"",IF(Resumen!$G$11="Ft-1",B174,C174)) -> 1.0689 | G174: 1 | Z174: FAIM(1) | AA174: a) Corte y Reconexión | AD174: =AO174/BW174 -> 1.069523259 | AK174: FAIM(1) | AL174: a) Corte y Reconexión | AO174: =DB171 -> 212.8755683 | BS174: FAIM(1) | BT174: a) Corte y Reconexión | BW174: =DB170 -> 199.037811
C176: Factor que motiva ajuste

Sheet Historico
A1: HISTÓRICO DE LOS FACTORES DE ACTUALIZACIÓN TARIFARIA
A5: Descripción | B5: 1 | C5: =IF(OR(AND(MONTH(D5)=5,DAY(D5)=4),AND(MONTH(D5)=11,DAY(D5)=4)),DATE(YEAR(D5),MONTH(D5),DAY(D5)-3),IF(OR(AND(MONTH(D5)=5,DAY(D5)=1),AND(MONTH(D5)=11,DAY(D5)=1)),DATE(YEAR(D5),MONTH(D5)-1,DAY(D5)+3),DATE(YEAR(D5),MONTH(D5)-1,DAY(D5)))) -> 2013-06-04 | D5: =IF(OR(AND(MONTH(E5)=5,DAY(E5)=4),AND(MONTH(E5)=11,DAY(E5)=4)),DATE(YEAR(E5),MONTH(E5),DAY(E5)-3),IF(OR(AND(MONTH(E5)=5,DAY(E5)=1),AND(MONTH(E5)=11,DAY(E5)=1)),DATE(YEAR(E5),MONTH(E5)-1,DAY(E5)+3),DATE(YEAR(E5),MONTH(E5)-1,DAY(E5)))) -> 2013-07-04 | E5: =IF(OR(AND(MONTH(F5)=5,DAY(F5)=4),AND(MONTH(F5)=11,DAY(F5)=4)),DATE(YEAR(F5),MONTH(F5),DAY(F5)-3),IF(OR(AND(MONTH(F5)=5,DAY(F5)=1),AND(MONTH(F5)=11,DAY(F5)=1)),DATE(YEAR(F5),MONTH(F5)-1,DAY(F5)+3),DATE(YEAR(F5),MONTH(F5)-1,DAY(F5)))) -> 2013-08-04 | F5: =IF(OR(AND(MONTH(G5)=5,DAY(G5)=4),AND(MONTH(G5)=11,DAY(G5)=4)),DATE(YEAR(G5),MONTH(G5),DAY(G5)-3),IF(OR(AND(MONTH(G5)=5,DAY(G5)=1),AND(MONTH(G5)=11,DAY(G5)=1)),DATE(YEAR(G5),MONTH(G5)-1,DAY(G5)+3),DATE(YEAR(G5),MONTH(G5)-1,DAY(G5)))) -> 2013-09-04 | G5: =IF(OR(AND(MONTH(H5)=5,DAY(H5)=4),AND(MONTH(H5)=11,DAY(H5)=4)),DATE(YEAR(H5),MONTH(H5),DAY(H5)-3),IF(OR(AND(MONTH(H5)=5,DAY(H5)=1),AND(MONTH(H5)=11,DAY(H5)=1)),DATE(YEAR(H5),MONTH(H5)-1,DAY(H5)+3),DATE(YEAR(H5),MONTH(H5)-1,DAY(H5)))) -> 2013-10-04 | H5: =IF(OR(AND(MONTH(I5)=5,DAY(I5)=4),AND(MONTH(I5)=11,DAY(I5)=4)),DATE(YEAR(I5),MONTH(I5),DAY(I5)-3),IF(OR(AND(MONTH(I5)=5,DAY(I5)=1),AND(MONTH(I5)=11,DAY(I5)=1)),DATE(YEAR(I5),MONTH(I5)-1,DAY(I5)+3),DATE(YEAR(I5),MONTH(I5)-1,DAY(I5)))) -> 2013-11-01 | I5: =IF(OR(AND(MONTH(J5)=5,DAY(J5)=4),AND(MONTH(J5)=11,DAY(J5)=4)),DATE(YEAR(J5),MONTH(J5),DAY(J5)-3),IF(OR(AND(MONTH(J5)=5,DAY(J5)=1),AND(MONTH(J5)=11,DAY(J5)=1)),DATE(YEAR(J5),MONTH(J5)-1,DAY(J5)+3),DATE(YEAR(J5),MONTH(J5)-1,DAY(J5)))) -> 2013-11-04 | J5: =IF(OR(AND(MONTH(K5)=5,DAY(K5)=4),AND(MONTH(K5)=11,DAY(K5)=4)),DATE(YEAR(K5),MONTH(K5),DAY(K5)-3),IF(OR(AND(MONTH(K5)=5,DAY(K5)=1),AND(MONTH(K5)=11,DAY(K5)=1)),DATE(YEAR(K5),MONTH(K5)-1,DAY(K5)+3),DATE(YEAR(K5),MONTH(K5)-1,DAY(K5)))) -> 2013-12-04 | K5: =IF(OR(AND(MONTH(L5)=5,DAY(L5)=4),AND(MONTH(L5)=11,DAY(L5)=4)),DATE(YEAR(L5),MONTH(L5),DAY(L5)-3),IF(OR(AND(MONTH(L5)=5,DAY(L5)=1),AND(MONTH(L5)=11,DAY(L5)=1)),DATE(YEAR(L5),MONTH(L5)-1,DAY(L5)+3),DATE(YEAR(L5),MONTH(L5)-1,DAY(L5)))) -> 2014-01-04 | L5: =IF(OR(AND(MONTH(M5)=5,DAY(M5)=4),AND(MONTH(M5)=11,DAY(M5)=4)),DATE(YEAR(M5),MONTH(M5),DAY(M5)-3),IF(OR(AND(MONTH(M5)=5,DAY(M5)=1),AND(MONTH(M5)=11,DAY(M5)=1)),DATE(YEAR(M5),MONTH(M5)-1,DAY(M5)+3),DATE(YEAR(M5),MONTH(M5)-1,DAY(M5)))) -> 2014-02-04 | M5: =IF(OR(AND(MONTH(N5)=5,DAY(N5)=4),AND(MONTH(N5)=11,DAY(N5)=4)),DATE(YEAR(N5),MONTH(N5),DAY(N5)-3),IF(OR(AND(MONTH(N5)=5,DAY(N5)=1),AND(MONTH(N5)=11,DAY(N5)=1)),DATE(YEAR(N5),MONTH(N5)-1,DAY(N5)+3),DATE(YEAR(N5),MONTH(N5)-1,DAY(N5)))) -> 2014-03-04 | N5: =IF(OR(AND(MONTH(O5)=5,DAY(O5)=4),AND(MONTH(O5)=11,DAY(O5)=4)),DATE(YEAR(O5),MONTH(O5),DAY(O5)-3),IF(OR(AND(MONTH(O5)=5,DAY(O5)=1),AND(MONTH(O5)=11,DAY(O5)=1)),DATE(YEAR(O5),MONTH(O5)-1,DAY(O5)+3),DATE(YEAR(O5),MONTH(O5)-1,DAY(O5)))) -> 2014-04-04 | O5: 2014-05-01 | P5: =Condiciones!C3 -> 2014-05-04
A6: A. GENERACIÓN - TARIFAS EN BARRA (Res. N° 053, 066, 077, 135-2013-OS/CD, 067-2014-OS/CD) | C6: =IF($B6="","",VLOOKUP(C$5,BBDD!$8:$1048576,$B6,FALSE)) ->  | D6: =IF($B6="","",VLOOKUP(D$5,BBDD!$8:$1048576,$B6,FALSE)) ->  | E6: =IF($B6="","",VLOOKUP(E$5,BBDD!$8:$1048576,$B6,FALSE)) ->  | F6: =IF($B6="","",VLOOKUP(F$5,BBDD!$8:$1048576,$B6,FALSE)) ->  | G6: =IF($B6="","",VLOOKUP(G$5,BBDD!$8:$1048576,$B6,FALSE)) ->  | H6: =IF($B6="","",VLOOKUP(H$5,BBDD!$8:$1048576,$B6,FALSE)) ->  | I6: =IF($B6="","",VLOOKUP(I$5,BBDD!$8:$1048576,$B6,FALSE)) ->  | J6: =IF($B6="","",VLOOKUP(J$5,BBDD!$8:$1048576,$B6,FALSE)) ->  | K6: =IF($B6="","",VLOOKUP(K$5,BBDD!$8:$1048576,$B6,FALSE)) ->  | L6: =IF($B6="","",VLOOKUP(L$5,BBDD!$8:$1048576,$B6,FALSE)) ->  | M6: =IF($B6="","",VLOOKUP(M$5,BBDD!$8:$1048576,$B6,FALSE)) ->  | N6: =IF($B6="","",VLOOKUP(N$5,BBDD!$8:$1048576,$B6,FALSE)) ->  | O6: =IF($B6="","",VLOOKUP(O$5,BBDD!$8:$1048576,$B6,FALSE)) ->  | P6: =+Factores!F6 -> 
A7: 1. POTENCIA (FAPPM) | C7: =IF($B7="","",VLOOKUP(C$5,BBDD!$8:$1048576,$B7,FALSE)) ->  | D7: =IF($B7="","",VLOOKUP(D$5,BBDD!$8:$1048576,$B7,FALSE)) ->  | E7: =IF($B7="","",VLOOKUP(E$5,BBDD!$8:$1048576,$B7,FALSE)) ->  | F7: =IF($B7="","",VLOOKUP(F$5,BBDD!$8:$1048576,$B7,FALSE)) ->  | G7: =IF($B7="","",VLOOKUP(G$5,BBDD!$8:$1048576,$B7,FALSE)) ->  | H7: =IF($B7="","",VLOOKUP(H$5,BBDD!$8:$1048576,$B7,FALSE)) ->  | I7: =IF($B7="","",VLOOKUP(I$5,BBDD!$8:$1048576,$B7,FALSE)) ->  | J7: =IF($B7="","",VLOOKUP(J$5,BBDD!$8:$1048576,$B7,FALSE)) ->  | K7: =IF($B7="","",VLOOKUP(K$5,BBDD!$8:$1048576,$B7,FALSE)) ->  | L7: =IF($B7="","",VLOOKUP(L$5,BBDD!$8:$1048576,$B7,FALSE)) ->  | M7: =IF($B7="","",VLOOKUP(M$5,BBDD!$8:$1048576,$B7,FALSE)) ->  | N7: =IF($B7="","",VLOOKUP(N$5,BBDD!$8:$1048576,$B7,FALSE)) ->  | O7: =IF($B7="","",VLOOKUP(O$5,BBDD!$8:$1048576,$B7,FALSE)) ->  | P7: =+Factores!F7 -> 
A8: Sistema Eléctrico Interconectado Nacional (SEIN) | B8: =1+B5 -> 2 | C8: =IF($B8="","",VLOOKUP(C$5,BBDD!$8:$1048576,$B8,FALSE)) -> 1.0422 | D8: =IF($B8="","",VLOOKUP(D$5,BBDD!$8:$1048576,$B8,FALSE)) -> 1.0422 | E8: =IF($B8="","",VLOOKUP(E$5,BBDD!$8:$1048576,$B8,FALSE)) -> 1.0422 | F8: =IF($B8="","",VLOOKUP(F$5,BBDD!$8:$1048576,$B8,FALSE)) -> 1.0422 | G8: =IF($B8="","",VLOOKUP(G$5,BBDD!$8:$1048576,$B8,FALSE)) -> 1.0422 | H8: =IF($B8="","",VLOOKUP(H$5,BBDD!$8:$1048576,$B8,FALSE)) -> 1.0422 | I8: =IF($B8="","",VLOOKUP(I$5,BBDD!$8:$1048576,$B8,FALSE)) -> 1.0422 | J8: =IF($B8="","",VLOOKUP(J$5,BBDD!$8:$1048576,$B8,FALSE)) -> 1.0422 | K8: =IF($B8="","",VLOOKUP(K$5,BBDD!$8:$1048576,$B8,FALSE)) -> 1.0422 | L8: =IF($B8="","",VLOOKUP(L$5,BBDD!$8:$1048576,$B8,FALSE)) -> 1.0734 | M8: =IF($B8="","",VLOOKUP(M$5,BBDD!$8:$1048576,$B8,FALSE)) -> 1.0734 | N8: =IF($B8="","",VLOOKUP(N$5,BBDD!$8:$1048576,$B8,FALSE)) -> 1.0734 | O8: =IF($B8="","",VLOOKUP(O$5,BBDD!$8:$1048576,$B8,FALSE)) -> 1 | P8: =+Factores!F8 -> 1
A9: 2. ENERGÍA (FAPEM) | C9: =IF($B9="","",VLOOKUP(C$5,BBDD!$8:$1048576,$B9,FALSE)) ->  | D9: =IF($B9="","",VLOOKUP(D$5,BBDD!$8:$1048576,$B9,FALSE)) ->  | E9: =IF($B9="","",VLOOKUP(E$5,BBDD!$8:$1048576,$B9,FALSE)) ->  | F9: =IF($B9="","",VLOOKUP(F$5,BBDD!$8:$1048576,$B9,FALSE)) ->  | G9: =IF($B9="","",VLOOKUP(G$5,BBDD!$8:$1048576,$B9,FALSE)) ->  | H9: =IF($B9="","",VLOOKUP(H$5,BBDD!$8:$1048576,$B9,FALSE)) ->  | I9: =IF($B9="","",VLOOKUP(I$5,BBDD!$8:$1048576,$B9,FALSE)) ->  | J9: =IF($B9="","",VLOOKUP(J$5,BBDD!$8:$1048576,$B9,FALSE)) ->  | K9: =IF($B9="","",VLOOKUP(K$5,BBDD!$8:$1048576,$B9,FALSE)) ->  | L9: =IF($B9="","",VLOOKUP(L$5,BBDD!$8:$1048576,$B9,FALSE)) ->  | M9: =IF($B9="","",VLOOKUP(M$5,BBDD!$8:$1048576,$B9,FALSE)) ->  | N9: =IF($B9="","",VLOOKUP(N$5,BBDD!$8:$1048576,$B9,FALSE)) ->  | O9: =IF($B9="","",VLOOKUP(O$5,BBDD!$8:$1048576,$B9,FALSE)) ->  | P9: =+Factores!F9 -> 
A10: Sistema Eléctrico Interconectado Nacional (SEIN) | B10: =1+B8 -> 3 | C10: =IF($B10="","",VLOOKUP(C$5,BBDD!$8:$1048576,$B10,FALSE)) -> 1.0511 | D10: =IF($B10="","",VLOOKUP(D$5,BBDD!$8:$1048576,$B10,FALSE)) -> 1.0511 | E10: =IF($B10="","",VLOOKUP(E$5,BBDD!$8:$1048576,$B10,FALSE)) -> 1.0511 | F10: =IF($B10="","",VLOOKUP(F$5,BBDD!$8:$1048576,$B10,FALSE)) -> 1.0511 | G10: =IF($B10="","",VLOOKUP(G$5,BBDD!$8:$1048576,$B10,FALSE)) -> 1.0511 | H10: =IF($B10="","",VLOOKUP(H$5,BBDD!$8:$1048576,$B10,FALSE)) -> 1.0511 | I10: =IF($B10="","",VLOOKUP(I$5,BBDD!$8:$1048576,$B10,FALSE)) -> 1.0511 | J10: =IF($B10="","",VLOOKUP(J$5,BBDD!$8:$1048576,$B10,FALSE)) -> 1.0511 | K10: =IF($B10="","",VLOOKUP(K$5,BBDD!$8:$1048576,$B10,FALSE)) -> 1.0511 | L10: =IF($B10="","",VLOOKUP(L$5,BBDD!$8:$1048576,$B10,FALSE)) -> 1.1613 | M10: =IF($B10="","",VLOOKUP(M$5,BBDD!$8:$1048576,$B10,FALSE)) -> 1.1613 | N10: =IF($B10="","",VLOOKUP(N$5,BBDD!$8:$1048576,$B10,FALSE)) -> 1.1613 | O10: =IF($B10="","",VLOOKUP(O$5,BBDD!$8:$1048576,$B10,FALSE)) -> 1 | P10: =+Factores!F10 -> 1
A11: Sistemas Aislados | C11: =IF($B11="","",VLOOKUP(C$5,BBDD!$8:$1048576,$B11,FALSE)) ->  | D11: =IF($B11="","",VLOOKUP(D$5,BBDD!$8:$1048576,$B11,FALSE)) ->  | E11: =IF($B11="","",VLOOKUP(E$5,BBDD!$8:$1048576,$B11,FALSE)) ->  | F11: =IF($B11="","",VLOOKUP(F$5,BBDD!$8:$1048576,$B11,FALSE)) ->  | G11: =IF($B11="","",VLOOKUP(G$5,BBDD!$8:$1048576,$B11,FALSE)) ->  | H11: =IF($B11="","",VLOOKUP(H$5,BBDD!$8:$1048576,$B11,FALSE)) ->  | I11: =IF($B11="","",VLOOKUP(I$5,BBDD!$8:$1048576,$B11,FALSE)) ->  | J11: =IF($B11="","",VLOOKUP(J$5,BBDD!$8:$1048576,$B11,FALSE)) ->  | K11: =IF($B11="","",VLOOKUP(K$5,BBDD!$8:$1048576,$B11,FALSE)) ->  | L11: =IF($B11="","",VLOOKUP(L$5,BBDD!$8:$1048576,$B11,FALSE)) ->  | M11: =IF($B11="","",VLOOKUP(M$5,BBDD!$8:$1048576,$B11,FALSE)) ->  | N11: =IF($B11="","",VLOOKUP(N$5,BBDD!$8:$1048576,$B11,FALSE)) ->  | O11: =IF($B11="","",VLOOKUP(O$5,BBDD!$8:$1048576,$B11,FALSE)) ->  | P11: =+Factores!F11 -> 
A12: Adinelsa | B12: =1+B10 -> 4 | C12: =IF($B12="","",VLOOKUP(C$5,BBDD!$8:$1048576,$B12,FALSE)) -> 1.0035 | D12: =IF($B12="","",VLOOKUP(D$5,BBDD!$8:$1048576,$B12,FALSE)) -> 1.0035 | E12: =IF($B12="","",VLOOKUP(E$5,BBDD!$8:$1048576,$B12,FALSE)) -> 1.0244 | F12: =IF($B12="","",VLOOKUP(F$5,BBDD!$8:$1048576,$B12,FALSE)) -> 1.0325 | G12: =IF($B12="","",VLOOKUP(G$5,BBDD!$8:$1048576,$B12,FALSE)) -> 1.0325 | H12: =IF($B12="","",VLOOKUP(H$5,BBDD!$8:$1048576,$B12,FALSE)) -> 1.0325 | I12: =IF($B12="","",VLOOKUP(I$5,BBDD!$8:$1048576,$B12,FALSE)) -> 1.0325 | J12: =IF($B12="","",VLOOKUP(J$5,BBDD!$8:$1048576,$B12,FALSE)) -> 1.0325 | K12: =IF($B12="","",VLOOKUP(K$5,BBDD!$8:$1048576,$B12,FALSE)) -> 1.0283 | L12: =IF($B12="","",VLOOKUP(L$5,BBDD!$8:$1048576,$B12,FALSE)) -> 1.0283 | M12: =IF($B12="","",VLOOKUP(M$5,BBDD!$8:$1048576,$B12,FALSE)) -> 1.0306 | N12: =IF($B12="","",VLOOKUP(N$5,BBDD!$8:$1048576,$B12,FALSE)) -> 1.0306 | O12: =IF($B12="","",VLOOKUP(O$5,BBDD!$8:$1048576,$B12,FALSE)) -> 1 | P12: =+Factores!F12 -> 1.0005
A13: Chavimochic | B13: =1+B12 -> 5 | C13: =IF($B13="","",VLOOKUP(C$5,BBDD!$8:$1048576,$B13,FALSE)) -> 1.0035 | D13: =IF($B13="","",VLOOKUP(D$5,BBDD!$8:$1048576,$B13,FALSE)) -> 1.0035 | E13: =IF($B13="","",VLOOKUP(E$5,BBDD!$8:$1048576,$B13,FALSE)) -> 1.0244 | F13: =IF($B13="","",VLOOKUP(F$5,BBDD!$8:$1048576,$B13,FALSE)) -> 1.0325 | G13: =IF($B13="","",VLOOKUP(G$5,BBDD!$8:$1048576,$B13,FALSE)) -> 1.0325 | H13: =IF($B13="","",VLOOKUP(H$5,BBDD!$8:$1048576,$B13,FALSE)) -> 1.0325 | I13: =IF($B13="","",VLOOKUP(I$5,BBDD!$8:$1048576,$B13,FALSE)) -> 1.0325 | J13: =IF($B13="","",VLOOKUP(J$5,BBDD!$8:$1048576,$B13,FALSE)) -> 1.0325 | K13: =IF($B13="","",VLOOKUP(K$5,BBDD!$8:$1048576,$B13,FALSE)) -> 1.0283 | L13: =IF($B13="","",VLOOKUP(L$5,BBDD!$8:$1048576,$B13,FALSE)) -> 1.0283 | M13: =IF($B13="","",VLOOKUP(M$5,BBDD!$8:$1048576,$B13,FALSE)) -> 1.0306 | N13: =IF($B13="","",VLOOKUP(N$5,BBDD!$8:$1048576,$B13,FALSE)) -> 1.0306 | O13: =IF($B13="","",VLOOKUP(O$5,BBDD!$8:$1048576,$B13,FALSE)) -> 1 | P13: =+Factores!F13 -> 1.0005
A14: Edelnor | B14: 6 | C14: =IF($B14="","",VLOOKUP(C$5,BBDD!$8:$1048576,$B14,FALSE)) -> 1.0035 | D14: =IF($B14="","",VLOOKUP(D$5,BBDD!$8:$1048576,$B14,FALSE)) -> 1.0035 | E14: =IF($B14="","",VLOOKUP(E$5,BBDD!$8:$1048576,$B14,FALSE)) -> 1.0244 | F14: =IF($B14="","",VLOOKUP(F$5,BBDD!$8:$1048576,$B14,FALSE)) -> 1.0325 | G14: =IF($B14="","",VLOOKUP(G$5,BBDD!$8:$1048576,$B14,FALSE)) -> 1.0325 | H14: =IF($B14="","",VLOOKUP(H$5,BBDD!$8:$1048576,$B14,FALSE)) -> 1.0325 | I14: =IF($B14="","",VLOOKUP(I$5,BBDD!$8:$1048576,$B14,FALSE)) -> 1.0325 | J14: =IF($B14="","",VLOOKUP(J$5,BBDD!$8:$1048576,$B14,FALSE)) -> 1.0325 | K14: =IF($B14="","",VLOOKUP(K$5,BBDD!$8:$1048576,$B14,FALSE)) -> 1.0283 | L14: =IF($B14="","",VLOOKUP(L$5,BBDD!$8:$1048576,$B14,FALSE)) -> 1.0283 | M14: =IF($B14="","",VLOOKUP(M$5,BBDD!$8:$1048576,$B14,FALSE)) -> 1.0306 | N14: =IF($B14="","",VLOOKUP(N$5,BBDD!$8:$1048576,$B14,FALSE)) -> 1.0306 | O14: =IF($B14="","",VLOOKUP(O$5,BBDD!$8:$1048576,$B14,FALSE)) -> 1 | P14: =+Factores!F14 -> 1.0005
A15: Eilhicha | B15: 7 | C15: =IF($B15="","",VLOOKUP(C$5,BBDD!$8:$1048576,$B15,FALSE)) -> 1.0035 | D15: =IF($B15="","",VLOOKUP(D$5,BBDD!$8:$1048576,$B15,FALSE)) -> 1.0035 | E15: =IF($B15="","",VLOOKUP(E$5,BBDD!$8:$1048576,$B15,FALSE)) -> 1.0244 | F15: =IF($B15="","",VLOOKUP(F$5,BBDD!$8:$1048576,$B15,FALSE)) -> 1.0325 | G15: =IF($B15="","",VLOOKUP(G$5,BBDD!$8:$1048576,$B15,FALSE)) -> 1.0325 | H15: =IF($B15="","",VLOOKUP(H$5,BBDD!$8:$1048576,$B15,FALSE)) -> 1.0325 | I15: =IF($B15="","",VLOOKUP(I$5,BBDD!$8:$1048576,$B15,FALSE)) -> 1.0325 | J15: =IF($B15="","",VLOOKUP(J$5,BBDD!$8:$1048576,$B15,FALSE)) -> 1.0325 | K15: =IF($B15="","",VLOOKUP(K$5,BBDD!$8:$1048576,$B15,FALSE)) -> 1.0283 | L15: =IF($B15="","",VLOOKUP(L$5,BBDD!$8:$1048576,$B15,FALSE)) -> 1.0283 | M15: =IF($B15="","",VLOOKUP(M$5,BBDD!$8:$1048576,$B15,FALSE)) -> 1.0306 | N15: =IF($B15="","",VLOOKUP(N$5,BBDD!$8:$1048576,$B15,FALSE)) -> 1.0306 | O15: =IF($B15="","",VLOOKUP(O$5,BBDD!$8:$1048576,$B15,FALSE)) -> 1 | P15: =+Factores!F15 -> 1.0005
A16: Electro Oriente | B16: 8 | C16: =IF($B16="","",VLOOKUP(C$5,BBDD!$8:$1048576,$B16,FALSE)) -> 0.9768 | D16: =IF($B16="","",VLOOKUP(D$5,BBDD!$8:$1048576,$B16,FALSE)) -> 0.9768 | E16: =IF($B16="","",VLOOKUP(E$5,BBDD!$8:$1048576,$B16,FALSE)) -> 0.9876 | F16: =IF($B16="","",VLOOKUP(F$5,BBDD!$8:$1048576,$B16,FALSE)) -> 1.0059 | G16: =IF($B16="","",VLOOKUP(G$5,BBDD!$8:$1048576,$B16,FALSE)) -> 1.0059 | H16: =IF($B16="","",VLOOKUP(H$5,BBDD!$8:$1048576,$B16,FALSE)) -> 1.0059 | I16: =IF($B16="","",VLOOKUP(I$5,BBDD!$8:$1048576,$B16,FALSE)) -> 1.0059 | J16: =IF($B16="","",VLOOKUP(J$5,BBDD!$8:$1048576,$B16,FALSE)) -> 1.0059 | K16: =IF($B16="","",VLOOKUP(K$5,BBDD!$8:$1048576,$B16,FALSE)) -> 1.0271 | L16: =IF($B16="","",VLOOKUP(L$5,BBDD!$8:$1048576,$B16,FALSE)) -> 1.0271 | M16: =IF($B16="","",VLOOKUP(M$5,BBDD!$8:$1048576,$B16,FALSE)) -> 1.0356 | N16: =IF($B16="","",VLOOKUP(N$5,BBDD!$8:$1048576,$B16,FALSE)) -> 1.0356 | O16: =IF($B16="","",VLOOKUP(O$5,BBDD!$8:$1048576,$B16,FALSE)) -> 1 | P16: =+Factores!F16 -> 0.9999
A17: Electro Sur Este | B17: 9 | C17: =IF($B17="","",VLOOKUP(C$5,BBDD!$8:$1048576,$B17,FALSE)) -> 0.9877 | D17: =IF($B17="","",VLOOKUP(D$5,BBDD!$8:$1048576,$B17,FALSE)) -> 0.9877 | E17: =IF($B17="","",VLOOKUP(E$5,BBDD!$8:$1048576,$B17,FALSE)) -> 0.9758 | F17: =IF($B17="","",VLOOKUP(F$5,BBDD!$8:$1048576,$B17,FALSE)) -> 0.9881 | G17: =IF($B17="","",VLOOKUP(G$5,BBDD!$8:$1048576,$B17,FALSE)) -> 0.9881 | H17: =IF($B17="","",VLOOKUP(H$5,BBDD!$8:$1048576,$B17,FALSE)) -> 0.9881 | I17: =IF($B17="","",VLOOKUP(I$5,BBDD!$8:$1048576,$B17,FALSE)) -> 0.9881 | J17: =IF($B17="","",VLOOKUP(J$5,BBDD!$8:$1048576,$B17,FALSE)) -> 0.9881 | K17: =IF($B17="","",VLOOKUP(K$5,BBDD!$8:$1048576,$B17,FALSE)) -> 0.9862 | L17: =IF($B17="","",VLOOKUP(L$5,BBDD!$8:$1048576,$B17,FALSE)) -> 0.9862 | M17: =IF($B17="","",VLOOKUP(M$5,BBDD!$8:$1048576,$B17,FALSE)) -> 1.0014 | N17: =IF($B17="","",VLOOKUP(N$5,BBDD!$8:$1048576,$B17,FALSE)) -> 1.0014 | O17: =IF($B17="","",VLOOKUP(O$5,BBDD!$8:$1048576,$B17,FALSE)) -> 1 | P17: =+Factores!F17 -> 0.9984
A18: Electro Ucayali | B18: 10 | C18: =IF($B18="","",VLOOKUP(C$5,BBDD!$8:$1048576,$B18,FALSE)) -> 1.0035 | D18: =IF($B18="","",VLOOKUP(D$5,BBDD!$8:$1048576,$B18,FALSE)) -> 1.0035 | E18: =IF($B18="","",VLOOKUP(E$5,BBDD!$8:$1048576,$B18,FALSE)) -> 1.0244 | F18: =IF($B18="","",VLOOKUP(F$5,BBDD!$8:$1048576,$B18,FALSE)) -> 1.0325 | G18: =IF($B18="","",VLOOKUP(G$5,BBDD!$8:$1048576,$B18,FALSE)) -> 1.0325 | H18: =IF($B18="","",VLOOKUP(H$5,BBDD!$8:$1048576,$B18,FALSE)) -> 1.0325 | I18: =IF($B18="","",VLOOKUP(I$5,BBDD!$8:$1048576,$B18,FALSE)) -> 1.0325 | J18: =IF($B18="","",VLOOKUP(J$5,BBDD!$8:$1048576,$B18,FALSE)) -> 1.0325 | K18: =IF($B18="","",VLOOKUP(K$5,BBDD!$8:$1048576,$B18,FALSE)) -> 1.0283 | L18: =IF($B18="","",VLOOKUP(L$5,BBDD!$8:$1048576,$B18,FALSE)) -> 1.0283 | M18: =IF($B18="","",VLOOKUP(M$5,BBDD!$8:$1048576,$B18,FALSE)) -> 1.0306 | N18: =IF($B18="","",VLOOKUP(N$5,BBDD!$8:$1048576,$B18,FALSE)) -> 1.0306 | O18: =IF($B18="","",VLOOKUP(O$5,BBDD!$8:$1048576,$B18,FALSE)) -> 1 | P18: =+Factores!F18 -> 1.0005
A19: Electronorte | B19: 11 | C19: =IF($B19="","",VLOOKUP(C$5,BBDD!$8:$1048576,$B19,FALSE)) -> 0.999 | D19: =IF($B19="","",VLOOKUP(D$5,BBDD!$8:$1048576,$B19,FALSE)) -> 0.999 | E19: =IF($B19="","",VLOOKUP(E$5,BBDD!$8:$1048576,$B19,FALSE)) -> 1.0119 | F19: =IF($B19="","",VLOOKUP(F$5,BBDD!$8:$1048576,$B19,FALSE)) -> 1.0215 | G19: =IF($B19="","",VLOOKUP(G$5,BBDD!$8:$1048576,$B19,FALSE)) -> 1.0215 | H19: =IF($B19="","",VLOOKUP(H$5,BBDD!$8:$1048576,$B19,FALSE)) -> 1.0215 | I19: =IF($B19="","",VLOOKUP(I$5,BBDD!$8:$1048576,$B19,FALSE)) -> 1.0215 | J19: =IF($B19="","",VLOOKUP(J$5,BBDD!$8:$1048576,$B19,FALSE)) -> 1.0215 | K19: =IF($B19="","",VLOOKUP(K$5,BBDD!$8:$1048576,$B19,FALSE)) -> 1.0173 | L19: =IF($B19="","",VLOOKUP(L$5,BBDD!$8:$1048576,$B19,FALSE)) -> 1.0173 | M19: =IF($B19="","",VLOOKUP(M$5,BBDD!$8:$1048576,$B19,FALSE)) -> 1.0245 | N19: =IF($B19="","",VLOOKUP(N$5,BBDD!$8:$1048576,$B19,FALSE)) -> 1.0245 | O19: =IF($B19="","",VLOOKUP(O$5,BBDD!$8:$1048576,$B19,FALSE)) -> 1 | P19: =+Factores!F19 -> 0.992
A20: Hidrandina | B20: 12 | C20: =IF($B20="","",VLOOKUP(C$5,BBDD!$8:$1048576,$B20,FALSE)) -> 0.99 | D20: =IF($B20="","",VLOOKUP(D$5,BBDD!$8:$1048576,$B20,FALSE)) -> 0.99 | E20: =IF($B20="","",VLOOKUP(E$5,BBDD!$8:$1048576,$B20,FALSE)) -> 0.9862 | F20: =IF($B20="","",VLOOKUP(F$5,BBDD!$8:$1048576,$B20,FALSE)) -> 0.9979 | G20: =IF($B20="","",VLOOKUP(G$5,BBDD!$8:$1048576,$B20,FALSE)) -> 0.9979 | H20: =IF($B20="","",VLOOKUP(H$5,BBDD!$8:$1048576,$B20,FALSE)) -> 0.9979 | I20: =IF($B20="","",VLOOKUP(I$5,BBDD!$8:$1048576,$B20,FALSE)) -> 0.9979 | J20: =IF($B20="","",VLOOKUP(J$5,BBDD!$8:$1048576,$B20,FALSE)) -> 0.9979 | K20: =IF($B20="","",VLOOKUP(K$5,BBDD!$8:$1048576,$B20,FALSE)) -> 0.9939 | L20: =IF($B20="","",VLOOKUP(L$5,BBDD!$8:$1048576,$B20,FALSE)) -> 0.9939 | M20: =IF($B20="","",VLOOKUP(M$5,BBDD!$8:$1048576,$B20,FALSE)) -> 1.0065 | N20: =IF($B20="","",VLOOKUP(N$5,BBDD!$8:$1048576,$B20,FALSE)) -> 1.0065 | O20: =IF($B20="","",VLOOKUP(O$5,BBDD!$8:$1048576,$B20,FALSE)) -> 1 | P20: =+Factores!F20 -> 0.9819
A21: Seal | B21: 13 | C21: =IF($B21="","",VLOOKUP(C$5,BBDD!$8:$1048576,$B21,FALSE)) -> 0.9925 | D21: =IF($B21="","",VLOOKUP(D$5,BBDD!$8:$1048576,$B21,FALSE)) -> 0.9925 | E21: =IF($B21="","",VLOOKUP(E$5,BBDD!$8:$1048576,$B21,FALSE)) -> 0.9932 | F21: =IF($B21="","",VLOOKUP(F$5,BBDD!$8:$1048576,$B21,FALSE)) -> 1.0043 | G21: =IF($B21="","",VLOOKUP(G$5,BBDD!$8:$1048576,$B21,FALSE)) -> 1.0043 | H21: =IF($B21="","",VLOOKUP(H$5,BBDD!$8:$1048576,$B21,FALSE)) -> 1.0043 | I21: =IF($B21="","",VLOOKUP(I$5,BBDD!$8:$1048576,$B21,FALSE)) -> 1.0043 | J21: =IF($B21="","",VLOOKUP(J$5,BBDD!$8:$1048576,$B21,FALSE)) -> 1.0043 | K21: =IF($B21="","",VLOOKUP(K$5,BBDD!$8:$1048576,$B21,FALSE)) -> 1.0003 | L21: =IF($B21="","",VLOOKUP(L$5,BBDD!$8:$1048576,$B21,FALSE)) -> 1.0003 | M21: =IF($B21="","",VLOOKUP(M$5,BBDD!$8:$1048576,$B21,FALSE)) -> 1.0109 | N21: =IF($B21="","",VLOOKUP(N$5,BBDD!$8:$1048576,$B21,FALSE)) -> 1.0109 | O21: =IF($B21="","",VLOOKUP(O$5,BBDD!$8:$1048576,$B21,FALSE)) -> 1 | P21: =+Factores!F21 -> 0.9849
P22: =+Factores!F22 -> 
A23: FA_PNG (Res. 085-2014-OS/CD) | B23: =1+B21 -> 14 | C23: =IF($B23="","",VLOOKUP(C$5,BBDD!$8:$1048576,$B23,FALSE)) -> 1.0478 | D23: =IF($B23="","",VLOOKUP(D$5,BBDD!$8:$1048576,$B23,FALSE)) -> 1.069 | E23: =IF($B23="","",VLOOKUP(E$5,BBDD!$8:$1048576,$B23,FALSE)) -> 1.0282 | F23: =IF($B23="","",VLOOKUP(F$5,BBDD!$8:$1048576,$B23,FALSE)) -> 1.0282 | G23: =IF($B23="","",VLOOKUP(G$5,BBDD!$8:$1048576,$B23,FALSE)) -> 1.0282 | H23: =IF($B23="","",VLOOKUP(H$5,BBDD!$8:$1048576,$B23,FALSE)) -> 1.0282 | I23: =IF($B23="","",VLOOKUP(I$5,BBDD!$8:$1048576,$B23,FALSE)) -> 1 | J23: =IF($B23="","",VLOOKUP(J$5,BBDD!$8:$1048576,$B23,FALSE)) -> 1 | K23: =IF($B23="","",VLOOKUP(K$5,BBDD!$8:$1048576,$B23,FALSE)) -> 1 | L23: =IF($B23="","",VLOOKUP(L$5,BBDD!$8:$1048576,$B23,FALSE)) -> 1.0158 | M23: =IF($B23="","",VLOOKUP(M$5,BBDD!$8:$1048576,$B23,FALSE)) -> 1.0158 | N23: =IF($B23="","",VLOOKUP(N$5,BBDD!$8:$1048576,$B23,FALSE)) -> 1.0662 | O23: =IF($B23="","",VLOOKUP(O$5,BBDD!$8:$1048576,$B23,FALSE)) -> 1 | P23: =+Factores!F23 -> 1
A24: FIGV (Res.182-2009-OS/CD) | B24: =1+B23 -> 15 | C24: =IF($B24="","",VLOOKUP(C$5,BBDD!$8:$1048576,$B24,FALSE)) -> 1.18 | D24: =IF($B24="","",VLOOKUP(D$5,BBDD!$8:$1048576,$B24,FALSE)) -> 1.18 | E24: =IF($B24="","",VLOOKUP(E$5,BBDD!$8:$1048576,$B24,FALSE)) -> 1.18 | F24: =IF($B24="","",VLOOKUP(F$5,BBDD!$8:$1048576,$B24,FALSE)) -> 1.18 | G24: =IF($B24="","",VLOOKUP(G$5,BBDD!$8:$1048576,$B24,FALSE)) -> 1.18 | H24: =IF($B24="","",VLOOKUP(H$5,BBDD!$8:$1048576,$B24,FALSE)) -> 1.18 | I24: =IF($B24="","",VLOOKUP(I$5,BBDD!$8:$1048576,$B24,FALSE)) -> 1.18 | J24: =IF($B24="","",VLOOKUP(J$5,BBDD!$8:$1048576,$B24,FALSE)) -> 1.18 | K24: =IF($B24="","",VLOOKUP(K$5,BBDD!$8:$1048576,$B24,FALSE)) -> 1.18 | L24: =IF($B24="","",VLOOKUP(L$5,BBDD!$8:$1048576,$B24,FALSE)) -> 1.18 | M24: =IF($B24="","",VLOOKUP(M$5,BBDD!$8:$1048576,$B24,FALSE)) -> 1.18 | N24: =IF($B24="","",VLOOKUP(N$5,BBDD!$8:$1048576,$B24,FALSE)) -> 1.18 | O24: =IF($B24="","",VLOOKUP(O$5,BBDD!$8:$1048576,$B24,FALSE)) -> 1.18 | P24: =+Factores!F24 -> 1.18
C25: =IF($B25="","",VLOOKUP(C$5,BBDD!$8:$1048576,$B25,FALSE)) ->  | D25: =IF($B25="","",VLOOKUP(D$5,BBDD!$8:$1048576,$B25,FALSE)) ->  | E25: =IF($B25="","",VLOOKUP(E$5,BBDD!$8:$1048576,$B25,FALSE)) ->  | F25: =IF($B25="","",VLOOKUP(F$5,BBDD!$8:$1048576,$B25,FALSE)) ->  | G25: =IF($B25="","",VLOOKUP(G$5,BBDD!$8:$1048576,$B25,FALSE)) ->  | H25: =IF($B25="","",VLOOKUP(H$5,BBDD!$8:$1048576,$B25,FALSE)) ->  | I25: =IF($B25="","",VLOOKUP(I$5,BBDD!$8:$1048576,$B25,FALSE)) ->  | J25: =IF($B25="","",VLOOKUP(J$5,BBDD!$8:$1048576,$B25,FALSE)) ->  | K25: =IF($B25="","",VLOOKUP(K$5,BBDD!$8:$1048576,$B25,FALSE)) ->  | L25: =IF($B25="","",VLOOKUP(L$5,BBDD!$8:$1048576,$B25,FALSE)) ->  | M25: =IF($B25="","",VLOOKUP(M$5,BBDD!$8:$1048576,$B25,FALSE)) ->  | N25: =IF($B25="","",VLOOKUP(N$5,BBDD!$8:$1048576,$B25,FALSE)) ->  | O25: =IF($B25="","",VLOOKUP(O$5,BBDD!$8:$1048576,$B25,FALSE)) ->  | P25: =+Factores!F25 -> 
A26: B.1. TRANSMISIÓN PRINCIPAL - PEAJES (Res. 053, 066, 077, 135, 160-2013-OS/CD, 067-2014-OS/CD) | C26: =IF($B26="","",VLOOKUP(C$5,BBDD!$8:$1048576,$B26,FALSE)) ->  | D26: =IF($B26="","",VLOOKUP(D$5,BBDD!$8:$1048576,$B26,FALSE)) ->  | E26: =IF($B26="","",VLOOKUP(E$5,BBDD!$8:$1048576,$B26,FALSE)) ->  | F26: =IF($B26="","",VLOOKUP(F$5,BBDD!$8:$1048576,$B26,FALSE)) ->  | G26: =IF($B26="","",VLOOKUP(G$5,BBDD!$8:$1048576,$B26,FALSE)) ->  | H26: =IF($B26="","",VLOOKUP(H$5,BBDD!$8:$1048576,$B26,FALSE)) ->  | I26: =IF($B26="","",VLOOKUP(I$5,BBDD!$8:$1048576,$B26,FALSE)) ->  | J26: =IF($B26="","",VLOOKUP(J$5,BBDD!$8:$1048576,$B26,FALSE)) ->  | K26: =IF($B26="","",VLOOKUP(K$5,BBDD!$8:$1048576,$B26,FALSE)) ->  | L26: =IF($B26="","",VLOOKUP(L$5,BBDD!$8:$1048576,$B26,FALSE)) ->  | M26: =IF($B26="","",VLOOKUP(M$5,BBDD!$8:$1048576,$B26,FALSE)) ->  | N26: =IF($B26="","",VLOOKUP(N$5,BBDD!$8:$1048576,$B26,FALSE)) ->  | O26: =IF($B26="","",VLOOKUP(O$5,BBDD!$8:$1048576,$B26,FALSE)) ->  | P26: =+Factores!F26 -> 
A27: Sistema Principal de Transmisión | C27: =IF($B27="","",VLOOKUP(C$5,BBDD!$8:$1048576,$B27,FALSE)) ->  | D27: =IF($B27="","",VLOOKUP(D$5,BBDD!$8:$1048576,$B27,FALSE)) ->  | E27: =IF($B27="","",VLOOKUP(E$5,BBDD!$8:$1048576,$B27,FALSE)) ->  | F27: =IF($B27="","",VLOOKUP(F$5,BBDD!$8:$1048576,$B27,FALSE)) ->  | G27: =IF($B27="","",VLOOKUP(G$5,BBDD!$8:$1048576,$B27,FALSE)) ->  | H27: =IF($B27="","",VLOOKUP(H$5,BBDD!$8:$1048576,$B27,FALSE)) ->  | I27: =IF($B27="","",VLOOKUP(I$5,BBDD!$8:$1048576,$B27,FALSE)) ->  | J27: =IF($B27="","",VLOOKUP(J$5,BBDD!$8:$1048576,$B27,FALSE)) ->  | K27: =IF($B27="","",VLOOKUP(K$5,BBDD!$8:$1048576,$B27,FALSE)) ->  | L27: =IF($B27="","",VLOOKUP(L$5,BBDD!$8:$1048576,$B27,FALSE)) ->  | M27: =IF($B27="","",VLOOKUP(M$5,BBDD!$8:$1048576,$B27,FALSE)) ->  | N27: =IF($B27="","",VLOOKUP(N$5,BBDD!$8:$1048576,$B27,FALSE)) ->  | O27: =IF($B27="","",VLOOKUP(O$5,BBDD!$8:$1048576,$B27,FALSE)) ->  | P27: =+Factores!F27 -> 
A28: SPT de REP | B28: =1+B24 -> 16 | C28: =IF($B28="","",VLOOKUP(C$5,BBDD!$8:$1048576,$B28,FALSE)) -> 1.056 | D28: =IF($B28="","",VLOOKUP(D$5,BBDD!$8:$1048576,$B28,FALSE)) -> 1.056 | E28: =IF($B28="","",VLOOKUP(E$5,BBDD!$8:$1048576,$B28,FALSE)) -> 1.056 | F28: =IF($B28="","",VLOOKUP(F$5,BBDD!$8:$1048576,$B28,FALSE)) -> 1.056 | G28: =IF($B28="","",VLOOKUP(G$5,BBDD!$8:$1048576,$B28,FALSE)) -> 1.056 | H28: =IF($B28="","",VLOOKUP(H$5,BBDD!$8:$1048576,$B28,FALSE)) -> 1.056 | I28: =IF($B28="","",VLOOKUP(I$5,BBDD!$8:$1048576,$B28,FALSE)) -> 1.056 | J28: =IF($B28="","",VLOOKUP(J$5,BBDD!$8:$1048576,$B28,FALSE)) -> 1.056 | K28: =IF($B28="","",VLOOKUP(K$5,BBDD!$8:$1048576,$B28,FALSE)) -> 1.056 | L28: =IF($B28="","",VLOOKUP(L$5,BBDD!$8:$1048576,$B28,FALSE)) -> 1.09 | M28: =IF($B28="","",VLOOKUP(M$5,BBDD!$8:$1048576,$B28,FALSE)) -> 1.09 | N28: =IF($B28="","",VLOOKUP(N$5,BBDD!$8:$1048576,$B28,FALSE)) -> 1.09 | O28: =IF($B28="","",VLOOKUP(O$5,BBDD!$8:$1048576,$B28,FALSE)) -> 1 | P28: =+Factores!F28 -> 1
A29: SPT de San Gabán | B29: =1+B28 -> 17 | C29: =IF($B29="","",VLOOKUP(C$5,BBDD!$8:$1048576,$B29,FALSE)) -> 1.0255 | D29: =IF($B29="","",VLOOKUP(D$5,BBDD!$8:$1048576,$B29,FALSE)) -> 1.0255 | E29: =IF($B29="","",VLOOKUP(E$5,BBDD!$8:$1048576,$B29,FALSE)) -> 1.0255 | F29: =IF($B29="","",VLOOKUP(F$5,BBDD!$8:$1048576,$B29,FALSE)) -> 1.0255 | G29: =IF($B29="","",VLOOKUP(G$5,BBDD!$8:$1048576,$B29,FALSE)) -> 1.0255 | H29: =IF($B29="","",VLOOKUP(H$5,BBDD!$8:$1048576,$B29,FALSE)) -> 1.0255 | I29: =IF($B29="","",VLOOKUP(I$5,BBDD!$8:$1048576,$B29,FALSE)) -> 1.0255 | J29: =IF($B29="","",VLOOKUP(J$5,BBDD!$8:$1048576,$B29,FALSE)) -> 1.0255 | K29: =IF($B29="","",VLOOKUP(K$5,BBDD!$8:$1048576,$B29,FALSE)) -> 1.0255 | L29: =IF($B29="","",VLOOKUP(L$5,BBDD!$8:$1048576,$B29,FALSE)) -> 1.0535 | M29: =IF($B29="","",VLOOKUP(M$5,BBDD!$8:$1048576,$B29,FALSE)) -> 1.0535 | N29: =IF($B29="","",VLOOKUP(N$5,BBDD!$8:$1048576,$B29,FALSE)) -> 1.0535 | O29: =IF($B29="","",VLOOKUP(O$5,BBDD!$8:$1048576,$B29,FALSE)) -> 1 | P29: =+Factores!F29 -> 1
A30: SPT de Antamina | B30: 18 | C30: =IF($B30="","",VLOOKUP(C$5,BBDD!$8:$1048576,$B30,FALSE)) -> 1.0282 | D30: =IF($B30="","",VLOOKUP(D$5,BBDD!$8:$1048576,$B30,FALSE)) -> 1.0282 | E30: =IF($B30="","",VLOOKUP(E$5,BBDD!$8:$1048576,$B30,FALSE)) -> 1.0282 | F30: =IF($B30="","",VLOOKUP(F$5,BBDD!$8:$1048576,$B30,FALSE)) -> 1.0282 | G30: =IF($B30="","",VLOOKUP(G$5,BBDD!$8:$1048576,$B30,FALSE)) -> 1.0282 | H30: =IF($B30="","",VLOOKUP(H$5,BBDD!$8:$1048576,$B30,FALSE)) -> 1.0282 | I30: =IF($B30="","",VLOOKUP(I$5,BBDD!$8:$1048576,$B30,FALSE)) -> 1.0282 | J30: =IF($B30="","",VLOOKUP(J$5,BBDD!$8:$1048576,$B30,FALSE)) -> 1.0282 | K30: =IF($B30="","",VLOOKUP(K$5,BBDD!$8:$1048576,$B30,FALSE)) -> 1.0282 | L30: =IF($B30="","",VLOOKUP(L$5,BBDD!$8:$1048576,$B30,FALSE)) -> 1.0564 | M30: =IF($B30="","",VLOOKUP(M$5,BBDD!$8:$1048576,$B30,FALSE)) -> 1.0564 | N30: =IF($B30="","",VLOOKUP(N$5,BBDD!$8:$1048576,$B30,FALSE)) -> 1.0564 | O30: =IF($B30="","",VLOOKUP(O$5,BBDD!$8:$1048576,$B30,FALSE)) -> 1 | P30: =+Factores!F30 -> 1
A31: SPT de Eteselva | B31: 19 | C31: =IF($B31="","",VLOOKUP(C$5,BBDD!$8:$1048576,$B31,FALSE)) -> 1.0236 | D31: =IF($B31="","",VLOOKUP(D$5,BBDD!$8:$1048576,$B31,FALSE)) -> 1.0236 | E31: =IF($B31="","",VLOOKUP(E$5,BBDD!$8:$1048576,$B31,FALSE)) -> 1.0236 | F31: =IF($B31="","",VLOOKUP(F$5,BBDD!$8:$1048576,$B31,FALSE)) -> 1.0236 | G31: =IF($B31="","",VLOOKUP(G$5,BBDD!$8:$1048576,$B31,FALSE)) -> 1.0236 | H31: =IF($B31="","",VLOOKUP(H$5,BBDD!$8:$1048576,$B31,FALSE)) -> 1.0236 | I31: =IF($B31="","",VLOOKUP(I$5,BBDD!$8:$1048576,$B31,FALSE)) -> 1.0236 | J31: =IF($B31="","",VLOOKUP(J$5,BBDD!$8:$1048576,$B31,FALSE)) -> 1.0236 | K31: =IF($B31="","",VLOOKUP(K$5,BBDD!$8:$1048576,$B31,FALSE)) -> 1.0236 | L31: =IF($B31="","",VLOOKUP(L$5,BBDD!$8:$1048576,$B31,FALSE)) -> 1.0413 | M31: =IF($B31="","",VLOOKUP(M$5,BBDD!$8:$1048576,$B31,FALSE)) -> 1.0413 | N31: =IF($B31="","",VLOOKUP(N$5,BBDD!$8:$1048576,$B31,FALSE)) -> 1.0413 | O31: =IF($B31="","",VLOOKUP(O$5,BBDD!$8:$1048576,$B31,FALSE)) -> 1 | P31: =+Factores!F31 -> 1
A32: SPT de Redesur | B32: 20 | C32: =IF($B32="","",VLOOKUP(C$5,BBDD!$8:$1048576,$B32,FALSE)) -> 1.056 | D32: =IF($B32="","",VLOOKUP(D$5,BBDD!$8:$1048576,$B32,FALSE)) -> 1.056 | E32: =IF($B32="","",VLOOKUP(E$5,BBDD!$8:$1048576,$B32,FALSE)) -> 1.056 | F32: =IF($B32="","",VLOOKUP(F$5,BBDD!$8:$1048576,$B32,FALSE)) -> 1.056 | G32: =IF($B32="","",VLOOKUP(G$5,BBDD!$8:$1048576,$B32,FALSE)) -> 1.056 | H32: =IF($B32="","",VLOOKUP(H$5,BBDD!$8:$1048576,$B32,FALSE)) -> 1.056 | I32: =IF($B32="","",VLOOKUP(I$5,BBDD!$8:$1048576,$B32,FALSE)) -> 1.056 | J32: =IF($B32="","",VLOOKUP(J$5,BBDD!$8:$1048576,$B32,FALSE)) -> 1.056 | K32: =IF($B32="","",VLOOKUP(K$5,BBDD!$8:$1048576,$B32,FALSE)) -> 1.056 | L32: =IF($B32="","",VLOOKUP(L$5,BBDD!$8:$1048576,$B32,FALSE)) -> 1.09 | M32: =IF($B32="","",VLOOKUP(M$5,BBDD!$8:$1048576,$B32,FALSE)) -> 1.09 | N32: =IF($B32="","",VLOOKUP(N$5,BBDD!$8:$1048576,$B32,FALSE)) -> 1.09 | O32: =IF($B32="","",VLOOKUP(O$5,BBDD!$8:$1048576,$B32,FALSE)) -> 1 | P32: =+Factores!F32 -> 1
A33: SPT de Transmantaro | B33: =1+B32 -> 21 | C33: =IF($B33="","",VLOOKUP(C$5,BBDD!$8:$1048576,$B33,FALSE)) -> 1.056 | D33: =IF($B33="","",VLOOKUP(D$5,BBDD!$8:$1048576,$B33,FALSE)) -> 1.056 | E33: =IF($B33="","",VLOOKUP(E$5,BBDD!$8:$1048576,$B33,FALSE)) -> 1.056 | F33: =IF($B33="","",VLOOKUP(F$5,BBDD!$8:$1048576,$B33,FALSE)) -> 1.056 | G33: =IF($B33="","",VLOOKUP(G$5,BBDD!$8:$1048576,$B33,FALSE)) -> 1.056 | H33: =IF($B33="","",VLOOKUP(H$5,BBDD!$8:$1048576,$B33,FALSE)) -> 1.056 | I33: =IF($B33="","",VLOOKUP(I$5,BBDD!$8:$1048576,$B33,FALSE)) -> 1.056 | J33: =IF($B33="","",VLOOKUP(J$5,BBDD!$8:$1048576,$B33,FALSE)) -> 1.056 | K33: =IF($B33="","",VLOOKUP(K$5,BBDD!$8:$1048576,$B33,FALSE)) -> 1.056 | L33: =IF($B33="","",VLOOKUP(L$5,BBDD!$8:$1048576,$B33,FALSE)) -> 1.09 | M33: =IF($B33="","",VLOOKUP(M$5,BBDD!$8:$1048576,$B33,FALSE)) -> 1.09 | N33: =IF($B33="","",VLOOKUP(N$5,BBDD!$8:$1048576,$B33,FALSE)) -> 1.09 | O33: =IF($B33="","",VLOOKUP(O$5,BBDD!$8:$1048576,$B33,FALSE)) -> 1 | P33: =+Factores!F33 -> 1
A34: SPT de ISA | B34: 22 | C34: =IF($B34="","",VLOOKUP(C$5,BBDD!$8:$1048576,$B34,FALSE)) -> 1.056 | D34: =IF($B34="","",VLOOKUP(D$5,BBDD!$8:$1048576,$B34,FALSE)) -> 1.056 | E34: =IF($B34="","",VLOOKUP(E$5,BBDD!$8:$1048576,$B34,FALSE)) -> 1.056 | F34: =IF($B34="","",VLOOKUP(F$5,BBDD!$8:$1048576,$B34,FALSE)) -> 1.056 | G34: =IF($B34="","",VLOOKUP(G$5,BBDD!$8:$1048576,$B34,FALSE)) -> 1.056 | H34: =IF($B34="","",VLOOKUP(H$5,BBDD!$8:$1048576,$B34,FALSE)) -> 1.056 | I34: =IF($B34="","",VLOOKUP(I$5,BBDD!$8:$1048576,$B34,FALSE)) -> 1.056 | J34: =IF($B34="","",VLOOKUP(J$5,BBDD!$8:$1048576,$B34,FALSE)) -> 1.056 | K34: =IF($B34="","",VLOOKUP(K$5,BBDD!$8:$1048576,$B34,FALSE)) -> 1.056 | L34: =IF($B34="","",VLOOKUP(L$5,BBDD!$8:$1048576,$B34,FALSE)) -> 1.09 | M34: =IF($B34="","",VLOOKUP(M$5,BBDD!$8:$1048576,$B34,FALSE)) -> 1.09 | N34: =IF($B34="","",VLOOKUP(N$5,BBDD!$8:$1048576,$B34,FALSE)) -> 1.09 | O34: =IF($B34="","",VLOOKUP(O$5,BBDD!$8:$1048576,$B34,FALSE)) -> 1 | P34: =+Factores!F34 -> 1
A35: Ampliación N° 1 del SPT de ISA | B35: =1+B34 -> 23 | C35: =IF($B35="","",VLOOKUP(C$5,BBDD!$8:$1048576,$B35,FALSE)) -> 0 | D35: =IF($B35="","",VLOOKUP(D$5,BBDD!$8:$1048576,$B35,FALSE)) -> 0 | E35: =IF($B35="","",VLOOKUP(E$5,BBDD!$8:$1048576,$B35,FALSE)) -> 0 | F35: =IF($B35="","",VLOOKUP(F$5,BBDD!$8:$1048576,$B35,FALSE)) -> 0 | G35: =IF($B35="","",VLOOKUP(G$5,BBDD!$8:$1048576,$B35,FALSE)) -> 1.0745 | H35: =IF($B35="","",VLOOKUP(H$5,BBDD!$8:$1048576,$B35,FALSE)) -> 1.0745 | I35: =IF($B35="","",VLOOKUP(I$5,BBDD!$8:$1048576,$B35,FALSE)) -> 1.0745 | J35: =IF($B35="","",VLOOKUP(J$5,BBDD!$8:$1048576,$B35,FALSE)) -> 1.0745 | K35: =IF($B35="","",VLOOKUP(K$5,BBDD!$8:$1048576,$B35,FALSE)) -> 1.0745 | L35: =IF($B35="","",VLOOKUP(L$5,BBDD!$8:$1048576,$B35,FALSE)) -> 1.09 | M35: =IF($B35="","",VLOOKUP(M$5,BBDD!$8:$1048576,$B35,FALSE)) -> 1.09 | N35: =IF($B35="","",VLOOKUP(N$5,BBDD!$8:$1048576,$B35,FALSE)) -> 1.09 | O35: =IF($B35="","",VLOOKUP(O$5,BBDD!$8:$1048576,$B35,FALSE)) -> 1 | P35: =+Factores!F35 -> 1
A36: Ampliación N° 2 del SPT de ISA (2) | B36: =+B35+1 -> 24 | C36: =IF($B36="","",VLOOKUP(C$5,BBDD!$8:$1048576,$B36,FALSE)) -> 0 | O36: =IF($B36="","",VLOOKUP(O$5,BBDD!$8:$1048576,$B36,FALSE)) -> 0 | P36: =+Factores!F36 -> 0
A37: Cargo por Garantía (SGT) | C37: =IF($B37="","",VLOOKUP(C$5,BBDD!$8:$1048576,$B37,FALSE)) ->  | D37: =IF($B37="","",VLOOKUP(D$5,BBDD!$8:$1048576,$B37,FALSE)) ->  | E37: =IF($B37="","",VLOOKUP(E$5,BBDD!$8:$1048576,$B37,FALSE)) ->  | F37: =IF($B37="","",VLOOKUP(F$5,BBDD!$8:$1048576,$B37,FALSE)) ->  | G37: =IF($B37="","",VLOOKUP(G$5,BBDD!$8:$1048576,$B37,FALSE)) ->  | H37: =IF($B37="","",VLOOKUP(H$5,BBDD!$8:$1048576,$B37,FALSE)) ->  | I37: =IF($B37="","",VLOOKUP(I$5,BBDD!$8:$1048576,$B37,FALSE)) ->  | J37: =IF($B37="","",VLOOKUP(J$5,BBDD!$8:$1048576,$B37,FALSE)) ->  | K37: =IF($B37="","",VLOOKUP(K$5,BBDD!$8:$1048576,$B37,FALSE)) ->  | L37: =IF($B37="","",VLOOKUP(L$5,BBDD!$8:$1048576,$B37,FALSE)) ->  | M37: =IF($B37="","",VLOOKUP(M$5,BBDD!$8:$1048576,$B37,FALSE)) ->  | N37: =IF($B37="","",VLOOKUP(N$5,BBDD!$8:$1048576,$B37,FALSE)) ->  | O37: =IF($B37="","",VLOOKUP(O$5,BBDD!$8:$1048576,$B37,FALSE)) ->  | P37: =+Factores!F37 -> 
A38: Línea Chilca -Zapallal (Tramos 1 y 2) | B38: =1+B36 -> 25 | C38: =IF($B38="","",VLOOKUP(C$5,BBDD!$8:$1048576,$B38,FALSE)) -> 1.056 | D38: =IF($B38="","",VLOOKUP(D$5,BBDD!$8:$1048576,$B38,FALSE)) -> 1.056 | E38: =IF($B38="","",VLOOKUP(E$5,BBDD!$8:$1048576,$B38,FALSE)) -> 1.056 | F38: =IF($B38="","",VLOOKUP(F$5,BBDD!$8:$1048576,$B38,FALSE)) -> 1.056 | G38: =IF($B38="","",VLOOKUP(G$5,BBDD!$8:$1048576,$B38,FALSE)) -> 1.056 | H38: =IF($B38="","",VLOOKUP(H$5,BBDD!$8:$1048576,$B38,FALSE)) -> 1.056 | I38: =IF($B38="","",VLOOKUP(I$5,BBDD!$8:$1048576,$B38,FALSE)) -> 1.056 | J38: =IF($B38="","",VLOOKUP(J$5,BBDD!$8:$1048576,$B38,FALSE)) -> 1.056 | K38: =IF($B38="","",VLOOKUP(K$5,BBDD!$8:$1048576,$B38,FALSE)) -> 1.056 | L38: =IF($B38="","",VLOOKUP(L$5,BBDD!$8:$1048576,$B38,FALSE)) -> 1.09 | M38: =IF($B38="","",VLOOKUP(M$5,BBDD!$8:$1048576,$B38,FALSE)) -> 1.09 | N38: =IF($B38="","",VLOOKUP(N$5,BBDD!$8:$1048576,$B38,FALSE)) -> 1.09 | O38: =IF($B38="","",VLOOKUP(O$5,BBDD!$8:$1048576,$B38,FALSE)) -> 1 | P38: =+Factores!F38 -> 1
A39: Líneas Carhuamayo - Cajamarca 220 kV (Tramos 1, 2, 3 y4) y SVC-Cajamarca | P39: =+Factores!F39 -> 
A40: LT 220 kV Carhuaquero-Paragsha y subestaciones asociadas – Tramo 1 | B40: =1+B38 -> 26 | C40: =IF($B40="","",VLOOKUP(C$5,BBDD!$8:$1048576,$B40,FALSE)) -> 1.056 | D40: =IF($B40="","",VLOOKUP(D$5,BBDD!$8:$1048576,$B40,FALSE)) -> 1.056 | E40: =IF($B40="","",VLOOKUP(E$5,BBDD!$8:$1048576,$B40,FALSE)) -> 1.056 | F40: =IF($B40="","",VLOOKUP(F$5,BBDD!$8:$1048576,$B40,FALSE)) -> 1.056 | G40: =IF($B40="","",VLOOKUP(G$5,BBDD!$8:$1048576,$B40,FALSE)) -> 1.056 | H40: =IF($B40="","",VLOOKUP(H$5,BBDD!$8:$1048576,$B40,FALSE)) -> 1.056 | I40: =IF($B40="","",VLOOKUP(I$5,BBDD!$8:$1048576,$B40,FALSE)) -> 1.056 | J40: =IF($B40="","",VLOOKUP(J$5,BBDD!$8:$1048576,$B40,FALSE)) -> 1.056 | K40: =IF($B40="","",VLOOKUP(K$5,BBDD!$8:$1048576,$B40,FALSE)) -> 1.056 | L40: =IF($B40="","",VLOOKUP(L$5,BBDD!$8:$1048576,$B40,FALSE)) -> 1.09 | M40: =IF($B40="","",VLOOKUP(M$5,BBDD!$8:$1048576,$B40,FALSE)) -> 1.09 | N40: =IF($B40="","",VLOOKUP(N$5,BBDD!$8:$1048576,$B40,FALSE)) -> 1.09 | O40: =IF($B40="","",VLOOKUP(O$5,BBDD!$8:$1048576,$B40,FALSE)) -> 1 | P40: =+Factores!F40 -> 1
A41: L.T. Paragsha-Conococha y subestaciones asociadas – Tramo 2 | B41: =1+B40 -> 27 | C41: =IF($B41="","",VLOOKUP(C$5,BBDD!$8:$1048576,$B41,FALSE)) -> 1.056 | D41: =IF($B41="","",VLOOKUP(D$5,BBDD!$8:$1048576,$B41,FALSE)) -> 1.056 | E41: =IF($B41="","",VLOOKUP(E$5,BBDD!$8:$1048576,$B41,FALSE)) -> 1.056 | F41: =IF($B41="","",VLOOKUP(F$5,BBDD!$8:$1048576,$B41,FALSE)) -> 1.056 | G41: =IF($B41="","",VLOOKUP(G$5,BBDD!$8:$1048576,$B41,FALSE)) -> 1.056 | H41: =IF($B41="","",VLOOKUP(H$5,BBDD!$8:$1048576,$B41,FALSE)) -> 1.056 | I41: =IF($B41="","",VLOOKUP(I$5,BBDD!$8:$1048576,$B41,FALSE)) -> 1.056 | J41: =IF($B41="","",VLOOKUP(J$5,BBDD!$8:$1048576,$B41,FALSE)) -> 1.056 | K41: =IF($B41="","",VLOOKUP(K$5,BBDD!$8:$1048576,$B41,FALSE)) -> 1.056 | L41: =IF($B41="","",VLOOKUP(L$5,BBDD!$8:$1048576,$B41,FALSE)) -> 1.09 | M41: =IF($B41="","",VLOOKUP(M$5,BBDD!$8:$1048576,$B41,FALSE)) -> 1.09 | N41: =IF($B41="","",VLOOKUP(N$5,BBDD!$8:$1048576,$B41,FALSE)) -> 1.09 | O41: =IF($B41="","",VLOOKUP(O$5,BBDD!$8:$1048576,$B41,FALSE)) -> 1 | P41: =+Factores!F41 -> 1
A42: Ampliación de la Subestación Cajamarca 220 kV – SVC | B42: 28 | C42: =IF($B42="","",VLOOKUP(C$5,BBDD!$8:$1048576,$B42,FALSE)) -> 1.056 | D42: =IF($B42="","",VLOOKUP(D$5,BBDD!$8:$1048576,$B42,FALSE)) -> 1.056 | E42: =IF($B42="","",VLOOKUP(E$5,BBDD!$8:$1048576,$B42,FALSE)) -> 1.056 | F42: =IF($B42="","",VLOOKUP(F$5,BBDD!$8:$1048576,$B42,FALSE)) -> 1.056 | G42: =IF($B42="","",VLOOKUP(G$5,BBDD!$8:$1048576,$B42,FALSE)) -> 1.056 | H42: =IF($B42="","",VLOOKUP(H$5,BBDD!$8:$1048576,$B42,FALSE)) -> 1.056 | I42: =IF($B42="","",VLOOKUP(I$5,BBDD!$8:$1048576,$B42,FALSE)) -> 1.056 | J42: =IF($B42="","",VLOOKUP(J$5,BBDD!$8:$1048576,$B42,FALSE)) -> 1.056 | K42: =IF($B42="","",VLOOKUP(K$5,BBDD!$8:$1048576,$B42,FALSE)) -> 1.056 | L42: =IF($B42="","",VLOOKUP(L$5,BBDD!$8:$1048576,$B42,FALSE)) -> 1.09 | M42: =IF($B42="","",VLOOKUP(M$5,BBDD!$8:$1048576,$B42,FALSE)) -> 1.09 | N42: =IF($B42="","",VLOOKUP(N$5,BBDD!$8:$1048576,$B42,FALSE)) -> 1.09 | O42: =IF($B42="","",VLOOKUP(O$5,BBDD!$8:$1048576,$B42,FALSE)) -> 1 | P42: =+Factores!F42 -> 1
A43: LT 220 kV Conococha-Huallanca y subestaciones asociadas – Tramo 3 | B43: 29 | C43: =IF($B43="","",VLOOKUP(C$5,BBDD!$8:$1048576,$B43,FALSE)) -> 1.056 | D43: =IF($B43="","",VLOOKUP(D$5,BBDD!$8:$1048576,$B43,FALSE)) -> 1.056 | E43: =IF($B43="","",VLOOKUP(E$5,BBDD!$8:$1048576,$B43,FALSE)) -> 1.056 | F43: =IF($B43="","",VLOOKUP(F$5,BBDD!$8:$1048576,$B43,FALSE)) -> 1.056 | G43: =IF($B43="","",VLOOKUP(G$5,BBDD!$8:$1048576,$B43,FALSE)) -> 1.056 | H43: =IF($B43="","",VLOOKUP(H$5,BBDD!$8:$1048576,$B43,FALSE)) -> 1.056 | I43: =IF($B43="","",VLOOKUP(I$5,BBDD!$8:$1048576,$B43,FALSE)) -> 1.056 | J43: =IF($B43="","",VLOOKUP(J$5,BBDD!$8:$1048576,$B43,FALSE)) -> 1.056 | K43: =IF($B43="","",VLOOKUP(K$5,BBDD!$8:$1048576,$B43,FALSE)) -> 1.056 | L43: =IF($B43="","",VLOOKUP(L$5,BBDD!$8:$1048576,$B43,FALSE)) -> 1.09 | M43: =IF($B43="","",VLOOKUP(M$5,BBDD!$8:$1048576,$B43,FALSE)) -> 1.09 | N43: =IF($B43="","",VLOOKUP(N$5,BBDD!$8:$1048576,$B43,FALSE)) -> 1.09 | O43: =IF($B43="","",VLOOKUP(O$5,BBDD!$8:$1048576,$B43,FALSE)) -> 1 | P43: =+Factores!F43 -> 1
A44: LT 220 kV Huallanca-Cajamarca y subestaciones asociadas - Tramo 4 | B44: 30 | C44: =IF($B44="","",VLOOKUP(C$5,BBDD!$8:$1048576,$B44,FALSE)) -> 1.056 | D44: =IF($B44="","",VLOOKUP(D$5,BBDD!$8:$1048576,$B44,FALSE)) -> 1.056 | E44: =IF($B44="","",VLOOKUP(E$5,BBDD!$8:$1048576,$B44,FALSE)) -> 1.056 | F44: =IF($B44="","",VLOOKUP(F$5,BBDD!$8:$1048576,$B44,FALSE)) -> 1.056 | G44: =IF($B44="","",VLOOKUP(G$5,BBDD!$8:$1048576,$B44,FALSE)) -> 1.056 | H44: =IF($B44="","",VLOOKUP(H$5,BBDD!$8:$1048576,$B44,FALSE)) -> 1.056 | I44: =IF($B44="","",VLOOKUP(I$5,BBDD!$8:$1048576,$B44,FALSE)) -> 1.056 | J44: =IF($B44="","",VLOOKUP(J$5,BBDD!$8:$1048576,$B44,FALSE)) -> 1.056 | K44: =IF($B44="","",VLOOKUP(K$5,BBDD!$8:$1048576,$B44,FALSE)) -> 1.056 | L44: =IF($B44="","",VLOOKUP(L$5,BBDD!$8:$1048576,$B44,FALSE)) -> 1.09 | M44: =IF($B44="","",VLOOKUP(M$5,BBDD!$8:$1048576,$B44,FALSE)) -> 1.09 | N44: =IF($B44="","",VLOOKUP(N$5,BBDD!$8:$1048576,$B44,FALSE)) -> 1.09 | O44: =IF($B44="","",VLOOKUP(O$5,BBDD!$8:$1048576,$B44,FALSE)) -> 1 | P44: =+Factores!F44 -> 1
A45: Línea Talara-Piura 220 kV (2do circuito) | B45: 31 | C45: =IF($B45="","",VLOOKUP(C$5,BBDD!$8:$1048576,$B45,FALSE)) -> 1.056 | D45: =IF($B45="","",VLOOKUP(D$5,BBDD!$8:$1048576,$B45,FALSE)) -> 1.056 | E45: =IF($B45="","",VLOOKUP(E$5,BBDD!$8:$1048576,$B45,FALSE)) -> 1.056 | F45: =IF($B45="","",VLOOKUP(F$5,BBDD!$8:$1048576,$B45,FALSE)) -> 1.056 | G45: =IF($B45="","",VLOOKUP(G$5,BBDD!$8:$1048576,$B45,FALSE)) -> 1.056 | H45: =IF($B45="","",VLOOKUP(H$5,BBDD!$8:$1048576,$B45,FALSE)) -> 1.056 | I45: =IF($B45="","",VLOOKUP(I$5,BBDD!$8:$1048576,$B45,FALSE)) -> 1.056 | J45: =IF($B45="","",VLOOKUP(J$5,BBDD!$8:$1048576,$B45,FALSE)) -> 1.056 | K45: =IF($B45="","",VLOOKUP(K$5,BBDD!$8:$1048576,$B45,FALSE)) -> 1.056 | L45: =IF($B45="","",VLOOKUP(L$5,BBDD!$8:$1048576,$B45,FALSE)) -> 1.09 | M45: =IF($B45="","",VLOOKUP(M$5,BBDD!$8:$1048576,$B45,FALSE)) -> 1.09 | N45: =IF($B45="","",VLOOKUP(N$5,BBDD!$8:$1048576,$B45,FALSE)) -> 1.09 | O45: =IF($B45="","",VLOOKUP(O$5,BBDD!$8:$1048576,$B45,FALSE)) -> 1 | P45: =+Factores!F45 -> 1
A46: Línea Zapallal – Trujillo 500 kV | B46: 32 | C46: =IF($B46="","",VLOOKUP(C$5,BBDD!$8:$1048576,$B46,FALSE)) -> 1.056 | D46: =IF($B46="","",VLOOKUP(D$5,BBDD!$8:$1048576,$B46,FALSE)) -> 1.056 | E46: =IF($B46="","",VLOOKUP(E$5,BBDD!$8:$1048576,$B46,FALSE)) -> 1.056 | F46: =IF($B46="","",VLOOKUP(F$5,BBDD!$8:$1048576,$B46,FALSE)) -> 1.056 | G46: =IF($B46="","",VLOOKUP(G$5,BBDD!$8:$1048576,$B46,FALSE)) -> 1.056 | H46: =IF($B46="","",VLOOKUP(H$5,BBDD!$8:$1048576,$B46,FALSE)) -> 1.056 | I46: =IF($B46="","",VLOOKUP(I$5,BBDD!$8:$1048576,$B46,FALSE)) -> 1.056 | J46: =IF($B46="","",VLOOKUP(J$5,BBDD!$8:$1048576,$B46,FALSE)) -> 1.056 | K46: =IF($B46="","",VLOOKUP(K$5,BBDD!$8:$1048576,$B46,FALSE)) -> 1.056 | L46: =IF($B46="","",VLOOKUP(L$5,BBDD!$8:$1048576,$B46,FALSE)) -> 1.09 | M46: =IF($B46="","",VLOOKUP(M$5,BBDD!$8:$1048576,$B46,FALSE)) -> 1.09 | N46: =IF($B46="","",VLOOKUP(N$5,BBDD!$8:$1048576,$B46,FALSE)) -> 1.09 | O46: =IF($B46="","",VLOOKUP(O$5,BBDD!$8:$1048576,$B46,FALSE)) -> 1 | P46: =+Factores!F46 -> 1
A47: Línea Pomacocha - Carhuamayo 220 kV | B47: 33 | C47: =IF($B47="","",VLOOKUP(C$5,BBDD!$8:$1048576,$B47,FALSE)) -> 0 | D47: =IF($B47="","",VLOOKUP(D$5,BBDD!$8:$1048576,$B47,FALSE)) -> 0 | E47: =IF($B47="","",VLOOKUP(E$5,BBDD!$8:$1048576,$B47,FALSE)) -> 0 | F47: =IF($B47="","",VLOOKUP(F$5,BBDD!$8:$1048576,$B47,FALSE)) -> 0 | G47: =IF($B47="","",VLOOKUP(G$5,BBDD!$8:$1048576,$B47,FALSE)) -> 0 | H47: =IF($B47="","",VLOOKUP(H$5,BBDD!$8:$1048576,$B47,FALSE)) -> 0 | I47: =IF($B47="","",VLOOKUP(I$5,BBDD!$8:$1048576,$B47,FALSE)) -> 1.0699 | J47: =IF($B47="","",VLOOKUP(J$5,BBDD!$8:$1048576,$B47,FALSE)) -> 1.0699 | K47: =IF($B47="","",VLOOKUP(K$5,BBDD!$8:$1048576,$B47,FALSE)) -> 1.0699 | L47: =IF($B47="","",VLOOKUP(L$5,BBDD!$8:$1048576,$B47,FALSE)) -> 1.09 | M47: =IF($B47="","",VLOOKUP(M$5,BBDD!$8:$1048576,$B47,FALSE)) -> 1.09 | N47: =IF($B47="","",VLOOKUP(N$5,BBDD!$8:$1048576,$B47,FALSE)) -> 1.09 | O47: =IF($B47="","",VLOOKUP(O$5,BBDD!$8:$1048576,$B47,FALSE)) -> 1 | P47: =+Factores!F47 -> 1
A48: Línea Socabaya - Tintaya 220 kV | B48: 34 | C48: =IF($B48="","",VLOOKUP(C$5,BBDD!$8:$1048576,$B48,FALSE)) -> 0 | D48: =IF($B48="","",VLOOKUP(D$5,BBDD!$8:$1048576,$B48,FALSE)) -> 0 | E48: =IF($B48="","",VLOOKUP(E$5,BBDD!$8:$1048576,$B48,FALSE)) -> 0 | F48: =IF($B48="","",VLOOKUP(F$5,BBDD!$8:$1048576,$B48,FALSE)) -> 0 | G48: =IF($B48="","",VLOOKUP(G$5,BBDD!$8:$1048576,$B48,FALSE)) -> 0 | H48: =IF($B48="","",VLOOKUP(H$5,BBDD!$8:$1048576,$B48,FALSE)) -> 0 | I48: =IF($B48="","",VLOOKUP(I$5,BBDD!$8:$1048576,$B48,FALSE)) -> 0 | J48: =IF($B48="","",VLOOKUP(J$5,BBDD!$8:$1048576,$B48,FALSE)) -> 0 | K48: =IF($B48="","",VLOOKUP(K$5,BBDD!$8:$1048576,$B48,FALSE)) -> 0 | L48: =IF($B48="","",VLOOKUP(L$5,BBDD!$8:$1048576,$B48,FALSE)) -> 0 | M48: =IF($B48="","",VLOOKUP(M$5,BBDD!$8:$1048576,$B48,FALSE)) -> 0 | N48: =IF($B48="","",VLOOKUP(N$5,BBDD!$8:$1048576,$B48,FALSE)) -> 0 | O48: =IF($B48="","",VLOOKUP(O$5,BBDD!$8:$1048576,$B48,FALSE)) -> 0 | P48: =+Factores!F48 -> 0
A49: Línea Chilca - Marcona - Montalvo 500 kV | B49: 35 | C49: =IF($B49="","",VLOOKUP(C$5,BBDD!$8:$1048576,$B49,FALSE)) -> 0 | D49: =IF($B49="","",VLOOKUP(D$5,BBDD!$8:$1048576,$B49,FALSE)) -> 0 | E49: =IF($B49="","",VLOOKUP(E$5,BBDD!$8:$1048576,$B49,FALSE)) -> 0 | F49: =IF($B49="","",VLOOKUP(F$5,BBDD!$8:$1048576,$B49,FALSE)) -> 0 | G49: =IF($B49="","",VLOOKUP(G$5,BBDD!$8:$1048576,$B49,FALSE)) -> 0 | H49: =IF($B49="","",VLOOKUP(H$5,BBDD!$8:$1048576,$B49,FALSE)) -> 0 | I49: =IF($B49="","",VLOOKUP(I$5,BBDD!$8:$1048576,$B49,FALSE)) -> 0 | J49: =IF($B49="","",VLOOKUP(J$5,BBDD!$8:$1048576,$B49,FALSE)) -> 0 | K49: =IF($B49="","",VLOOKUP(K$5,BBDD!$8:$1048576,$B49,FALSE)) -> 0 | L49: =IF($B49="","",VLOOKUP(L$5,BBDD!$8:$1048576,$B49,FALSE)) -> 1.09 | M49: =IF($B49="","",VLOOKUP(M$5,BBDD!$8:$1048576,$B49,FALSE)) -> 1.09 | N49: =IF($B49="","",VLOOKUP(N$5,BBDD!$8:$1048576,$B49,FALSE)) -> 1.09 | O49: =IF($B49="","",VLOOKUP(O$5,BBDD!$8:$1048576,$B49,FALSE)) -> 1 | P49: =+Factores!F49 -> 1
A50: SGT linea Trujillo - Chiclayo 500 KV (1) | B50: =+B49+1 -> 36 | O50: =IF($B50="","",VLOOKUP(O$5,BBDD!$8:$1048576,$B50,FALSE)) -> 0 | P50: =+Factores!F50 -> 0
A51: SGT Linea Machupicchu - Abancay - Cotaruse 220 kV (1) | B51: =+B50+1 -> 37 | O51: =IF($B51="","",VLOOKUP(O$5,BBDD!$8:$1048576,$B51,FALSE)) -> 0 | P51: =+Factores!F51 -> 0
A52: Cargo Unitario por Compensación por Seguridad de Suministro (CUCSS) | C52: =IF($B52="","",VLOOKUP(C$5,BBDD!$8:$1048576,$B52,FALSE)) ->  | D52: =IF($B52="","",VLOOKUP(D$5,BBDD!$8:$1048576,$B52,FALSE)) ->  | E52: =IF($B52="","",VLOOKUP(E$5,BBDD!$8:$1048576,$B52,FALSE)) ->  | F52: =IF($B52="","",VLOOKUP(F$5,BBDD!$8:$1048576,$B52,FALSE)) ->  | G52: =IF($B52="","",VLOOKUP(G$5,BBDD!$8:$1048576,$B52,FALSE)) ->  | H52: =IF($B52="","",VLOOKUP(H$5,BBDD!$8:$1048576,$B52,FALSE)) ->  | I52: =IF($B52="","",VLOOKUP(I$5,BBDD!$8:$1048576,$B52,FALSE)) ->  | J52: =IF($B52="","",VLOOKUP(J$5,BBDD!$8:$1048576,$B52,FALSE)) ->  | K52: =IF($B52="","",VLOOKUP(K$5,BBDD!$8:$1048576,$B52,FALSE)) ->  | L52: =IF($B52="","",VLOOKUP(L$5,BBDD!$8:$1048576,$B52,FALSE)) ->  | M52: =IF($B52="","",VLOOKUP(M$5,BBDD!$8:$1048576,$B52,FALSE)) ->  | N52: =IF($B52="","",VLOOKUP(N$5,BBDD!$8:$1048576,$B52,FALSE)) ->  | O52: =IF($B52="","",VLOOKUP(O$5,BBDD!$8:$1048576,$B52,FALSE)) ->  | P52: =+Factores!F52 -> 
A53: No RF (No Reserva Fría) | B53: =B51+1 -> 38 | C53: =IF($B53="","",VLOOKUP(C$5,BBDD!$8:$1048576,$B53,FALSE)) -> 1.0422 | D53: =IF($B53="","",VLOOKUP(D$5,BBDD!$8:$1048576,$B53,FALSE)) -> 1.0422 | E53: =IF($B53="","",VLOOKUP(E$5,BBDD!$8:$1048576,$B53,FALSE)) -> 1.0422 | F53: =IF($B53="","",VLOOKUP(F$5,BBDD!$8:$1048576,$B53,FALSE)) -> 1.0422 | G53: =IF($B53="","",VLOOKUP(G$5,BBDD!$8:$1048576,$B53,FALSE)) -> 2.5424 | H53: =IF($B53="","",VLOOKUP(H$5,BBDD!$8:$1048576,$B53,FALSE)) -> 2.5424 | I53: =IF($B53="","",VLOOKUP(I$5,BBDD!$8:$1048576,$B53,FALSE)) -> 2.5424 | J53: =IF($B53="","",VLOOKUP(J$5,BBDD!$8:$1048576,$B53,FALSE)) -> 2.5424 | K53: =IF($B53="","",VLOOKUP(K$5,BBDD!$8:$1048576,$B53,FALSE)) -> 2.5424 | L53: =IF($B53="","",VLOOKUP(L$5,BBDD!$8:$1048576,$B53,FALSE)) -> 2.6186 | M53: =IF($B53="","",VLOOKUP(M$5,BBDD!$8:$1048576,$B53,FALSE)) -> 2.6186 | N53: =IF($B53="","",VLOOKUP(N$5,BBDD!$8:$1048576,$B53,FALSE)) -> 2.0413 | O53: =IF($B53="","",VLOOKUP(O$5,BBDD!$8:$1048576,$B53,FALSE)) -> 1 | P53: =+Factores!F53 -> 1
P54: =+Factores!F54 -> 
A55: Reserva Fría (RF) de Talara | B55: =1+B53 -> 39 | C55: =IF($B55="","",VLOOKUP(C$5,BBDD!$8:$1048576,$B55,FALSE)) -> 0 | D55: =IF($B55="","",VLOOKUP(D$5,BBDD!$8:$1048576,$B55,FALSE)) -> 0 | E55: =IF($B55="","",VLOOKUP(E$5,BBDD!$8:$1048576,$B55,FALSE)) -> 1.0822 | F55: =IF($B55="","",VLOOKUP(F$5,BBDD!$8:$1048576,$B55,FALSE)) -> 1.0822 | G55: =IF($B55="","",VLOOKUP(G$5,BBDD!$8:$1048576,$B55,FALSE)) -> 1.0822 | H55: =IF($B55="","",VLOOKUP(H$5,BBDD!$8:$1048576,$B55,FALSE)) -> 1.0822 | I55: =IF($B55="","",VLOOKUP(I$5,BBDD!$8:$1048576,$B55,FALSE)) -> 1.1685 | J55: =IF($B55="","",VLOOKUP(J$5,BBDD!$8:$1048576,$B55,FALSE)) -> 1.1685 | K55: =IF($B55="","",VLOOKUP(K$5,BBDD!$8:$1048576,$B55,FALSE)) -> 1.1685 | L55: =IF($B55="","",VLOOKUP(L$5,BBDD!$8:$1048576,$B55,FALSE)) -> 1.2264 | M55: =IF($B55="","",VLOOKUP(M$5,BBDD!$8:$1048576,$B55,FALSE)) -> 1.2264 | N55: =IF($B55="","",VLOOKUP(N$5,BBDD!$8:$1048576,$B55,FALSE)) -> 1.2264 | O55: =IF($B55="","",VLOOKUP(O$5,BBDD!$8:$1048576,$B55,FALSE)) -> 1 | P55: =+Factores!F55 -> 1
A56: Reserva Fría (RF) de Ilo | B56: =1+B55 -> 40 | C56: =IF($B56="","",VLOOKUP(C$5,BBDD!$8:$1048576,$B56,FALSE)) -> 0 | D56: =IF($B56="","",VLOOKUP(D$5,BBDD!$8:$1048576,$B56,FALSE)) -> 1 | E56: =IF($B56="","",VLOOKUP(E$5,BBDD!$8:$1048576,$B56,FALSE)) -> 1.1268 | F56: =IF($B56="","",VLOOKUP(F$5,BBDD!$8:$1048576,$B56,FALSE)) -> 1.1268 | G56: =IF($B56="","",VLOOKUP(G$5,BBDD!$8:$1048576,$B56,FALSE)) -> 1.1268 | H56: =IF($B56="","",VLOOKUP(H$5,BBDD!$8:$1048576,$B56,FALSE)) -> 1.1268 | I56: =IF($B56="","",VLOOKUP(I$5,BBDD!$8:$1048576,$B56,FALSE)) -> 1.2473 | J56: =IF($B56="","",VLOOKUP(J$5,BBDD!$8:$1048576,$B56,FALSE)) -> 1.2473 | K56: =IF($B56="","",VLOOKUP(K$5,BBDD!$8:$1048576,$B56,FALSE)) -> 1.2473 | L56: =IF($B56="","",VLOOKUP(L$5,BBDD!$8:$1048576,$B56,FALSE)) -> 1.311 | M56: =IF($B56="","",VLOOKUP(M$5,BBDD!$8:$1048576,$B56,FALSE)) -> 1.311 | N56: =IF($B56="","",VLOOKUP(N$5,BBDD!$8:$1048576,$B56,FALSE)) -> 1.311 | O56: =IF($B56="","",VLOOKUP(O$5,BBDD!$8:$1048576,$B56,FALSE)) -> 1 | P56: =+Factores!F56 -> 1
A57: Reserva Fría (RF) de Pucallpa | B57: =+B56+1 -> 41 | O57: =IF($B57="","",VLOOKUP(O$5,BBDD!$8:$1048576,$B57,FALSE)) -> 0 | P57: =+Factores!F57 -> 0
A58: Reserva Fría (RF) de Puerto Maldonado | B58: =+B57+1 -> 42 | O58: =IF($B58="","",VLOOKUP(O$5,BBDD!$8:$1048576,$B58,FALSE)) -> 0 | P58: =+Factores!F58 -> 0
C59: =IF($B59="","",VLOOKUP(C$5,BBDD!$8:$1048576,$B59,FALSE)) ->  | D59: =IF($B59="","",VLOOKUP(D$5,BBDD!$8:$1048576,$B59,FALSE)) ->  | E59: =IF($B59="","",VLOOKUP(E$5,BBDD!$8:$1048576,$B59,FALSE)) ->  | F59: =IF($B59="","",VLOOKUP(F$5,BBDD!$8:$1048576,$B59,FALSE)) ->  | G59: =IF($B59="","",VLOOKUP(G$5,BBDD!$8:$1048576,$B59,FALSE)) ->  | H59: =IF($B59="","",VLOOKUP(H$5,BBDD!$8:$1048576,$B59,FALSE)) ->  | I59: =IF($B59="","",VLOOKUP(I$5,BBDD!$8:$1048576,$B59,FALSE)) ->  | J59: =IF($B59="","",VLOOKUP(J$5,BBDD!$8:$1048576,$B59,FALSE)) ->  | K59: =IF($B59="","",VLOOKUP(K$5,BBDD!$8:$1048576,$B59,FALSE)) ->  | L59: =IF($B59="","",VLOOKUP(L$5,BBDD!$8:$1048576,$B59,FALSE)) ->  | M59: =IF($B59="","",VLOOKUP(M$5,BBDD!$8:$1048576,$B59,FALSE)) ->  | N59: =IF($B59="","",VLOOKUP(N$5,BBDD!$8:$1048576,$B59,FALSE)) ->  | O59: =IF($B59="","",VLOOKUP(O$5,BBDD!$8:$1048576,$B59,FALSE)) ->  | P59: =+Factores!F59 -> 
A60: Costos Variables de Operación Adicional en Generación | C60: =IF($B60="","",VLOOKUP(C$5,BBDD!$8:$1048576,$B60,FALSE)) ->  | D60: =IF($B60="","",VLOOKUP(D$5,BBDD!$8:$1048576,$B60,FALSE)) ->  | E60: =IF($B60="","",VLOOKUP(E$5,BBDD!$8:$1048576,$B60,FALSE)) ->  | F60: =IF($B60="","",VLOOKUP(F$5,BBDD!$8:$1048576,$B60,FALSE)) ->  | G60: =IF($B60="","",VLOOKUP(G$5,BBDD!$8:$1048576,$B60,FALSE)) ->  | H60: =IF($B60="","",VLOOKUP(H$5,BBDD!$8:$1048576,$B60,FALSE)) ->  | I60: =IF($B60="","",VLOOKUP(I$5,BBDD!$8:$1048576,$B60,FALSE)) ->  | J60: =IF($B60="","",VLOOKUP(J$5,BBDD!$8:$1048576,$B60,FALSE)) ->  | K60: =IF($B60="","",VLOOKUP(K$5,BBDD!$8:$1048576,$B60,FALSE)) ->  | L60: =IF($B60="","",VLOOKUP(L$5,BBDD!$8:$1048576,$B60,FALSE)) ->  | M60: =IF($B60="","",VLOOKUP(M$5,BBDD!$8:$1048576,$B60,FALSE)) ->  | N60: =IF($B60="","",VLOOKUP(N$5,BBDD!$8:$1048576,$B60,FALSE)) ->  | O60: =IF($B60="","",VLOOKUP(O$5,BBDD!$8:$1048576,$B60,FALSE)) ->  | P60: =+Factores!F60 -> 
A61: Cargo Unitario por CVOA-CMg | B61: =1+B58 -> 43 | C61: =IF($B61="","",VLOOKUP(C$5,BBDD!$8:$1048576,$B61,FALSE)) -> 1 | D61: =IF($B61="","",VLOOKUP(D$5,BBDD!$8:$1048576,$B61,FALSE)) -> 1 | E61: =IF($B61="","",VLOOKUP(E$5,BBDD!$8:$1048576,$B61,FALSE)) -> 0.7407 | F61: =IF($B61="","",VLOOKUP(F$5,BBDD!$8:$1048576,$B61,FALSE)) -> 0.7407 | G61: =IF($B61="","",VLOOKUP(G$5,BBDD!$8:$1048576,$B61,FALSE)) -> 0.7407 | H61: =IF($B61="","",VLOOKUP(H$5,BBDD!$8:$1048576,$B61,FALSE)) -> 0.7407 | I61: =IF($B61="","",VLOOKUP(I$5,BBDD!$8:$1048576,$B61,FALSE)) -> 1.3823 | J61: =IF($B61="","",VLOOKUP(J$5,BBDD!$8:$1048576,$B61,FALSE)) -> 1.3823 | K61: =IF($B61="","",VLOOKUP(K$5,BBDD!$8:$1048576,$B61,FALSE)) -> 1.3823 | L61: =IF($B61="","",VLOOKUP(L$5,BBDD!$8:$1048576,$B61,FALSE)) -> 9.4087 | M61: =IF($B61="","",VLOOKUP(M$5,BBDD!$8:$1048576,$B61,FALSE)) -> 9.4087 | N61: =IF($B61="","",VLOOKUP(N$5,BBDD!$8:$1048576,$B61,FALSE)) -> 9.4087 | O61: =IF($B61="","",VLOOKUP(O$5,BBDD!$8:$1048576,$B61,FALSE)) -> 1 | P61: =+Factores!F61 -> 1
A62: Cargo Unitario por CVOA-RSC | B62: =1+B61 -> 44 | C62: =IF($B62="","",VLOOKUP(C$5,BBDD!$8:$1048576,$B62,FALSE)) -> 1 | D62: =IF($B62="","",VLOOKUP(D$5,BBDD!$8:$1048576,$B62,FALSE)) -> 1 | E62: =IF($B62="","",VLOOKUP(E$5,BBDD!$8:$1048576,$B62,FALSE)) -> 0 | F62: =IF($B62="","",VLOOKUP(F$5,BBDD!$8:$1048576,$B62,FALSE)) -> 0 | G62: =IF($B62="","",VLOOKUP(G$5,BBDD!$8:$1048576,$B62,FALSE)) -> 0 | H62: =IF($B62="","",VLOOKUP(H$5,BBDD!$8:$1048576,$B62,FALSE)) -> 0 | I62: =IF($B62="","",VLOOKUP(I$5,BBDD!$8:$1048576,$B62,FALSE)) -> 0 | J62: =IF($B62="","",VLOOKUP(J$5,BBDD!$8:$1048576,$B62,FALSE)) -> 0 | K62: =IF($B62="","",VLOOKUP(K$5,BBDD!$8:$1048576,$B62,FALSE)) -> 0 | L62: =IF($B62="","",VLOOKUP(L$5,BBDD!$8:$1048576,$B62,FALSE)) -> 0 | M62: =IF($B62="","",VLOOKUP(M$5,BBDD!$8:$1048576,$B62,FALSE)) -> 0 | N62: =IF($B62="","",VLOOKUP(N$5,BBDD!$8:$1048576,$B62,FALSE)) -> 0 | O62: =IF($B62="","",VLOOKUP(O$5,BBDD!$8:$1048576,$B62,FALSE)) -> 1 | P62: =+Factores!F62 -> 1
A63: Cargo por Prima | C63: =IF($B63="","",VLOOKUP(C$5,BBDD!$8:$1048576,$B63,FALSE)) ->  | D63: =IF($B63="","",VLOOKUP(D$5,BBDD!$8:$1048576,$B63,FALSE)) ->  | E63: =IF($B63="","",VLOOKUP(E$5,BBDD!$8:$1048576,$B63,FALSE)) ->  | F63: =IF($B63="","",VLOOKUP(F$5,BBDD!$8:$1048576,$B63,FALSE)) ->  | G63: =IF($B63="","",VLOOKUP(G$5,BBDD!$8:$1048576,$B63,FALSE)) ->  | H63: =IF($B63="","",VLOOKUP(H$5,BBDD!$8:$1048576,$B63,FALSE)) ->  | I63: =IF($B63="","",VLOOKUP(I$5,BBDD!$8:$1048576,$B63,FALSE)) ->  | J63: =IF($B63="","",VLOOKUP(J$5,BBDD!$8:$1048576,$B63,FALSE)) ->  | K63: =IF($B63="","",VLOOKUP(K$5,BBDD!$8:$1048576,$B63,FALSE)) ->  | L63: =IF($B63="","",VLOOKUP(L$5,BBDD!$8:$1048576,$B63,FALSE)) ->  | M63: =IF($B63="","",VLOOKUP(M$5,BBDD!$8:$1048576,$B63,FALSE)) ->  | N63: =IF($B63="","",VLOOKUP(N$5,BBDD!$8:$1048576,$B63,FALSE)) ->  | O63: =IF($B63="","",VLOOKUP(O$5,BBDD!$8:$1048576,$B63,FALSE)) ->  | P63: =+Factores!F63 -> 
A64: Cogeneración Paramonga | B64: =1+B62 -> 45 | C64: =IF($B64="","",VLOOKUP(C$5,BBDD!$8:$1048576,$B64,FALSE)) -> 1 | D64: =IF($B64="","",VLOOKUP(D$5,BBDD!$8:$1048576,$B64,FALSE)) -> 1 | E64: =IF($B64="","",VLOOKUP(E$5,BBDD!$8:$1048576,$B64,FALSE)) -> 1.4091 | F64: =IF($B64="","",VLOOKUP(F$5,BBDD!$8:$1048576,$B64,FALSE)) -> 1.4091 | G64: =IF($B64="","",VLOOKUP(G$5,BBDD!$8:$1048576,$B64,FALSE)) -> 1.4091 | H64: =IF($B64="","",VLOOKUP(H$5,BBDD!$8:$1048576,$B64,FALSE)) -> 1.4091 | I64: =IF($B64="","",VLOOKUP(I$5,BBDD!$8:$1048576,$B64,FALSE)) -> 0 | J64: =IF($B64="","",VLOOKUP(J$5,BBDD!$8:$1048576,$B64,FALSE)) -> 0 | K64: =IF($B64="","",VLOOKUP(K$5,BBDD!$8:$1048576,$B64,FALSE)) -> 0 | L64: =IF($B64="","",VLOOKUP(L$5,BBDD!$8:$1048576,$B64,FALSE)) -> 0 | M64: =IF($B64="","",VLOOKUP(M$5,BBDD!$8:$1048576,$B64,FALSE)) -> 0 | N64: =IF($B64="","",VLOOKUP(N$5,BBDD!$8:$1048576,$B64,FALSE)) -> 0 | O64: =IF($B64="","",VLOOKUP(O$5,BBDD!$8:$1048576,$B64,FALSE)) -> 1 | P64: =+Factores!F64 -> 1
A65: C.H. Santa Cruz II | B65: =1+B64 -> 46 | C65: =IF($B65="","",VLOOKUP(C$5,BBDD!$8:$1048576,$B65,FALSE)) -> 1 | D65: =IF($B65="","",VLOOKUP(D$5,BBDD!$8:$1048576,$B65,FALSE)) -> 1 | E65: =IF($B65="","",VLOOKUP(E$5,BBDD!$8:$1048576,$B65,FALSE)) -> 1.3864 | F65: =IF($B65="","",VLOOKUP(F$5,BBDD!$8:$1048576,$B65,FALSE)) -> 1.3864 | G65: =IF($B65="","",VLOOKUP(G$5,BBDD!$8:$1048576,$B65,FALSE)) -> 1.3864 | H65: =IF($B65="","",VLOOKUP(H$5,BBDD!$8:$1048576,$B65,FALSE)) -> 1.3864 | I65: =IF($B65="","",VLOOKUP(I$5,BBDD!$8:$1048576,$B65,FALSE)) -> 0.75 | J65: =IF($B65="","",VLOOKUP(J$5,BBDD!$8:$1048576,$B65,FALSE)) -> 0.75 | K65: =IF($B65="","",VLOOKUP(K$5,BBDD!$8:$1048576,$B65,FALSE)) -> 0.75 | L65: =IF($B65="","",VLOOKUP(L$5,BBDD!$8:$1048576,$B65,FALSE)) -> 0.8182 | M65: =IF($B65="","",VLOOKUP(M$5,BBDD!$8:$1048576,$B65,FALSE)) -> 0.8182 | N65: =IF($B65="","",VLOOKUP(N$5,BBDD!$8:$1048576,$B65,FALSE)) -> 0.8182 | O65: =IF($B65="","",VLOOKUP(O$5,BBDD!$8:$1048576,$B65,FALSE)) -> 1 | P65: =+Factores!F65 -> 1
A66: C.H. Santa Cruz I | B66: 47 | C66: =IF($B66="","",VLOOKUP(C$5,BBDD!$8:$1048576,$B66,FALSE)) -> 1 | D66: =IF($B66="","",VLOOKUP(D$5,BBDD!$8:$1048576,$B66,FALSE)) -> 1 | E66: =IF($B66="","",VLOOKUP(E$5,BBDD!$8:$1048576,$B66,FALSE)) -> 1.4 | F66: =IF($B66="","",VLOOKUP(F$5,BBDD!$8:$1048576,$B66,FALSE)) -> 1.4 | G66: =IF($B66="","",VLOOKUP(G$5,BBDD!$8:$1048576,$B66,FALSE)) -> 1.4 | H66: =IF($B66="","",VLOOKUP(H$5,BBDD!$8:$1048576,$B66,FALSE)) -> 1.4 | I66: =IF($B66="","",VLOOKUP(I$5,BBDD!$8:$1048576,$B66,FALSE)) -> 0.75 | J66: =IF($B66="","",VLOOKUP(J$5,BBDD!$8:$1048576,$B66,FALSE)) -> 0.75 | K66: =IF($B66="","",VLOOKUP(K$5,BBDD!$8:$1048576,$B66,FALSE)) -> 0.75 | L66: =IF($B66="","",VLOOKUP(L$5,BBDD!$8:$1048576,$B66,FALSE)) -> 0.825 | M66: =IF($B66="","",VLOOKUP(M$5,BBDD!$8:$1048576,$B66,FALSE)) -> 0.825 | N66: =IF($B66="","",VLOOKUP(N$5,BBDD!$8:$1048576,$B66,FALSE)) -> 0.825 | O66: =IF($B66="","",VLOOKUP(O$5,BBDD!$8:$1048576,$B66,FALSE)) -> 1 | P66: =+Factores!F66 -> 1
A67: C.H. Poechos 2 | B67: 48 | C67: =IF($B67="","",VLOOKUP(C$5,BBDD!$8:$1048576,$B67,FALSE)) -> 1 | D67: =IF($B67="","",VLOOKUP(D$5,BBDD!$8:$1048576,$B67,FALSE)) -> 1 | E67: =IF($B67="","",VLOOKUP(E$5,BBDD!$8:$1048576,$B67,FALSE)) -> 1.2985 | F67: =IF($B67="","",VLOOKUP(F$5,BBDD!$8:$1048576,$B67,FALSE)) -> 1.2985 | G67: =IF($B67="","",VLOOKUP(G$5,BBDD!$8:$1048576,$B67,FALSE)) -> 1.2985 | H67: =IF($B67="","",VLOOKUP(H$5,BBDD!$8:$1048576,$B67,FALSE)) -> 1.2985 | I67: =IF($B67="","",VLOOKUP(I$5,BBDD!$8:$1048576,$B67,FALSE)) -> 0.5672 | J67: =IF($B67="","",VLOOKUP(J$5,BBDD!$8:$1048576,$B67,FALSE)) -> 0.5672 | K67: =IF($B67="","",VLOOKUP(K$5,BBDD!$8:$1048576,$B67,FALSE)) -> 0.5672 | L67: =IF($B67="","",VLOOKUP(L$5,BBDD!$8:$1048576,$B67,FALSE)) -> 0.7164 | M67: =IF($B67="","",VLOOKUP(M$5,BBDD!$8:$1048576,$B67,FALSE)) -> 0.7164 | N67: =IF($B67="","",VLOOKUP(N$5,BBDD!$8:$1048576,$B67,FALSE)) -> 0.7164 | O67: =IF($B67="","",VLOOKUP(O$5,BBDD!$8:$1048576,$B67,FALSE)) -> 1 | P67: =+Factores!F67 -> 1
A68: C.H. Roncador | B68: 49 | C68: =IF($B68="","",VLOOKUP(C$5,BBDD!$8:$1048576,$B68,FALSE)) -> 1 | D68: =IF($B68="","",VLOOKUP(D$5,BBDD!$8:$1048576,$B68,FALSE)) -> 1 | E68: =IF($B68="","",VLOOKUP(E$5,BBDD!$8:$1048576,$B68,FALSE)) -> 1 | F68: =IF($B68="","",VLOOKUP(F$5,BBDD!$8:$1048576,$B68,FALSE)) -> 1 | G68: =IF($B68="","",VLOOKUP(G$5,BBDD!$8:$1048576,$B68,FALSE)) -> 1 | H68: =IF($B68="","",VLOOKUP(H$5,BBDD!$8:$1048576,$B68,FALSE)) -> 1 | I68: =IF($B68="","",VLOOKUP(I$5,BBDD!$8:$1048576,$B68,FALSE)) -> 0 | J68: =IF($B68="","",VLOOKUP(J$5,BBDD!$8:$1048576,$B68,FALSE)) -> 0 | K68: =IF($B68="","",VLOOKUP(K$5,BBDD!$8:$1048576,$B68,FALSE)) -> 0 | L68: =IF($B68="","",VLOOKUP(L$5,BBDD!$8:$1048576,$B68,FALSE)) -> 0 | M68: =IF($B68="","",VLOOKUP(M$5,BBDD!$8:$1048576,$B68,FALSE)) -> 0 | N68: =IF($B68="","",VLOOKUP(N$5,BBDD!$8:$1048576,$B68,FALSE)) -> 0 | O68: =IF($B68="","",VLOOKUP(O$5,BBDD!$8:$1048576,$B68,FALSE)) -> 1 | P68: =+Factores!F68 -> 1
A69: C.H. Carhuaquero IV | B69: 50 | C69: =IF($B69="","",VLOOKUP(C$5,BBDD!$8:$1048576,$B69,FALSE)) -> 1 | D69: =IF($B69="","",VLOOKUP(D$5,BBDD!$8:$1048576,$B69,FALSE)) -> 1 | E69: =IF($B69="","",VLOOKUP(E$5,BBDD!$8:$1048576,$B69,FALSE)) -> 1.2338 | F69: =IF($B69="","",VLOOKUP(F$5,BBDD!$8:$1048576,$B69,FALSE)) -> 1.2338 | G69: =IF($B69="","",VLOOKUP(G$5,BBDD!$8:$1048576,$B69,FALSE)) -> 1.2338 | H69: =IF($B69="","",VLOOKUP(H$5,BBDD!$8:$1048576,$B69,FALSE)) -> 1.2338 | I69: =IF($B69="","",VLOOKUP(I$5,BBDD!$8:$1048576,$B69,FALSE)) -> 0.974 | J69: =IF($B69="","",VLOOKUP(J$5,BBDD!$8:$1048576,$B69,FALSE)) -> 0.974 | K69: =IF($B69="","",VLOOKUP(K$5,BBDD!$8:$1048576,$B69,FALSE)) -> 0.974 | L69: =IF($B69="","",VLOOKUP(L$5,BBDD!$8:$1048576,$B69,FALSE)) -> 0.8182 | M69: =IF($B69="","",VLOOKUP(M$5,BBDD!$8:$1048576,$B69,FALSE)) -> 0.8182 | N69: =IF($B69="","",VLOOKUP(N$5,BBDD!$8:$1048576,$B69,FALSE)) -> 0.8182 | O69: =IF($B69="","",VLOOKUP(O$5,BBDD!$8:$1048576,$B69,FALSE)) -> 1 | P69: =+Factores!F69 -> 1
A70: C.H. Caña Brava | B70: 51 | C70: =IF($B70="","",VLOOKUP(C$5,BBDD!$8:$1048576,$B70,FALSE)) -> 1 | D70: =IF($B70="","",VLOOKUP(D$5,BBDD!$8:$1048576,$B70,FALSE)) -> 1 | E70: =IF($B70="","",VLOOKUP(E$5,BBDD!$8:$1048576,$B70,FALSE)) -> 1.2258 | F70: =IF($B70="","",VLOOKUP(F$5,BBDD!$8:$1048576,$B70,FALSE)) -> 1.2258 | G70: =IF($B70="","",VLOOKUP(G$5,BBDD!$8:$1048576,$B70,FALSE)) -> 1.2258 | H70: =IF($B70="","",VLOOKUP(H$5,BBDD!$8:$1048576,$B70,FALSE)) -> 1.2258 | I70: =IF($B70="","",VLOOKUP(I$5,BBDD!$8:$1048576,$B70,FALSE)) -> 0.9032 | J70: =IF($B70="","",VLOOKUP(J$5,BBDD!$8:$1048576,$B70,FALSE)) -> 0.9032 | K70: =IF($B70="","",VLOOKUP(K$5,BBDD!$8:$1048576,$B70,FALSE)) -> 0.9032 | L70: =IF($B70="","",VLOOKUP(L$5,BBDD!$8:$1048576,$B70,FALSE)) -> 0.7419 | M70: =IF($B70="","",VLOOKUP(M$5,BBDD!$8:$1048576,$B70,FALSE)) -> 0.7419 | N70: =IF($B70="","",VLOOKUP(N$5,BBDD!$8:$1048576,$B70,FALSE)) -> 0.7419 | O70: =IF($B70="","",VLOOKUP(O$5,BBDD!$8:$1048576,$B70,FALSE)) -> 1 | P70: =+Factores!F70 -> 1
A71: C.H. La Joya | B71: 52 | C71: =IF($B71="","",VLOOKUP(C$5,BBDD!$8:$1048576,$B71,FALSE)) -> 1 | D71: =IF($B71="","",VLOOKUP(D$5,BBDD!$8:$1048576,$B71,FALSE)) -> 1 | E71: =IF($B71="","",VLOOKUP(E$5,BBDD!$8:$1048576,$B71,FALSE)) -> 1.1205 | F71: =IF($B71="","",VLOOKUP(F$5,BBDD!$8:$1048576,$B71,FALSE)) -> 1.1205 | G71: =IF($B71="","",VLOOKUP(G$5,BBDD!$8:$1048576,$B71,FALSE)) -> 1.1205 | H71: =IF($B71="","",VLOOKUP(H$5,BBDD!$8:$1048576,$B71,FALSE)) -> 1.1205 | I71: =IF($B71="","",VLOOKUP(I$5,BBDD!$8:$1048576,$B71,FALSE)) -> 0.8434 | J71: =IF($B71="","",VLOOKUP(J$5,BBDD!$8:$1048576,$B71,FALSE)) -> 0.8434 | K71: =IF($B71="","",VLOOKUP(K$5,BBDD!$8:$1048576,$B71,FALSE)) -> 0.8434 | L71: =IF($B71="","",VLOOKUP(L$5,BBDD!$8:$1048576,$B71,FALSE)) -> 1.0843 | M71: =IF($B71="","",VLOOKUP(M$5,BBDD!$8:$1048576,$B71,FALSE)) -> 1.0843 | N71: =IF($B71="","",VLOOKUP(N$5,BBDD!$8:$1048576,$B71,FALSE)) -> 1.0843 | O71: =IF($B71="","",VLOOKUP(O$5,BBDD!$8:$1048576,$B71,FALSE)) -> 1 | P71: =+Factores!F71 -> 1
A72: C.T. Huaycoloro | B72: 53 | C72: =IF($B72="","",VLOOKUP(C$5,BBDD!$8:$1048576,$B72,FALSE)) -> 1 | D72: =IF($B72="","",VLOOKUP(D$5,BBDD!$8:$1048576,$B72,FALSE)) -> 1 | E72: =IF($B72="","",VLOOKUP(E$5,BBDD!$8:$1048576,$B72,FALSE)) -> 1.0326 | F72: =IF($B72="","",VLOOKUP(F$5,BBDD!$8:$1048576,$B72,FALSE)) -> 1.0326 | G72: =IF($B72="","",VLOOKUP(G$5,BBDD!$8:$1048576,$B72,FALSE)) -> 1.0326 | H72: =IF($B72="","",VLOOKUP(H$5,BBDD!$8:$1048576,$B72,FALSE)) -> 1.0326 | I72: =IF($B72="","",VLOOKUP(I$5,BBDD!$8:$1048576,$B72,FALSE)) -> 1 | J72: =IF($B72="","",VLOOKUP(J$5,BBDD!$8:$1048576,$B72,FALSE)) -> 1 | K72: =IF($B72="","",VLOOKUP(K$5,BBDD!$8:$1048576,$B72,FALSE)) -> 1 | L72: =IF($B72="","",VLOOKUP(L$5,BBDD!$8:$1048576,$B72,FALSE)) -> 1.3587 | M72: =IF($B72="","",VLOOKUP(M$5,BBDD!$8:$1048576,$B72,FALSE)) -> 1.3587 | N72: =IF($B72="","",VLOOKUP(N$5,BBDD!$8:$1048576,$B72,FALSE)) -> 1.3587 | O72: =IF($B72="","",VLOOKUP(O$5,BBDD!$8:$1048576,$B72,FALSE)) -> 1 | P72: =+Factores!F72 -> 1
A73: C. H. Purmacana | B73: 54 | C73: =IF($B73="","",VLOOKUP(C$5,BBDD!$8:$1048576,$B73,FALSE)) -> 1 | D73: =IF($B73="","",VLOOKUP(D$5,BBDD!$8:$1048576,$B73,FALSE)) -> 1 | E73: =IF($B73="","",VLOOKUP(E$5,BBDD!$8:$1048576,$B73,FALSE)) -> 0.8571 | F73: =IF($B73="","",VLOOKUP(F$5,BBDD!$8:$1048576,$B73,FALSE)) -> 0.8571 | G73: =IF($B73="","",VLOOKUP(G$5,BBDD!$8:$1048576,$B73,FALSE)) -> 0.8571 | H73: =IF($B73="","",VLOOKUP(H$5,BBDD!$8:$1048576,$B73,FALSE)) -> 0.8571 | I73: =IF($B73="","",VLOOKUP(I$5,BBDD!$8:$1048576,$B73,FALSE)) -> 0.1429 | J73: =IF($B73="","",VLOOKUP(J$5,BBDD!$8:$1048576,$B73,FALSE)) -> 0.1429 | K73: =IF($B73="","",VLOOKUP(K$5,BBDD!$8:$1048576,$B73,FALSE)) -> 0.1429 | L73: =IF($B73="","",VLOOKUP(L$5,BBDD!$8:$1048576,$B73,FALSE)) -> 0 | M73: =IF($B73="","",VLOOKUP(M$5,BBDD!$8:$1048576,$B73,FALSE)) -> 0 | N73: =IF($B73="","",VLOOKUP(N$5,BBDD!$8:$1048576,$B73,FALSE)) -> 0 | O73: =IF($B73="","",VLOOKUP(O$5,BBDD!$8:$1048576,$B73,FALSE)) -> 1 | P73: =+Factores!F73 -> 1
A74: C.H. Huasahuasi I | B74: 55 | C74: =IF($B74="","",VLOOKUP(C$5,BBDD!$8:$1048576,$B74,FALSE)) -> 1 | D74: =IF($B74="","",VLOOKUP(D$5,BBDD!$8:$1048576,$B74,FALSE)) -> 1 | E74: =IF($B74="","",VLOOKUP(E$5,BBDD!$8:$1048576,$B74,FALSE)) -> 1.1071 | F74: =IF($B74="","",VLOOKUP(F$5,BBDD!$8:$1048576,$B74,FALSE)) -> 1.1071 | G74: =IF($B74="","",VLOOKUP(G$5,BBDD!$8:$1048576,$B74,FALSE)) -> 1.1071 | H74: =IF($B74="","",VLOOKUP(H$5,BBDD!$8:$1048576,$B74,FALSE)) -> 1.1071 | I74: =IF($B74="","",VLOOKUP(I$5,BBDD!$8:$1048576,$B74,FALSE)) -> 0.8214 | J74: =IF($B74="","",VLOOKUP(J$5,BBDD!$8:$1048576,$B74,FALSE)) -> 0.8214 | K74: =IF($B74="","",VLOOKUP(K$5,BBDD!$8:$1048576,$B74,FALSE)) -> 0.8214 | L74: =IF($B74="","",VLOOKUP(L$5,BBDD!$8:$1048576,$B74,FALSE)) -> 0.8214 | M74: =IF($B74="","",VLOOKUP(M$5,BBDD!$8:$1048576,$B74,FALSE)) -> 0.8214 | N74: =IF($B74="","",VLOOKUP(N$5,BBDD!$8:$1048576,$B74,FALSE)) -> 0.8214 | O74: =IF($B74="","",VLOOKUP(O$5,BBDD!$8:$1048576,$B74,FALSE)) -> 1 | P74: =+Factores!F74 -> 1
A75: C.H. Huasahuasi II | B75: 56 | C75: =IF($B75="","",VLOOKUP(C$5,BBDD!$8:$1048576,$B75,FALSE)) -> 1 | D75: =IF($B75="","",VLOOKUP(D$5,BBDD!$8:$1048576,$B75,FALSE)) -> 1 | E75: =IF($B75="","",VLOOKUP(E$5,BBDD!$8:$1048576,$B75,FALSE)) -> 1.1296 | F75: =IF($B75="","",VLOOKUP(F$5,BBDD!$8:$1048576,$B75,FALSE)) -> 1.1296 | G75: =IF($B75="","",VLOOKUP(G$5,BBDD!$8:$1048576,$B75,FALSE)) -> 1.1296 | H75: =IF($B75="","",VLOOKUP(H$5,BBDD!$8:$1048576,$B75,FALSE)) -> 1.1296 | I75: =IF($B75="","",VLOOKUP(I$5,BBDD!$8:$1048576,$B75,FALSE)) -> 0.8148 | J75: =IF($B75="","",VLOOKUP(J$5,BBDD!$8:$1048576,$B75,FALSE)) -> 0.8148 | K75: =IF($B75="","",VLOOKUP(K$5,BBDD!$8:$1048576,$B75,FALSE)) -> 0.8148 | L75: =IF($B75="","",VLOOKUP(L$5,BBDD!$8:$1048576,$B75,FALSE)) -> 0.8889 | M75: =IF($B75="","",VLOOKUP(M$5,BBDD!$8:$1048576,$B75,FALSE)) -> 0.8889 | N75: =IF($B75="","",VLOOKUP(N$5,BBDD!$8:$1048576,$B75,FALSE)) -> 0.8889 | O75: =IF($B75="","",VLOOKUP(O$5,BBDD!$8:$1048576,$B75,FALSE)) -> 1 | P75: =+Factores!F75 -> 1
A76: C.H. Nuevo Imperial | B76: 57 | C76: =IF($B76="","",VLOOKUP(C$5,BBDD!$8:$1048576,$B76,FALSE)) -> 1 | D76: =IF($B76="","",VLOOKUP(D$5,BBDD!$8:$1048576,$B76,FALSE)) -> 1 | E76: =IF($B76="","",VLOOKUP(E$5,BBDD!$8:$1048576,$B76,FALSE)) -> 1.1111 | F76: =IF($B76="","",VLOOKUP(F$5,BBDD!$8:$1048576,$B76,FALSE)) -> 1.1111 | G76: =IF($B76="","",VLOOKUP(G$5,BBDD!$8:$1048576,$B76,FALSE)) -> 1.1111 | H76: =IF($B76="","",VLOOKUP(H$5,BBDD!$8:$1048576,$B76,FALSE)) -> 1.1111 | I76: =IF($B76="","",VLOOKUP(I$5,BBDD!$8:$1048576,$B76,FALSE)) -> 0.7037 | J76: =IF($B76="","",VLOOKUP(J$5,BBDD!$8:$1048576,$B76,FALSE)) -> 0.7037 | K76: =IF($B76="","",VLOOKUP(K$5,BBDD!$8:$1048576,$B76,FALSE)) -> 0.7037 | L76: =IF($B76="","",VLOOKUP(L$5,BBDD!$8:$1048576,$B76,FALSE)) -> 0.4444 | M76: =IF($B76="","",VLOOKUP(M$5,BBDD!$8:$1048576,$B76,FALSE)) -> 0.4444 | N76: =IF($B76="","",VLOOKUP(N$5,BBDD!$8:$1048576,$B76,FALSE)) -> 0.4444 | O76: =IF($B76="","",VLOOKUP(O$5,BBDD!$8:$1048576,$B76,FALSE)) -> 1 | P76: =+Factores!F76 -> 1
A77: CS Repartición Solar 20T | B77: 58 | C77: =IF($B77="","",VLOOKUP(C$5,BBDD!$8:$1048576,$B77,FALSE)) -> 1 | D77: =IF($B77="","",VLOOKUP(D$5,BBDD!$8:$1048576,$B77,FALSE)) -> 1 | E77: =IF($B77="","",VLOOKUP(E$5,BBDD!$8:$1048576,$B77,FALSE)) -> 1.1281 | F77: =IF($B77="","",VLOOKUP(F$5,BBDD!$8:$1048576,$B77,FALSE)) -> 1.1281 | G77: =IF($B77="","",VLOOKUP(G$5,BBDD!$8:$1048576,$B77,FALSE)) -> 1.1281 | H77: =IF($B77="","",VLOOKUP(H$5,BBDD!$8:$1048576,$B77,FALSE)) -> 1.1281 | I77: =IF($B77="","",VLOOKUP(I$5,BBDD!$8:$1048576,$B77,FALSE)) -> 1.1762 | J77: =IF($B77="","",VLOOKUP(J$5,BBDD!$8:$1048576,$B77,FALSE)) -> 1.1762 | K77: =IF($B77="","",VLOOKUP(K$5,BBDD!$8:$1048576,$B77,FALSE)) -> 1.1762 | L77: =IF($B77="","",VLOOKUP(L$5,BBDD!$8:$1048576,$B77,FALSE)) -> 1.3135 | M77: =IF($B77="","",VLOOKUP(M$5,BBDD!$8:$1048576,$B77,FALSE)) -> 1.3135 | N77: =IF($B77="","",VLOOKUP(N$5,BBDD!$8:$1048576,$B77,FALSE)) -> 1.3135 | O77: =IF($B77="","",VLOOKUP(O$5,BBDD!$8:$1048576,$B77,FALSE)) -> 1 | P77: =+Factores!F77 -> 1
A78: CS Majes Solar 20T | B78: 59 | C78: =IF($B78="","",VLOOKUP(C$5,BBDD!$8:$1048576,$B78,FALSE)) -> 1 | D78: =IF($B78="","",VLOOKUP(D$5,BBDD!$8:$1048576,$B78,FALSE)) -> 1 | E78: =IF($B78="","",VLOOKUP(E$5,BBDD!$8:$1048576,$B78,FALSE)) -> 1.1279 | F78: =IF($B78="","",VLOOKUP(F$5,BBDD!$8:$1048576,$B78,FALSE)) -> 1.1279 | G78: =IF($B78="","",VLOOKUP(G$5,BBDD!$8:$1048576,$B78,FALSE)) -> 1.1279 | H78: =IF($B78="","",VLOOKUP(H$5,BBDD!$8:$1048576,$B78,FALSE)) -> 1.1279 | I78: =IF($B78="","",VLOOKUP(I$5,BBDD!$8:$1048576,$B78,FALSE)) -> 1.1758 | J78: =IF($B78="","",VLOOKUP(J$5,BBDD!$8:$1048576,$B78,FALSE)) -> 1.1758 | K78: =IF($B78="","",VLOOKUP(K$5,BBDD!$8:$1048576,$B78,FALSE)) -> 1.1758 | L78: =IF($B78="","",VLOOKUP(L$5,BBDD!$8:$1048576,$B78,FALSE)) -> 1.3128 | M78: =IF($B78="","",VLOOKUP(M$5,BBDD!$8:$1048576,$B78,FALSE)) -> 1.3128 | N78: =IF($B78="","",VLOOKUP(N$5,BBDD!$8:$1048576,$B78,FALSE)) -> 1.3128 | O78: =IF($B78="","",VLOOKUP(O$5,BBDD!$8:$1048576,$B78,FALSE)) -> 1 | P78: =+Factores!F78 -> 1
A79: CS Tacna Solar 20T | B79: 60 | C79: =IF($B79="","",VLOOKUP(C$5,BBDD!$8:$1048576,$B79,FALSE)) -> 1 | D79: =IF($B79="","",VLOOKUP(D$5,BBDD!$8:$1048576,$B79,FALSE)) -> 1 | E79: =IF($B79="","",VLOOKUP(E$5,BBDD!$8:$1048576,$B79,FALSE)) -> 1.1377 | F79: =IF($B79="","",VLOOKUP(F$5,BBDD!$8:$1048576,$B79,FALSE)) -> 1.1377 | G79: =IF($B79="","",VLOOKUP(G$5,BBDD!$8:$1048576,$B79,FALSE)) -> 1.1377 | H79: =IF($B79="","",VLOOKUP(H$5,BBDD!$8:$1048576,$B79,FALSE)) -> 1.1377 | I79: =IF($B79="","",VLOOKUP(I$5,BBDD!$8:$1048576,$B79,FALSE)) -> 1.183 | J79: =IF($B79="","",VLOOKUP(J$5,BBDD!$8:$1048576,$B79,FALSE)) -> 1.183 | K79: =IF($B79="","",VLOOKUP(K$5,BBDD!$8:$1048576,$B79,FALSE)) -> 1.183 | L79: =IF($B79="","",VLOOKUP(L$5,BBDD!$8:$1048576,$B79,FALSE)) -> 1.308 | M79: =IF($B79="","",VLOOKUP(M$5,BBDD!$8:$1048576,$B79,FALSE)) -> 1.308 | N79: =IF($B79="","",VLOOKUP(N$5,BBDD!$8:$1048576,$B79,FALSE)) -> 1.308 | O79: =IF($B79="","",VLOOKUP(O$5,BBDD!$8:$1048576,$B79,FALSE)) -> 1 | P79: =+Factores!F79 -> 1
A80: CS Panamericana Solar 20T | B80: 61 | C80: =IF($B80="","",VLOOKUP(C$5,BBDD!$8:$1048576,$B80,FALSE)) -> 1 | D80: =IF($B80="","",VLOOKUP(D$5,BBDD!$8:$1048576,$B80,FALSE)) -> 1 | E80: =IF($B80="","",VLOOKUP(E$5,BBDD!$8:$1048576,$B80,FALSE)) -> 1.1447 | F80: =IF($B80="","",VLOOKUP(F$5,BBDD!$8:$1048576,$B80,FALSE)) -> 1.1447 | G80: =IF($B80="","",VLOOKUP(G$5,BBDD!$8:$1048576,$B80,FALSE)) -> 1.1447 | H80: =IF($B80="","",VLOOKUP(H$5,BBDD!$8:$1048576,$B80,FALSE)) -> 1.1447 | I80: =IF($B80="","",VLOOKUP(I$5,BBDD!$8:$1048576,$B80,FALSE)) -> 1.1723 | J80: =IF($B80="","",VLOOKUP(J$5,BBDD!$8:$1048576,$B80,FALSE)) -> 1.1723 | K80: =IF($B80="","",VLOOKUP(K$5,BBDD!$8:$1048576,$B80,FALSE)) -> 1.1723 | L80: =IF($B80="","",VLOOKUP(L$5,BBDD!$8:$1048576,$B80,FALSE)) -> 1.2979 | M80: =IF($B80="","",VLOOKUP(M$5,BBDD!$8:$1048576,$B80,FALSE)) -> 1.2979 | N80: =IF($B80="","",VLOOKUP(N$5,BBDD!$8:$1048576,$B80,FALSE)) -> 1.2979 | O80: =IF($B80="","",VLOOKUP(O$5,BBDD!$8:$1048576,$B80,FALSE)) -> 1 | P80: =+Factores!F80 -> 1
A81: C.H. Yanapampa | B81: 62 | C81: =IF($B81="","",VLOOKUP(C$5,BBDD!$8:$1048576,$B81,FALSE)) -> 1 | D81: =IF($B81="","",VLOOKUP(D$5,BBDD!$8:$1048576,$B81,FALSE)) -> 1 | E81: =IF($B81="","",VLOOKUP(E$5,BBDD!$8:$1048576,$B81,FALSE)) -> 1.3429 | F81: =IF($B81="","",VLOOKUP(F$5,BBDD!$8:$1048576,$B81,FALSE)) -> 1.3429 | G81: =IF($B81="","",VLOOKUP(G$5,BBDD!$8:$1048576,$B81,FALSE)) -> 1.3429 | H81: =IF($B81="","",VLOOKUP(H$5,BBDD!$8:$1048576,$B81,FALSE)) -> 1.3429 | I81: =IF($B81="","",VLOOKUP(I$5,BBDD!$8:$1048576,$B81,FALSE)) -> 0.5714 | J81: =IF($B81="","",VLOOKUP(J$5,BBDD!$8:$1048576,$B81,FALSE)) -> 0.5714 | K81: =IF($B81="","",VLOOKUP(K$5,BBDD!$8:$1048576,$B81,FALSE)) -> 0.5714 | L81: =IF($B81="","",VLOOKUP(L$5,BBDD!$8:$1048576,$B81,FALSE)) -> 0 | M81: =IF($B81="","",VLOOKUP(M$5,BBDD!$8:$1048576,$B81,FALSE)) -> 0 | N81: =IF($B81="","",VLOOKUP(N$5,BBDD!$8:$1048576,$B81,FALSE)) -> 0 | O81: =IF($B81="","",VLOOKUP(O$5,BBDD!$8:$1048576,$B81,FALSE)) -> 1 | P81: =+Factores!F81 -> 1
A82: C.H. Las Pizarras | B82: 63 | C82: =IF($B82="","",VLOOKUP(C$5,BBDD!$8:$1048576,$B82,FALSE)) -> 1 | D82: =IF($B82="","",VLOOKUP(D$5,BBDD!$8:$1048576,$B82,FALSE)) -> 1 | E82: =IF($B82="","",VLOOKUP(E$5,BBDD!$8:$1048576,$B82,FALSE)) -> 1 | F82: =IF($B82="","",VLOOKUP(F$5,BBDD!$8:$1048576,$B82,FALSE)) -> 1.1458 | G82: =IF($B82="","",VLOOKUP(G$5,BBDD!$8:$1048576,$B82,FALSE)) -> 1.1458 | H82: =IF($B82="","",VLOOKUP(H$5,BBDD!$8:$1048576,$B82,FALSE)) -> 1.1458 | I82: =IF($B82="","",VLOOKUP(I$5,BBDD!$8:$1048576,$B82,FALSE)) -> 0.625 | J82: =IF($B82="","",VLOOKUP(J$5,BBDD!$8:$1048576,$B82,FALSE)) -> 0.625 | K82: =IF($B82="","",VLOOKUP(K$5,BBDD!$8:$1048576,$B82,FALSE)) -> 0.625 | L82: =IF($B82="","",VLOOKUP(L$5,BBDD!$8:$1048576,$B82,FALSE)) -> 0.0417 | M82: =IF($B82="","",VLOOKUP(M$5,BBDD!$8:$1048576,$B82,FALSE)) -> 0.0417 | N82: =IF($B82="","",VLOOKUP(N$5,BBDD!$8:$1048576,$B82,FALSE)) -> 0.0417 | O82: =IF($B82="","",VLOOKUP(O$5,BBDD!$8:$1048576,$B82,FALSE)) -> 1 | P82: =+Factores!F82 -> 1
A83: C.E. Marcona | B83: =+B82+1 -> 64 | O83: =IF($B83="","",VLOOKUP(O$5,BBDD!$8:$1048576,$B83,FALSE)) -> 1 | P83: =+Factores!F83 -> 1
A84: Cargo Unitario por FISE | B84: =+B83+1 -> 65 | C84: =IF($B84="","",VLOOKUP(C$5,BBDD!$8:$1048576,$B84,FALSE)) -> 1 | D84: =IF($B84="","",VLOOKUP(D$5,BBDD!$8:$1048576,$B84,FALSE)) -> 1 | E84: =IF($B84="","",VLOOKUP(E$5,BBDD!$8:$1048576,$B84,FALSE)) -> 1 | F84: =IF($B84="","",VLOOKUP(F$5,BBDD!$8:$1048576,$B84,FALSE)) -> 1 | G84: =IF($B84="","",VLOOKUP(G$5,BBDD!$8:$1048576,$B84,FALSE)) -> 1 | H84: =IF($B84="","",VLOOKUP(H$5,BBDD!$8:$1048576,$B84,FALSE)) -> 1 | I84: =IF($B84="","",VLOOKUP(I$5,BBDD!$8:$1048576,$B84,FALSE)) -> 1.1176 | J84: =IF($B84="","",VLOOKUP(J$5,BBDD!$8:$1048576,$B84,FALSE)) -> 1.1176 | K84: =IF($B84="","",VLOOKUP(K$5,BBDD!$8:$1048576,$B84,FALSE)) -> 1.1176 | L84: =IF($B84="","",VLOOKUP(L$5,BBDD!$8:$1048576,$B84,FALSE)) -> 1.3333 | M84: =IF($B84="","",VLOOKUP(M$5,BBDD!$8:$1048576,$B84,FALSE)) -> 1.3333 | N84: =IF($B84="","",VLOOKUP(N$5,BBDD!$8:$1048576,$B84,FALSE)) -> 1.3333 | O84: =IF($B84="","",VLOOKUP(O$5,BBDD!$8:$1048576,$B84,FALSE)) -> 1 | P84: =+Factores!F49 -> 1
A85: Cargo Unitario por Generación Adicional | C85: =IF($B85="","",VLOOKUP(C$5,BBDD!$8:$1048576,$B85,FALSE)) ->  | D85: =IF($B85="","",VLOOKUP(D$5,BBDD!$8:$1048576,$B85,FALSE)) ->  | E85: =IF($B85="","",VLOOKUP(E$5,BBDD!$8:$1048576,$B85,FALSE)) ->  | F85: =IF($B85="","",VLOOKUP(F$5,BBDD!$8:$1048576,$B85,FALSE)) ->  | G85: =IF($B85="","",VLOOKUP(G$5,BBDD!$8:$1048576,$B85,FALSE)) ->  | H85: =IF($B85="","",VLOOKUP(H$5,BBDD!$8:$1048576,$B85,FALSE)) ->  | I85: =IF($B85="","",VLOOKUP(I$5,BBDD!$8:$1048576,$B85,FALSE)) ->  | J85: =IF($B85="","",VLOOKUP(J$5,BBDD!$8:$1048576,$B85,FALSE)) ->  | K85: =IF($B85="","",VLOOKUP(K$5,BBDD!$8:$1048576,$B85,FALSE)) ->  | L85: =IF($B85="","",VLOOKUP(L$5,BBDD!$8:$1048576,$B85,FALSE)) ->  | M85: =IF($B85="","",VLOOKUP(M$5,BBDD!$8:$1048576,$B85,FALSE)) ->  | N85: =IF($B85="","",VLOOKUP(N$5,BBDD!$8:$1048576,$B85,FALSE)) ->  | O85: =IF($B85="","",VLOOKUP(O$5,BBDD!$8:$1048576,$B85,FALSE)) ->  | P85: =+Factores!F85 -> 
A86: Usuarios Regulados | B86: =1+B84 -> 66 | C86: =IF($B86="","",VLOOKUP(C$5,BBDD!$8:$1048576,$B86,FALSE)) -> 1 | D86: =IF($B86="","",VLOOKUP(D$5,BBDD!$8:$1048576,$B86,FALSE)) -> 1 | E86: =IF($B86="","",VLOOKUP(E$5,BBDD!$8:$1048576,$B86,FALSE)) -> 0.6054 | F86: =IF($B86="","",VLOOKUP(F$5,BBDD!$8:$1048576,$B86,FALSE)) -> 0.6054 | G86: =IF($B86="","",VLOOKUP(G$5,BBDD!$8:$1048576,$B86,FALSE)) -> 0.6054 | H86: =IF($B86="","",VLOOKUP(H$5,BBDD!$8:$1048576,$B86,FALSE)) -> 0.6054 | I86: =IF($B86="","",VLOOKUP(I$5,BBDD!$8:$1048576,$B86,FALSE)) -> 0.3801 | J86: =IF($B86="","",VLOOKUP(J$5,BBDD!$8:$1048576,$B86,FALSE)) -> 0.3801 | K86: =IF($B86="","",VLOOKUP(K$5,BBDD!$8:$1048576,$B86,FALSE)) -> 0.3801 | L86: =IF($B86="","",VLOOKUP(L$5,BBDD!$8:$1048576,$B86,FALSE)) -> 0.5918 | M86: =IF($B86="","",VLOOKUP(M$5,BBDD!$8:$1048576,$B86,FALSE)) -> 0.5918 | N86: =IF($B86="","",VLOOKUP(N$5,BBDD!$8:$1048576,$B86,FALSE)) -> 0.5918 | O86: =IF($B86="","",VLOOKUP(O$5,BBDD!$8:$1048576,$B86,FALSE)) -> 1 | P86: =+Factores!F86 -> 1
C87: =IF($B87="","",VLOOKUP(C$5,BBDD!$8:$1048576,$B87,FALSE)) ->  | D87: =IF($B87="","",VLOOKUP(D$5,BBDD!$8:$1048576,$B87,FALSE)) ->  | E87: =IF($B87="","",VLOOKUP(E$5,BBDD!$8:$1048576,$B87,FALSE)) ->  | F87: =IF($B87="","",VLOOKUP(F$5,BBDD!$8:$1048576,$B87,FALSE)) ->  | G87: =IF($B87="","",VLOOKUP(G$5,BBDD!$8:$1048576,$B87,FALSE)) ->  | H87: =IF($B87="","",VLOOKUP(H$5,BBDD!$8:$1048576,$B87,FALSE)) ->  | I87: =IF($B87="","",VLOOKUP(I$5,BBDD!$8:$1048576,$B87,FALSE)) ->  | J87: =IF($B87="","",VLOOKUP(J$5,BBDD!$8:$1048576,$B87,FALSE)) ->  | K87: =IF($B87="","",VLOOKUP(K$5,BBDD!$8:$1048576,$B87,FALSE)) ->  | L87: =IF($B87="","",VLOOKUP(L$5,BBDD!$8:$1048576,$B87,FALSE)) ->  | M87: =IF($B87="","",VLOOKUP(M$5,BBDD!$8:$1048576,$B87,FALSE)) ->  | N87: =IF($B87="","",VLOOKUP(N$5,BBDD!$8:$1048576,$B87,FALSE)) ->  | O87: =IF($B87="","",VLOOKUP(O$5,BBDD!$8:$1048576,$B87,FALSE)) ->  | P87: =+Factores!F87 -> 
C88: =IF($B88="","",VLOOKUP(C$5,BBDD!$8:$1048576,$B88,FALSE)) ->  | D88: =IF($B88="","",VLOOKUP(D$5,BBDD!$8:$1048576,$B88,FALSE)) ->  | E88: =IF($B88="","",VLOOKUP(E$5,BBDD!$8:$1048576,$B88,FALSE)) ->  | F88: =IF($B88="","",VLOOKUP(F$5,BBDD!$8:$1048576,$B88,FALSE)) ->  | G88: =IF($B88="","",VLOOKUP(G$5,BBDD!$8:$1048576,$B88,FALSE)) ->  | H88: =IF($B88="","",VLOOKUP(H$5,BBDD!$8:$1048576,$B88,FALSE)) ->  | I88: =IF($B88="","",VLOOKUP(I$5,BBDD!$8:$1048576,$B88,FALSE)) ->  | J88: =IF($B88="","",VLOOKUP(J$5,BBDD!$8:$1048576,$B88,FALSE)) ->  | K88: =IF($B88="","",VLOOKUP(K$5,BBDD!$8:$1048576,$B88,FALSE)) ->  | L88: =IF($B88="","",VLOOKUP(L$5,BBDD!$8:$1048576,$B88,FALSE)) ->  | M88: =IF($B88="","",VLOOKUP(M$5,BBDD!$8:$1048576,$B88,FALSE)) ->  | N88: =IF($B88="","",VLOOKUP(N$5,BBDD!$8:$1048576,$B88,FALSE)) ->  | O88: =IF($B88="","",VLOOKUP(O$5,BBDD!$8:$1048576,$B88,FALSE)) ->  | P88: =+Factores!F88 -> 
A89: B.2. PEAJES SECUNDARIOS (Res. N° 054, 055, 068, 136, 137 y 160-2013-OS/CD) | C89: =IF($B89="","",VLOOKUP(C$5,BBDD!$8:$1048576,$B89,FALSE)) ->  | D89: =IF($B89="","",VLOOKUP(D$5,BBDD!$8:$1048576,$B89,FALSE)) ->  | E89: =IF($B89="","",VLOOKUP(E$5,BBDD!$8:$1048576,$B89,FALSE)) ->  | F89: =IF($B89="","",VLOOKUP(F$5,BBDD!$8:$1048576,$B89,FALSE)) ->  | G89: =IF($B89="","",VLOOKUP(G$5,BBDD!$8:$1048576,$B89,FALSE)) ->  | H89: =IF($B89="","",VLOOKUP(H$5,BBDD!$8:$1048576,$B89,FALSE)) ->  | I89: =IF($B89="","",VLOOKUP(I$5,BBDD!$8:$1048576,$B89,FALSE)) ->  | J89: =IF($B89="","",VLOOKUP(J$5,BBDD!$8:$1048576,$B89,FALSE)) ->  | K89: =IF($B89="","",VLOOKUP(K$5,BBDD!$8:$1048576,$B89,FALSE)) ->  | L89: =IF($B89="","",VLOOKUP(L$5,BBDD!$8:$1048576,$B89,FALSE)) ->  | M89: =IF($B89="","",VLOOKUP(M$5,BBDD!$8:$1048576,$B89,FALSE)) ->  | N89: =IF($B89="","",VLOOKUP(N$5,BBDD!$8:$1048576,$B89,FALSE)) ->  | O89: =IF($B89="","",VLOOKUP(O$5,BBDD!$8:$1048576,$B89,FALSE)) ->  | P89: =+Factores!F89 -> 
A90: Área de Demanda 1 | B90: =1+B86 -> 67 | C90: =IF($B90="","",VLOOKUP(C$5,BBDD!$8:$1048576,$B90,FALSE)) -> 1.0134 | D90: =IF($B90="","",VLOOKUP(D$5,BBDD!$8:$1048576,$B90,FALSE)) -> 1.0134 | E90: =IF($B90="","",VLOOKUP(E$5,BBDD!$8:$1048576,$B90,FALSE)) -> 1.0134 | F90: =IF($B90="","",VLOOKUP(F$5,BBDD!$8:$1048576,$B90,FALSE)) -> 1.0134 | G90: =IF($B90="","",VLOOKUP(G$5,BBDD!$8:$1048576,$B90,FALSE)) -> 1.0134 | H90: =IF($B90="","",VLOOKUP(H$5,BBDD!$8:$1048576,$B90,FALSE)) -> 1.0134 | I90: =IF($B90="","",VLOOKUP(I$5,BBDD!$8:$1048576,$B90,FALSE)) -> 1.0134 | J90: =IF($B90="","",VLOOKUP(J$5,BBDD!$8:$1048576,$B90,FALSE)) -> 1.0134 | K90: =IF($B90="","",VLOOKUP(K$5,BBDD!$8:$1048576,$B90,FALSE)) -> 1.0134 | L90: =IF($B90="","",VLOOKUP(L$5,BBDD!$8:$1048576,$B90,FALSE)) -> 1.0313 | M90: =IF($B90="","",VLOOKUP(M$5,BBDD!$8:$1048576,$B90,FALSE)) -> 1.0313 | N90: =IF($B90="","",VLOOKUP(N$5,BBDD!$8:$1048576,$B90,FALSE)) -> 1.0313 | O90: =IF($B90="","",VLOOKUP(O$5,BBDD!$8:$1048576,$B90,FALSE)) -> 1.0313 | P90: =+Factores!F90 -> 1.0313
A91: Área de Demanda 2 | B91: =1+B90 -> 68 | C91: =IF($B91="","",VLOOKUP(C$5,BBDD!$8:$1048576,$B91,FALSE)) -> 1.011 | D91: =IF($B91="","",VLOOKUP(D$5,BBDD!$8:$1048576,$B91,FALSE)) -> 1.011 | E91: =IF($B91="","",VLOOKUP(E$5,BBDD!$8:$1048576,$B91,FALSE)) -> 1.011 | F91: =IF($B91="","",VLOOKUP(F$5,BBDD!$8:$1048576,$B91,FALSE)) -> 1.011 | G91: =IF($B91="","",VLOOKUP(G$5,BBDD!$8:$1048576,$B91,FALSE)) -> 1.011 | H91: =IF($B91="","",VLOOKUP(H$5,BBDD!$8:$1048576,$B91,FALSE)) -> 1.011 | I91: =IF($B91="","",VLOOKUP(I$5,BBDD!$8:$1048576,$B91,FALSE)) -> 1.011 | J91: =IF($B91="","",VLOOKUP(J$5,BBDD!$8:$1048576,$B91,FALSE)) -> 1.011 | K91: =IF($B91="","",VLOOKUP(K$5,BBDD!$8:$1048576,$B91,FALSE)) -> 1.011 | L91: =IF($B91="","",VLOOKUP(L$5,BBDD!$8:$1048576,$B91,FALSE)) -> 1.0288 | M91: =IF($B91="","",VLOOKUP(M$5,BBDD!$8:$1048576,$B91,FALSE)) -> 1.0288 | N91: =IF($B91="","",VLOOKUP(N$5,BBDD!$8:$1048576,$B91,FALSE)) -> 1.0288 | O91: =IF($B91="","",VLOOKUP(O$5,BBDD!$8:$1048576,$B91,FALSE)) -> 1.0288 | P91: =+Factores!F91 -> 1.0288
A92: Área de Demanda 3 | B92: =1+B91 -> 69 | C92: =IF($B92="","",VLOOKUP(C$5,BBDD!$8:$1048576,$B92,FALSE)) -> 1.0093 | D92: =IF($B92="","",VLOOKUP(D$5,BBDD!$8:$1048576,$B92,FALSE)) -> 1.0093 | E92: =IF($B92="","",VLOOKUP(E$5,BBDD!$8:$1048576,$B92,FALSE)) -> 1.0093 | F92: =IF($B92="","",VLOOKUP(F$5,BBDD!$8:$1048576,$B92,FALSE)) -> 1.0093 | G92: =IF($B92="","",VLOOKUP(G$5,BBDD!$8:$1048576,$B92,FALSE)) -> 1.0093 | H92: =IF($B92="","",VLOOKUP(H$5,BBDD!$8:$1048576,$B92,FALSE)) -> 1.0093 | I92: =IF($B92="","",VLOOKUP(I$5,BBDD!$8:$1048576,$B92,FALSE)) -> 1.0093 | J92: =IF($B92="","",VLOOKUP(J$5,BBDD!$8:$1048576,$B92,FALSE)) -> 1.0093 | K92: =IF($B92="","",VLOOKUP(K$5,BBDD!$8:$1048576,$B92,FALSE)) -> 1.0093 | L92: =IF($B92="","",VLOOKUP(L$5,BBDD!$8:$1048576,$B92,FALSE)) -> 1.0267 | M92: =IF($B92="","",VLOOKUP(M$5,BBDD!$8:$1048576,$B92,FALSE)) -> 1.0267 | N92: =IF($B92="","",VLOOKUP(N$5,BBDD!$8:$1048576,$B92,FALSE)) -> 1.0267 | O92: =IF($B92="","",VLOOKUP(O$5,BBDD!$8:$1048576,$B92,FALSE)) -> 1.0267 | P92: =+Factores!F92 -> 1.0267
A93: Área de Demanda 4 | B93: 70 | C93: =IF($B93="","",VLOOKUP(C$5,BBDD!$8:$1048576,$B93,FALSE)) -> 1.0088 | D93: =IF($B93="","",VLOOKUP(D$5,BBDD!$8:$1048576,$B93,FALSE)) -> 1.0088 | E93: =IF($B93="","",VLOOKUP(E$5,BBDD!$8:$1048576,$B93,FALSE)) -> 1.0088 | F93: =IF($B93="","",VLOOKUP(F$5,BBDD!$8:$1048576,$B93,FALSE)) -> 1.0088 | G93: =IF($B93="","",VLOOKUP(G$5,BBDD!$8:$1048576,$B93,FALSE)) -> 1.0088 | H93: =IF($B93="","",VLOOKUP(H$5,BBDD!$8:$1048576,$B93,FALSE)) -> 1.0088 | I93: =IF($B93="","",VLOOKUP(I$5,BBDD!$8:$1048576,$B93,FALSE)) -> 1.0088 | J93: =IF($B93="","",VLOOKUP(J$5,BBDD!$8:$1048576,$B93,FALSE)) -> 1.0088 | K93: =IF($B93="","",VLOOKUP(K$5,BBDD!$8:$1048576,$B93,FALSE)) -> 1.0088 | L93: =IF($B93="","",VLOOKUP(L$5,BBDD!$8:$1048576,$B93,FALSE)) -> 1.0262 | M93: =IF($B93="","",VLOOKUP(M$5,BBDD!$8:$1048576,$B93,FALSE)) -> 1.0262 | N93: =IF($B93="","",VLOOKUP(N$5,BBDD!$8:$1048576,$B93,FALSE)) -> 1.0262 | O93: =IF($B93="","",VLOOKUP(O$5,BBDD!$8:$1048576,$B93,FALSE)) -> 1.0262 | P93: =+Factores!F93 -> 1.0262
A94: Área de Demanda 5 | B94: 71 | C94: =IF($B94="","",VLOOKUP(C$5,BBDD!$8:$1048576,$B94,FALSE)) -> 1.0121 | D94: =IF($B94="","",VLOOKUP(D$5,BBDD!$8:$1048576,$B94,FALSE)) -> 1.0121 | E94: =IF($B94="","",VLOOKUP(E$5,BBDD!$8:$1048576,$B94,FALSE)) -> 1.0121 | F94: =IF($B94="","",VLOOKUP(F$5,BBDD!$8:$1048576,$B94,FALSE)) -> 1.0121 | G94: =IF($B94="","",VLOOKUP(G$5,BBDD!$8:$1048576,$B94,FALSE)) -> 1.0121 | H94: =IF($B94="","",VLOOKUP(H$5,BBDD!$8:$1048576,$B94,FALSE)) -> 1.0121 | I94: =IF($B94="","",VLOOKUP(I$5,BBDD!$8:$1048576,$B94,FALSE)) -> 1.0121 | J94: =IF($B94="","",VLOOKUP(J$5,BBDD!$8:$1048576,$B94,FALSE)) -> 1.0121 | K94: =IF($B94="","",VLOOKUP(K$5,BBDD!$8:$1048576,$B94,FALSE)) -> 1.0121 | L94: =IF($B94="","",VLOOKUP(L$5,BBDD!$8:$1048576,$B94,FALSE)) -> 1.0269 | M94: =IF($B94="","",VLOOKUP(M$5,BBDD!$8:$1048576,$B94,FALSE)) -> 1.0269 | N94: =IF($B94="","",VLOOKUP(N$5,BBDD!$8:$1048576,$B94,FALSE)) -> 1.0269 | O94: =IF($B94="","",VLOOKUP(O$5,BBDD!$8:$1048576,$B94,FALSE)) -> 1.0269 | P94: =+Factores!F94 -> 1.0269
A95: Área de Demanda 6 | B95: 72 | C95: =IF($B95="","",VLOOKUP(C$5,BBDD!$8:$1048576,$B95,FALSE)) -> 1.0175 | D95: =IF($B95="","",VLOOKUP(D$5,BBDD!$8:$1048576,$B95,FALSE)) -> 1.0175 | E95: =IF($B95="","",VLOOKUP(E$5,BBDD!$8:$1048576,$B95,FALSE)) -> 1.0175 | F95: =IF($B95="","",VLOOKUP(F$5,BBDD!$8:$1048576,$B95,FALSE)) -> 1.0175 | G95: =IF($B95="","",VLOOKUP(G$5,BBDD!$8:$1048576,$B95,FALSE)) -> 1.0175 | H95: =IF($B95="","",VLOOKUP(H$5,BBDD!$8:$1048576,$B95,FALSE)) -> 1.0175 | I95: =IF($B95="","",VLOOKUP(I$5,BBDD!$8:$1048576,$B95,FALSE)) -> 1.0175 | J95: =IF($B95="","",VLOOKUP(J$5,BBDD!$8:$1048576,$B95,FALSE)) -> 1.0175 | K95: =IF($B95="","",VLOOKUP(K$5,BBDD!$8:$1048576,$B95,FALSE)) -> 1.0175 | L95: =IF($B95="","",VLOOKUP(L$5,BBDD!$8:$1048576,$B95,FALSE)) -> 1.0363 | M95: =IF($B95="","",VLOOKUP(M$5,BBDD!$8:$1048576,$B95,FALSE)) -> 1.0363 | N95: =IF($B95="","",VLOOKUP(N$5,BBDD!$8:$1048576,$B95,FALSE)) -> 1.0363 | O95: =IF($B95="","",VLOOKUP(O$5,BBDD!$8:$1048576,$B95,FALSE)) -> 1.0363 | P95: =+Factores!F95 -> 1.0363
A96: Área de Demanda 7 | B96: 73 | C96: =IF($B96="","",VLOOKUP(C$5,BBDD!$8:$1048576,$B96,FALSE)) -> 1.02 | D96: =IF($B96="","",VLOOKUP(D$5,BBDD!$8:$1048576,$B96,FALSE)) -> 1.02 | E96: =IF($B96="","",VLOOKUP(E$5,BBDD!$8:$1048576,$B96,FALSE)) -> 1.02 | F96: =IF($B96="","",VLOOKUP(F$5,BBDD!$8:$1048576,$B96,FALSE)) -> 1.02 | G96: =IF($B96="","",VLOOKUP(G$5,BBDD!$8:$1048576,$B96,FALSE)) -> 1.02 | H96: =IF($B96="","",VLOOKUP(H$5,BBDD!$8:$1048576,$B96,FALSE)) -> 1.02 | I96: =IF($B96="","",VLOOKUP(I$5,BBDD!$8:$1048576,$B96,FALSE)) -> 1.02 | J96: =IF($B96="","",VLOOKUP(J$5,BBDD!$8:$1048576,$B96,FALSE)) -> 1.02 | K96: =IF($B96="","",VLOOKUP(K$5,BBDD!$8:$1048576,$B96,FALSE)) -> 1.02 | L96: =IF($B96="","",VLOOKUP(L$5,BBDD!$8:$1048576,$B96,FALSE)) -> 1.0412 | M96: =IF($B96="","",VLOOKUP(M$5,BBDD!$8:$1048576,$B96,FALSE)) -> 1.0412 | N96: =IF($B96="","",VLOOKUP(N$5,BBDD!$8:$1048576,$B96,FALSE)) -> 1.0412 | O96: =IF($B96="","",VLOOKUP(O$5,BBDD!$8:$1048576,$B96,FALSE)) -> 1.0412 | P96: =+Factores!F96 -> 1.0412
A97: Área de Demanda 8 | B97: 74 | C97: =IF($B97="","",VLOOKUP(C$5,BBDD!$8:$1048576,$B97,FALSE)) -> 1.0132 | D97: =IF($B97="","",VLOOKUP(D$5,BBDD!$8:$1048576,$B97,FALSE)) -> 1.0132 | E97: =IF($B97="","",VLOOKUP(E$5,BBDD!$8:$1048576,$B97,FALSE)) -> 1.0132 | F97: =IF($B97="","",VLOOKUP(F$5,BBDD!$8:$1048576,$B97,FALSE)) -> 1.0132 | G97: =IF($B97="","",VLOOKUP(G$5,BBDD!$8:$1048576,$B97,FALSE)) -> 1.0132 | H97: =IF($B97="","",VLOOKUP(H$5,BBDD!$8:$1048576,$B97,FALSE)) -> 1.0132 | I97: =IF($B97="","",VLOOKUP(I$5,BBDD!$8:$1048576,$B97,FALSE)) -> 1.0132 | J97: =IF($B97="","",VLOOKUP(J$5,BBDD!$8:$1048576,$B97,FALSE)) -> 1.0132 | K97: =IF($B97="","",VLOOKUP(K$5,BBDD!$8:$1048576,$B97,FALSE)) -> 1.0132 | L97: =IF($B97="","",VLOOKUP(L$5,BBDD!$8:$1048576,$B97,FALSE)) -> 1.0291 | M97: =IF($B97="","",VLOOKUP(M$5,BBDD!$8:$1048576,$B97,FALSE)) -> 1.0291 | N97: =IF($B97="","",VLOOKUP(N$5,BBDD!$8:$1048576,$B97,FALSE)) -> 1.0291 | O97: =IF($B97="","",VLOOKUP(O$5,BBDD!$8:$1048576,$B97,FALSE)) -> 1.0291 | P97: =+Factores!F97 -> 1.0291
A98: Área de Demanda 9 | B98: 75 | C98: =IF($B98="","",VLOOKUP(C$5,BBDD!$8:$1048576,$B98,FALSE)) -> 1.0154 | D98: =IF($B98="","",VLOOKUP(D$5,BBDD!$8:$1048576,$B98,FALSE)) -> 1.0154 | E98: =IF($B98="","",VLOOKUP(E$5,BBDD!$8:$1048576,$B98,FALSE)) -> 1.0154 | F98: =IF($B98="","",VLOOKUP(F$5,BBDD!$8:$1048576,$B98,FALSE)) -> 1.0154 | G98: =IF($B98="","",VLOOKUP(G$5,BBDD!$8:$1048576,$B98,FALSE)) -> 1.0154 | H98: =IF($B98="","",VLOOKUP(H$5,BBDD!$8:$1048576,$B98,FALSE)) -> 1.0154 | I98: =IF($B98="","",VLOOKUP(I$5,BBDD!$8:$1048576,$B98,FALSE)) -> 1.0154 | J98: =IF($B98="","",VLOOKUP(J$5,BBDD!$8:$1048576,$B98,FALSE)) -> 1.0154 | K98: =IF($B98="","",VLOOKUP(K$5,BBDD!$8:$1048576,$B98,FALSE)) -> 1.0154 | L98: =IF($B98="","",VLOOKUP(L$5,BBDD!$8:$1048576,$B98,FALSE)) -> 1.0356 | M98: =IF($B98="","",VLOOKUP(M$5,BBDD!$8:$1048576,$B98,FALSE)) -> 1.0356 | N98: =IF($B98="","",VLOOKUP(N$5,BBDD!$8:$1048576,$B98,FALSE)) -> 1.0356 | O98: =IF($B98="","",VLOOKUP(O$5,BBDD!$8:$1048576,$B98,FALSE)) -> 1.0356 | P98: =+Factores!F98 -> 1.0356
A99: Área de Demanda 10 | B99: 76 | C99: =IF($B99="","",VLOOKUP(C$5,BBDD!$8:$1048576,$B99,FALSE)) -> 1.0124 | D99: =IF($B99="","",VLOOKUP(D$5,BBDD!$8:$1048576,$B99,FALSE)) -> 1.0124 | E99: =IF($B99="","",VLOOKUP(E$5,BBDD!$8:$1048576,$B99,FALSE)) -> 1.0124 | F99: =IF($B99="","",VLOOKUP(F$5,BBDD!$8:$1048576,$B99,FALSE)) -> 1.0124 | G99: =IF($B99="","",VLOOKUP(G$5,BBDD!$8:$1048576,$B99,FALSE)) -> 1.0124 | H99: =IF($B99="","",VLOOKUP(H$5,BBDD!$8:$1048576,$B99,FALSE)) -> 1.0124 | I99: =IF($B99="","",VLOOKUP(I$5,BBDD!$8:$1048576,$B99,FALSE)) -> 1.0124 | J99: =IF($B99="","",VLOOKUP(J$5,BBDD!$8:$1048576,$B99,FALSE)) -> 1.0124 | K99: =IF($B99="","",VLOOKUP(K$5,BBDD!$8:$1048576,$B99,FALSE)) -> 1.0124 | L99: =IF($B99="","",VLOOKUP(L$5,BBDD!$8:$1048576,$B99,FALSE)) -> 1.0325 | M99: =IF($B99="","",VLOOKUP(M$5,BBDD!$8:$1048576,$B99,FALSE)) -> 1.0325 | N99: =IF($B99="","",VLOOKUP(N$5,BBDD!$8:$1048576,$B99,FALSE)) -> 1.0325 | O99: =IF($B99="","",VLOOKUP(O$5,BBDD!$8:$1048576,$B99,FALSE)) -> 1.0325 | P99: =+Factores!F99 -> 1.0325
A100: Área de Demanda 11 | B100: 77 | C100: =IF($B100="","",VLOOKUP(C$5,BBDD!$8:$1048576,$B100,FALSE)) -> 1.0024 | D100: =IF($B100="","",VLOOKUP(D$5,BBDD!$8:$1048576,$B100,FALSE)) -> 1.0024 | E100: =IF($B100="","",VLOOKUP(E$5,BBDD!$8:$1048576,$B100,FALSE)) -> 1.0024 | F100: =IF($B100="","",VLOOKUP(F$5,BBDD!$8:$1048576,$B100,FALSE)) -> 1.0024 | G100: =IF($B100="","",VLOOKUP(G$5,BBDD!$8:$1048576,$B100,FALSE)) -> 1.0024 | H100: =IF($B100="","",VLOOKUP(H$5,BBDD!$8:$1048576,$B100,FALSE)) -> 1.0024 | I100: =IF($B100="","",VLOOKUP(I$5,BBDD!$8:$1048576,$B100,FALSE)) -> 1.0024 | J100: =IF($B100="","",VLOOKUP(J$5,BBDD!$8:$1048576,$B100,FALSE)) -> 1.0024 | K100: =IF($B100="","",VLOOKUP(K$5,BBDD!$8:$1048576,$B100,FALSE)) -> 1.0024 | L100: =IF($B100="","",VLOOKUP(L$5,BBDD!$8:$1048576,$B100,FALSE)) -> 1.01 | M100: =IF($B100="","",VLOOKUP(M$5,BBDD!$8:$1048576,$B100,FALSE)) -> 1.01 | N100: =IF($B100="","",VLOOKUP(N$5,BBDD!$8:$1048576,$B100,FALSE)) -> 1.01 | O100: =IF($B100="","",VLOOKUP(O$5,BBDD!$8:$1048576,$B100,FALSE)) -> 1.01 | P100: =+Factores!F100 -> 1.01
A101: Área de Demanda 12 | B101: 78 | C101: =IF($B101="","",VLOOKUP(C$5,BBDD!$8:$1048576,$B101,FALSE)) -> 1.0265 | D101: =IF($B101="","",VLOOKUP(D$5,BBDD!$8:$1048576,$B101,FALSE)) -> 1.0265 | E101: =IF($B101="","",VLOOKUP(E$5,BBDD!$8:$1048576,$B101,FALSE)) -> 1.0265 | F101: =IF($B101="","",VLOOKUP(F$5,BBDD!$8:$1048576,$B101,FALSE)) -> 1.0265 | G101: =IF($B101="","",VLOOKUP(G$5,BBDD!$8:$1048576,$B101,FALSE)) -> 1.0265 | H101: =IF($B101="","",VLOOKUP(H$5,BBDD!$8:$1048576,$B101,FALSE)) -> 1.0265 | I101: =IF($B101="","",VLOOKUP(I$5,BBDD!$8:$1048576,$B101,FALSE)) -> 1.0265 | J101: =IF($B101="","",VLOOKUP(J$5,BBDD!$8:$1048576,$B101,FALSE)) -> 1.0265 | K101: =IF($B101="","",VLOOKUP(K$5,BBDD!$8:$1048576,$B101,FALSE)) -> 1.0265 | L101: =IF($B101="","",VLOOKUP(L$5,BBDD!$8:$1048576,$B101,FALSE)) -> 1.0481 | M101: =IF($B101="","",VLOOKUP(M$5,BBDD!$8:$1048576,$B101,FALSE)) -> 1.0481 | N101: =IF($B101="","",VLOOKUP(N$5,BBDD!$8:$1048576,$B101,FALSE)) -> 1.0481 | O101: =IF($B101="","",VLOOKUP(O$5,BBDD!$8:$1048576,$B101,FALSE)) -> 1.0481 | P101: =+Factores!F101 -> 1.0481
A102: Área de Demanda 13 | B102: 79 | C102: =IF($B102="","",VLOOKUP(C$5,BBDD!$8:$1048576,$B102,FALSE)) -> 1.012 | D102: =IF($B102="","",VLOOKUP(D$5,BBDD!$8:$1048576,$B102,FALSE)) -> 1.012 | E102: =IF($B102="","",VLOOKUP(E$5,BBDD!$8:$1048576,$B102,FALSE)) -> 1.012 | F102: =IF($B102="","",VLOOKUP(F$5,BBDD!$8:$1048576,$B102,FALSE)) -> 1.012 | G102: =IF($B102="","",VLOOKUP(G$5,BBDD!$8:$1048576,$B102,FALSE)) -> 1.012 | H102: =IF($B102="","",VLOOKUP(H$5,BBDD!$8:$1048576,$B102,FALSE)) -> 1.012 | I102: =IF($B102="","",VLOOKUP(I$5,BBDD!$8:$1048576,$B102,FALSE)) -> 1.012 | J102: =IF($B102="","",VLOOKUP(J$5,BBDD!$8:$1048576,$B102,FALSE)) -> 1.012 | K102: =IF($B102="","",VLOOKUP(K$5,BBDD!$8:$1048576,$B102,FALSE)) -> 1.012 | L102: =IF($B102="","",VLOOKUP(L$5,BBDD!$8:$1048576,$B102,FALSE)) -> 1.0319 | M102: =IF($B102="","",VLOOKUP(M$5,BBDD!$8:$1048576,$B102,FALSE)) -> 1.0319 | N102: =IF($B102="","",VLOOKUP(N$5,BBDD!$8:$1048576,$B102,FALSE)) -> 1.0319 | O102: =IF($B102="","",VLOOKUP(O$5,BBDD!$8:$1048576,$B102,FALSE)) -> 1.0319 | P102: =+Factores!F102 -> 1.0319
A103: Área de Demanda 14 | B103: 80 | C103: =IF($B103="","",VLOOKUP(C$5,BBDD!$8:$1048576,$B103,FALSE)) -> 1.0076 | D103: =IF($B103="","",VLOOKUP(D$5,BBDD!$8:$1048576,$B103,FALSE)) -> 1.0076 | E103: =IF($B103="","",VLOOKUP(E$5,BBDD!$8:$1048576,$B103,FALSE)) -> 1.0076 | F103: =IF($B103="","",VLOOKUP(F$5,BBDD!$8:$1048576,$B103,FALSE)) -> 1.0076 | G103: =IF($B103="","",VLOOKUP(G$5,BBDD!$8:$1048576,$B103,FALSE)) -> 1.0076 | H103: =IF($B103="","",VLOOKUP(H$5,BBDD!$8:$1048576,$B103,FALSE)) -> 1.0076 | I103: =IF($B103="","",VLOOKUP(I$5,BBDD!$8:$1048576,$B103,FALSE)) -> 1.0076 | J103: =IF($B103="","",VLOOKUP(J$5,BBDD!$8:$1048576,$B103,FALSE)) -> 1.0076 | K103: =IF($B103="","",VLOOKUP(K$5,BBDD!$8:$1048576,$B103,FALSE)) -> 1.0076 | L103: =IF($B103="","",VLOOKUP(L$5,BBDD!$8:$1048576,$B103,FALSE)) -> 1.0262 | M103: =IF($B103="","",VLOOKUP(M$5,BBDD!$8:$1048576,$B103,FALSE)) -> 1.0262 | N103: =IF($B103="","",VLOOKUP(N$5,BBDD!$8:$1048576,$B103,FALSE)) -> 1.0262 | O103: =IF($B103="","",VLOOKUP(O$5,BBDD!$8:$1048576,$B103,FALSE)) -> 1.0262 | P103: =+Factores!F103 -> 1.0262
A104: Área de Demanda 15 | B104: 81 | C104: =IF($B104="","",VLOOKUP(C$5,BBDD!$8:$1048576,$B104,FALSE)) -> 1.0118 | D104: =IF($B104="","",VLOOKUP(D$5,BBDD!$8:$1048576,$B104,FALSE)) -> 1.0118 | E104: =IF($B104="","",VLOOKUP(E$5,BBDD!$8:$1048576,$B104,FALSE)) -> 1.0118 | F104: =IF($B104="","",VLOOKUP(F$5,BBDD!$8:$1048576,$B104,FALSE)) -> 1.0118 | G104: =IF($B104="","",VLOOKUP(G$5,BBDD!$8:$1048576,$B104,FALSE)) -> 1.0118 | H104: =IF($B104="","",VLOOKUP(H$5,BBDD!$8:$1048576,$B104,FALSE)) -> 1.0118 | I104: =IF($B104="","",VLOOKUP(I$5,BBDD!$8:$1048576,$B104,FALSE)) -> 1.0118 | J104: =IF($B104="","",VLOOKUP(J$5,BBDD!$8:$1048576,$B104,FALSE)) -> 1.0118 | K104: =IF($B104="","",VLOOKUP(K$5,BBDD!$8:$1048576,$B104,FALSE)) -> 1.0118 | L104: =IF($B104="","",VLOOKUP(L$5,BBDD!$8:$1048576,$B104,FALSE)) -> 1.0255 | M104: =IF($B104="","",VLOOKUP(M$5,BBDD!$8:$1048576,$B104,FALSE)) -> 1.0255 | N104: =IF($B104="","",VLOOKUP(N$5,BBDD!$8:$1048576,$B104,FALSE)) -> 1.0255 | O104: =IF($B104="","",VLOOKUP(O$5,BBDD!$8:$1048576,$B104,FALSE)) -> 1.0255 | P104: =+Factores!F104 -> 1.0255
A105: Instalaciones BOOT - Redesur | B105: 82 | C105: =IF($B105="","",VLOOKUP(C$5,BBDD!$8:$1048576,$B105,FALSE)) -> 1.056 | D105: =IF($B105="","",VLOOKUP(D$5,BBDD!$8:$1048576,$B105,FALSE)) -> 1.056 | E105: =IF($B105="","",VLOOKUP(E$5,BBDD!$8:$1048576,$B105,FALSE)) -> 1.056 | F105: =IF($B105="","",VLOOKUP(F$5,BBDD!$8:$1048576,$B105,FALSE)) -> 1.056 | G105: =IF($B105="","",VLOOKUP(G$5,BBDD!$8:$1048576,$B105,FALSE)) -> 1.056 | H105: =IF($B105="","",VLOOKUP(H$5,BBDD!$8:$1048576,$B105,FALSE)) -> 1.056 | I105: =IF($B105="","",VLOOKUP(I$5,BBDD!$8:$1048576,$B105,FALSE)) -> 1.056 | J105: =IF($B105="","",VLOOKUP(J$5,BBDD!$8:$1048576,$B105,FALSE)) -> 1.056 | K105: =IF($B105="","",VLOOKUP(K$5,BBDD!$8:$1048576,$B105,FALSE)) -> 1.056 | L105: =IF($B105="","",VLOOKUP(L$5,BBDD!$8:$1048576,$B105,FALSE)) -> 1.09 | M105: =IF($B105="","",VLOOKUP(M$5,BBDD!$8:$1048576,$B105,FALSE)) -> 1.09 | N105: =IF($B105="","",VLOOKUP(N$5,BBDD!$8:$1048576,$B105,FALSE)) -> 1.09 | O105: =IF($B105="","",VLOOKUP(O$5,BBDD!$8:$1048576,$B105,FALSE)) -> 1.09 | P105: =+Factores!F105 -> 1.09
A106: Instalaciones BOOT - ISA Peru | B106: 83 | C106: =IF($B106="","",VLOOKUP(C$5,BBDD!$8:$1048576,$B106,FALSE)) -> 1.056 | D106: =IF($B106="","",VLOOKUP(D$5,BBDD!$8:$1048576,$B106,FALSE)) -> 1.056 | E106: =IF($B106="","",VLOOKUP(E$5,BBDD!$8:$1048576,$B106,FALSE)) -> 1.056 | F106: =IF($B106="","",VLOOKUP(F$5,BBDD!$8:$1048576,$B106,FALSE)) -> 1.056 | G106: =IF($B106="","",VLOOKUP(G$5,BBDD!$8:$1048576,$B106,FALSE)) -> 1.056 | H106: =IF($B106="","",VLOOKUP(H$5,BBDD!$8:$1048576,$B106,FALSE)) -> 1.056 | I106: =IF($B106="","",VLOOKUP(I$5,BBDD!$8:$1048576,$B106,FALSE)) -> 1.056 | J106: =IF($B106="","",VLOOKUP(J$5,BBDD!$8:$1048576,$B106,FALSE)) -> 1.056 | K106: =IF($B106="","",VLOOKUP(K$5,BBDD!$8:$1048576,$B106,FALSE)) -> 1.056 | L106: =IF($B106="","",VLOOKUP(L$5,BBDD!$8:$1048576,$B106,FALSE)) -> 1.09 | M106: =IF($B106="","",VLOOKUP(M$5,BBDD!$8:$1048576,$B106,FALSE)) -> 1.09 | N106: =IF($B106="","",VLOOKUP(N$5,BBDD!$8:$1048576,$B106,FALSE)) -> 1.09 | O106: =IF($B106="","",VLOOKUP(O$5,BBDD!$8:$1048576,$B106,FALSE)) -> 1.09 | P106: =+Factores!F106 -> 1.09
A107: Peaje Unitario por Compensación | C107: =IF($B107="","",VLOOKUP(C$5,BBDD!$8:$1048576,$B107,FALSE)) ->  | D107: =IF($B107="","",VLOOKUP(D$5,BBDD!$8:$1048576,$B107,FALSE)) ->  | E107: =IF($B107="","",VLOOKUP(E$5,BBDD!$8:$1048576,$B107,FALSE)) ->  | F107: =IF($B107="","",VLOOKUP(F$5,BBDD!$8:$1048576,$B107,FALSE)) ->  | G107: =IF($B107="","",VLOOKUP(G$5,BBDD!$8:$1048576,$B107,FALSE)) ->  | H107: =IF($B107="","",VLOOKUP(H$5,BBDD!$8:$1048576,$B107,FALSE)) ->  | I107: =IF($B107="","",VLOOKUP(I$5,BBDD!$8:$1048576,$B107,FALSE)) ->  | J107: =IF($B107="","",VLOOKUP(J$5,BBDD!$8:$1048576,$B107,FALSE)) ->  | K107: =IF($B107="","",VLOOKUP(K$5,BBDD!$8:$1048576,$B107,FALSE)) ->  | L107: =IF($B107="","",VLOOKUP(L$5,BBDD!$8:$1048576,$B107,FALSE)) ->  | M107: =IF($B107="","",VLOOKUP(M$5,BBDD!$8:$1048576,$B107,FALSE)) ->  | N107: =IF($B107="","",VLOOKUP(N$5,BBDD!$8:$1048576,$B107,FALSE)) ->  | O107: =IF($B107="","",VLOOKUP(O$5,BBDD!$8:$1048576,$B107,FALSE)) ->  | P107: =+Factores!F107 -> 
A108: Resolucion del FA_Peaje Unitario de Compensación (FA_PUC) | B108: =1+B106 -> 84 | C108: =IF($B108="","",VLOOKUP(C$5,BBDD!$8:$1048576,$B108,FALSE)) -> 1 | D108: =IF($B108="","",VLOOKUP(D$5,BBDD!$8:$1048576,$B108,FALSE)) -> 1 | E108: =IF($B108="","",VLOOKUP(E$5,BBDD!$8:$1048576,$B108,FALSE)) -> 1 | F108: =IF($B108="","",VLOOKUP(F$5,BBDD!$8:$1048576,$B108,FALSE)) -> 1 | G108: =IF($B108="","",VLOOKUP(G$5,BBDD!$8:$1048576,$B108,FALSE)) -> 1 | H108: =IF($B108="","",VLOOKUP(H$5,BBDD!$8:$1048576,$B108,FALSE)) -> 1 | I108: =IF($B108="","",VLOOKUP(I$5,BBDD!$8:$1048576,$B108,FALSE)) -> 1.2328 | J108: =IF($B108="","",VLOOKUP(J$5,BBDD!$8:$1048576,$B108,FALSE)) -> 1.2328 | K108: =IF($B108="","",VLOOKUP(K$5,BBDD!$8:$1048576,$B108,FALSE)) -> 1.2328 | L108: =IF($B108="","",VLOOKUP(L$5,BBDD!$8:$1048576,$B108,FALSE)) -> 1.2328 | M108: =IF($B108="","",VLOOKUP(M$5,BBDD!$8:$1048576,$B108,FALSE)) -> 1.2328 | N108: =IF($B108="","",VLOOKUP(N$5,BBDD!$8:$1048576,$B108,FALSE)) -> 1.2328 | O108: =IF($B108="","",VLOOKUP(O$5,BBDD!$8:$1048576,$B108,FALSE)) -> 1.2328 | P108: =+Factores!F108 -> 1.2328
C109: =IF($B109="","",VLOOKUP(C$5,BBDD!$8:$1048576,$B109,FALSE)) ->  | D109: =IF($B109="","",VLOOKUP(D$5,BBDD!$8:$1048576,$B109,FALSE)) ->  | E109: =IF($B109="","",VLOOKUP(E$5,BBDD!$8:$1048576,$B109,FALSE)) ->  | F109: =IF($B109="","",VLOOKUP(F$5,BBDD!$8:$1048576,$B109,FALSE)) ->  | G109: =IF($B109="","",VLOOKUP(G$5,BBDD!$8:$1048576,$B109,FALSE)) ->  | H109: =IF($B109="","",VLOOKUP(H$5,BBDD!$8:$1048576,$B109,FALSE)) ->  | I109: =IF($B109="","",VLOOKUP(I$5,BBDD!$8:$1048576,$B109,FALSE)) ->  | J109: =IF($B109="","",VLOOKUP(J$5,BBDD!$8:$1048576,$B109,FALSE)) ->  | K109: =IF($B109="","",VLOOKUP(K$5,BBDD!$8:$1048576,$B109,FALSE)) ->  | L109: =IF($B109="","",VLOOKUP(L$5,BBDD!$8:$1048576,$B109,FALSE)) ->  | M109: =IF($B109="","",VLOOKUP(M$5,BBDD!$8:$1048576,$B109,FALSE)) ->  | N109: =IF($B109="","",VLOOKUP(N$5,BBDD!$8:$1048576,$B109,FALSE)) ->  | O109: =IF($B109="","",VLOOKUP(O$5,BBDD!$8:$1048576,$B109,FALSE)) ->  | P109: =+Factores!F109 -> 
C110: =IF($B110="","",VLOOKUP(C$5,BBDD!$8:$1048576,$B110,FALSE)) ->  | D110: =IF($B110="","",VLOOKUP(D$5,BBDD!$8:$1048576,$B110,FALSE)) ->  | E110: =IF($B110="","",VLOOKUP(E$5,BBDD!$8:$1048576,$B110,FALSE)) ->  | F110: =IF($B110="","",VLOOKUP(F$5,BBDD!$8:$1048576,$B110,FALSE)) ->  | G110: =IF($B110="","",VLOOKUP(G$5,BBDD!$8:$1048576,$B110,FALSE)) ->  | H110: =IF($B110="","",VLOOKUP(H$5,BBDD!$8:$1048576,$B110,FALSE)) ->  | I110: =IF($B110="","",VLOOKUP(I$5,BBDD!$8:$1048576,$B110,FALSE)) ->  | J110: =IF($B110="","",VLOOKUP(J$5,BBDD!$8:$1048576,$B110,FALSE)) ->  | K110: =IF($B110="","",VLOOKUP(K$5,BBDD!$8:$1048576,$B110,FALSE)) ->  | L110: =IF($B110="","",VLOOKUP(L$5,BBDD!$8:$1048576,$B110,FALSE)) ->  | M110: =IF($B110="","",VLOOKUP(M$5,BBDD!$8:$1048576,$B110,FALSE)) ->  | N110: =IF($B110="","",VLOOKUP(N$5,BBDD!$8:$1048576,$B110,FALSE)) ->  | O110: =IF($B110="","",VLOOKUP(O$5,BBDD!$8:$1048576,$B110,FALSE)) ->  | P110: =+Factores!F110 -> 
A111: C.1. DISTRIBUCIÓN - VAD Y CARGOS FIJOS (Res. N° 203-2013-OS/CD) | C111: =IF($B111="","",VLOOKUP(C$5,BBDD!$8:$1048576,$B111,FALSE)) ->  | D111: =IF($B111="","",VLOOKUP(D$5,BBDD!$8:$1048576,$B111,FALSE)) ->  | E111: =IF($B111="","",VLOOKUP(E$5,BBDD!$8:$1048576,$B111,FALSE)) ->  | F111: =IF($B111="","",VLOOKUP(F$5,BBDD!$8:$1048576,$B111,FALSE)) ->  | G111: =IF($B111="","",VLOOKUP(G$5,BBDD!$8:$1048576,$B111,FALSE)) ->  | H111: =IF($B111="","",VLOOKUP(H$5,BBDD!$8:$1048576,$B111,FALSE)) ->  | I111: =IF($B111="","",VLOOKUP(I$5,BBDD!$8:$1048576,$B111,FALSE)) ->  | J111: =IF($B111="","",VLOOKUP(J$5,BBDD!$8:$1048576,$B111,FALSE)) ->  | K111: =IF($B111="","",VLOOKUP(K$5,BBDD!$8:$1048576,$B111,FALSE)) ->  | L111: =IF($B111="","",VLOOKUP(L$5,BBDD!$8:$1048576,$B111,FALSE)) ->  | M111: =IF($B111="","",VLOOKUP(M$5,BBDD!$8:$1048576,$B111,FALSE)) ->  | N111: =IF($B111="","",VLOOKUP(N$5,BBDD!$8:$1048576,$B111,FALSE)) ->  | O111: =IF($B111="","",VLOOKUP(O$5,BBDD!$8:$1048576,$B111,FALSE)) ->  | P111: =+Factores!F111 -> 
A112: 1. VALOR AGREGADO DE DISTRIBUCIÓN EN MT (FAVADMT) | C112: =IF($B112="","",VLOOKUP(C$5,BBDD!$8:$1048576,$B112,FALSE)) ->  | D112: =IF($B112="","",VLOOKUP(D$5,BBDD!$8:$1048576,$B112,FALSE)) ->  | E112: =IF($B112="","",VLOOKUP(E$5,BBDD!$8:$1048576,$B112,FALSE)) ->  | F112: =IF($B112="","",VLOOKUP(F$5,BBDD!$8:$1048576,$B112,FALSE)) ->  | G112: =IF($B112="","",VLOOKUP(G$5,BBDD!$8:$1048576,$B112,FALSE)) ->  | H112: =IF($B112="","",VLOOKUP(H$5,BBDD!$8:$1048576,$B112,FALSE)) ->  | I112: =IF($B112="","",VLOOKUP(I$5,BBDD!$8:$1048576,$B112,FALSE)) ->  | J112: =IF($B112="","",VLOOKUP(J$5,BBDD!$8:$1048576,$B112,FALSE)) ->  | K112: =IF($B112="","",VLOOKUP(K$5,BBDD!$8:$1048576,$B112,FALSE)) ->  | L112: =IF($B112="","",VLOOKUP(L$5,BBDD!$8:$1048576,$B112,FALSE)) ->  | M112: =IF($B112="","",VLOOKUP(M$5,BBDD!$8:$1048576,$B112,FALSE)) ->  | N112: =IF($B112="","",VLOOKUP(N$5,BBDD!$8:$1048576,$B112,FALSE)) ->  | O112: =IF($B112="","",VLOOKUP(O$5,BBDD!$8:$1048576,$B112,FALSE)) ->  | P112: =+Factores!F112 -> 
A113: a) Sector 1 | B113: =1+B108 -> 85 | C113: =IF($B113="","",VLOOKUP(C$5,BBDD!$8:$1048576,$B113,FALSE)) -> 0.9732 | D113: =IF($B113="","",VLOOKUP(D$5,BBDD!$8:$1048576,$B113,FALSE)) -> 0.9732 | E113: =IF($B113="","",VLOOKUP(E$5,BBDD!$8:$1048576,$B113,FALSE)) -> 0.99 | F113: =IF($B113="","",VLOOKUP(F$5,BBDD!$8:$1048576,$B113,FALSE)) -> 0.9973 | G113: =IF($B113="","",VLOOKUP(G$5,BBDD!$8:$1048576,$B113,FALSE)) -> 0.9973 | H113: =IF($B113="","",VLOOKUP(H$5,BBDD!$8:$1048576,$B113,FALSE)) -> 1 | I113: =IF($B113="","",VLOOKUP(I$5,BBDD!$8:$1048576,$B113,FALSE)) -> 1.0357 | J113: =IF($B113="","",VLOOKUP(J$5,BBDD!$8:$1048576,$B113,FALSE)) -> 1.0357 | K113: =IF($B113="","",VLOOKUP(K$5,BBDD!$8:$1048576,$B113,FALSE)) -> 1.0357 | L113: =IF($B113="","",VLOOKUP(L$5,BBDD!$8:$1048576,$B113,FALSE)) -> 1.0358 | M113: =IF($B113="","",VLOOKUP(M$5,BBDD!$8:$1048576,$B113,FALSE)) -> 1.0358 | N113: =IF($B113="","",VLOOKUP(N$5,BBDD!$8:$1048576,$B113,FALSE)) -> 1.0354 | O113: =IF($B113="","",VLOOKUP(O$5,BBDD!$8:$1048576,$B113,FALSE)) -> 1.0354 | P113: =+Factores!F113 -> 1.0354
A114: b) Sector 2 | B114: =1+B113 -> 86 | C114: =IF($B114="","",VLOOKUP(C$5,BBDD!$8:$1048576,$B114,FALSE)) -> 0.9991 | D114: =IF($B114="","",VLOOKUP(D$5,BBDD!$8:$1048576,$B114,FALSE)) -> 0.9991 | E114: =IF($B114="","",VLOOKUP(E$5,BBDD!$8:$1048576,$B114,FALSE)) -> 1.0165 | F114: =IF($B114="","",VLOOKUP(F$5,BBDD!$8:$1048576,$B114,FALSE)) -> 1.0243 | G114: =IF($B114="","",VLOOKUP(G$5,BBDD!$8:$1048576,$B114,FALSE)) -> 1.0243 | H114: =IF($B114="","",VLOOKUP(H$5,BBDD!$8:$1048576,$B114,FALSE)) -> 1 | I114: =IF($B114="","",VLOOKUP(I$5,BBDD!$8:$1048576,$B114,FALSE)) -> 1.0252 | J114: =IF($B114="","",VLOOKUP(J$5,BBDD!$8:$1048576,$B114,FALSE)) -> 1.0252 | K114: =IF($B114="","",VLOOKUP(K$5,BBDD!$8:$1048576,$B114,FALSE)) -> 1.0252 | L114: =IF($B114="","",VLOOKUP(L$5,BBDD!$8:$1048576,$B114,FALSE)) -> 1.0213 | M114: =IF($B114="","",VLOOKUP(M$5,BBDD!$8:$1048576,$B114,FALSE)) -> 1.0213 | N114: =IF($B114="","",VLOOKUP(N$5,BBDD!$8:$1048576,$B114,FALSE)) -> 1.0233 | O114: =IF($B114="","",VLOOKUP(O$5,BBDD!$8:$1048576,$B114,FALSE)) -> 1.0233 | P114: =+Factores!F114 -> 1.0233
A115: c) Sector 3 | B115: 87 | C115: =IF($B115="","",VLOOKUP(C$5,BBDD!$8:$1048576,$B115,FALSE)) -> 1.0028 | D115: =IF($B115="","",VLOOKUP(D$5,BBDD!$8:$1048576,$B115,FALSE)) -> 1.0028 | E115: =IF($B115="","",VLOOKUP(E$5,BBDD!$8:$1048576,$B115,FALSE)) -> 1.0192 | F115: =IF($B115="","",VLOOKUP(F$5,BBDD!$8:$1048576,$B115,FALSE)) -> 1.0256 | G115: =IF($B115="","",VLOOKUP(G$5,BBDD!$8:$1048576,$B115,FALSE)) -> 1.0256 | H115: =IF($B115="","",VLOOKUP(H$5,BBDD!$8:$1048576,$B115,FALSE)) -> 1 | I115: =IF($B115="","",VLOOKUP(I$5,BBDD!$8:$1048576,$B115,FALSE)) -> 1.032 | J115: =IF($B115="","",VLOOKUP(J$5,BBDD!$8:$1048576,$B115,FALSE)) -> 1.032 | K115: =IF($B115="","",VLOOKUP(K$5,BBDD!$8:$1048576,$B115,FALSE)) -> 1.032 | L115: =IF($B115="","",VLOOKUP(L$5,BBDD!$8:$1048576,$B115,FALSE)) -> 1.031 | M115: =IF($B115="","",VLOOKUP(M$5,BBDD!$8:$1048576,$B115,FALSE)) -> 1.031 | N115: =IF($B115="","",VLOOKUP(N$5,BBDD!$8:$1048576,$B115,FALSE)) -> 1.0329 | O115: =IF($B115="","",VLOOKUP(O$5,BBDD!$8:$1048576,$B115,FALSE)) -> 1.0329 | P115: =+Factores!F115 -> 1.0329
A116: d) Sector 4 | B116: 88 | C116: =IF($B116="","",VLOOKUP(C$5,BBDD!$8:$1048576,$B116,FALSE)) -> 0.9971 | D116: =IF($B116="","",VLOOKUP(D$5,BBDD!$8:$1048576,$B116,FALSE)) -> 0.9971 | E116: =IF($B116="","",VLOOKUP(E$5,BBDD!$8:$1048576,$B116,FALSE)) -> 1.0147 | F116: =IF($B116="","",VLOOKUP(F$5,BBDD!$8:$1048576,$B116,FALSE)) -> 1.0225 | G116: =IF($B116="","",VLOOKUP(G$5,BBDD!$8:$1048576,$B116,FALSE)) -> 1.0225 | H116: =IF($B116="","",VLOOKUP(H$5,BBDD!$8:$1048576,$B116,FALSE)) -> 1 | I116: =IF($B116="","",VLOOKUP(I$5,BBDD!$8:$1048576,$B116,FALSE)) -> 1.0395 | J116: =IF($B116="","",VLOOKUP(J$5,BBDD!$8:$1048576,$B116,FALSE)) -> 1.0395 | K116: =IF($B116="","",VLOOKUP(K$5,BBDD!$8:$1048576,$B116,FALSE)) -> 1.0395 | L116: =IF($B116="","",VLOOKUP(L$5,BBDD!$8:$1048576,$B116,FALSE)) -> 1.0414 | M116: =IF($B116="","",VLOOKUP(M$5,BBDD!$8:$1048576,$B116,FALSE)) -> 1.0414 | N116: =IF($B116="","",VLOOKUP(N$5,BBDD!$8:$1048576,$B116,FALSE)) -> 1.0416 | O116: =IF($B116="","",VLOOKUP(O$5,BBDD!$8:$1048576,$B116,FALSE)) -> 1.0416 | P116: =+Factores!F116 -> 1.0416
A117: e) Sector 5 | B117: 89 | C117: =IF($B117="","",VLOOKUP(C$5,BBDD!$8:$1048576,$B117,FALSE)) -> 1.001 | D117: =IF($B117="","",VLOOKUP(D$5,BBDD!$8:$1048576,$B117,FALSE)) -> 1.001 | E117: =IF($B117="","",VLOOKUP(E$5,BBDD!$8:$1048576,$B117,FALSE)) -> 1.0185 | F117: =IF($B117="","",VLOOKUP(F$5,BBDD!$8:$1048576,$B117,FALSE)) -> 1.0264 | G117: =IF($B117="","",VLOOKUP(G$5,BBDD!$8:$1048576,$B117,FALSE)) -> 1.0264 | H117: =IF($B117="","",VLOOKUP(H$5,BBDD!$8:$1048576,$B117,FALSE)) -> 1 | I117: =IF($B117="","",VLOOKUP(I$5,BBDD!$8:$1048576,$B117,FALSE)) -> 1.0276 | J117: =IF($B117="","",VLOOKUP(J$5,BBDD!$8:$1048576,$B117,FALSE)) -> 1.0276 | K117: =IF($B117="","",VLOOKUP(K$5,BBDD!$8:$1048576,$B117,FALSE)) -> 1.0276 | L117: =IF($B117="","",VLOOKUP(L$5,BBDD!$8:$1048576,$B117,FALSE)) -> 1.0246 | M117: =IF($B117="","",VLOOKUP(M$5,BBDD!$8:$1048576,$B117,FALSE)) -> 1.0246 | N117: =IF($B117="","",VLOOKUP(N$5,BBDD!$8:$1048576,$B117,FALSE)) -> 1.0257 | O117: =IF($B117="","",VLOOKUP(O$5,BBDD!$8:$1048576,$B117,FALSE)) -> 1.0257 | P117: =+Factores!F117 -> 1.0257
A118: f) Sector 6 | B118: =+B117+1 -> 90 | C118: =IF($B118="","",VLOOKUP(C$5,BBDD!$8:$1048576,$B118,FALSE)) -> 0 | D118: =IF($B118="","",VLOOKUP(D$5,BBDD!$8:$1048576,$B118,FALSE)) -> 0 | E118: =IF($B118="","",VLOOKUP(E$5,BBDD!$8:$1048576,$B118,FALSE)) -> 0 | F118: =IF($B118="","",VLOOKUP(F$5,BBDD!$8:$1048576,$B118,FALSE)) -> 0 | G118: =IF($B118="","",VLOOKUP(G$5,BBDD!$8:$1048576,$B118,FALSE)) -> 0 | H118: =IF($B118="","",VLOOKUP(H$5,BBDD!$8:$1048576,$B118,FALSE)) -> 1 | I118: =IF($B118="","",VLOOKUP(I$5,BBDD!$8:$1048576,$B118,FALSE)) -> 1.0382 | J118: =IF($B118="","",VLOOKUP(J$5,BBDD!$8:$1048576,$B118,FALSE)) -> 1.0382 | K118: =IF($B118="","",VLOOKUP(K$5,BBDD!$8:$1048576,$B118,FALSE)) -> 1.0382 | L118: =IF($B118="","",VLOOKUP(L$5,BBDD!$8:$1048576,$B118,FALSE)) -> 1.0393 | M118: =IF($B118="","",VLOOKUP(M$5,BBDD!$8:$1048576,$B118,FALSE)) -> 1.0393 | N118: =IF($B118="","",VLOOKUP(N$5,BBDD!$8:$1048576,$B118,FALSE)) -> 1.0385 | O118: =IF($B118="","",VLOOKUP(O$5,BBDD!$8:$1048576,$B118,FALSE)) -> 1.0385 | P118: =+Factores!F118 -> 1.0385
A119: g) Sector Especial | B119: =+B118+1 -> 91 | C119: =IF($B119="","",VLOOKUP(C$5,BBDD!$8:$1048576,$B119,FALSE)) -> 1.0084 | D119: =IF($B119="","",VLOOKUP(D$5,BBDD!$8:$1048576,$B119,FALSE)) -> 1.0084 | E119: =IF($B119="","",VLOOKUP(E$5,BBDD!$8:$1048576,$B119,FALSE)) -> 1.0262 | F119: =IF($B119="","",VLOOKUP(F$5,BBDD!$8:$1048576,$B119,FALSE)) -> 1.0342 | G119: =IF($B119="","",VLOOKUP(G$5,BBDD!$8:$1048576,$B119,FALSE)) -> 1.0342 | H119: =IF($B119="","",VLOOKUP(H$5,BBDD!$8:$1048576,$B119,FALSE)) -> 1 | I119: =IF($B119="","",VLOOKUP(I$5,BBDD!$8:$1048576,$B119,FALSE)) -> 1.0304 | J119: =IF($B119="","",VLOOKUP(J$5,BBDD!$8:$1048576,$B119,FALSE)) -> 1.0304 | K119: =IF($B119="","",VLOOKUP(K$5,BBDD!$8:$1048576,$B119,FALSE)) -> 1.0304 | L119: =IF($B119="","",VLOOKUP(L$5,BBDD!$8:$1048576,$B119,FALSE)) -> 1.0285 | M119: =IF($B119="","",VLOOKUP(M$5,BBDD!$8:$1048576,$B119,FALSE)) -> 1.0285 | N119: =IF($B119="","",VLOOKUP(N$5,BBDD!$8:$1048576,$B119,FALSE)) -> 1.0296 | O119: =IF($B119="","",VLOOKUP(O$5,BBDD!$8:$1048576,$B119,FALSE)) -> 1.0296 | P119: =+Factores!F119 -> 1.0296
A120: h) VAD SER 100 Estado Prepago | B120: =1+B119 -> 92 | C120: =IF($B120="","",VLOOKUP(C$5,BBDD!$8:$1048576,$B120,FALSE)) -> 0.9861 | D120: =IF($B120="","",VLOOKUP(D$5,BBDD!$8:$1048576,$B120,FALSE)) -> 0.9861 | E120: =IF($B120="","",VLOOKUP(E$5,BBDD!$8:$1048576,$B120,FALSE)) -> 1.0033 | F120: =IF($B120="","",VLOOKUP(F$5,BBDD!$8:$1048576,$B120,FALSE)) -> 1.011 | G120: =IF($B120="","",VLOOKUP(G$5,BBDD!$8:$1048576,$B120,FALSE)) -> 1.011 | H120: =IF($B120="","",VLOOKUP(H$5,BBDD!$8:$1048576,$B120,FALSE)) -> 1 | I120: =IF($B120="","",VLOOKUP(I$5,BBDD!$8:$1048576,$B120,FALSE)) -> 1.0512 | J120: =IF($B120="","",VLOOKUP(J$5,BBDD!$8:$1048576,$B120,FALSE)) -> 1.0512 | K120: =IF($B120="","",VLOOKUP(K$5,BBDD!$8:$1048576,$B120,FALSE)) -> 1.0512 | L120: =IF($B120="","",VLOOKUP(L$5,BBDD!$8:$1048576,$B120,FALSE)) -> 1.0578 | M120: =IF($B120="","",VLOOKUP(M$5,BBDD!$8:$1048576,$B120,FALSE)) -> 1.0578 | N120: =IF($B120="","",VLOOKUP(N$5,BBDD!$8:$1048576,$B120,FALSE)) -> 1.0572 | O120: =IF($B120="","",VLOOKUP(O$5,BBDD!$8:$1048576,$B120,FALSE)) -> 1.0572 | P120: =+Factores!F120 -> 1.0572
A121: i) VAD SER 100 Estado Convencional | B121: 93 | C121: =IF($B121="","",VLOOKUP(C$5,BBDD!$8:$1048576,$B121,FALSE)) -> 0.9871 | D121: =IF($B121="","",VLOOKUP(D$5,BBDD!$8:$1048576,$B121,FALSE)) -> 0.9871 | E121: =IF($B121="","",VLOOKUP(E$5,BBDD!$8:$1048576,$B121,FALSE)) -> 1.0043 | F121: =IF($B121="","",VLOOKUP(F$5,BBDD!$8:$1048576,$B121,FALSE)) -> 1.012 | G121: =IF($B121="","",VLOOKUP(G$5,BBDD!$8:$1048576,$B121,FALSE)) -> 1.012 | H121: =IF($B121="","",VLOOKUP(H$5,BBDD!$8:$1048576,$B121,FALSE)) -> 1 | I121: =IF($B121="","",VLOOKUP(I$5,BBDD!$8:$1048576,$B121,FALSE)) -> 1.0509 | J121: =IF($B121="","",VLOOKUP(J$5,BBDD!$8:$1048576,$B121,FALSE)) -> 1.0509 | K121: =IF($B121="","",VLOOKUP(K$5,BBDD!$8:$1048576,$B121,FALSE)) -> 1.0509 | L121: =IF($B121="","",VLOOKUP(L$5,BBDD!$8:$1048576,$B121,FALSE)) -> 1.0574 | M121: =IF($B121="","",VLOOKUP(M$5,BBDD!$8:$1048576,$B121,FALSE)) -> 1.0574 | N121: =IF($B121="","",VLOOKUP(N$5,BBDD!$8:$1048576,$B121,FALSE)) -> 1.0569 | O121: =IF($B121="","",VLOOKUP(O$5,BBDD!$8:$1048576,$B121,FALSE)) -> 1.0569 | P121: =+Factores!F121 -> 1.0569
A122: j) VAD SER 100 Empresa Prepago | B122: 94 | C122: =IF($B122="","",VLOOKUP(C$5,BBDD!$8:$1048576,$B122,FALSE)) -> 0.9861 | D122: =IF($B122="","",VLOOKUP(D$5,BBDD!$8:$1048576,$B122,FALSE)) -> 0.9861 | E122: =IF($B122="","",VLOOKUP(E$5,BBDD!$8:$1048576,$B122,FALSE)) -> 1.0033 | F122: =IF($B122="","",VLOOKUP(F$5,BBDD!$8:$1048576,$B122,FALSE)) -> 1.011 | G122: =IF($B122="","",VLOOKUP(G$5,BBDD!$8:$1048576,$B122,FALSE)) -> 1.011 | H122: =IF($B122="","",VLOOKUP(H$5,BBDD!$8:$1048576,$B122,FALSE)) -> 1 | I122: =IF($B122="","",VLOOKUP(I$5,BBDD!$8:$1048576,$B122,FALSE)) -> 1.0512 | J122: =IF($B122="","",VLOOKUP(J$5,BBDD!$8:$1048576,$B122,FALSE)) -> 1.0512 | K122: =IF($B122="","",VLOOKUP(K$5,BBDD!$8:$1048576,$B122,FALSE)) -> 1.0512 | L122: =IF($B122="","",VLOOKUP(L$5,BBDD!$8:$1048576,$B122,FALSE)) -> 1.0578 | M122: =IF($B122="","",VLOOKUP(M$5,BBDD!$8:$1048576,$B122,FALSE)) -> 1.0578 | N122: =IF($B122="","",VLOOKUP(N$5,BBDD!$8:$1048576,$B122,FALSE)) -> 1.0572 | O122: =IF($B122="","",VLOOKUP(O$5,BBDD!$8:$1048576,$B122,FALSE)) -> 1.0572 | P122: =+Factores!F122 -> 1.0572
A123: k) VAD SER 100 Empresa Convencional | B123: 95 | C123: =IF($B123="","",VLOOKUP(C$5,BBDD!$8:$1048576,$B123,FALSE)) -> 0.9871 | D123: =IF($B123="","",VLOOKUP(D$5,BBDD!$8:$1048576,$B123,FALSE)) -> 0.9871 | E123: =IF($B123="","",VLOOKUP(E$5,BBDD!$8:$1048576,$B123,FALSE)) -> 1.0043 | F123: =IF($B123="","",VLOOKUP(F$5,BBDD!$8:$1048576,$B123,FALSE)) -> 1.012 | G123: =IF($B123="","",VLOOKUP(G$5,BBDD!$8:$1048576,$B123,FALSE)) -> 1.012 | H123: =IF($B123="","",VLOOKUP(H$5,BBDD!$8:$1048576,$B123,FALSE)) -> 1 | I123: =IF($B123="","",VLOOKUP(I$5,BBDD!$8:$1048576,$B123,FALSE)) -> 1.0509 | J123: =IF($B123="","",VLOOKUP(J$5,BBDD!$8:$1048576,$B123,FALSE)) -> 1.0509 | K123: =IF($B123="","",VLOOKUP(K$5,BBDD!$8:$1048576,$B123,FALSE)) -> 1.0509 | L123: =IF($B123="","",VLOOKUP(L$5,BBDD!$8:$1048576,$B123,FALSE)) -> 1.0574 | M123: =IF($B123="","",VLOOKUP(M$5,BBDD!$8:$1048576,$B123,FALSE)) -> 1.0574 | N123: =IF($B123="","",VLOOKUP(N$5,BBDD!$8:$1048576,$B123,FALSE)) -> 1.0569 | O123: =IF($B123="","",VLOOKUP(O$5,BBDD!$8:$1048576,$B123,FALSE)) -> 1.0569 | P123: =+Factores!F123 -> 1.0569
A124: 2. VALOR AGREGADO DE DISTRIBUCIÓN EN BT (FAVADBT) | C124: =IF($B124="","",VLOOKUP(C$5,BBDD!$8:$1048576,$B124,FALSE)) ->  | D124: =IF($B124="","",VLOOKUP(D$5,BBDD!$8:$1048576,$B124,FALSE)) ->  | E124: =IF($B124="","",VLOOKUP(E$5,BBDD!$8:$1048576,$B124,FALSE)) ->  | F124: =IF($B124="","",VLOOKUP(F$5,BBDD!$8:$1048576,$B124,FALSE)) ->  | G124: =IF($B124="","",VLOOKUP(G$5,BBDD!$8:$1048576,$B124,FALSE)) ->  | H124: =IF($B124="","",VLOOKUP(H$5,BBDD!$8:$1048576,$B124,FALSE)) ->  | I124: =IF($B124="","",VLOOKUP(I$5,BBDD!$8:$1048576,$B124,FALSE)) ->  | J124: =IF($B124="","",VLOOKUP(J$5,BBDD!$8:$1048576,$B124,FALSE)) ->  | K124: =IF($B124="","",VLOOKUP(K$5,BBDD!$8:$1048576,$B124,FALSE)) ->  | L124: =IF($B124="","",VLOOKUP(L$5,BBDD!$8:$1048576,$B124,FALSE)) ->  | M124: =IF($B124="","",VLOOKUP(M$5,BBDD!$8:$1048576,$B124,FALSE)) ->  | N124: =IF($B124="","",VLOOKUP(N$5,BBDD!$8:$1048576,$B124,FALSE)) ->  | O124: =IF($B124="","",VLOOKUP(O$5,BBDD!$8:$1048576,$B124,FALSE)) ->  | P124: =+Factores!F124 -> 
A125: a) Sector 1 | B125: =1+B123 -> 96 | C125: =IF($B125="","",VLOOKUP(C$5,BBDD!$8:$1048576,$B125,FALSE)) -> 0.9804 | D125: =IF($B125="","",VLOOKUP(D$5,BBDD!$8:$1048576,$B125,FALSE)) -> 0.9804 | E125: =IF($B125="","",VLOOKUP(E$5,BBDD!$8:$1048576,$B125,FALSE)) -> 0.9976 | F125: =IF($B125="","",VLOOKUP(F$5,BBDD!$8:$1048576,$B125,FALSE)) -> 1.0051 | G125: =IF($B125="","",VLOOKUP(G$5,BBDD!$8:$1048576,$B125,FALSE)) -> 1.0051 | H125: =IF($B125="","",VLOOKUP(H$5,BBDD!$8:$1048576,$B125,FALSE)) -> 1 | I125: =IF($B125="","",VLOOKUP(I$5,BBDD!$8:$1048576,$B125,FALSE)) -> 1.0381 | J125: =IF($B125="","",VLOOKUP(J$5,BBDD!$8:$1048576,$B125,FALSE)) -> 1.0381 | K125: =IF($B125="","",VLOOKUP(K$5,BBDD!$8:$1048576,$B125,FALSE)) -> 1.0381 | L125: =IF($B125="","",VLOOKUP(L$5,BBDD!$8:$1048576,$B125,FALSE)) -> 1.039 | M125: =IF($B125="","",VLOOKUP(M$5,BBDD!$8:$1048576,$B125,FALSE)) -> 1.039 | N125: =IF($B125="","",VLOOKUP(N$5,BBDD!$8:$1048576,$B125,FALSE)) -> 1.0376 | O125: =IF($B125="","",VLOOKUP(O$5,BBDD!$8:$1048576,$B125,FALSE)) -> 1.0376 | P125: =+Factores!F125 -> 1.0376
A126: b) Sector 2 | B126: =1+B125 -> 97 | C126: =IF($B126="","",VLOOKUP(C$5,BBDD!$8:$1048576,$B126,FALSE)) -> 0.994 | D126: =IF($B126="","",VLOOKUP(D$5,BBDD!$8:$1048576,$B126,FALSE)) -> 0.994 | E126: =IF($B126="","",VLOOKUP(E$5,BBDD!$8:$1048576,$B126,FALSE)) -> 1.0117 | F126: =IF($B126="","",VLOOKUP(F$5,BBDD!$8:$1048576,$B126,FALSE)) -> 1.0194 | G126: =IF($B126="","",VLOOKUP(G$5,BBDD!$8:$1048576,$B126,FALSE)) -> 1.0194 | H126: =IF($B126="","",VLOOKUP(H$5,BBDD!$8:$1048576,$B126,FALSE)) -> 1 | I126: =IF($B126="","",VLOOKUP(I$5,BBDD!$8:$1048576,$B126,FALSE)) -> 1.0264 | J126: =IF($B126="","",VLOOKUP(J$5,BBDD!$8:$1048576,$B126,FALSE)) -> 1.0264 | K126: =IF($B126="","",VLOOKUP(K$5,BBDD!$8:$1048576,$B126,FALSE)) -> 1.0264 | L126: =IF($B126="","",VLOOKUP(L$5,BBDD!$8:$1048576,$B126,FALSE)) -> 1.0229 | M126: =IF($B126="","",VLOOKUP(M$5,BBDD!$8:$1048576,$B126,FALSE)) -> 1.0229 | N126: =IF($B126="","",VLOOKUP(N$5,BBDD!$8:$1048576,$B126,FALSE)) -> 1.0245 | O126: =IF($B126="","",VLOOKUP(O$5,BBDD!$8:$1048576,$B126,FALSE)) -> 1.0245 | P126: =+Factores!F126 -> 1.0245
A127: c) Sector 3 | B127: 98 | C127: =IF($B127="","",VLOOKUP(C$5,BBDD!$8:$1048576,$B127,FALSE)) -> 0.9825 | D127: =IF($B127="","",VLOOKUP(D$5,BBDD!$8:$1048576,$B127,FALSE)) -> 0.9825 | E127: =IF($B127="","",VLOOKUP(E$5,BBDD!$8:$1048576,$B127,FALSE)) -> 0.9998 | F127: =IF($B127="","",VLOOKUP(F$5,BBDD!$8:$1048576,$B127,FALSE)) -> 1.0072 | G127: =IF($B127="","",VLOOKUP(G$5,BBDD!$8:$1048576,$B127,FALSE)) -> 1.0072 | H127: =IF($B127="","",VLOOKUP(H$5,BBDD!$8:$1048576,$B127,FALSE)) -> 1 | I127: =IF($B127="","",VLOOKUP(I$5,BBDD!$8:$1048576,$B127,FALSE)) -> 1.0359 | J127: =IF($B127="","",VLOOKUP(J$5,BBDD!$8:$1048576,$B127,FALSE)) -> 1.0359 | K127: =IF($B127="","",VLOOKUP(K$5,BBDD!$8:$1048576,$B127,FALSE)) -> 1.0359 | L127: =IF($B127="","",VLOOKUP(L$5,BBDD!$8:$1048576,$B127,FALSE)) -> 1.0356 | M127: =IF($B127="","",VLOOKUP(M$5,BBDD!$8:$1048576,$B127,FALSE)) -> 1.0356 | N127: =IF($B127="","",VLOOKUP(N$5,BBDD!$8:$1048576,$B127,FALSE)) -> 1.033 | O127: =IF($B127="","",VLOOKUP(O$5,BBDD!$8:$1048576,$B127,FALSE)) -> 1.033 | P127: =+Factores!F127 -> 1.033
A128: d) Sector 4 | B128: 99 | C128: =IF($B128="","",VLOOKUP(C$5,BBDD!$8:$1048576,$B128,FALSE)) -> 0.9798 | D128: =IF($B128="","",VLOOKUP(D$5,BBDD!$8:$1048576,$B128,FALSE)) -> 0.9798 | E128: =IF($B128="","",VLOOKUP(E$5,BBDD!$8:$1048576,$B128,FALSE)) -> 0.9972 | F128: =IF($B128="","",VLOOKUP(F$5,BBDD!$8:$1048576,$B128,FALSE)) -> 1.0047 | G128: =IF($B128="","",VLOOKUP(G$5,BBDD!$8:$1048576,$B128,FALSE)) -> 1.0047 | H128: =IF($B128="","",VLOOKUP(H$5,BBDD!$8:$1048576,$B128,FALSE)) -> 1 | I128: =IF($B128="","",VLOOKUP(I$5,BBDD!$8:$1048576,$B128,FALSE)) -> 1.0367 | J128: =IF($B128="","",VLOOKUP(J$5,BBDD!$8:$1048576,$B128,FALSE)) -> 1.0367 | K128: =IF($B128="","",VLOOKUP(K$5,BBDD!$8:$1048576,$B128,FALSE)) -> 1.0367 | L128: =IF($B128="","",VLOOKUP(L$5,BBDD!$8:$1048576,$B128,FALSE)) -> 1.037 | M128: =IF($B128="","",VLOOKUP(M$5,BBDD!$8:$1048576,$B128,FALSE)) -> 1.037 | N128: =IF($B128="","",VLOOKUP(N$5,BBDD!$8:$1048576,$B128,FALSE)) -> 1.0359 | O128: =IF($B128="","",VLOOKUP(O$5,BBDD!$8:$1048576,$B128,FALSE)) -> 1.0359 | P128: =+Factores!F128 -> 1.0359
A129: e) Sector 5 | B129: =1+B128 -> 100 | C129: =IF($B129="","",VLOOKUP(C$5,BBDD!$8:$1048576,$B129,FALSE)) -> 0.9762 | D129: =IF($B129="","",VLOOKUP(D$5,BBDD!$8:$1048576,$B129,FALSE)) -> 0.9762 | E129: =IF($B129="","",VLOOKUP(E$5,BBDD!$8:$1048576,$B129,FALSE)) -> 0.9936 | F129: =IF($B129="","",VLOOKUP(F$5,BBDD!$8:$1048576,$B129,FALSE)) -> 1.0009 | G129: =IF($B129="","",VLOOKUP(G$5,BBDD!$8:$1048576,$B129,FALSE)) -> 1.0009 | H129: =IF($B129="","",VLOOKUP(H$5,BBDD!$8:$1048576,$B129,FALSE)) -> 1 | I129: =IF($B129="","",VLOOKUP(I$5,BBDD!$8:$1048576,$B129,FALSE)) -> 1.0338 | J129: =IF($B129="","",VLOOKUP(J$5,BBDD!$8:$1048576,$B129,FALSE)) -> 1.0338 | K129: =IF($B129="","",VLOOKUP(K$5,BBDD!$8:$1048576,$B129,FALSE)) -> 1.0338 | L129: =IF($B129="","",VLOOKUP(L$5,BBDD!$8:$1048576,$B129,FALSE)) -> 1.0331 | M129: =IF($B129="","",VLOOKUP(M$5,BBDD!$8:$1048576,$B129,FALSE)) -> 1.0331 | N129: =IF($B129="","",VLOOKUP(N$5,BBDD!$8:$1048576,$B129,FALSE)) -> 1.033 | O129: =IF($B129="","",VLOOKUP(O$5,BBDD!$8:$1048576,$B129,FALSE)) -> 1.033 | P129: =+Factores!F129 -> 1.033
A130: f) Sector 6 | B130: 101 | C130: =IF($B130="","",VLOOKUP(C$5,BBDD!$8:$1048576,$B130,FALSE)) -> 0 | D130: =IF($B130="","",VLOOKUP(D$5,BBDD!$8:$1048576,$B130,FALSE)) -> 0 | E130: =IF($B130="","",VLOOKUP(E$5,BBDD!$8:$1048576,$B130,FALSE)) -> 0 | F130: =IF($B130="","",VLOOKUP(F$5,BBDD!$8:$1048576,$B130,FALSE)) -> 0 | G130: =IF($B130="","",VLOOKUP(G$5,BBDD!$8:$1048576,$B130,FALSE)) -> 0 | H130: =IF($B130="","",VLOOKUP(H$5,BBDD!$8:$1048576,$B130,FALSE)) -> 1 | I130: =IF($B130="","",VLOOKUP(I$5,BBDD!$8:$1048576,$B130,FALSE)) -> 1.0359 | J130: =IF($B130="","",VLOOKUP(J$5,BBDD!$8:$1048576,$B130,FALSE)) -> 1.0359 | K130: =IF($B130="","",VLOOKUP(K$5,BBDD!$8:$1048576,$B130,FALSE)) -> 1.0359 | L130: =IF($B130="","",VLOOKUP(L$5,BBDD!$8:$1048576,$B130,FALSE)) -> 1.0362 | M130: =IF($B130="","",VLOOKUP(M$5,BBDD!$8:$1048576,$B130,FALSE)) -> 1.0362 | N130: =IF($B130="","",VLOOKUP(N$5,BBDD!$8:$1048576,$B130,FALSE)) -> 1.0366 | O130: =IF($B130="","",VLOOKUP(O$5,BBDD!$8:$1048576,$B130,FALSE)) -> 1.0366 | P130: =+Factores!F130 -> 1.0366
A131: g) Sector Especial | B131: 102 | C131: =IF($B131="","",VLOOKUP(C$5,BBDD!$8:$1048576,$B131,FALSE)) -> 0.9911 | D131: =IF($B131="","",VLOOKUP(D$5,BBDD!$8:$1048576,$B131,FALSE)) -> 0.9911 | E131: =IF($B131="","",VLOOKUP(E$5,BBDD!$8:$1048576,$B131,FALSE)) -> 1.0088 | F131: =IF($B131="","",VLOOKUP(F$5,BBDD!$8:$1048576,$B131,FALSE)) -> 1.0158 | G131: =IF($B131="","",VLOOKUP(G$5,BBDD!$8:$1048576,$B131,FALSE)) -> 1.0158 | H131: =IF($B131="","",VLOOKUP(H$5,BBDD!$8:$1048576,$B131,FALSE)) -> 1 | I131: =IF($B131="","",VLOOKUP(I$5,BBDD!$8:$1048576,$B131,FALSE)) -> 1.0284 | J131: =IF($B131="","",VLOOKUP(J$5,BBDD!$8:$1048576,$B131,FALSE)) -> 1.0284 | K131: =IF($B131="","",VLOOKUP(K$5,BBDD!$8:$1048576,$B131,FALSE)) -> 1.0284 | L131: =IF($B131="","",VLOOKUP(L$5,BBDD!$8:$1048576,$B131,FALSE)) -> 1.0256 | M131: =IF($B131="","",VLOOKUP(M$5,BBDD!$8:$1048576,$B131,FALSE)) -> 1.0256 | N131: =IF($B131="","",VLOOKUP(N$5,BBDD!$8:$1048576,$B131,FALSE)) -> 1.0261 | O131: =IF($B131="","",VLOOKUP(O$5,BBDD!$8:$1048576,$B131,FALSE)) -> 1.0261 | P131: =+Factores!F131 -> 1.0261
A132: h) VAD SER 100 Estado Prepago | B132: 103 | C132: =IF($B132="","",VLOOKUP(C$5,BBDD!$8:$1048576,$B132,FALSE)) -> 0.9827 | D132: =IF($B132="","",VLOOKUP(D$5,BBDD!$8:$1048576,$B132,FALSE)) -> 0.9827 | E132: =IF($B132="","",VLOOKUP(E$5,BBDD!$8:$1048576,$B132,FALSE)) -> 1.0007 | F132: =IF($B132="","",VLOOKUP(F$5,BBDD!$8:$1048576,$B132,FALSE)) -> 1.008 | G132: =IF($B132="","",VLOOKUP(G$5,BBDD!$8:$1048576,$B132,FALSE)) -> 1.008 | H132: =IF($B132="","",VLOOKUP(H$5,BBDD!$8:$1048576,$B132,FALSE)) -> 1 | I132: =IF($B132="","",VLOOKUP(I$5,BBDD!$8:$1048576,$B132,FALSE)) -> 1.0508 | J132: =IF($B132="","",VLOOKUP(J$5,BBDD!$8:$1048576,$B132,FALSE)) -> 1.0508 | K132: =IF($B132="","",VLOOKUP(K$5,BBDD!$8:$1048576,$B132,FALSE)) -> 1.0508 | L132: =IF($B132="","",VLOOKUP(L$5,BBDD!$8:$1048576,$B132,FALSE)) -> 1.0572 | M132: =IF($B132="","",VLOOKUP(M$5,BBDD!$8:$1048576,$B132,FALSE)) -> 1.0572 | N132: =IF($B132="","",VLOOKUP(N$5,BBDD!$8:$1048576,$B132,FALSE)) -> 1.0565 | O132: =IF($B132="","",VLOOKUP(O$5,BBDD!$8:$1048576,$B132,FALSE)) -> 1.0565 | P132: =+Factores!F132 -> 1.0565
A133: i) VAD SER 100 Estado Convencional | B133: 104 | C133: =IF($B133="","",VLOOKUP(C$5,BBDD!$8:$1048576,$B133,FALSE)) -> 0.9908 | D133: =IF($B133="","",VLOOKUP(D$5,BBDD!$8:$1048576,$B133,FALSE)) -> 0.9908 | E133: =IF($B133="","",VLOOKUP(E$5,BBDD!$8:$1048576,$B133,FALSE)) -> 1.0087 | F133: =IF($B133="","",VLOOKUP(F$5,BBDD!$8:$1048576,$B133,FALSE)) -> 1.0161 | G133: =IF($B133="","",VLOOKUP(G$5,BBDD!$8:$1048576,$B133,FALSE)) -> 1.0161 | H133: =IF($B133="","",VLOOKUP(H$5,BBDD!$8:$1048576,$B133,FALSE)) -> 1 | I133: =IF($B133="","",VLOOKUP(I$5,BBDD!$8:$1048576,$B133,FALSE)) -> 1.0505 | J133: =IF($B133="","",VLOOKUP(J$5,BBDD!$8:$1048576,$B133,FALSE)) -> 1.0505 | K133: =IF($B133="","",VLOOKUP(K$5,BBDD!$8:$1048576,$B133,FALSE)) -> 1.0505 | L133: =IF($B133="","",VLOOKUP(L$5,BBDD!$8:$1048576,$B133,FALSE)) -> 1.0568 | M133: =IF($B133="","",VLOOKUP(M$5,BBDD!$8:$1048576,$B133,FALSE)) -> 1.0568 | N133: =IF($B133="","",VLOOKUP(N$5,BBDD!$8:$1048576,$B133,FALSE)) -> 1.0562 | O133: =IF($B133="","",VLOOKUP(O$5,BBDD!$8:$1048576,$B133,FALSE)) -> 1.0562 | P133: =+Factores!F133 -> 1.0562
A134: j) VAD SER 100 Empresa Prepago | B134: 105 | C134: =IF($B134="","",VLOOKUP(C$5,BBDD!$8:$1048576,$B134,FALSE)) -> 0.9827 | D134: =IF($B134="","",VLOOKUP(D$5,BBDD!$8:$1048576,$B134,FALSE)) -> 0.9827 | E134: =IF($B134="","",VLOOKUP(E$5,BBDD!$8:$1048576,$B134,FALSE)) -> 1.0007 | F134: =IF($B134="","",VLOOKUP(F$5,BBDD!$8:$1048576,$B134,FALSE)) -> 1.008 | G134: =IF($B134="","",VLOOKUP(G$5,BBDD!$8:$1048576,$B134,FALSE)) -> 1.008 | H134: =IF($B134="","",VLOOKUP(H$5,BBDD!$8:$1048576,$B134,FALSE)) -> 1 | I134: =IF($B134="","",VLOOKUP(I$5,BBDD!$8:$1048576,$B134,FALSE)) -> 1.0508 | J134: =IF($B134="","",VLOOKUP(J$5,BBDD!$8:$1048576,$B134,FALSE)) -> 1.0508 | K134: =IF($B134="","",VLOOKUP(K$5,BBDD!$8:$1048576,$B134,FALSE)) -> 1.0508 | L134: =IF($B134="","",VLOOKUP(L$5,BBDD!$8:$1048576,$B134,FALSE)) -> 1.0572 | M134: =IF($B134="","",VLOOKUP(M$5,BBDD!$8:$1048576,$B134,FALSE)) -> 1.0572 | N134: =IF($B134="","",VLOOKUP(N$5,BBDD!$8:$1048576,$B134,FALSE)) -> 1.0565 | O134: =IF($B134="","",VLOOKUP(O$5,BBDD!$8:$1048576,$B134,FALSE)) -> 1.0565 | P134: =+Factores!F134 -> 1.0565
A135: k) VAD SER 100 Empresa Convencional | B135: 106 | C135: =IF($B135="","",VLOOKUP(C$5,BBDD!$8:$1048576,$B135,FALSE)) -> 0.9908 | D135: =IF($B135="","",VLOOKUP(D$5,BBDD!$8:$1048576,$B135,FALSE)) -> 0.9908 | E135: =IF($B135="","",VLOOKUP(E$5,BBDD!$8:$1048576,$B135,FALSE)) -> 1.0087 | F135: =IF($B135="","",VLOOKUP(F$5,BBDD!$8:$1048576,$B135,FALSE)) -> 1.0161 | G135: =IF($B135="","",VLOOKUP(G$5,BBDD!$8:$1048576,$B135,FALSE)) -> 1.0161 | H135: =IF($B135="","",VLOOKUP(H$5,BBDD!$8:$1048576,$B135,FALSE)) -> 1 | I135: =IF($B135="","",VLOOKUP(I$5,BBDD!$8:$1048576,$B135,FALSE)) -> 1.0505 | J135: =IF($B135="","",VLOOKUP(J$5,BBDD!$8:$1048576,$B135,FALSE)) -> 1.0505 | K135: =IF($B135="","",VLOOKUP(K$5,BBDD!$8:$1048576,$B135,FALSE)) -> 1.0505 | L135: =IF($B135="","",VLOOKUP(L$5,BBDD!$8:$1048576,$B135,FALSE)) -> 1.0568 | M135: =IF($B135="","",VLOOKUP(M$5,BBDD!$8:$1048576,$B135,FALSE)) -> 1.0568 | N135: =IF($B135="","",VLOOKUP(N$5,BBDD!$8:$1048576,$B135,FALSE)) -> 1.0562 | O135: =IF($B135="","",VLOOKUP(O$5,BBDD!$8:$1048576,$B135,FALSE)) -> 1.0562 | P135: =+Factores!F135 -> 1.0562
A136: 3. VALOR AGREGADO DE DISTRIBUCIÓN EN SUBESTACIONES MT/BT (FASED) | C136: =IF($B136="","",VLOOKUP(C$5,BBDD!$8:$1048576,$B136,FALSE)) ->  | D136: =IF($B136="","",VLOOKUP(D$5,BBDD!$8:$1048576,$B136,FALSE)) ->  | E136: =IF($B136="","",VLOOKUP(E$5,BBDD!$8:$1048576,$B136,FALSE)) ->  | F136: =IF($B136="","",VLOOKUP(F$5,BBDD!$8:$1048576,$B136,FALSE)) ->  | G136: =IF($B136="","",VLOOKUP(G$5,BBDD!$8:$1048576,$B136,FALSE)) ->  | H136: =IF($B136="","",VLOOKUP(H$5,BBDD!$8:$1048576,$B136,FALSE)) ->  | I136: =IF($B136="","",VLOOKUP(I$5,BBDD!$8:$1048576,$B136,FALSE)) ->  | J136: =IF($B136="","",VLOOKUP(J$5,BBDD!$8:$1048576,$B136,FALSE)) ->  | K136: =IF($B136="","",VLOOKUP(K$5,BBDD!$8:$1048576,$B136,FALSE)) ->  | L136: =IF($B136="","",VLOOKUP(L$5,BBDD!$8:$1048576,$B136,FALSE)) ->  | M136: =IF($B136="","",VLOOKUP(M$5,BBDD!$8:$1048576,$B136,FALSE)) ->  | N136: =IF($B136="","",VLOOKUP(N$5,BBDD!$8:$1048576,$B136,FALSE)) ->  | O136: =IF($B136="","",VLOOKUP(O$5,BBDD!$8:$1048576,$B136,FALSE)) ->  | P136: =+Factores!F136 -> 
A137: a) Sector 1 | B137: =1+B135 -> 107 | C137: =IF($B137="","",VLOOKUP(C$5,BBDD!$8:$1048576,$B137,FALSE)) -> 1.0003 | D137: =IF($B137="","",VLOOKUP(D$5,BBDD!$8:$1048576,$B137,FALSE)) -> 1.0003 | E137: =IF($B137="","",VLOOKUP(E$5,BBDD!$8:$1048576,$B137,FALSE)) -> 1.0184 | F137: =IF($B137="","",VLOOKUP(F$5,BBDD!$8:$1048576,$B137,FALSE)) -> 1.0257 | G137: =IF($B137="","",VLOOKUP(G$5,BBDD!$8:$1048576,$B137,FALSE)) -> 1.0257 | H137: =IF($B137="","",VLOOKUP(H$5,BBDD!$8:$1048576,$B137,FALSE)) -> 1 | I137: =IF($B137="","",VLOOKUP(I$5,BBDD!$8:$1048576,$B137,FALSE)) -> 1.056 | J137: =IF($B137="","",VLOOKUP(J$5,BBDD!$8:$1048576,$B137,FALSE)) -> 1.056 | K137: =IF($B137="","",VLOOKUP(K$5,BBDD!$8:$1048576,$B137,FALSE)) -> 1.056 | L137: =IF($B137="","",VLOOKUP(L$5,BBDD!$8:$1048576,$B137,FALSE)) -> 1.0646 | M137: =IF($B137="","",VLOOKUP(M$5,BBDD!$8:$1048576,$B137,FALSE)) -> 1.0646 | N137: =IF($B137="","",VLOOKUP(N$5,BBDD!$8:$1048576,$B137,FALSE)) -> 1.0634 | O137: =IF($B137="","",VLOOKUP(O$5,BBDD!$8:$1048576,$B137,FALSE)) -> 1.0634 | P137: =+Factores!F137 -> 1.0634
A138: b) Sector 2 | B138: =1+B137 -> 108 | C138: =IF($B138="","",VLOOKUP(C$5,BBDD!$8:$1048576,$B138,FALSE)) -> 0.9866 | D138: =IF($B138="","",VLOOKUP(D$5,BBDD!$8:$1048576,$B138,FALSE)) -> 0.9866 | E138: =IF($B138="","",VLOOKUP(E$5,BBDD!$8:$1048576,$B138,FALSE)) -> 1.0044 | F138: =IF($B138="","",VLOOKUP(F$5,BBDD!$8:$1048576,$B138,FALSE)) -> 1.0111 | G138: =IF($B138="","",VLOOKUP(G$5,BBDD!$8:$1048576,$B138,FALSE)) -> 1.0111 | H138: =IF($B138="","",VLOOKUP(H$5,BBDD!$8:$1048576,$B138,FALSE)) -> 1 | I138: =IF($B138="","",VLOOKUP(I$5,BBDD!$8:$1048576,$B138,FALSE)) -> 1.0303 | J138: =IF($B138="","",VLOOKUP(J$5,BBDD!$8:$1048576,$B138,FALSE)) -> 1.0303 | K138: =IF($B138="","",VLOOKUP(K$5,BBDD!$8:$1048576,$B138,FALSE)) -> 1.0303 | L138: =IF($B138="","",VLOOKUP(L$5,BBDD!$8:$1048576,$B138,FALSE)) -> 1.0287 | M138: =IF($B138="","",VLOOKUP(M$5,BBDD!$8:$1048576,$B138,FALSE)) -> 1.0287 | N138: =IF($B138="","",VLOOKUP(N$5,BBDD!$8:$1048576,$B138,FALSE)) -> 1.0311 | O138: =IF($B138="","",VLOOKUP(O$5,BBDD!$8:$1048576,$B138,FALSE)) -> 1.0311 | P138: =+Factores!F138 -> 1.0311
A139: c) Sector 3 | B139: 109 | C139: =IF($B139="","",VLOOKUP(C$5,BBDD!$8:$1048576,$B139,FALSE)) -> 0.9893 | D139: =IF($B139="","",VLOOKUP(D$5,BBDD!$8:$1048576,$B139,FALSE)) -> 0.9893 | E139: =IF($B139="","",VLOOKUP(E$5,BBDD!$8:$1048576,$B139,FALSE)) -> 1.0071 | F139: =IF($B139="","",VLOOKUP(F$5,BBDD!$8:$1048576,$B139,FALSE)) -> 1.0139 | G139: =IF($B139="","",VLOOKUP(G$5,BBDD!$8:$1048576,$B139,FALSE)) -> 1.0139 | H139: =IF($B139="","",VLOOKUP(H$5,BBDD!$8:$1048576,$B139,FALSE)) -> 1 | I139: =IF($B139="","",VLOOKUP(I$5,BBDD!$8:$1048576,$B139,FALSE)) -> 1.0553 | J139: =IF($B139="","",VLOOKUP(J$5,BBDD!$8:$1048576,$B139,FALSE)) -> 1.0553 | K139: =IF($B139="","",VLOOKUP(K$5,BBDD!$8:$1048576,$B139,FALSE)) -> 1.0553 | L139: =IF($B139="","",VLOOKUP(L$5,BBDD!$8:$1048576,$B139,FALSE)) -> 1.0637 | M139: =IF($B139="","",VLOOKUP(M$5,BBDD!$8:$1048576,$B139,FALSE)) -> 1.0637 | N139: =IF($B139="","",VLOOKUP(N$5,BBDD!$8:$1048576,$B139,FALSE)) -> 1.0633 | O139: =IF($B139="","",VLOOKUP(O$5,BBDD!$8:$1048576,$B139,FALSE)) -> 1.0633 | P139: =+Factores!F139 -> 1.0633
A140: d) Sector 4 | B140: 110 | C140: =IF($B140="","",VLOOKUP(C$5,BBDD!$8:$1048576,$B140,FALSE)) -> 0.9797 | D140: =IF($B140="","",VLOOKUP(D$5,BBDD!$8:$1048576,$B140,FALSE)) -> 0.9797 | E140: =IF($B140="","",VLOOKUP(E$5,BBDD!$8:$1048576,$B140,FALSE)) -> 0.9984 | F140: =IF($B140="","",VLOOKUP(F$5,BBDD!$8:$1048576,$B140,FALSE)) -> 1.0057 | G140: =IF($B140="","",VLOOKUP(G$5,BBDD!$8:$1048576,$B140,FALSE)) -> 1.0057 | H140: =IF($B140="","",VLOOKUP(H$5,BBDD!$8:$1048576,$B140,FALSE)) -> 1 | I140: =IF($B140="","",VLOOKUP(I$5,BBDD!$8:$1048576,$B140,FALSE)) -> 1.0495 | J140: =IF($B140="","",VLOOKUP(J$5,BBDD!$8:$1048576,$B140,FALSE)) -> 1.0495 | K140: =IF($B140="","",VLOOKUP(K$5,BBDD!$8:$1048576,$B140,FALSE)) -> 1.0495 | L140: =IF($B140="","",VLOOKUP(L$5,BBDD!$8:$1048576,$B140,FALSE)) -> 1.0557 | M140: =IF($B140="","",VLOOKUP(M$5,BBDD!$8:$1048576,$B140,FALSE)) -> 1.0557 | N140: =IF($B140="","",VLOOKUP(N$5,BBDD!$8:$1048576,$B140,FALSE)) -> 1.0566 | O140: =IF($B140="","",VLOOKUP(O$5,BBDD!$8:$1048576,$B140,FALSE)) -> 1.0566 | P140: =+Factores!F140 -> 1.0566
A141: e) Sector 5 | B141: =1+B140 -> 111 | C141: =IF($B141="","",VLOOKUP(C$5,BBDD!$8:$1048576,$B141,FALSE)) -> 0.9762 | D141: =IF($B141="","",VLOOKUP(D$5,BBDD!$8:$1048576,$B141,FALSE)) -> 0.9762 | E141: =IF($B141="","",VLOOKUP(E$5,BBDD!$8:$1048576,$B141,FALSE)) -> 0.9949 | F141: =IF($B141="","",VLOOKUP(F$5,BBDD!$8:$1048576,$B141,FALSE)) -> 1.0021 | G141: =IF($B141="","",VLOOKUP(G$5,BBDD!$8:$1048576,$B141,FALSE)) -> 1.0021 | H141: =IF($B141="","",VLOOKUP(H$5,BBDD!$8:$1048576,$B141,FALSE)) -> 1 | I141: =IF($B141="","",VLOOKUP(I$5,BBDD!$8:$1048576,$B141,FALSE)) -> 1.0425 | J141: =IF($B141="","",VLOOKUP(J$5,BBDD!$8:$1048576,$B141,FALSE)) -> 1.0425 | K141: =IF($B141="","",VLOOKUP(K$5,BBDD!$8:$1048576,$B141,FALSE)) -> 1.0425 | L141: =IF($B141="","",VLOOKUP(L$5,BBDD!$8:$1048576,$B141,FALSE)) -> 1.046 | M141: =IF($B141="","",VLOOKUP(M$5,BBDD!$8:$1048576,$B141,FALSE)) -> 1.046 | N141: =IF($B141="","",VLOOKUP(N$5,BBDD!$8:$1048576,$B141,FALSE)) -> 1.0477 | O141: =IF($B141="","",VLOOKUP(O$5,BBDD!$8:$1048576,$B141,FALSE)) -> 1.0477 | P141: =+Factores!F141 -> 1.0477
A142: f) Sector 6 | B142: 112 | C142: =IF($B142="","",VLOOKUP(C$5,BBDD!$8:$1048576,$B142,FALSE)) -> 0 | D142: =IF($B142="","",VLOOKUP(D$5,BBDD!$8:$1048576,$B142,FALSE)) -> 0 | E142: =IF($B142="","",VLOOKUP(E$5,BBDD!$8:$1048576,$B142,FALSE)) -> 0 | F142: =IF($B142="","",VLOOKUP(F$5,BBDD!$8:$1048576,$B142,FALSE)) -> 0 | G142: =IF($B142="","",VLOOKUP(G$5,BBDD!$8:$1048576,$B142,FALSE)) -> 0 | H142: =IF($B142="","",VLOOKUP(H$5,BBDD!$8:$1048576,$B142,FALSE)) -> 1 | I142: =IF($B142="","",VLOOKUP(I$5,BBDD!$8:$1048576,$B142,FALSE)) -> 1.0465 | J142: =IF($B142="","",VLOOKUP(J$5,BBDD!$8:$1048576,$B142,FALSE)) -> 1.0465 | K142: =IF($B142="","",VLOOKUP(K$5,BBDD!$8:$1048576,$B142,FALSE)) -> 1.0465 | L142: =IF($B142="","",VLOOKUP(L$5,BBDD!$8:$1048576,$B142,FALSE)) -> 1.0516 | M142: =IF($B142="","",VLOOKUP(M$5,BBDD!$8:$1048576,$B142,FALSE)) -> 1.0516 | N142: =IF($B142="","",VLOOKUP(N$5,BBDD!$8:$1048576,$B142,FALSE)) -> 1.053 | O142: =IF($B142="","",VLOOKUP(O$5,BBDD!$8:$1048576,$B142,FALSE)) -> 1.053 | P142: =+Factores!F142 -> 1.053
A143: g) Sector Especial | B143: 113 | C143: =IF($B143="","",VLOOKUP(C$5,BBDD!$8:$1048576,$B143,FALSE)) -> 0.9725 | D143: =IF($B143="","",VLOOKUP(D$5,BBDD!$8:$1048576,$B143,FALSE)) -> 0.9725 | E143: =IF($B143="","",VLOOKUP(E$5,BBDD!$8:$1048576,$B143,FALSE)) -> 0.9899 | F143: =IF($B143="","",VLOOKUP(F$5,BBDD!$8:$1048576,$B143,FALSE)) -> 0.9961 | G143: =IF($B143="","",VLOOKUP(G$5,BBDD!$8:$1048576,$B143,FALSE)) -> 0.9961 | H143: =IF($B143="","",VLOOKUP(H$5,BBDD!$8:$1048576,$B143,FALSE)) -> 1 | I143: =IF($B143="","",VLOOKUP(I$5,BBDD!$8:$1048576,$B143,FALSE)) -> 1.0348 | J143: =IF($B143="","",VLOOKUP(J$5,BBDD!$8:$1048576,$B143,FALSE)) -> 1.0348 | K143: =IF($B143="","",VLOOKUP(K$5,BBDD!$8:$1048576,$B143,FALSE)) -> 1.0348 | L143: =IF($B143="","",VLOOKUP(L$5,BBDD!$8:$1048576,$B143,FALSE)) -> 1.0353 | M143: =IF($B143="","",VLOOKUP(M$5,BBDD!$8:$1048576,$B143,FALSE)) -> 1.0353 | N143: =IF($B143="","",VLOOKUP(N$5,BBDD!$8:$1048576,$B143,FALSE)) -> 1.0384 | O143: =IF($B143="","",VLOOKUP(O$5,BBDD!$8:$1048576,$B143,FALSE)) -> 1.0384 | P143: =+Factores!F143 -> 1.0384
A144: h) VAD SER 100 Estado Prepago | B144: 114 | C144: =IF($B144="","",VLOOKUP(C$5,BBDD!$8:$1048576,$B144,FALSE)) -> 0.9776 | D144: =IF($B144="","",VLOOKUP(D$5,BBDD!$8:$1048576,$B144,FALSE)) -> 0.9776 | E144: =IF($B144="","",VLOOKUP(E$5,BBDD!$8:$1048576,$B144,FALSE)) -> 0.9963 | F144: =IF($B144="","",VLOOKUP(F$5,BBDD!$8:$1048576,$B144,FALSE)) -> 1.0036 | G144: =IF($B144="","",VLOOKUP(G$5,BBDD!$8:$1048576,$B144,FALSE)) -> 1.0036 | H144: =IF($B144="","",VLOOKUP(H$5,BBDD!$8:$1048576,$B144,FALSE)) -> 1 | I144: =IF($B144="","",VLOOKUP(I$5,BBDD!$8:$1048576,$B144,FALSE)) -> 1.0363 | J144: =IF($B144="","",VLOOKUP(J$5,BBDD!$8:$1048576,$B144,FALSE)) -> 1.0363 | K144: =IF($B144="","",VLOOKUP(K$5,BBDD!$8:$1048576,$B144,FALSE)) -> 1.0363 | L144: =IF($B144="","",VLOOKUP(L$5,BBDD!$8:$1048576,$B144,FALSE)) -> 1.0373 | M144: =IF($B144="","",VLOOKUP(M$5,BBDD!$8:$1048576,$B144,FALSE)) -> 1.0373 | N144: =IF($B144="","",VLOOKUP(N$5,BBDD!$8:$1048576,$B144,FALSE)) -> 1.0407 | O144: =IF($B144="","",VLOOKUP(O$5,BBDD!$8:$1048576,$B144,FALSE)) -> 1.0407 | P144: =+Factores!F144 -> 1.0407
A145: i) VAD SER 100 Estado Convencional | B145: 115 | C145: =IF($B145="","",VLOOKUP(C$5,BBDD!$8:$1048576,$B145,FALSE)) -> 0.9792 | D145: =IF($B145="","",VLOOKUP(D$5,BBDD!$8:$1048576,$B145,FALSE)) -> 0.9792 | E145: =IF($B145="","",VLOOKUP(E$5,BBDD!$8:$1048576,$B145,FALSE)) -> 0.998 | F145: =IF($B145="","",VLOOKUP(F$5,BBDD!$8:$1048576,$B145,FALSE)) -> 1.0052 | G145: =IF($B145="","",VLOOKUP(G$5,BBDD!$8:$1048576,$B145,FALSE)) -> 1.0052 | H145: =IF($B145="","",VLOOKUP(H$5,BBDD!$8:$1048576,$B145,FALSE)) -> 1 | I145: =IF($B145="","",VLOOKUP(I$5,BBDD!$8:$1048576,$B145,FALSE)) -> 1.0359 | J145: =IF($B145="","",VLOOKUP(J$5,BBDD!$8:$1048576,$B145,FALSE)) -> 1.0359 | K145: =IF($B145="","",VLOOKUP(K$5,BBDD!$8:$1048576,$B145,FALSE)) -> 1.0359 | L145: =IF($B145="","",VLOOKUP(L$5,BBDD!$8:$1048576,$B145,FALSE)) -> 1.0369 | M145: =IF($B145="","",VLOOKUP(M$5,BBDD!$8:$1048576,$B145,FALSE)) -> 1.0369 | N145: =IF($B145="","",VLOOKUP(N$5,BBDD!$8:$1048576,$B145,FALSE)) -> 1.0403 | O145: =IF($B145="","",VLOOKUP(O$5,BBDD!$8:$1048576,$B145,FALSE)) -> 1.0403 | P145: =+Factores!F145 -> 1.0403
A146: j) VAD SER 100 Empresa Prepago | B146: 116 | C146: =IF($B146="","",VLOOKUP(C$5,BBDD!$8:$1048576,$B146,FALSE)) -> 0.9776 | D146: =IF($B146="","",VLOOKUP(D$5,BBDD!$8:$1048576,$B146,FALSE)) -> 0.9776 | E146: =IF($B146="","",VLOOKUP(E$5,BBDD!$8:$1048576,$B146,FALSE)) -> 0.9963 | F146: =IF($B146="","",VLOOKUP(F$5,BBDD!$8:$1048576,$B146,FALSE)) -> 1.0036 | G146: =IF($B146="","",VLOOKUP(G$5,BBDD!$8:$1048576,$B146,FALSE)) -> 1.0036 | H146: =IF($B146="","",VLOOKUP(H$5,BBDD!$8:$1048576,$B146,FALSE)) -> 1 | I146: =IF($B146="","",VLOOKUP(I$5,BBDD!$8:$1048576,$B146,FALSE)) -> 1.0363 | J146: =IF($B146="","",VLOOKUP(J$5,BBDD!$8:$1048576,$B146,FALSE)) -> 1.0363 | K146: =IF($B146="","",VLOOKUP(K$5,BBDD!$8:$1048576,$B146,FALSE)) -> 1.0363 | L146: =IF($B146="","",VLOOKUP(L$5,BBDD!$8:$1048576,$B146,FALSE)) -> 1.0373 | M146: =IF($B146="","",VLOOKUP(M$5,BBDD!$8:$1048576,$B146,FALSE)) -> 1.0373 | N146: =IF($B146="","",VLOOKUP(N$5,BBDD!$8:$1048576,$B146,FALSE)) -> 1.0407 | O146: =IF($B146="","",VLOOKUP(O$5,BBDD!$8:$1048576,$B146,FALSE)) -> 1.0407 | P146: =+Factores!F146 -> 1.0407
A147: k) VAD SER 100 Empresa Convencional | B147: 117 | C147: =IF($B147="","",VLOOKUP(C$5,BBDD!$8:$1048576,$B147,FALSE)) -> 0.9792 | D147: =IF($B147="","",VLOOKUP(D$5,BBDD!$8:$1048576,$B147,FALSE)) -> 0.9792 | E147: =IF($B147="","",VLOOKUP(E$5,BBDD!$8:$1048576,$B147,FALSE)) -> 0.998 | F147: =IF($B147="","",VLOOKUP(F$5,BBDD!$8:$1048576,$B147,FALSE)) -> 1.0052 | G147: =IF($B147="","",VLOOKUP(G$5,BBDD!$8:$1048576,$B147,FALSE)) -> 1.0052 | H147: =IF($B147="","",VLOOKUP(H$5,BBDD!$8:$1048576,$B147,FALSE)) -> 1 | I147: =IF($B147="","",VLOOKUP(I$5,BBDD!$8:$1048576,$B147,FALSE)) -> 1.0359 | J147: =IF($B147="","",VLOOKUP(J$5,BBDD!$8:$1048576,$B147,FALSE)) -> 1.0359 | K147: =IF($B147="","",VLOOKUP(K$5,BBDD!$8:$1048576,$B147,FALSE)) -> 1.0359 | L147: =IF($B147="","",VLOOKUP(L$5,BBDD!$8:$1048576,$B147,FALSE)) -> 1.0369 | M147: =IF($B147="","",VLOOKUP(M$5,BBDD!$8:$1048576,$B147,FALSE)) -> 1.0369 | N147: =IF($B147="","",VLOOKUP(N$5,BBDD!$8:$1048576,$B147,FALSE)) -> 1.0403 | O147: =IF($B147="","",VLOOKUP(O$5,BBDD!$8:$1048576,$B147,FALSE)) -> 1.0403 | P147: =+Factores!F147 -> 1.0403
C148: =IF($B148="","",VLOOKUP(C$5,BBDD!$8:$1048576,$B148,FALSE)) ->  | D148: =IF($B148="","",VLOOKUP(D$5,BBDD!$8:$1048576,$B148,FALSE)) ->  | E148: =IF($B148="","",VLOOKUP(E$5,BBDD!$8:$1048576,$B148,FALSE)) ->  | F148: =IF($B148="","",VLOOKUP(F$5,BBDD!$8:$1048576,$B148,FALSE)) ->  | G148: =IF($B148="","",VLOOKUP(G$5,BBDD!$8:$1048576,$B148,FALSE)) ->  | H148: =IF($B148="","",VLOOKUP(H$5,BBDD!$8:$1048576,$B148,FALSE)) ->  | I148: =IF($B148="","",VLOOKUP(I$5,BBDD!$8:$1048576,$B148,FALSE)) ->  | J148: =IF($B148="","",VLOOKUP(J$5,BBDD!$8:$1048576,$B148,FALSE)) ->  | K148: =IF($B148="","",VLOOKUP(K$5,BBDD!$8:$1048576,$B148,FALSE)) ->  | L148: =IF($B148="","",VLOOKUP(L$5,BBDD!$8:$1048576,$B148,FALSE)) ->  | M148: =IF($B148="","",VLOOKUP(M$5,BBDD!$8:$1048576,$B148,FALSE)) ->  | N148: =IF($B148="","",VLOOKUP(N$5,BBDD!$8:$1048576,$B148,FALSE)) ->  | O148: =IF($B148="","",VLOOKUP(O$5,BBDD!$8:$1048576,$B148,FALSE)) ->  | P148: =+Factores!F148 -> 
A149: 4. CARGOS FIJOS | B149: =1+B147 -> 118 | C149: =IF($B149="","",VLOOKUP(C$5,BBDD!$8:$1048576,$B149,FALSE)) -> 1.0418 | D149: =IF($B149="","",VLOOKUP(D$5,BBDD!$8:$1048576,$B149,FALSE)) -> 1.0418 | E149: =IF($B149="","",VLOOKUP(E$5,BBDD!$8:$1048576,$B149,FALSE)) -> 1.0605 | F149: =IF($B149="","",VLOOKUP(F$5,BBDD!$8:$1048576,$B149,FALSE)) -> 1.0694 | G149: =IF($B149="","",VLOOKUP(G$5,BBDD!$8:$1048576,$B149,FALSE)) -> 1.0694 | H149: =IF($B149="","",VLOOKUP(H$5,BBDD!$8:$1048576,$B149,FALSE)) -> 1 | I149: =IF($B149="","",VLOOKUP(I$5,BBDD!$8:$1048576,$B149,FALSE)) -> 1.0207 | J149: =IF($B149="","",VLOOKUP(J$5,BBDD!$8:$1048576,$B149,FALSE)) -> 1.0207 | K149: =IF($B149="","",VLOOKUP(K$5,BBDD!$8:$1048576,$B149,FALSE)) -> 1.0207 | L149: =IF($B149="","",VLOOKUP(L$5,BBDD!$8:$1048576,$B149,FALSE)) -> 1.0158 | M149: =IF($B149="","",VLOOKUP(M$5,BBDD!$8:$1048576,$B149,FALSE)) -> 1.0158 | N149: =IF($B149="","",VLOOKUP(N$5,BBDD!$8:$1048576,$B149,FALSE)) -> 1.0217 | O149: =IF($B149="","",VLOOKUP(O$5,BBDD!$8:$1048576,$B149,FALSE)) -> 1.0217 | P149: =+Factores!F149 -> 1.0217
C150: =IF($B150="","",VLOOKUP(C$5,BBDD!$8:$1048576,$B150,FALSE)) ->  | D150: =IF($B150="","",VLOOKUP(D$5,BBDD!$8:$1048576,$B150,FALSE)) ->  | E150: =IF($B150="","",VLOOKUP(E$5,BBDD!$8:$1048576,$B150,FALSE)) ->  | F150: =IF($B150="","",VLOOKUP(F$5,BBDD!$8:$1048576,$B150,FALSE)) ->  | G150: =IF($B150="","",VLOOKUP(G$5,BBDD!$8:$1048576,$B150,FALSE)) ->  | H150: =IF($B150="","",VLOOKUP(H$5,BBDD!$8:$1048576,$B150,FALSE)) ->  | I150: =IF($B150="","",VLOOKUP(I$5,BBDD!$8:$1048576,$B150,FALSE)) ->  | J150: =IF($B150="","",VLOOKUP(J$5,BBDD!$8:$1048576,$B150,FALSE)) ->  | K150: =IF($B150="","",VLOOKUP(K$5,BBDD!$8:$1048576,$B150,FALSE)) ->  | L150: =IF($B150="","",VLOOKUP(L$5,BBDD!$8:$1048576,$B150,FALSE)) ->  | M150: =IF($B150="","",VLOOKUP(M$5,BBDD!$8:$1048576,$B150,FALSE)) ->  | N150: =IF($B150="","",VLOOKUP(N$5,BBDD!$8:$1048576,$B150,FALSE)) ->  | O150: =IF($B150="","",VLOOKUP(O$5,BBDD!$8:$1048576,$B150,FALSE)) ->  | P150: =+Factores!F150 -> 
A151: 5. ENERGÍA REACTIVA (FACER) | B151: =1+B149 -> 119 | C151: =IF($B151="","",VLOOKUP(C$5,BBDD!$8:$1048576,$B151,FALSE)) -> 0.8701 | D151: =IF($B151="","",VLOOKUP(D$5,BBDD!$8:$1048576,$B151,FALSE)) -> 0.8701 | E151: =IF($B151="","",VLOOKUP(E$5,BBDD!$8:$1048576,$B151,FALSE)) -> 0.8892 | F151: =IF($B151="","",VLOOKUP(F$5,BBDD!$8:$1048576,$B151,FALSE)) -> 0.8937 | G151: =IF($B151="","",VLOOKUP(G$5,BBDD!$8:$1048576,$B151,FALSE)) -> 0.8937 | H151: =IF($B151="","",VLOOKUP(H$5,BBDD!$8:$1048576,$B151,FALSE)) -> 1 | I151: =IF($B151="","",VLOOKUP(I$5,BBDD!$8:$1048576,$B151,FALSE)) -> 1.0858 | J151: =IF($B151="","",VLOOKUP(J$5,BBDD!$8:$1048576,$B151,FALSE)) -> 1.0858 | K151: =IF($B151="","",VLOOKUP(K$5,BBDD!$8:$1048576,$B151,FALSE)) -> 1.0858 | L151: =IF($B151="","",VLOOKUP(L$5,BBDD!$8:$1048576,$B151,FALSE)) -> 1.1062 | M151: =IF($B151="","",VLOOKUP(M$5,BBDD!$8:$1048576,$B151,FALSE)) -> 1.1062 | N151: =IF($B151="","",VLOOKUP(N$5,BBDD!$8:$1048576,$B151,FALSE)) -> 1.1011 | O151: =IF($B151="","",VLOOKUP(O$5,BBDD!$8:$1048576,$B151,FALSE)) -> 1.1011 | P151: =+Factores!F151 -> 1.1011
C152: =IF($B152="","",VLOOKUP(C$5,BBDD!$8:$1048576,$B152,FALSE)) ->  | D152: =IF($B152="","",VLOOKUP(D$5,BBDD!$8:$1048576,$B152,FALSE)) ->  | E152: =IF($B152="","",VLOOKUP(E$5,BBDD!$8:$1048576,$B152,FALSE)) ->  | F152: =IF($B152="","",VLOOKUP(F$5,BBDD!$8:$1048576,$B152,FALSE)) ->  | G152: =IF($B152="","",VLOOKUP(G$5,BBDD!$8:$1048576,$B152,FALSE)) ->  | H152: =IF($B152="","",VLOOKUP(H$5,BBDD!$8:$1048576,$B152,FALSE)) ->  | I152: =IF($B152="","",VLOOKUP(I$5,BBDD!$8:$1048576,$B152,FALSE)) ->  | J152: =IF($B152="","",VLOOKUP(J$5,BBDD!$8:$1048576,$B152,FALSE)) ->  | K152: =IF($B152="","",VLOOKUP(K$5,BBDD!$8:$1048576,$B152,FALSE)) ->  | L152: =IF($B152="","",VLOOKUP(L$5,BBDD!$8:$1048576,$B152,FALSE)) ->  | M152: =IF($B152="","",VLOOKUP(M$5,BBDD!$8:$1048576,$B152,FALSE)) ->  | N152: =IF($B152="","",VLOOKUP(N$5,BBDD!$8:$1048576,$B152,FALSE)) ->  | O152: =IF($B152="","",VLOOKUP(O$5,BBDD!$8:$1048576,$B152,FALSE)) ->  | P152: =+Factores!F152 -> 
A153: FACCSP (Cargo Comercial del Servicio Prepago) Res. N° 442-2006-OS/CD | B153: =1+B151 -> 120 | C153: =IF($B153="","",VLOOKUP(C$5,BBDD!$8:$1048576,$B153,FALSE)) -> 1.204 | D153: =IF($B153="","",VLOOKUP(D$5,BBDD!$8:$1048576,$B153,FALSE)) -> 1.204 | E153: =IF($B153="","",VLOOKUP(E$5,BBDD!$8:$1048576,$B153,FALSE)) -> 1.2102 | F153: =IF($B153="","",VLOOKUP(F$5,BBDD!$8:$1048576,$B153,FALSE)) -> 1.222 | G153: =IF($B153="","",VLOOKUP(G$5,BBDD!$8:$1048576,$B153,FALSE)) -> 1.222 | H153: =IF($B153="","",VLOOKUP(H$5,BBDD!$8:$1048576,$B153,FALSE)) -> 1 | I153: =IF($B153="","",VLOOKUP(I$5,BBDD!$8:$1048576,$B153,FALSE)) -> 1.0207 | J153: =IF($B153="","",VLOOKUP(J$5,BBDD!$8:$1048576,$B153,FALSE)) -> 1.0207 | K153: =IF($B153="","",VLOOKUP(K$5,BBDD!$8:$1048576,$B153,FALSE)) -> 1.0207 | L153: =IF($B153="","",VLOOKUP(L$5,BBDD!$8:$1048576,$B153,FALSE)) -> 1.0158 | M153: =IF($B153="","",VLOOKUP(M$5,BBDD!$8:$1048576,$B153,FALSE)) -> 1.0158 | N153: =IF($B153="","",VLOOKUP(N$5,BBDD!$8:$1048576,$B153,FALSE)) -> 1.0217 | O153: =IF($B153="","",VLOOKUP(O$5,BBDD!$8:$1048576,$B153,FALSE)) -> 1.0217 | P153: =+Factores!F153 -> 1.0217
C154: =IF($B154="","",VLOOKUP(C$5,BBDD!$8:$1048576,$B154,FALSE)) ->  | D154: =IF($B154="","",VLOOKUP(D$5,BBDD!$8:$1048576,$B154,FALSE)) ->  | E154: =IF($B154="","",VLOOKUP(E$5,BBDD!$8:$1048576,$B154,FALSE)) ->  | F154: =IF($B154="","",VLOOKUP(F$5,BBDD!$8:$1048576,$B154,FALSE)) ->  | G154: =IF($B154="","",VLOOKUP(G$5,BBDD!$8:$1048576,$B154,FALSE)) ->  | H154: =IF($B154="","",VLOOKUP(H$5,BBDD!$8:$1048576,$B154,FALSE)) ->  | I154: =IF($B154="","",VLOOKUP(I$5,BBDD!$8:$1048576,$B154,FALSE)) ->  | J154: =IF($B154="","",VLOOKUP(J$5,BBDD!$8:$1048576,$B154,FALSE)) ->  | K154: =IF($B154="","",VLOOKUP(K$5,BBDD!$8:$1048576,$B154,FALSE)) ->  | L154: =IF($B154="","",VLOOKUP(L$5,BBDD!$8:$1048576,$B154,FALSE)) ->  | M154: =IF($B154="","",VLOOKUP(M$5,BBDD!$8:$1048576,$B154,FALSE)) ->  | N154: =IF($B154="","",VLOOKUP(N$5,BBDD!$8:$1048576,$B154,FALSE)) ->  | O154: =IF($B154="","",VLOOKUP(O$5,BBDD!$8:$1048576,$B154,FALSE)) ->  | P154: =+Factores!F154 -> 
